{"text_format":"1","workbook":"xlsx","n_sheets":36,"sheets":["Cost categories","_control","Ekonomisk projektbeskrivning","Exchange rates","Aktuell budget","Ursprunglig budget","Efterkalkyl","Uppföljning totalt (intern)","In_Ut-betalningar bidrag EURO","In_Ut-bet på aktproj Agresso","Personnel costs RP1","Project Transactions RP1","Direct costs RP1","Financial Statement RP1","Adjustments RP1","Personnel costs RP2","Project Transactions RP2","Direct costs RP2","Financial Statement RP2","Adjustments RP2","Personnel costs RP3","Project Transactions RP3","Direct costs RP3","Financial Statement RP3","Adjustments RP3","Personnel costs RP4","Project Transactions RP4","Direct costs RP4","Financial Statement RP4","Adjustments RP4","Personnel costs RP5","Project Transactions RP5","Direct costs RP5","Financial Statement RP5","Adjustments RP5","Blad1"],"not_rendered":{"charts":0,"images":1,"macros":1,"external_links":3,"defined_names":294,"comments":7,"pivot_tables":0},"unopened":[],"bounds":{"document_bytes":16777216,"sheet_cells":100000,"rows_first":2000,"rows_last":500,"rows_between":2000,"halvings":0,"cell_chars":16384,"cell_head_chars":4096},"cells_cut":0,"cells_raw":0,"read":"whole","date_system":"1900"}

{"sheet":"Cost categories","index":0,"n_rows":10,"n_cols":1,"rows_kept":10,"cut":false,"hidden":true,"merged":[]}
[]
["A.1 Employees (or equivalent)"]
["A.2 Natural persons working under direct contract"]
["A.3 Seconded persons"]
["A.6 Personnel for providing access to research infrastructure"]
["B.1 Subcontracting"]
["D.1 Travel"]
["D.2 Equipment"]
["D.3 Other goods and services"]
["D.5 Costs for internally invoiced goods and services"]

{"sheet":"_control","index":1,"n_rows":22,"n_cols":3,"rows_kept":22,"cut":false,"hidden":true,"merged":[]}
["*","Control Worksheet (NB any row with a '*' as the first character in column A is ignored)"]
[]
[]
["*","Global Parameters"]
["*","Parameter","Value"]
["set","client","BO"]
["set","language","SE"]
["set","datasource","excelerator"]
["set","RP1start",{"$f":"'Project Transactions RP1'!E17","v":0}]
["set","RP1end",{"$f":"'Project Transactions RP1'!E18","v":0}]
["set","RP2start",{"$f":"'Project Transactions RP2'!E17","v":0}]
["set","RP2end",{"$f":"'Project Transactions RP2'!E18","v":0}]
["set","RP3start",{"$f":"'Project Transactions RP3'!E17","v":0}]
["set","RP3end",{"$f":"'Project Transactions RP3'!E18","v":0}]
["set","RP4start",{"$f":"'Project Transactions RP4'!E17","v":0}]
["set","RP4end",{"$f":"'Project Transactions RP4'!E18","v":0}]
["set","RP5start",{"$f":"'Project Transactions RP5'!E17","v":0}]
["set","RP5end",{"$f":"'Project Transactions RP5'!E18","v":0}]
["set","UBBalansStart",{"$f":"CONCATENATE(YEAR(TODAY())&\"00\")","v":"202100"}]
["set","UBBalansEnd",{"$f":"CONCATENATE(YEAR(TODAY())&\"15\")","v":"202115"}]
["set","orgenh",{"$f":"'Ekonomisk projektbeskrivning'!B4","v":0}]
["set","aktproj",{"$f":"'Ekonomisk projektbeskrivning'!J4","v":0}]

{"sheet":"Ekonomisk projektbeskrivning","index":2,"n_rows":63,"n_cols":257,"rows_kept":63,"cut":false,"hidden":false,"merged":[[19,8,19,9],[19,4,19,7],[21,0,21,1],[19,0,20,1],[19,2,20,2],[19,3,20,3],[62,0,62,3],[62,4,62,8],[55,0,55,3],[56,0,56,3],[57,0,57,3],[59,0,59,8],[60,0,60,3],[60,4,60,8],[61,0,61,3],[61,4,61,8],[52,0,52,9],[38,0,38,4],[38,6,38,8],[39,0,39,4],[39,6,39,8],[40,0,40,4],[40,6,40,8],[41,0,41,4],[41,6,41,8],[45,0,45,9],[48,0,48,1],[49,0,49,1],[35,0,35,4],[35,6,35,8],[36,0,36,4],[36,6,36,8],[37,0,37,4],[37,6,37,8],[32,0,32,4],[32,6,32,8],[33,0,33,4],[33,6,33,8],[34,0,34,4],[34,6,34,8],[3,6,3,8],[4,0,4,2],[4,3,4,9],[8,4,8,5],[8,7,8,8],[4,256,18,256],[5,0,5,2],[5,3,5,9],[6,1,6,3],[6,4,6,5],[7,4,7,5],[7,7,7,8],[9,4,9,5],[9,7,9,8],[10,4,10,5],[10,7,10,8],[11,4,11,5],[11,7,11,8],[12,4,12,5],[12,7,12,8],[13,4,13,5],[13,7,13,8],[16,4,16,5],[16,7,16,8],[14,4,14,5],[14,7,14,8],[15,4,15,5],[15,7,15,8]]}
["Högskolan i Borås ",null,"Ekonomisk projektbeskrivning H2020-projekt",null,null,null,null,null,"Nyupplägg:"]
[null,null,"(Projektpärmen) Bilagor: budget, avtal etc",null,null,null,null,null,"Uppdatering:"]
[]
["Institution/enhet (Org. enhet):",null,"Datum:",null,"HBs dnr:",null,"Projektnr (ange 3 första siffrorna):"]
["Projektets namn:",null,null,null,null,null,null,null,null,null,null,null,null,null,null,null,null,null,null,null,null,null,null,null,null,null,null,null,null,null,null,null,null,null,null,null,null,null,null,null,null,null,null,null,null,null,null,null,null,null,null,null,null,null,null,null,null,null,null,null,null,null,null,null,null,null,null,null,null,null,null,null,null,null,null,null,null,null,null,null,null,null,null,null,null,null,null,null,null,null,null,null,null,null,null,null,null,null,null,null,null,null,null,null,null,null,null,null,null,null,null,null,null,null,null,null,null,null,null,null,null,null,null,null,null,null,null,null,null,null,null,null,null,null,null,null,null,null,null,null,null,null,null,null,null,null,null,null,null,null,null,null,null,null,null,null,null,null,null,null,null,null,null,null,null,null,null,null,null,null,null,null,null,null,null,null,null,null,null,null,null,null,null,null,null,null,null,null,null,null,null,null,null,null,null,null,null,null,null,null,null,null,null,null,null,null,null,null,null,null,null,null,null,null,null,null,null,null,null,null,null,null,null,null,null,null,null,null,null,null,null,null,null,null,null,null,null,null,null,null,null,null,null,null,null,null,null,null,null,null,null,null,null,null,null,null,"Instruktion:                                                     Fyll i de gulmarkerade fälten och få signatur.                                                    Skanna in som PDF och spara i den elektroniska projektmappen.                          Vid Nyupplägg skickas signerad blankett i original till Jenny Eliasson Teesalu, Avtal och beslutshandlingar ska då finnas i den elektroniska projektmappen. "]
["Projektets namn (om det avser forskarutbildning och ska vara F-markerat):"]
["Typ (välj i listan):","Projekt (budget >300 tkr)",null,null,"Verksamhetsgren (välj i listan):",null,null,null,null,"21 Ordinarie forskning                    "]
["Akademins totala påslag:",null,"År 1:",0.70309999999999995,"Högskolegemensamt påslag:",null,null,"Akademigemensamt påslag:"]
[null,null,"År 2:",0.70309999999999995,"Högskolegemensamt påslag:",null,null,"Akademigemensamt påslag:"]
[null,null,"År 3:",0.70309999999999995,"Högskolegemensamt påslag:",null,null,"Akademigemensamt påslag:"]
[null,null,"År 4:",0.70309999999999995,"Högskolegemensamt påslag:",null,null,"Akademigemensamt påslag:"]
[null,null,"År 5:",0.70309999999999995,"Högskolegemensamt påslag:",null,null,"Akademigemensamt påslag:"]
[null,null,"År 6:",0.70309999999999995,"Högskolegemensamt påslag:",null,null,"Akademigemensamt påslag:"]
[null,null,"År 7:",0.70309999999999995,"Högskolegemensamt påslag:",null,null,"Akademigemensamt påslag:"]
[null,null,"År 8:",0.70309999999999995,"Högskolegemensamt påslag:",null,null,"Akademigemensamt påslag:"]
[null,null,"År 9:",0.70309999999999995,"Högskolegemensamt påslag:",null,null,"Akademigemensamt påslag:"]
[null,null,"År 10:",0.70309999999999995,"Högskolegemensamt påslag:",null,null,"Akademigemensamt påslag:"]
[]
["Extern finansiering"]
["Finansiär: ",null,"Fin kod","GA No","Beviljat bidrag fördelas på:",null,null,null,"Avtal finns\nfrån datum:   till datum:            "]
[null,null,null,null,"Totalt enligt GA","Till HB","Transfereringar (Till övriga)","Typ av transf","Från datum","Till datum"]
[]
[]
["Växelkurs",null,null,"Rapporteringsperioder"]
["Beräknad (vid start/ansökan)",null,null,null,"Från datum","Till datum","Antal månader i period"]
["Rapporteringsperiod 1",null,null,"RP1",null,null,{"$f":"IF(E26<>\"\",1+(DATEDIF(E26,F26,\"m\")),0)","v":0}]
["Rapporteringsperiod 2",null,null,"RP2",null,null,{"$f":"IF(E27<>\"\",1+(DATEDIF(E27,F27,\"m\")),\"\")","v":""}]
["Rapporteringsperiod 3",null,null,"RP3",null,null,{"$f":"IF(E28<>\"\",1+(DATEDIF(E28,F28,\"m\")),\"\")","v":""}]
["Rapporteringsperiod 4",null,null,"RP4",null,null,{"$f":"IF(E29<>\"\",1+(DATEDIF(E29,F29,\"m\")),\"\")","v":""}]
["Rapporteringsperiod 5",null,null,"RP5",null,null,{"$f":"IF(E30<>\"\",1+(DATEDIF(E30,F30,\"m\")),\"\")","v":""}]
[]
["Samfinansiering"]
["Ange typ av samfinansiering (nedan angivna är exempel)",null,null,null,null,"Belopp","Finansiären medger"]
["Påslag"]
["LKP"]
["Lokaler"]
["Parallell förbrukning enligt utlysningens villkor"]
[]
[]
[]
[]
["Summa",null,null,null,null,{"$f":"SUM(F34:F41)","v":0}]
[]
["Total finansiering \n(exkl. transfereringar)",null,null,null,null,{"$f":"F22+F42","v":0}]
[]
["* Mellanskillnaden mellan vad HB bokför och vad finansiären medger som ska tillföras projektet i form av anslag för att erhålla full kostnadstäckning"]
[]
["Parallell förbrukning av medel"]
["Extern finansieringsgrad",null,{"$f":"IFERROR(E22/F44,0)","v":0}]
["Intern finansieringsgrad",null,{"$f":"IFERROR(F42/F44,0)","v":0}]
[]
["Kommentar"]
[]
[]
["Denna ekonomiska projektbeskrivning är upprättad av institutionsekonom i samråd med projektansvarig."]
["Projektansvarig (underskrift)"]
[]
["Namn: "]
[]
["Härmed intygas att projektet ska öppnas upp (avser nyupplägg) under angiven institution och att projektets ekonomiska förutsättningar är enligt vad som anges i denna ekonomiska projektbeskrivning (avser nyupplägg och uppdatering)."]
["Prefekt / motsvarande (underskrift)",null,null,null,"Akademichef / motsvarande (underskrift)"]
[]
["Namn: ",null,null,null,"Namn: "]

{"sheet":"Exchange rates","index":3,"n_rows":39,"n_cols":22,"rows_kept":39,"cut":false,"hidden":false,"merged":[]}
[null,null,null,null,null,null,null,null,null,null,null,null,null,null,null,null,null,null,null,null,null,"ECB"]
[]
[]
[]
[]
[]
[]
[]
[]
[]
[]
[]
[]
[]
[]
[]
[]
[]
[]
[]
[]
[]
[]
[]
[]
[]
[]
[]
[]
[]
[]
[]
[]
[]
[]
[]
[]
[]
["https://www.ecb.europa.eu/stats/policy_and_exchange_rates/euro_reference_exchange_rates/html/eurofxref-graph-sek.en.html"]

{"sheet":"Aktuell budget","index":4,"n_rows":68,"n_cols":19,"rows_kept":68,"cut":false,"hidden":false,"merged":[]}
["Högskolan i Borås ",null,null,null,null,null,null,null,null,null,null,null,null,"Projektbudget"]
[]
["Institution/enhet (Org. enhet):",null,{"$f":"'Ekonomisk projektbeskrivning'!B4","v":0},"Datum:",{"$f":"'Ekonomisk projektbeskrivning'!D4","v":"00:00:00"},"HBs dnr:",{"$f":"'Ekonomisk projektbeskrivning'!F4","v":0},"Projektnr:",null,null,null,null,null,{"$f":"'Ekonomisk projektbeskrivning'!J4","v":0}]
["Projektets namn :",null,{"$f":"'Ekonomisk projektbeskrivning'!D5","v":0},null,null,null,null,null,null,null,null,null,null,null,null,null,null,null,"(Kopierar över allt till fliken Ursprunglig budget som fasta värden utan formler och formatering)"]
[]
["Budget (tkr)                              ",null,"Konto","År 1","År 2","År 3","År 4","År 5","År 6","År 7","År 8","År 9","År 10","Summa"]
["Anslag styrelsen",null,9301,null,null,null,null,null,null,null,null,null,null,{"$f":"SUM(D7:M7)","v":0},null,null,null,null,"(Kopierar över allt till ny flik inkl. formler och formatering)"]
["Anslag FoU-nämnden",null,9302,null,null,null,null,null,null,null,null,null,null,{"$f":"SUM(D8:M8)","v":0}]
["Medfinansiering",null,9936,null,null,null,null,null,null,null,null,null,null,0]
["Anslag rektor",null,9303,null,null,null,null,null,null,null,null,null,null,0]
["Avgifter",null,"31*, 33*",null,null,null,null,null,null,null,null,null,null,0]
["Bidrag",null,"35*, 36*, 37*",null,null,null,null,null,null,null,null,null,null,0]
["Periodisering projekt",null,"39*",null,null,null,null,null,null,null,null,null,null,0]
["Finansiella intäkter",null,null,null,null,null,null,null,null,null,null,null,null,0]
["Summa intäkter (-)",null,null,{"$f":"SUM(D7:D14)","v":0},{"$f":"SUM(E7:E14)","v":0},{"$f":"SUM(F7:F14)","v":0},{"$f":"SUM(G7:G14)","v":0},{"$f":"SUM(H7:H14)","v":0},{"$f":"SUM(I7:I14)","v":0},0,0,0,0,0]
["Påslag högskolegemensamt",{"$f":"'Ekonomisk projektbeskrivning'!G8","v":0},"981*",{"$f":"'Ekonomisk projektbeskrivning'!G8*(D21+D22+D23+D42)","v":0},{"$f":"'Ekonomisk projektbeskrivning'!G9*(E21+E22+E23+E42)","v":0},{"$f":"'Ekonomisk projektbeskrivning'!G10*(F21+F22+F23+F42)","v":0},{"$f":"'Ekonomisk projektbeskrivning'!G11*(G21+G22+G23+G42)","v":0},{"$f":"'Ekonomisk projektbeskrivning'!G12*(H21+H22+H23+H42)","v":0},{"$f":"'Ekonomisk projektbeskrivning'!G13*(I21+I22+I23+I42)","v":0},{"$f":"'Ekonomisk projektbeskrivning'!G14*(J21+J22+J23+J42)","v":0},{"$f":"'Ekonomisk projektbeskrivning'!G15*(K21+K22+K23+K42)","v":0},{"$f":"'Ekonomisk projektbeskrivning'!G16*(L21+L22+L23+L42)","v":0},{"$f":"'Ekonomisk projektbeskrivning'!G17*(M21+M22+M23+M42)","v":0},0]
["Påslag akademigemensamt",{"$f":"'Ekonomisk projektbeskrivning'!J8","v":0},"982*",{"$f":"'Ekonomisk projektbeskrivning'!J8*(D21+D22+D23+D42)","v":0},{"$f":"'Ekonomisk projektbeskrivning'!J9*(E21+E22+E23+E42)","v":0},{"$f":"'Ekonomisk projektbeskrivning'!J10*(F21+F22+F23+F42)","v":0},{"$f":"'Ekonomisk projektbeskrivning'!J11*(G21+G22+G23+G42)","v":0},{"$f":"'Ekonomisk projektbeskrivning'!J12*(H21+H22+H23+H42)","v":0},{"$f":"'Ekonomisk projektbeskrivning'!J13*(I21+I22+I23+I42)","v":0},{"$f":"'Ekonomisk projektbeskrivning'!J14*(J21+J22+J23+J42)","v":0},{"$f":"'Ekonomisk projektbeskrivning'!J15*(K21+K22+K23+K42)","v":0},{"$f":"'Ekonomisk projektbeskrivning'!J16*(L21+L22+L23+L42)","v":0},{"$f":"'Ekonomisk projektbeskrivning'!J17*(M21+M22+M23+M42)","v":0},0]
["Återföring av påslag",null,9832,null,null,null,null,null,null,null,null,null,null,0]
["Finansiering av högskolegemensam stödverksamhet",null,9831,null,null,null,null,null,null,null,null,null,null,0]
["Summa pålägg (+)",null,null,{"$f":"SUM(D16:D19)","v":0},{"$f":"SUM(E16:E19)","v":0},{"$f":"SUM(F16:F19)","v":0},{"$f":"SUM(G16:G19)","v":0},{"$f":"SUM(H16:H19)","v":0},{"$f":"SUM(I16:I19)","v":0},0,0,0,0,0]
["Lön och lönepålägg",null,"401*",null,null,null,null,null,null,null,null,null,null,0]
["Internt köpt personal",null,9411,null,null,null,null,null,null,null,null,null,null,0]
["Internt såld personal",null,9412,null,null,null,null,null,null,null,null,null,null,0]
["Traktamenten och bilersättningar",null,"433*",null,null,null,null,null,null,null,null,null,null,0]
["Utbildning av egen personal",null,"482*",null,null,null,null,null,null,null,null,null,null,0]
["Personalrepresentation",null,"496*",null,null,null,null,null,null,null,null,null,null,0]
["Övriga personalkostnader",null,"498*",null,null,null,null,null,null,null,null,null,null,0]
["Summa personalkostnader (+)",null,null,{"$f":"SUM(D21:D27)","v":0},{"$f":"SUM(E21:E27)","v":0},{"$f":"SUM(F21:F27)","v":0},{"$f":"SUM(G21:G27)","v":0},{"$f":"SUM(H21:H27)","v":0},{"$f":"SUM(I21:I27)","v":0},0,0,0,0,0]
["Externa hyror",null,5011,null,null,null,null,null,null,null,null,null,null,0]
["Interna hyror",null,9502,null,null,null,null,null,null,null,null,null,null,0]
["Övriga lokalkostnader",null,null,null,null,null,null,null,null,null,null,null,null,0]
["Summa lokalkostnader (+)",null,null,{"$f":"SUM(D29:D31)","v":0},{"$f":"SUM(E29:E31)","v":0},{"$f":"SUM(F29:F31)","v":0},{"$f":"SUM(G29:G31)","v":0},{"$f":"SUM(H29:H31)","v":0},{"$f":"SUM(I29:I31)","v":0},0,0,0,0,0]
["Studentkostnader",null,5111,null,null,null,null,null,null,null,null,null,null,0]
["Resor (exkl traktamenten och bilers)",null,"55**",null,null,null,null,null,null,null,null,null,null,0]
["Extern representation",null,"552*",null,null,null,null,null,null,null,null,null,null,0]
["Information och marknadsföring",null,"553*",null,null,null,null,null,null,null,null,null,null,0]
["Tryckning, publikationer & pappersvaror",null,"562*",null,null,null,null,null,null,null,null,null,null,0]
["Korttidsinventarier (datautrustning mm)",null,"564*",null,null,null,null,null,null,null,null,null,null,0]
["Kontorsmaterial",null,"563*",null,null,null,null,null,null,null,null,null,null,0]
["Övriga varor",null,"569*",null,null,null,null,null,null,null,null,null,null,0]
["Programvara, licensavgifter, datatjänster",null,"572*",null,null,null,null,null,null,null,null,null,null,0]
["Utbildningstjänster",null,"573*",null,null,null,null,null,null,null,null,null,null,0]
["Post",null,5741,null,null,null,null,null,null,null,null,null,null,{"$f":"SUM(D43:M43)","v":0}]
["Tele",null,5752,null,null,null,null,null,null,null,null,null,null,0]
["Övriga tjänster",null,"579*",null,null,null,null,null,null,null,null,null,null,0]
["Summa övriga kostnader (+)",null,null,{"$f":"SUM(D33:D45)","v":0},{"$f":"SUM(E33:E45)","v":0},{"$f":"SUM(F33:F45)","v":0},{"$f":"SUM(G33:G45)","v":0},{"$f":"SUM(H33:H45)","v":0},{"$f":"SUM(I33:I45)","v":0},0,0,0,0,0]
["Avskrivningar ",null,"69*",null,null,null,null,null,null,null,null,null,null,0]
["Finansiella kostnader",null,null,null,null,null,null,null,null,null,null,null,null,0]
["Summa kostnader (+)",null,null,{"$f":"SUM(D47:D48)+D46+D32+D28+D20","v":0},{"$f":"SUM(E47:E48)+E46+E32+E28+E20","v":0},{"$f":"SUM(F47:F48)+F46+F32+F28+F20","v":0},{"$f":"SUM(G47:G48)+G46+G32+G28+G20","v":0},{"$f":"SUM(H47:H48)+H46+H32+H28+H20","v":0},{"$f":"SUM(I47:I48)+I46+I32+I28+I20","v":0},0,0,0,0,0]
["Erhållna medel för transferering",null,"73*-74*",null,null,null,null,null,null,null,null,null,null,0]
["Periodisering erhållna medel",null,"73*-74*",null,null,null,null,null,null,null,null,null,null,0]
["Lämnade bidrag",null,"77*-79*",null,null,null,null,null,null,null,null,null,null,0]
["Summa transfereringar",null,null,{"$f":"SUM(D50:D52)","v":0},{"$f":"SUM(E50:E52)","v":0},{"$f":"SUM(F50:F52)","v":0},{"$f":"SUM(G50:G52)","v":0},{"$f":"SUM(H50:H52)","v":0},{"$f":"SUM(I50:I52)","v":0},0,0,0,0,0]
[]
["Summa Årets kapitalförändring",null,null,{"$f":"D15+D49","v":0},{"$f":"E15+E49","v":0},{"$f":"F15+F49","v":0},{"$f":"G15+G49","v":0},{"$f":"H15+H49","v":0},{"$f":"I15+I49","v":0},0,0,0,0,0]
["Myndighetskapital Fritt",null,"205*",null,null,null,null,null,null,null,null,null,null,0]
["Myndighetskapital Bundet",null,"207*",null,null,null,null,null,null,null,null,null,null,0]
["Summa",null,null,{"$f":"SUM(D55:D57)","v":0},{"$f":"SUM(E55:E57)","v":0},{"$f":"SUM(F55:F57)","v":0},{"$f":"SUM(G55:G57)","v":0},{"$f":"SUM(H55:H57)","v":0},{"$f":"SUM(I55:I57)","v":0},0,0,0,0,0]
[]
["Upplupna bidrags- och avgiftsintäkter (+)",null,"163*, 164*",null,null,null,null,null,null,null,null,null,null,0]
["Uppl. bidrags- och avgiftsintäkter (+) transfereringar",null,"163*",null,null,null,null,null,null,null,null,null,null,0]
["Oförbrukade bidrag och förutbetalda avgifter (-)",null,"273*, 274*",null,null,null,null,null,null,null,null,null,null,0]
["Oförbr. bidrag och förutbet. avgifter (-) transfereringar",null,"273*",null,null,null,null,null,null,null,null,null,null,0]
["Summa periodisering pågående projekt",null,null,{"$f":"SUM(D60:D63)","v":0},{"$f":"SUM(E60:E63)","v":0},{"$f":"SUM(F60:F63)","v":0},{"$f":"SUM(G60:G63)","v":0},{"$f":"SUM(H60:H63)","v":0},{"$f":"SUM(I60:I63)","v":0},0,0,0,0,0]
[]
["Vidareförmedling av bidrag över balansen In (-)",null,"257*, 258*, 259*",null,null,null,null,null,null,null,null,null,null,0]
["Vidareförmedling av bidrag över balansen Ut (+)",null,"257*, 258*, 259*",null,null,null,null,null,null,null,null,null,null,0]
["Summa vidareförmedling av bidrag över balansen",null,null,{"$f":"SUM(D66:D67)","v":0},{"$f":"SUM(E66:E67)","v":0},{"$f":"SUM(F66:F67)","v":0},{"$f":"SUM(G66:G67)","v":0},{"$f":"SUM(H66:H67)","v":0},{"$f":"SUM(I66:I67)","v":0},0,0,0,0,0]

{"sheet":"Ursprunglig budget","index":5,"n_rows":68,"n_cols":14,"rows_kept":68,"cut":false,"hidden":false,"merged":[]}
["Högskolan i Borås ",null,null,null,null,null,null,null,null,null,null,null,null,"Ursprunglig projektbudget"]
[]
["Institution/enhet (Org. enhet):",null,{"$f":"'Ekonomisk projektbeskrivning'!B4","v":0},"Datum:",{"$f":"'Ekonomisk projektbeskrivning'!D4","v":"00:00:00"},"HBs dnr:",{"$f":"'Ekonomisk projektbeskrivning'!F4","v":0},"Projektnr:",null,null,null,null,null,{"$f":"'Ekonomisk projektbeskrivning'!J4","v":0}]
["Projektets namn :",null,{"$f":"'Ekonomisk projektbeskrivning'!D5","v":0}]
[]
["Budget (tkr)                              ",null,"Konto","År 1","År 2","År 3","År 4","År 5","År 6","År 7","År 8","År 9","År 10","Summa"]
["Anslag styrelsen",null,9301,null,null,null,null,null,null,null,null,null,null,0]
["Anslag FoU-nämnden",null,9302,null,null,null,null,null,null,null,null,null,null,0]
["Medfinansiering",null,9936,null,null,null,null,null,null,null,null,null,null,0]
["Anslag rektor",null,9303,null,null,null,null,null,null,null,null,null,null,0]
["Avgifter",null,"31*, 33*",null,null,null,null,null,null,null,null,null,null,0]
["Bidrag",null,"35*, 36*, 37*",null,null,null,null,null,null,null,null,null,null,0]
["Periodisering projekt",null,"39*",null,null,null,null,null,null,null,null,null,null,0]
["Finansiella intäkter",null,null,null,null,null,null,null,null,null,null,null,null,0]
["Summa intäkter (-)",null,null,0,0,0,0,0,0,0,0,0,0,0]
["Påslag högskolegemensamt",null,"981*",0,0,0,0,0,0,0,0,0,0,0]
["Påslag akademigemensamt",0,"982*",0,0,0,0,0,0,0,0,0,0,0]
["Återföring av påslag",null,9832,null,null,null,null,null,null,null,null,null,null,0]
["Finansiering av högskolegemensam stödverksamhet",null,9831,null,null,null,null,null,null,null,null,null,null,0]
["Summa pålägg (+)",null,null,0,0,0,0,0,0,0,0,0,0,0]
["Lön och lönepålägg",null,"401*",null,null,null,null,null,null,null,null,null,null,0]
["Internt köpt personal",null,9411,null,null,null,null,null,null,null,null,null,null,0]
["Internt såld personal",null,9412,null,null,null,null,null,null,null,null,null,null,0]
["Traktamenten och bilersättningar",null,"433*",null,null,null,null,null,null,null,null,null,null,0]
["Utbildning av egen personal",null,"482*",null,null,null,null,null,null,null,null,null,null,0]
["Personalrepresentation",null,"496*",null,null,null,null,null,null,null,null,null,null,0]
["Övriga personalkostnader",null,"498*",null,null,null,null,null,null,null,null,null,null,0]
["Summa personalkostnader (+)",null,null,0,0,0,0,0,0,0,0,0,0,0]
["Externa hyror",null,5011,null,null,null,null,null,null,null,null,null,null,0]
["Interna hyror",null,9502,null,null,null,null,null,null,null,null,null,null,0]
["Övriga lokalkostnader",null,null,null,null,null,null,null,null,null,null,null,null,0]
["Summa lokalkostnader (+)",null,null,0,0,0,0,0,0,0,0,0,0,0]
["Studentkostnader",null,5111,null,null,null,null,null,null,null,null,null,null,0]
["Resor (exkl traktamenten och bilers)",null,"55**",null,null,null,null,null,null,null,null,null,null,0]
["Extern representation",null,"552*",null,null,null,null,null,null,null,null,null,null,0]
["Information och marknadsföring",null,"553*",null,null,null,null,null,null,null,null,null,null,0]
["Tryckning, publikationer & pappersvaror",null,"562*",null,null,null,null,null,null,null,null,null,null,0]
["Korttidsinventarier (datautrustning mm)",null,"564*",null,null,null,null,null,null,null,null,null,null,0]
["Kontorsmaterial",null,"563*",null,null,null,null,null,null,null,null,null,null,0]
["Övriga varor",null,"569*",null,null,null,null,null,null,null,null,null,null,0]
["Programvara, licensavgifter, datatjänster",null,"572*",null,null,null,null,null,null,null,null,null,null,0]
["Utbildningstjänster",null,"573*",null,null,null,null,null,null,null,null,null,null,0]
["Post",null,5741,null,null,null,null,null,null,null,null,null,null,0]
["Tele",null,5752,null,null,null,null,null,null,null,null,null,null,0]
["Övriga tjänster",null,"579*",null,null,null,null,null,null,null,null,null,null,0]
["Summa övriga kostnader (+)",null,null,0,0,0,0,0,0,0,0,0,0,0]
["Avskrivningar ",null,"69*",null,null,null,null,null,null,null,null,null,null,0]
["Finansiella kostnader",null,null,null,null,null,null,null,null,null,null,null,null,0]
["Summa kostnader (+)",null,null,0,0,0,0,0,0,0,0,0,0,0]
["Erhållna medel för transferering",null,"73*-74*",null,null,null,null,null,null,null,null,null,null,0]
["Periodisering erhållna medel",null,"73*-74*",null,null,null,null,null,null,null,null,null,null,0]
["Lämnade bidrag",null,"77*-79*",null,null,null,null,null,null,null,null,null,null,0]
["Summa transfereringar",null,null,0,0,0,0,0,0,0,0,0,0,0]
[]
["Summa Årets kapitalförändring",null,null,0,0,0,0,0,0,0,0,0,0,0]
["Myndighetskapital Fritt",null,"205*",null,null,null,null,null,null,null,null,null,null,0]
["Myndighetskapital Bundet",null,"207*",null,null,null,null,null,null,null,null,null,null,0]
["Summa",null,null,0,0,0,0,0,0,0,0,0,0]
[]
["Upplupna bidrags- och avgiftsintäkter (+)",null,"163*, 164*"]
["Uppl. bidrags- och avgiftsintäkter (+) transfereringar",null,"163*"]
["Oförbrukade bidrag och förutbetalda avgifter (-)",null,"273*, 274*"]
["Oförbr. bidrag och förutbet. avgifter (-) transfereringar",null,"273*"]
["Summa periodisering pågående projekt",null,null,0,0,0,0,0,0,0,0,0,0]
[]
["Vidareförmedling av bidrag över balansen In (-)",null,"257*, 258*, 259*",null,null,null,null,null,null,null,null,null,null,0]
["Vidareförmedling av bidrag över balansen Ut (+)",null,"257*, 258*, 259*",null,null,null,null,null,null,null,null,null,null,0]
["Summa vidareförmedling av bidrag över balansen",null,null,0,0,0,0,0,0,0,0,0,0,0]

{"sheet":"Efterkalkyl","index":6,"n_rows":68,"n_cols":11,"rows_kept":68,"cut":false,"hidden":false,"merged":[[9,5,9,8],[3,2,3,8],[5,5,5,8],[6,5,6,8],[7,5,7,8],[8,5,8,8],[22,5,22,8],[10,5,10,8],[11,5,11,8],[12,5,12,8],[13,5,13,8],[14,5,14,8],[15,5,15,8],[16,5,16,8],[18,5,18,8],[19,5,19,8],[20,5,20,8],[21,5,21,8],[17,5,17,8],[34,5,34,8],[23,5,23,8],[24,5,24,8],[25,5,25,8],[26,5,26,8],[27,5,27,8],[28,5,28,8],[29,5,29,8],[30,5,30,8],[31,5,31,8],[32,5,32,8],[33,5,33,8],[46,5,46,8],[35,5,35,8],[36,5,36,8],[37,5,37,8],[38,5,38,8],[39,5,39,8],[40,5,40,8],[41,5,41,8],[42,5,42,8],[43,5,43,8],[44,5,44,8],[45,5,45,8],[60,5,60,8],[47,5,47,8],[48,5,48,8],[49,5,49,8],[50,5,50,8],[51,5,51,8],[52,5,52,8],[54,5,54,8],[55,5,55,8],[56,5,56,8],[57,5,57,8],[59,5,59,8],[67,5,67,8],[61,5,61,8],[62,5,62,8],[63,5,63,8],[65,5,65,8],[66,5,66,8]]}
["Högskolan i Borås ",null,null,null,null,null,null,null,"Efterkalkyl"]
[]
["Institution/enhet (Org. enhet):",null,{"$f":"'Ekonomisk projektbeskrivning'!B4","v":0},"Datum:",{"$f":"'Ekonomisk projektbeskrivning'!D4","v":"00:00:00"},"HBs dnr:",{"$f":"'Ekonomisk projektbeskrivning'!F4","v":0},"Projektnr:",{"$f":"'Ekonomisk projektbeskrivning'!J4","v":0}]
["Projektets namn :",null,{"$f":"'Ekonomisk projektbeskrivning'!D5","v":0}]
[]
["Budget (tkr)                              ",null,"Ursprunglig budget","Utfall Agresso","Avvikelse","Kommentar till avvikelse:"]
["Anslag styrelsen",null,{"$f":"'Ursprunglig budget'!N7","v":0},null,{"$f":"D7-C7","v":0}]
["Anslag FoU-nämnden",null,{"$f":"'Ursprunglig budget'!N8","v":0},null,{"$f":"D8-C8","v":0},null,null,null,null,null,"Instruktion:"]
["Medfinansiering",null,{"$f":"'Ursprunglig budget'!N9","v":0},null,0,null,null,null,null,null,"Utfall fylls i, ev avvikelser "]
["Anslag rektor",null,{"$f":"'Ursprunglig budget'!N10","v":0},null,0,null,null,null,null,null,"kommenteras och sparas sedan "]
["Avgifter",null,{"$f":"'Ursprunglig budget'!N11","v":0},null,0,null,null,null,null,null,"i den elektroniska projektpärmen."]
["Bidrag",null,{"$f":"'Ursprunglig budget'!N12","v":0},null,0]
["Periodisering projekt",null,{"$f":"'Ursprunglig budget'!N13","v":0},null,0]
["Finansiella intäkter",null,{"$f":"'Ursprunglig budget'!N14","v":0},null,0]
["Summa intäkter (-)",null,{"$f":"'Ursprunglig budget'!N15","v":0},{"$f":"SUM(D7:D14)","v":0},{"$f":"SUM(E7:E14)","v":0}]
["Påslag högskolegemensamt",null,{"$f":"'Ursprunglig budget'!N16","v":0},null,0]
["Påslag institutionsgemensamt",null,{"$f":"'Ursprunglig budget'!N17","v":0},null,0]
["Återföring av påslag",null,{"$f":"'Ursprunglig budget'!N18","v":0},null,0]
["Finansiering av högskolegemensam stödverksamhet",null,{"$f":"'Ursprunglig budget'!N19","v":0},null,0]
["Summa pålägg (+)",null,{"$f":"'Ursprunglig budget'!N20","v":0},{"$f":"SUM(D16:D19)","v":0},{"$f":"SUM(E16:E19)","v":0}]
["Lön och lönepålägg",null,{"$f":"'Ursprunglig budget'!N21","v":0},null,0]
["Internt köpt personal",null,{"$f":"'Ursprunglig budget'!N22","v":0},null,0]
["Internt såld personal",null,{"$f":"'Ursprunglig budget'!N23","v":0},null,0]
["Traktamenten och bilersättningar",null,{"$f":"'Ursprunglig budget'!N24","v":0},null,0]
["Utbildning av egen personal",null,{"$f":"'Ursprunglig budget'!N25","v":0},null,0]
["Personalrepresentation",null,{"$f":"'Ursprunglig budget'!N26","v":0},null,0]
["Övriga personalkostnader",null,{"$f":"'Ursprunglig budget'!N27","v":0},null,0]
["Summa personalkostnader (+)",null,{"$f":"'Ursprunglig budget'!N28","v":0},{"$f":"SUM(D21:D27)","v":0},{"$f":"SUM(E21:E27)","v":0}]
["Externa hyror",null,{"$f":"'Ursprunglig budget'!N29","v":0},null,0]
["Interna hyror",null,{"$f":"'Ursprunglig budget'!N30","v":0},null,0]
["Övriga lokalkostnader",null,{"$f":"'Ursprunglig budget'!N31","v":0},null,0]
["Summa lokalkostnader (+)",null,{"$f":"'Ursprunglig budget'!N32","v":0},{"$f":"SUM(D29:D31)","v":0},{"$f":"SUM(E29:E31)","v":0}]
["Studentkostnader",null,{"$f":"'Ursprunglig budget'!N33","v":0},null,0]
["Resor (exkl traktamenten och bilers)",null,{"$f":"'Ursprunglig budget'!N34","v":0},null,0]
["Extern representation",null,{"$f":"'Ursprunglig budget'!N35","v":0},null,0]
["Information och marknadsföring",null,{"$f":"'Ursprunglig budget'!N36","v":0},null,0]
["Tryckning, publikationer & pappersvaror",null,{"$f":"'Ursprunglig budget'!N37","v":0},null,0]
["Korttidsinventarier (datautrustning mm)",null,{"$f":"'Ursprunglig budget'!N38","v":0},null,0]
["Kontorsmaterial",null,{"$f":"'Ursprunglig budget'!N39","v":0},null,0]
["Övriga varor",null,{"$f":"'Ursprunglig budget'!N40","v":0},null,0]
["Programvara, licensavgifter, datatjänster",null,{"$f":"'Ursprunglig budget'!N41","v":0},null,0]
["Utbildningstjänster",null,{"$f":"'Ursprunglig budget'!N42","v":0},null,0]
["Post",null,{"$f":"'Ursprunglig budget'!N43","v":0},null,0]
["Tele",null,{"$f":"'Ursprunglig budget'!N44","v":0},null,0]
["Övriga tjänster",null,{"$f":"'Ursprunglig budget'!N45","v":0},null,0]
["Summa övriga kostnader (+)",null,{"$f":"'Ursprunglig budget'!N46","v":0},{"$f":"SUM(D33:D45)","v":0},{"$f":"SUM(E33:E45)","v":0}]
["Avskrivningar ",null,{"$f":"'Ursprunglig budget'!N47","v":0},null,0]
["Finansiella kostnader",null,{"$f":"'Ursprunglig budget'!N48","v":0},null,0]
["Summa kostnader (+)",null,{"$f":"'Ursprunglig budget'!N49","v":0},{"$f":"SUM(D47:D48)+D46+D32+D28+D20","v":0},{"$f":"SUM(E47:E48)+E46+E32+E28+E20","v":0}]
["Erhållna medel för transferering",null,{"$f":"'Ursprunglig budget'!N50","v":0},null,0]
["Periodisering erhållna medel",null,{"$f":"'Ursprunglig budget'!N51","v":0},null,0]
["Lämnade bidrag",null,{"$f":"'Ursprunglig budget'!N52","v":0},null,0]
["Summa transfereringar",null,{"$f":"'Ursprunglig budget'!N53","v":0},{"$f":"SUM(D50:D52)","v":0},{"$f":"SUM(E50:E52)","v":0}]
[]
["Summa Årets kapitalförändring",null,{"$f":"'Ursprunglig budget'!N55","v":0},{"$f":"D49+D15","v":0},{"$f":"E49+E15","v":0}]
["Myndighetskapital Fritt",null,{"$f":"'Ursprunglig budget'!N56","v":0},null,{"$f":"D56-C56","v":0}]
["Myndighetskapital Bundet",null,{"$f":"'Ursprunglig budget'!N57","v":0},null,{"$f":"D57-C57","v":0}]
["Summa",null,{"$f":"'Ursprunglig budget'!N58","v":0},{"$f":"SUM(D55:D57)","v":0},{"$f":"SUM(E55:E57)","v":0}]
[]
["Upplupna bidrags- och avgiftsintäkter (+)",null,{"$f":"'Ursprunglig budget'!N60","v":0},null,{"$f":"D60-C60","v":0}]
["Uppl. bidrags- och avgiftsintäkter (+) transfereringar",null,{"$f":"'Ursprunglig budget'!N61","v":0},null,{"$f":"D61-C61","v":0}]
["Oförbrukade bidrag och förutbetalda avgifter (-)",null,{"$f":"'Ursprunglig budget'!N62","v":0},null,{"$f":"D62-C62","v":0}]
["Oförbr. bidrag och förutbet. avgifter (-) transfereringar",null,{"$f":"'Ursprunglig budget'!N63","v":0},null,{"$f":"D63-C63","v":0}]
["Summa periodisering pågående projekt",null,{"$f":"'Ursprunglig budget'!N64","v":0},{"$f":"SUM(D60:D63)","v":0},{"$f":"SUM(E60:E63)","v":0}]
[]
["Vidareförmedling av bidrag över balansen In (-)",null,{"$f":"'Ursprunglig budget'!N66","v":0},null,{"$f":"D66-C66","v":0}]
["Vidareförmedling av bidrag över balansen Ut (+)",null,{"$f":"'Ursprunglig budget'!N67","v":0},null,{"$f":"D67-C67","v":0}]
["Summa vidareförmedling av bidrag över balansen",null,{"$f":"'Ursprunglig budget'!N68","v":0},{"$f":"SUM(D66:D67)","v":0},{"$f":"SUM(E66:E67)","v":0}]

{"sheet":"Uppföljning totalt (intern)","index":7,"n_rows":98,"n_cols":44,"rows_kept":98,"cut":false,"hidden":false,"merged":[[26,5,26,7],[26,12,26,15],[28,12,28,13],[2,40,2,43],[2,19,2,22],[2,26,2,29],[2,33,2,36],[26,19,26,22],[26,26,26,29],[26,33,26,36],[26,40,26,43],[28,19,28,20],[2,5,2,8],[2,12,2,15],[28,33,28,34],[28,40,28,41],[36,12,36,13],[37,12,37,13],[38,12,38,13],[29,12,29,13],[30,12,30,13],[31,12,31,13],[32,12,32,13],[33,12,33,13],[31,19,31,20],[32,19,32,20],[33,19,33,20],[34,12,34,13],[35,12,35,13],[34,19,34,20],[35,19,35,20],[36,33,36,34],[29,33,29,34],[36,19,36,20],[37,19,37,20],[28,26,28,27],[29,26,29,27],[30,26,30,27],[31,26,31,27],[32,26,32,27],[33,26,33,27],[34,26,34,27],[35,26,35,27],[36,26,36,27],[37,26,37,27],[29,19,29,20],[30,19,30,20],[30,33,30,34],[31,33,31,34],[37,33,37,34],[29,40,29,41],[30,40,30,41],[31,40,31,41],[32,40,32,41],[33,40,33,41],[34,40,34,41],[35,40,35,41],[36,40,36,41],[37,40,37,41],[32,33,32,34],[33,33,33,34],[34,33,34,34],[35,33,35,34]]}
[]
[]
[null,null,null,null,null,"TOTAL",null,null,null,null,null,null,"Reporting Period 1",null,null,null,null,null,null,"Reporting Period 2",null,null,null,null,null,null,"Reporting Period 3",null,null,null,null,null,null,"Reporting Period 4",null,null,null,null,null,null,"Reporting Period 5"]
[]
[null,null,null,"Eligible costs",null,"Budget TOT","Reported","Approved","Not reported",null,null,null,"Reported","Adjustments","Not approved","Approved",null,null,null,"Reported","Adjustmens","Not approved","Approved",null,null,null,"Reported","Adjustments","Not approved","Approved",null,null,null,"Reported","Adjustments","Not approved","Approved",null,null,null,"Reported","Adjustments","Not approved","Approved"]
[null,null,null,"A. Direct personnel costs",null,null,{"$f":"M6+N6+T6+U6+AA6+AB6+AH6+AI6+AO6+AP6","v":0},{"$f":"P6+W6+AD6+AK6+AR6","v":0},{"$f":"F6-P6-W6-AD6-AK6-AR6","v":0},null,null,null,{"$f":"CostCategory_A_RP1","v":0},{"$f":"'Adjustments RP1'!C74","v":0},0,{"$f":"M6+N6-O6","v":0},null,null,null,{"$f":"CostCategory_A_RP2","v":0},{"$f":"'Adjustments RP2'!C74","v":0},0,{"$f":"T6+U6-V6","v":0},null,null,null,{"$f":"CostCategory_A_RP3","v":0},{"$f":"'Adjustments RP3'!C74","v":0},0,{"$f":"AA6+AB6-AC6","v":0},null,null,null,{"$f":"CostCategory_A_RP4","v":0},{"$f":"'Adjustments RP4'!C74","v":0},0,{"$f":"AH6+AI6-AJ6","v":0},null,null,null,{"$f":"CostCategory_A_RP5","v":0},{"$f":"'Adjustments RP5'!C74","v":0},0,{"$f":"AO6+AP6-AQ6","v":0}]
[null,null,null,"B. Direct costs of subcontracting",null,null,{"$f":"M7+N7+T7+U7+AA7+AB7+AH7+AI7+AO7+AP7","v":0},{"$f":"P7+W7+AD7+AK7+AR7","v":0},0,null,null,null,{"$f":"CostCategory_D_RP1","v":0},{"$f":"'Adjustments RP1'!C76","v":0},0,0,null,null,null,{"$f":"CostCategory_D_RP2","v":0},{"$f":"'Adjustments RP2'!C76","v":0},0,0,null,null,null,{"$f":"CostCategory_D_RP3","v":0},{"$f":"'Adjustments RP3'!C76","v":0},0,0,null,null,null,{"$f":"CostCategory_D_RP4","v":0},{"$f":"'Adjustments RP4'!C76","v":0},0,0,null,null,null,{"$f":"CostCategory_D_RP5","v":0},{"$f":"'Adjustments RP5'!C76","v":0},0,0]
[null,null,null,"[C. Direct costs of fin.Support]",null,null,{"$f":"M8+N8+T8+U8+AA8+AB8+AH8+AI8+AO8+AP8","v":0},{"$f":"P8+W8+AD8+AK8+AR8","v":0},0,null,null,null,{"$f":"Financial_support_Third_parties_RP1","v":0},{"$f":"'Adjustments RP1'!C77","v":0},0,0,null,null,null,{"$f":"Financial_support_Third_parties_RP2","v":0},{"$f":"'Adjustments RP2'!C77","v":0},0,0,null,null,null,{"$f":"Financial_support_Third_parties_RP3","v":0},{"$f":"'Adjustments RP3'!C77","v":0},0,0,null,null,null,{"$f":"Financial_support_Third_parties_RP4","v":0},{"$f":"'Adjustments RP4'!C77","v":0},0,0,null,null,null,{"$f":"Financial_support_Third_parties_RP5","v":0},{"$f":"'Adjustments RP5'!C77","v":0},0,0]
[null,null,null,"D. Other direct costs",null,null,{"$f":"M9+N9+T9+U9+AA9+AB9+AH9+AI9+AO9+AP9","v":0},{"$f":"P9+W9+AD9+AK9+AR9","v":0},0,null,null,null,{"$f":"CostCategory_F_RP1","v":0},{"$f":"'Adjustments RP1'!C78","v":0},0,0,null,null,null,{"$f":"CostCategory_F_RP2","v":0},{"$f":"'Adjustments RP2'!C78","v":0},0,0,null,null,null,{"$f":"CostCategory_F_RP3","v":0},{"$f":"'Adjustments RP3'!C78","v":0},0,0,null,null,null,{"$f":"CostCategory_F_RP4","v":0},{"$f":"'Adjustments RP4'!C78","v":0},0,0,null,null,null,{"$f":"CostCategory_F_RP5","v":0},{"$f":"'Adjustments RP5'!C78","v":0},0,0]
[null,null,null,"E. Indirect costs",null,null,{"$f":"M10+N10+T10+U10+AA10+AB10+AH10+AI10+AO10+AP10","v":0},{"$f":"P10+W10+AD10+AK10+AR10","v":0},0,null,null,null,{"$f":"Indirect_Costs_RP1","v":0},{"$f":"'Adjustments RP1'!C79","v":0},0,0,null,null,null,{"$f":"Indirect_Costs_RP2","v":0},{"$f":"'Adjustments RP2'!C79","v":0},0,0,null,null,null,{"$f":"Indirect_Costs_RP3","v":0},{"$f":"'Adjustments RP3'!C79","v":0},0,0,null,null,null,{"$f":"Indirect_costs_RP4","v":0},{"$f":"'Adjustments RP4'!C79","v":0},0,0,null,null,null,{"$f":"Indirect_Costs_RP5","v":0},{"$f":"'Adjustments RP5'!C79","v":0},0,0]
[null,null,null,"Total costs",null,{"$f":"SUM(F6:F10)","v":0},{"$f":"SUM(G6:G10)","v":0},{"$f":"SUM(H6:H10)","v":0},0,null,null,null,{"$f":"TotalCosts_RP1","v":0},{"$f":"'Adjustments RP1'!C80","v":0},{"$f":"SUM(O6:O10)","v":0},0,null,null,null,{"$f":"TotalCosts_RP2","v":0},{"$f":"'Adjustments RP2'!C80","v":0},{"$f":"SUM(V6:V10)","v":0},0,null,null,null,{"$f":"TotalCosts_RP3","v":0},{"$f":"'Adjustments RP3'!C80","v":0},{"$f":"SUM(AC6:AC10)","v":0},0,null,null,null,{"$f":"TotalCosts_RP4","v":0},{"$f":"'Adjustments RP4'!C80","v":0},{"$f":"SUM(AJ6:AJ10)","v":0},0,null,null,null,{"$f":"TotalCosts_RP5","v":0},{"$f":"'Adjustments RP5'!C80","v":0},{"$f":"SUM(AQ6:AQ10)","v":0},0]
[]
[null,null,null,"EU-contribution"]
[null,null,null,"Requested EU-contribution",null,null,{"$f":"M14+N14+T14+U14+AA14+AB14+AH14+AI14+AO14+AP14","v":0},{"$f":"P14+W14+AD14+AK14+AR14","v":0},{"$f":"F14-G14","v":0},null,null,null,{"$f":"Requested_EU_Contribution_RP1","v":0},{"$f":"'Adjustments RP1'!C83","v":0},null,null,null,null,null,{"$f":"Requested_EU_Contribution_RP2","v":0},{"$f":"'Adjustments RP2'!C83","v":0},null,null,null,null,null,{"$f":"Requested_EU_Contribution_RP3","v":0},{"$f":"'Adjustments RP3'!C83","v":0},null,null,null,null,null,{"$f":"Requested_EU_Contribution_RP4","v":0},{"$f":"'Adjustments RP4'!C83","v":0},null,null,null,null,null,{"$f":"Requested_EU_Contribution_RP5","v":0},{"$f":"'Adjustments RP5'!C83","v":0}]
[]
["query balance BO2009"]
["where orgenh <orgenh>"]
["where akt/proj <aktproj>"]
["*where period <fperiod>-<tperiod>"]
["relation res2004, konto"]
[]
["columns","code res2004",null,null,null,null,null,null,null,null,null,null,null,null,"Amount",null,null,null,null,null,null,"Amount",null,null,null,null,null,null,"Amount",null,null,null,null,null,null,"Amount",null,null,null,null,null,null,"Amount"]
["crosstab orgenh",null,null,null,null,null,null,null,null,null,null,null,null,null,"<orgenh>",null,null,null,null,null,null,"<orgenh>",null,null,null,null,null,null,"<orgenh>",null,null,null,null,null,null,"<orgenh>",null,null,null,null,null,null,"<orgenh>"]
["crosstab akt/proj",null,null,null,null,null,null,null,null,null,null,null,null,null,"<aktproj>",null,null,null,null,null,null,"<aktproj>",null,null,null,null,null,null,"<aktproj>",null,null,null,null,null,null,"<aktproj>",null,null,null,null,null,null,"<aktproj>"]
["crosstab period",null,null,null,null,null,null,null,null,null,null,null,null,null,"<RP1start>-<RP1end>",null,null,null,null,null,null,"<RP2start>-<RP2end>",null,null,null,null,null,null,"<RP3start>-<RP3end>",null,null,null,null,null,null,"<RP4start>-<RP4end>",null,null,null,null,null,null,"<RP5start>-<RP5end>"]
[]
[null,null,null,null,null,"Subcontracting",null,null,null,null,null,null,"Subcontracting",null,null,null,null,null,null,"Subcontracting",null,null,null,null,null,null,"Subcontracting",null,null,null,null,null,null,"Subcontracting",null,null,null,null,null,null,"Subcontracting"]
[null,null,null,null,null,"Task","Kostnad","Vernr",null,null,null,null,"Task",null,"SEK","Vernr ",null,null,null,"Task",null,"SEK","Vernr",null,null,null,"Task",null,"SEK","Vernr",null,null,null,"Task",null,"SEK","Vernr",null,null,null,"Task",null,"SEK","Vernr"]
[]
[]
[]
[]
[]
[]
[]
[]
[]
[]
[null,null,null,null,null,null,{"$f":"SUM(G29:G38)","v":0},null,null,null,null,null,null,null,{"$f":"SUM(O29:O38)","v":0},null,null,null,null,null,null,{"$f":"SUM(V29:V38)","v":0},null,null,null,null,null,null,{"$f":"SUM(AC29:AC38)","v":0},null,null,null,null,null,null,{"$f":"SUM(AJ29:AJ38)","v":0},null,null,null,null,null,null,{"$f":"SUM(AQ29:AQ38)","v":0}]
[null,null,null,null,null,null,null,null,null,null,null,null,null,null,null,{"$f":"'Ekonomisk projektbeskrivning'!B26","v":0},null,null,null,null,null,null,{"$f":"'Ekonomisk projektbeskrivning'!B27","v":0},null,null,null,null,null,null,{"$f":"'Ekonomisk projektbeskrivning'!B28","v":0},null,null,null,null,null,null,{"$f":"'Ekonomisk projektbeskrivning'!B29","v":0},null,null,null,null,null,null,{"$f":"'Ekonomisk projektbeskrivning'!B30","v":0}]
[null,null,null,"Kostnader",null,"Budget SEK","Bokfört Agresso","Approved","Avvikelse",null,null,null,null,null,"Bokfört Agresso","Approved",null,null,null,null,null,"Bokfört Agresso","Approved",null,null,null,null,null,"Bokfört Agresso","Approved",null,null,null,null,null,"Bokfört Agresso","Approved",null,null,null,null,null,"Bokfört Agresso","Approved"]
["summary","C01;C02;C03","C01-C03","A. Direct personnel costs",null,{"$f":"'Aktuell budget'!N21+'Aktuell budget'!N22+'Aktuell budget'!N23","v":0},{"$f":"O42+V42+AC42+AJ42+AQ42","v":0},{"$f":"P42+W42+AD42+AK42+AR42","v":0},{"$f":"G42-H42","v":0},null,null,null,null,null,0,{"$f":"P6*$P$40","v":0},null,null,null,null,null,0,{"$f":"W6*$W40","v":0},null,null,null,null,null,0,{"$f":"AD6*$AD40","v":0},null,null,null,null,null,0,{"$f":"AK6*$AK40","v":0},null,null,null,null,null,0,{"$f":"AR6*$AR40","v":0}]
[null,null,null,"B. Direct costs of subcontracting",null,null,0,0,0,null,null,null,null,null,{"$f":"O39","v":0},{"$f":"P7*$P$40","v":0},null,null,null,null,null,{"$f":"V7*$W40","v":0},{"$f":"W7*$W40","v":0},null,null,null,null,null,{"$f":"AC7*$AD40","v":0},{"$f":"AD7*$AD40","v":0},null,null,null,null,null,{"$f":"AJ7*$AK40","v":0},{"$f":"AK7*$AK40","v":0},null,null,null,null,null,{"$f":"AQ7*$AR40","v":0},{"$f":"AR7*$AR40","v":0}]
[null,null,null,"[C. Direct costs of fin.Support]",null,null,0,0,0,null,null,null,null,null,{"$f":"Financial_support_Third_parties_RP1","v":0},{"$f":"P8*$P$40","v":0},null,null,null,null,null,{"$f":"V8*$W40","v":0},{"$f":"W8*$W40","v":0},null,null,null,null,null,{"$f":"AC8*$AD40","v":0},{"$f":"AD8*$AD40","v":0},null,null,null,null,null,{"$f":"AJ8*$AK40","v":0},{"$f":"AK8*$AK40","v":0},null,null,null,null,null,{"$f":"AQ8*$AR40","v":0},{"$f":"AR8*$AR40","v":0}]
["summary","C06;C07;C08;C09;D01;D02,D03;E01;E02;E03;E04;E05;E06;E07;E08;E09;E10;E11;E12;E13;E14;E15;F01;G01;","C06-C09, D01-D03, E01-E15, F01, G01","D. Other direct costs (inkl. subcontracting)",null,{"$f":"'Aktuell budget'!N32+'Aktuell budget'!N46+'Aktuell budget'!N47+'Aktuell budget'!N48+'Aktuell budget'!N27+'Aktuell budget'!N26+'Aktuell budget'!N25+'Aktuell budget'!N24","v":0},{"$f":"O45+V45+AC45+AJ45+AQ45","v":0},{"$f":"P47+W47+AD47+AK47+AR47","v":0},0,null,null,null,null,null,0,null,null,null,null,null,null,0,null,null,null,null,null,null,0,null,null,null,null,null,null,0,null,null,null,null,null,null,0]
[null,null,null,"Avdrag för subcontracting",null,{"$f":"-F43","v":0},{"$f":"O46+V46+AC46+AJ46+AQ46","v":0},null,0,null,null,null,null,null,{"$f":"-O39","v":0}]
[null,null,null,"D. Other direct costs (excl. subcontracting)",null,{"$f":"SUM(F45:F46)","v":0},{"$f":"O47+V47+AC47+AJ47+AQ47","v":0},null,0,null,null,null,null,null,{"$f":"SUM(O45:O46)","v":0},{"$f":"P9*$P$40","v":0},null,null,null,null,null,{"$f":"V9*$W40","v":0},{"$f":"W9*$W40","v":0},null,null,null,null,null,{"$f":"AC9*$AD40","v":0},{"$f":"AD9*$AD40","v":0},null,null,null,null,null,{"$f":"AJ9*$AK40","v":0},{"$f":"AK9*$AK40","v":0},null,null,null,null,null,{"$f":"AQ9*$AR40","v":0},{"$f":"AR9*$AR40","v":0}]
["summary","B01;B02","B01-B02","E. Indirect costs",null,{"$f":"'Aktuell budget'!N20","v":0},0,{"$f":"P48+W48+AD48+AK48+AR48","v":0},0,null,null,null,null,null,0,{"$f":"P10*$P$40","v":0},null,null,null,null,null,0,{"$f":"W10*$W40","v":0},null,null,null,null,null,0,{"$f":"AD10*$AD40","v":0},null,null,null,null,null,0,{"$f":"AK10*$AK40","v":0},null,null,null,null,null,0,{"$f":"AR10*$AR40","v":0}]
[null,null,null,"Summa kostnader",null,{"$f":"SUM(F42+F43+F44+F47+F48)","v":0},{"$f":"O49+V49+AC49+AJ49+AQ49","v":0},{"$f":"P49+W49+AD49+AK49+AR49","v":0},0,null,null,null,null,null,{"$f":"O42+O43+O44+O47+O48","v":0},{"$f":"SUM(P42:P48)","v":0},null,null,null,null,null,{"$f":"SUM(V42:V48)","v":0},{"$f":"SUM(W42:W48)","v":0},null,null,null,null,null,{"$f":"SUM(AC42:AC48)","v":0},{"$f":"SUM(AD42:AD48)","v":0},null,null,null,null,null,{"$f":"SUM(AJ42:AJ48)","v":0},{"$f":"SUM(AK42:AK48)","v":0},null,null,null,null,null,{"$f":"SUM(AQ42:AQ48)","v":0},{"$f":"SUM(AR42:AR48)","v":0}]
[]
[null,null,null,"Intäkter",null,"Budget SEK","Bokfört Agresso",null,null,null,null,null,null,null,"Bokfört Agresso",null,null,null,null,null,null,"Bokfört Agresso",null,null,null,null,null,null,"Bokfört Agresso",null,null,null,null,null,null,"Bokfört Agresso",null,null,null,null,null,null,"Bokfört Agresso"]
["summary","A08","A08","EU-bidrag",null,{"$f":"'Aktuell budget'!N12","v":0},{"$f":"O52+V52+AC52+AJ52+AQ52","v":0},null,null,null,null,null,null,null,0,null,null,null,null,null,null,0,null,null,null,null,null,null,0,null,null,null,null,null,null,0,null,null,null,null,null,null,0]
["Summary","A09","A09","Periodisering EU-bidrag",null,{"$f":"'Aktuell budget'!N13","v":0},{"$f":"O53+V53+AC53+AJ53+AQ53","v":0},null,null,null,null,null,null,null,0,null,null,null,null,null,null,0,null,null,null,null,null,null,0,null,null,null,null,null,null,0,null,null,null,null,null,null,0]
["Summary","A02;A03;A04;A05;B025","A02-A05;B025","Samfinansiering Högskolan",null,{"$f":"'Aktuell budget'!N7+'Aktuell budget'!N8+'Aktuell budget'!N9+'Aktuell budget'!N10","v":0},{"$f":"O54+V54+AC54+AJ54+AQ54","v":0},null,null,null,null,null,null,null,0,null,null,null,null,null,null,0,null,null,null,null,null,null,0,null,null,null,null,null,null,0,null,null,null,null,null,null,0]
["Summary","A06;A07;A10","A06-A07, A10","Övriga intäkter",null,{"$f":"'Aktuell budget'!N11+'Aktuell budget'!N14","v":0},{"$f":"O55+V55+AC55+AJ55+AQ55","v":0},null,null,null,null,null,null,null,0,null,null,null,null,null,null,0,null,null,null,null,null,null,0,null,null,null,null,null,null,0,null,null,null,null,null,null,0]
[null,null,null,"Summa intäkter",null,{"$f":"SUM(F52:F55)","v":0},{"$f":"SUM(G52:G55)","v":0},null,null,null,null,null,null,null,{"$f":"SUM(O52:O55)","v":0},null,null,null,null,null,null,{"$f":"SUM(V52:V55)","v":0},null,null,null,null,null,null,{"$f":"SUM(AC52:AC55)","v":0},null,null,null,null,null,null,{"$f":"SUM(AJ52:AJ55)","v":0},null,null,null,null,null,null,{"$f":"SUM(AQ52:AQ55)","v":0}]
[]
[null,null,null,"Transfereringar",null,"Budget SEK","Bokfört Agresso",null,null,null,null,null,null,null,"Bokfört Agresso",null,null,null,null,null,null,"Bokfört Agresso",null,null,null,null,null,null,"Bokfört Agresso",null,null,null,null,null,null,"Bokfört Agresso",null,null,null,null,null,null,"Bokfört Agresso"]
["summary","I01","I01","Erhållna medel",null,{"$f":"'Aktuell budget'!N50","v":0},{"$f":"O59+V59+AC59+AJ59+AQ59","v":0},null,null,null,null,null,null,null,0,null,null,null,null,null,null,0,null,null,null,null,null,null,0,null,null,null,null,null,null,0,null,null,null,null,null,null,0]
["summary","I02","I02","Periodisering erhållna medel",null,{"$f":"'Aktuell budget'!N51","v":0},{"$f":"O60+V60+AC60+AJ60+AQ60","v":0},null,null,null,null,null,null,null,0,null,null,null,null,null,null,0,null,null,null,null,null,null,0,null,null,null,null,null,null,0,null,null,null,null,null,null,0]
["summary","I03","I03","Lämnade bidrag",null,{"$f":"'Aktuell budget'!N52","v":0},{"$f":"O61+V61+AC61+AJ61+AQ61","v":0},null,null,null,null,null,null,null,0,null,null,null,null,null,null,0,null,null,null,null,null,null,0,null,null,null,null,null,null,0,null,null,null,null,null,null,0]
[null,null,null,"Summa transfereringar",null,{"$f":"SUM(F59:F61)","v":0},{"$f":"SUM(G59:G61)","v":0},null,null,null,null,null,null,null,{"$f":"SUM(O58:O61)","v":0},null,null,null,null,null,null,{"$f":"SUM(V58:V61)","v":0},null,null,null,null,null,null,{"$f":"SUM(AC58:AC61)","v":0},null,null,null,null,null,null,{"$f":"SUM(AJ58:AJ61)","v":0},null,null,null,null,null,null,{"$f":"SUM(AQ58:AQ61)","v":0}]
[]
["query balance BO2009"]
["where orgenh <orgenh>"]
["where akt/proj <aktproj>"]
["*where period <fperiod>-<tperiod>"]
["relation res2004, konto"]
["columns","code konto",null,null,null,null,"Amount"]
["crosstab orgenh",null,null,null,null,null,"<orgenh>"]
["crosstab akt/proj",null,null,null,null,null,"<aktproj>"]
["*crosstab period",null,null,null,null,null,"<RP1start>-<RP5end>"]
[null,null,null,"Övriga skulder",null,"Budget SEK","Bokfört Agresso SEK"]
["sum konto",2597,2597,"Avräkning EU-medel, sv",null,null,0]
["sum konto",2598,2598,"Avräkning, EU-medel",null,null,0]
["sum konto",2599,2599,"Övriga skulder, utomstatliga",null,null,0]
[null,null,null,"Summa övriga skulder",null,{"$f":"'Aktuell budget'!N68","v":0},{"$f":"SUM(G74:G76)","v":0}]
[]
[null,null,null,"Balans periodiseringar",null,null,"Bokfört Agresso"]
["sum konto","2731;2732;2741;2742","2731-2732;2741-2742","Oförbrukade bidrag och förutbetalda avgifter",null,null,0]
["sum konto","2733;2734","2733-2734","Oförbrukade bidrag och förutbetalda avgifter (transf)",null,null,0]
["sum konto","1631;1632;1641;1642","1631-1632;1641-1642","Upplupna intäkter",null,null,0]
["sum konto","1633;1634","1633-1634","Upplupna intäkter (transf)",null,null,0]
[null,null,null,"Summa balans",null,null,{"$f":"SUM(G82:G82)","v":0}]
[]
["query balance BO2009"]
["where orgenh <orgenh>"]
["where akt/proj <aktproj>"]
["*where period <fperiod>-<tperiod>"]
["relation res2004, konto"]
["columns","code konto",null,null,null,null,"Amount"]
["crosstab orgenh",null,null,null,null,null,"<orgenh>"]
["crosstab akt/proj",null,null,null,null,null,"<aktproj>"]
["crosstab period",null,null,null,null,null,"<UBBalansStart>-<UBBalansEnd>"]
[null,null,null,"Saldo Balans myndighetskapital ",null,"Budget SEK","Bokfört Agresso"]
["sum konto","205*; 206*","205*-206*","Myndighetskapital, bundet",null,{"$f":"'Aktuell budget'!N56","v":0},0]
["sum konto","207*;209*","207*;209*","Myndighetskapital, fritt",null,{"$f":"'Aktuell budget'!N57","v":0},0]
[null,null,null,"Summa balans",null,{"$f":"SUM(F96:F97)","v":0},{"$f":"SUM(G96:G97)","v":0}]

{"sheet":"In_Ut-betalningar bidrag EURO","index":8,"n_rows":37,"n_cols":8,"rows_kept":37,"cut":false,"hidden":false,"merged":[[2,1,2,2]]}
["Uppföljning in- och utbetalningar som rör projektet på Valutakontot"]
[]
["Project:",{"$f":"'Ekonomisk projektbeskrivning'!D5","v":0}]
["GA:",{"$f":"'Ekonomisk projektbeskrivning'!D22","v":0}]
[]
["Vernr","Konto","Belopp EUR","Belopp SEK","Text","IN/UT","Avsändare (vid IN)","Mottagare (vid UT)"]
[]
[]
[]
[]
[]
[]
[]
[]
[]
[]
[]
[]
[]
[]
[]
[]
[]
[]
[]
[]
[]
[]
[]
[]
[]
[]
[]
[]
[]
[]
["SALDO VALUTAKONTO:",null,{"$f":"SUM(C7:C36)","v":0},{"$f":"SUM(D7:D36)","v":0}]

{"sheet":"In_Ut-bet på aktproj Agresso","index":9,"n_rows":51,"n_cols":11,"rows_kept":51,"cut":false,"hidden":false,"merged":[[12,2,12,9]]}
["sql SELECT dim_1, dim_2, voucher_no, period, trans_date, VERIFIKATIONER.account, VERIFIKATIONER.description AS VERTEXT, amount, KONTO.description AS KONTONAMN, cur_amount, currency"]
["sql FROM agltransact AS VERIFIKATIONER"]
["sql  FULL JOIN aglaccounts as KONTO"]
["sql ON VERIFIKATIONER.account = KONTO.account"]
[{"$f":"C5","v":"sql WHERE dim_1='%'"},null,{"$f":"CONCATENATE(\"sql WHERE dim_1='\"&E15&\"%'\")","v":"sql WHERE dim_1='%'"}]
[{"$f":"C6","v":"sql AND dim_2='%'"},null,{"$f":"CONCATENATE(\"sql AND dim_2='\"&E16&\"%'\")","v":"sql AND dim_2='%'"}]
[{"$f":"C7","v":"sql AND period >=''"},null,{"$f":"CONCATENATE(\"sql AND period >='\"&E17&\"'\")","v":"sql AND period >=''"}]
[{"$f":"C8","v":"sql AND period <=''"},null,{"$f":"CONCATENATE(\"sql AND period <='\"&E18&\"'\")","v":"sql AND period <=''"}]
["sql AND KONTO.client='BO'"]
["query"]
["sort account"]
["columns","code account","text dim_1","text dim_2","text voucher_no","text Period","trans_date","text account","KONTONAMN","VERTEXT","amount"]
[null,null,"Transaktioner IN-/Utbetalningar och överföring av anslag, transfereringar mm."]
[]
[null,null,"Orgenhet:",null,null,"Rapporten söker automatiskt ut med * utan att detta anges."]
[null,null,"Akt/Proj:",null,null,"Rapporten söker automatiskt ut med * utan att detta anges."]
[null,null,"Från period:",null,null,"OBS: året börjar med period 00"]
[null,null,"Till period:",null,null,"OBS: året slutar med period 15"]
[]
[]
[]
[null,null,"Orgenhet","Akt/proj","Vernr","Period","Ver.datum","Konto","Konto(T)","Verifikationstext","Belopp SEK"]
[]
["detail",2597,null,null,null,null,"00:00:00",null,0,0,0]
[null,null,null,null,null,null,null,null,null,"SUMMA konto 2597 Avräkning EU-medel, svenska deltagare",{"$f":"SUM(K23:K24)","v":0}]
[]
["detail",2598,null,null,null,null,"00:00:00",null,0,0,0]
[null,null,null,null,null,null,null,null,null,"SUMMA konto 2598 Avräkning, EU-medel",{"$f":"SUM(K26:K27)","v":0}]
[]
["detail",2599,null,null,null,null,"00:00:00",null,0,0,0]
[null,null,null,null,null,null,null,null,null,"SUMMA konto 2599 Övriga skulder",{"$f":"SUM(K29:K30)","v":0}]
[]
["detail","34*",null,null,null,null,"00:00:00",null,0,0,0]
[null,null,null,null,null,null,null,null,null,"SUMMA 34*-konton Avgiftsintäkter",{"$f":"SUM(K33:K33)","v":0}]
[]
["detail","35*",null,null,null,null,"00:00:00",null,0,0,0]
["detail","36*",null,null,null,null,"00:00:00",null,0,0,0]
["detail","37*",null,null,null,null,"00:00:00",null,0,0,0]
[null,null,null,null,null,null,null,null,null,"SUMMA 35*-37*-konton Bidrag",{"$f":"SUM(K35:K38)","v":0}]
[]
["detail","38*",null,null,null,null,"00:00:00",null,0,0,0]
[null,null,null,null,null,null,null,null,null,"SUMMA 38*-konton Finansiella intäkter",{"$f":"SUM(K40:K41)","v":0}]
[]
["detail","7*",null,null,null,null,"00:00:00",null,0,0,0]
[null,null,null,null,null,null,null,null,null,"SUMMA 7*-konton Transfereringar",{"$f":"SUM(K43:K44)","v":0}]
[]
["detail","93*",null,null,null,null,"00:00:00",null,0,0,0]
[null,null,null,null,null,null,null,null,null,"SUMMA 93*-konton Interna anslag",{"$f":"SUM(K46:K47)","v":0}]
[]
["detail","993*",null,null,null,null,"00:00:00",null,0,0,0]
[null,null,null,null,null,null,null,null,null,"SUMMA 993*-konton Enhetsinterna anslag medfin påslag",{"$f":"SUM(K49:K50)","v":0}]

{"sheet":"Personnel costs RP1","index":10,"n_rows":329,"n_cols":31,"rows_kept":329,"cut":false,"hidden":false,"merged":[[13,3,13,4],[324,3,324,4]]}
[null,"PERSONNEL COSTS - RP1"]
[]
[null,"Project: "]
[]
[null,"Beneficiary:",null,"Hoegskolan i Boras / University of Borås"]
[]
[null,"Reporting period 1:",null,{"$f":"IF('Ekonomisk projektbeskrivning'!E26<>\"\",'Ekonomisk projektbeskrivning'!E26,\"\")","v":""},"--",{"$f":"IF('Ekonomisk projektbeskrivning'!F26<>\"\",'Ekonomisk projektbeskrivning'!F26,\"\")","v":""}]
[]
[null,"Exchange rate SEK-EUR: ",null,{"$f":"'Ekonomisk projektbeskrivning'!B26","v":0}]
[]
[null,"Option for calculating Hourly rate:",null,"Option 1: 1 720 Fixed hours"]
[]
[]
[null,"Name",null,"Calender year",null,"Fiscal year","WP","Total salary cost in payroll (SEK)","Salary costs for Additional remunerations that is not related to the project (SEK)",null,null,null,"Annual  productive hours",null,"Annual productive hours Pro-Rata if applied","Hourly rate (SEK)","Worked hours in the project","PMs","Calculated eligible personnel cost for the project (SEK)",null,null,null,"Personnel cost to claim in form C (EUR)",null,null,null,null,"Sum PM / WP","Sum PM / WP","Sum Eligible Personnel costs (SEK)","Sum Eligible Personnel costs (EUR)"]
[" ","Person 1",null,{"$f":"$D$327","v":"Year 1:"},{"$f":"$E$327","v":1900},{"$f":"$J$327","v":0},1,null,null,null,null,null,null,null,null,{"$f":"IFERROR(((H15+I15)/M15),\"\")","v":""},null,{"$f":"IFERROR(Q15/(M15/12),\"\")","v":""},{"$f":"IFERROR(P15*Q15,\"\")","v":""},null,null,null,{"$f":"IFERROR(S15/D$9,)","v":0},null,null,null,null,1,{"$f":"SUMIF($G$15:$G$1048576,1,$R$15:$R$1048576)","v":0},{"$f":"SUMIF($G$15:$G$1048576,1,$S$15:$S$1048576)","v":0},{"$f":"SUMIF($G$15:$G$1048576,1,$W$15:$W$1048576)","v":0}]
[null,null,null,null,null,null,2,null,null,null,null,null,null,null,null,{"$f":"IFERROR(((H16+I16)/M16),\"\")","v":""},null,{"$f":"IFERROR(Q16/(M16/12),\"\")","v":""},{"$f":"IFERROR(P16*Q16,\"\")","v":""},null,null,null,{"$f":"IFERROR(S16/D$9,)","v":0},null,null,null,null,2,{"$f":"SUMIF(G15:G1048576,2,R15:R1048576)","v":0},{"$f":"SUMIF($G$15:$G$1048576,2,$S$15:$S$1048576)","v":0},{"$f":"SUMIF($G$15:$G$1048576,2,$W$15:$W$1048576)","v":0}]
[null,null,null,null,null,null,3,null,null,null,null,null,null,null,null,"",null,"","",null,null,null,0,null,null,null,null,3,{"$f":"SUMIF(G15:G1048576,3,R15:R1048576)","v":0},{"$f":"SUMIF($G$15:$G$1048576,3,$S$15:$S$1048576)","v":0},{"$f":"SUMIF($G$15:$G$1048576,3,$W$15:$W$1048576)","v":0}]
[null,null,null,null,null,null,4,null,null,null,null,null,null,null,null,"",null,"","",null,null,null,0,null,null,null,null,4,{"$f":"SUMIF(G15:G1048576,4,R15:R1048576)","v":0},{"$f":"SUMIF($G$15:$G$1048576,4,$S$15:$S$1048576)","v":0},{"$f":"SUMIF($G$15:$G$1048576,4,$W$15:$W$1048576)","v":0}]
[null,null,null,null,null,null,5,null,null,null,null,null,null,null,null,"",null,"","",null,null,null,0,null,null,null,null,5,{"$f":"SUMIF(G15:G1048576,5,R15:R1048576)","v":0},{"$f":"SUMIF($G$15:$G$1048576,5,$S$15:$S$1048576)","v":0},{"$f":"SUMIF($G$15:$G$1048576,5,$W$15:$W$1048576)","v":0}]
[null,null,null,null,null,null,6,null,null,null,null,null,null,null,null,"",null,"","",null,null,null,0,null,null,null,null,6,{"$f":"SUMIF(G15:G1048576,6,R15:R1048576)","v":0},{"$f":"SUMIF($G$15:$G$1048576,6,$S$15:$S$1048576)","v":0},{"$f":"SUMIF($G$15:$G$1048576,6,$W$15:$W$1048576)","v":0}]
[null,null,null,null,null,null,7,null,null,null,null,null,null,null,null,"",null,"","",null,null,null,0,null,null,null,null,7,{"$f":"SUMIF(G15:G1048576,7,R15:R1048576)","v":0},{"$f":"SUMIF($G$15:$G$1048576,7,$S$15:$S$1048576)","v":0},{"$f":"SUMIF($G$15:$G$1048576,7,$W$15:$W$1048576)","v":0}]
[null,null,null,null,null,null,8,null,null,null,null,null,null,null,null,"",null,"","",null,null,null,0,null,null,null,null,8,{"$f":"SUMIF(G15:G1048576,8,R15:R1048576)","v":0},{"$f":"SUMIF($G$15:$G$1048576,8,$S$15:$S$1048576)","v":0},{"$f":"SUMIF($G$15:$G$1048576,8,$W$15:$W$1048576)","v":0}]
[null,null,null,null,null,null,9,null,null,null,null,null,null,null,null,"",null,"","",null,null,null,0,null,null,null,null,9,{"$f":"SUMIF(G15:G1048576,9,R15:R1048576)","v":0},{"$f":"SUMIF($G$15:$G$1048576,9,$S$15:$S$1048576)","v":0},{"$f":"SUMIF($G$15:$G$1048576,9,$W$15:$W$1048576)","v":0}]
[null,null,null,null,null,null,10,null,null,null,null,null,null,null,null,"",null,"","",null,null,null,0,null,null,null,null,10,{"$f":"SUMIF(G15:G1048576,10,R15:R1048576)","v":0},{"$f":"SUMIF($G$15:$G$1048576,10,$S$15:$S$1048576)","v":0},{"$f":"SUMIF($G$15:$G$1048576,10,$W$15:$W$1048576)","v":0}]
[null,null,null,{"$f":"$D$328","v":"Year 2:"},{"$f":"$E$328","v":0},{"$f":"$J$328","v":0},1,null,null,null,null,null,null,null,null,"",null,"","",null,null,null,0,null,null,null,null,"SUM",{"$f":"SUM(AC15:AC24)","v":0},{"$f":"SUM(AD15:AD24)","v":0},{"$f":"SUM(AE15:AE24)","v":0}]
[null,null,null,null,null,null,2,null,null,null,null,null,null,null,null,"",null,"","",null,null,null,0,null,null,null,null,null,{"$f":"IF(AC25<>R325,\"CHECK\",\"OK\")","v":"OK"},{"$f":"IF(AD25<>S325,\"CHECK\",\"OK\")","v":"OK"},{"$f":"IF(AE25<>W325,\"CHECK\",\"OK\")","v":"OK"}]
[null,null,null,null,null,null,3,null,null,null,null,null,null,null,null,"",null,"","",null,null,null,0]
[null,null,null,null,null,null,4,null,null,null,null,null,null,null,null,"",null,"","",null,null,null,0]
[null,null,null,null,null,null,5,null,null,null,null,null,null,null,null,"",null,"","",null,null,null,0]
[null,null,null,null,null,null,6,null,null,null,null,null,null,null,null,"",null,"","",null,null,null,0]
[null,null,null,null,null,null,7,null,null,null,null,null,null,null,null,"",null,"","",null,null,null,0]
[null,null,null,null,null,null,8,null,null,null,null,null,null,null,null,"",null,"","",null,null,null,0]
[null,null,null,null,null,null,9,null,null,null,null,null,null,null,null,"",null,"","",null,null,null,0]
[null,null,null,null,null,null,10,null,null,null,null,null,null,null,null,"",null,"","",null,null,null,0]
[null,null,null,{"$f":"$D$329","v":"Year 3:"},{"$f":"$E$329","v":0},{"$f":"$J$329","v":0},1,null,null,null,null,null,null,null,null,"",null,"","",null,null,null,0]
[null,null,null,null,null,null,2,null,null,null,null,null,null,null,null,"",null,"","",null,null,null,0]
[null,null,null,null,null,null,3,null,null,null,null,null,null,null,null,"",null,"","",null,null,null,0]
[null,null,null,null,null,null,4,null,null,null,null,null,null,null,null,"",null,"","",null,null,null,0]
[null,null,null,null,null,null,5,null,null,null,null,null,null,null,null,"",null,"","",null,null,null,0]
[null,null,null,null,null,null,6,null,null,null,null,null,null,null,null,"",null,"","",null,null,null,0]
[null,null,null,null,null,null,7,null,null,null,null,null,null,null,null,"",null,"","",null,null,null,0]
[null,null,null,null,null,null,8,null,null,null,null,null,null,null,null,"",null,"","",null,null,null,0]
[null,null,null,null,null,null,9,null,null,null,null,null,null,null,null,"",null,"","",null,null,null,0]
[null,null,null,null,null,null,10,null,null,null,null,null,null,null,null,"",null,"","",null,null,null,0]
[null,{"$f":"CONCATENATE(\"SUM \"&B15)","v":"SUM Person 1"},null,null,null,null,null,null,null,null,null,null,null,null,null,null,{"$f":"SUM(Q15:Q44)","v":0},{"$f":"SUM(R15:R44)","v":0},{"$f":"SUM(S15:S44)","v":0},null,null,null,{"$f":"SUM(W15:W44)","v":0}]
[null,"Person 2",null,{"$f":"$D$327","v":"Year 1:"},{"$f":"$E$327","v":1900},{"$f":"$J$327","v":0},1,null,null,null,null,null,null,null,null,{"$f":"IFERROR(((H46+I46)/M46),\"\")","v":""},null,"",{"$f":"IFERROR(P46*Q46,\"\")","v":""},null,null,null,0]
[null,null,null,null,null,null,2,null,null,null,null,null,null,null,null,"",null,"","",null,null,null,0]
[null,null,null,null,null,null,3,null,null,null,null,null,null,null,null,"",null,"","",null,null,null,0]
[null,null,null,null,null,null,4,null,null,null,null,null,null,null,null,"",null,"","",null,null,null,0]
[null,null,null,null,null,null,5,null,null,null,null,null,null,null,null,"",null,"","",null,null,null,0]
[null,null,null,null,null,null,6,null,null,null,null,null,null,null,null,"",null,"","",null,null,null,0]
[null,null,null,null,null,null,7,null,null,null,null,null,null,null,null,"",null,"","",null,null,null,0]
[null,null,null,null,null,null,8,null,null,null,null,null,null,null,null,"",null,"","",null,null,null,0]
[null,null,null,null,null,null,9,null,null,null,null,null,null,null,null,"",null,"","",null,null,null,0]
[null,null,null,null,null,null,10,null,null,null,null,null,null,null,null,"",null,"","",null,null,null,0]
[null,null,null,{"$f":"$D$328","v":"Year 2:"},{"$f":"$E$328","v":0},{"$f":"$J$328","v":0},1,null,null,null,null,null,null,null,null,"",null,"","",null,null,null,0]
[null,null,null,null,null,null,2,null,null,null,null,null,null,null,null,"",null,"","",null,null,null,0]
[null,null,null,null,null,null,3,null,null,null,null,null,null,null,null,"",null,"","",null,null,null,0]
[null,null,null,null,null,null,4,null,null,null,null,null,null,null,null,"",null,"","",null,null,null,0]
[null,null,null,null,null,null,5,null,null,null,null,null,null,null,null,"",null,"","",null,null,null,0]
[null,null,null,null,null,null,6,null,null,null,null,null,null,null,null,"",null,"","",null,null,null,0]
[null,null,null,null,null,null,7,null,null,null,null,null,null,null,null,"",null,{"$f":"IFERROR(Q62/(M62/12),\"\")","v":""},"",null,null,null,0]
[null,null,null,null,null,null,8,null,null,null,null,null,null,null,null,"",null,"","",null,null,null,0]
[null,null,null,null,null,null,9,null,null,null,null,null,null,null,null,"",null,"","",null,null,null,0]
[null,null,null,null,null,null,10,null,null,null,null,null,null,null,null,"",null,"","",null,null,null,0]
[null,null,null,{"$f":"$D$329","v":"Year 3:"},{"$f":"$E$329","v":0},{"$f":"$J$329","v":0},1,null,null,null,null,null,null,null,null,"",null,"","",null,null,null,0]
[null,null,null,null,null,null,2,null,null,null,null,null,null,null,null,"",null,"","",null,null,null,0]
[null,null,null,null,null,null,3,null,null,null,null,null,null,null,null,"",null,"","",null,null,null,0]
[null,null,null,null,null,null,4,null,null,null,null,null,null,null,null,"",null,"","",null,null,null,0]
[null,null,null,null,null,null,5,null,null,null,null,null,null,null,null,"",null,"","",null,null,null,0]
[null,null,null,null,null,null,6,null,null,null,null,null,null,null,null,"",null,"","",null,null,null,0]
[null,null,null,null,null,null,7,null,null,null,null,null,null,null,null,"",null,"","",null,null,null,0]
[null,null,null,null,null,null,8,null,null,null,null,null,null,null,null,"",null,"","",null,null,null,0]
[null,null,null,null,null,null,9,null,null,null,null,null,null,null,null,"",null,"","",null,null,null,0]
[null,null,null,null,null,null,10,null,null,null,null,null,null,null,null,"",null,"","",null,null,null,0]
[null,{"$f":"CONCATENATE(\"SUM \"&B46)","v":"SUM Person 2"},null,null,null,null,null,null,null,null,null,null,null,null,null,null,{"$f":"SUM(Q46:Q75)","v":0},{"$f":"SUM(R46:R75)","v":0},{"$f":"SUM(S46:S75)","v":0},null,null,null,{"$f":"SUM(W46:W75)","v":0}]
[null,"Person 3",null,{"$f":"$D$327","v":"Year 1:"},{"$f":"$E$327","v":1900},{"$f":"$J$327","v":0},1,null,null,null,null,null,null,null,null,{"$f":"IFERROR(((H77+I77)/M77),\"\")","v":""},null,"",{"$f":"IFERROR(P77*Q77,\"\")","v":""},null,null,null,0]
[null,null,null,null,null,null,2,null,null,null,null,null,null,null,null,"",null,"","",null,null,null,0]
[null,null,null,null,null,null,3,null,null,null,null,null,null,null,null,"",null,"","",null,null,null,0]
[null,null,null,null,null,null,4,null,null,null,null,null,null,null,null,"",null,{"$f":"IFERROR(Q80/(M80/12),\"\")","v":""},"",null,null,null,0]
[null,null,null,null,null,null,5,null,null,null,null,null,null,null,null,"",null,"","",null,null,null,0]
[null,null,null,null,null,null,6,null,null,null,null,null,null,null,null,"",null,"","",null,null,null,{"$f":"IFERROR(S82/D$9,)","v":0}]
[null,null,null,null,null,null,7,null,null,null,null,null,null,null,null,"",null,"","",null,null,null,0]
[null,null,null,null,null,null,8,null,null,null,null,null,null,null,null,"",null,"","",null,null,null,0]
[null,null,null,null,null,null,9,null,null,null,null,null,null,null,null,"",null,"","",null,null,null,0]
[null,null,null,null,null,null,10,null,null,null,null,null,null,null,null,"",null,"","",null,null,null,0]
[null,null,null,{"$f":"$D$328","v":"Year 2:"},{"$f":"$E$328","v":0},{"$f":"$J$328","v":0},1,null,null,null,null,null,null,null,null,"",null,"","",null,null,null,0]
[null,null,null,null,null,null,2,null,null,null,null,null,null,null,null,"",null,"","",null,null,null,0]
[null,null,null,null,null,null,3,null,null,null,null,null,null,null,null,"",null,"","",null,null,null,0]
[null,null,null,null,null,null,4,null,null,null,null,null,null,null,null,"",null,"","",null,null,null,0]
[null,null,null,null,null,null,5,null,null,null,null,null,null,null,null,"",null,"","",null,null,null,0]
[null,null,null,null,null,null,6,null,null,null,null,null,null,null,null,"",null,"","",null,null,null,0]
[null,null,null,null,null,null,7,null,null,null,null,null,null,null,null,"",null,{"$f":"IFERROR(Q93/(M93/12),\"\")","v":""},"",null,null,null,0]
[null,null,null,null,null,null,8,null,null,null,null,null,null,null,null,"",null,"","",null,null,null,0]
[null,null,null,null,null,null,9,null,null,null,null,null,null,null,null,"",null,"","",null,null,null,0]
[null,null,null,null,null,null,10,null,null,null,null,null,null,null,null,"",null,"","",null,null,null,0]
[null,null,null,{"$f":"$D$329","v":"Year 3:"},{"$f":"$E$329","v":0},{"$f":"$J$329","v":0},1,null,null,null,null,null,null,null,null,"",null,"","",null,null,null,0]
[null,null,null,null,null,null,2,null,null,null,null,null,null,null,null,"",null,"","",null,null,null,0]
[null,null,null,null,null,null,3,null,null,null,null,null,null,null,null,"",null,"","",null,null,null,0]
[null,null,null,null,null,null,4,null,null,null,null,null,null,null,null,"",null,"","",null,null,null,0]
[null,null,null,null,null,null,5,null,null,null,null,null,null,null,null,"",null,"","",null,null,null,0]
[null,null,null,null,null,null,6,null,null,null,null,null,null,null,null,"",null,"","",null,null,null,0]
[null,null,null,null,null,null,7,null,null,null,null,null,null,null,null,"",null,"","",null,null,null,0]
[null,null,null,null,null,null,8,null,null,null,null,null,null,null,null,"",null,"","",null,null,null,0]
[null,null,null,null,null,null,9,null,null,null,null,null,null,null,null,"",null,"","",null,null,null,0]
[null,null,null,null,null,null,10,null,null,null,null,null,null,null,null,"",null,"","",null,null,null,0]
[null,{"$f":"CONCATENATE(\"SUM \"&B77)","v":"SUM Person 3"},null,null,null,null,null,null,null,null,null,null,null,null,null,null,{"$f":"SUM(Q77:Q106)","v":0},{"$f":"SUM(R77:R106)","v":0},{"$f":"SUM(S77:S106)","v":0},null,null,null,{"$f":"SUM(W77:W106)","v":0}]
[null,"Person 4",null,{"$f":"$D$327","v":"Year 1:"},{"$f":"$E$327","v":1900},{"$f":"$J$327","v":0},1,null,null,null,null,null,null,null,null,{"$f":"IFERROR(((H108+I108)/M108),\"\")","v":""},null,{"$f":"IFERROR(Q108/(M108/12),\"\")","v":""},{"$f":"IFERROR(P108*Q108,\"\")","v":""},null,null,null,0]
[null,null,null,null,null,null,2,null,null,null,null,null,null,null,null,"",null,"","",null,null,null,0]
[null,null,null,null,null,null,3,null,null,null,null,null,null,null,null,"",null,"","",null,null,null,0]
[null,null,null,null,null,null,4,null,null,null,null,null,null,null,null,"",null,"","",null,null,null,0]
[null,null,null,null,null,null,5,null,null,null,null,null,null,null,null,"",null,"","",null,null,null,0]
[null,null,null,null,null,null,6,null,null,null,null,null,null,null,null,"",null,"","",null,null,null,0]
[null,null,null,null,null,null,7,null,null,null,null,null,null,null,null,"",null,"","",null,null,null,0]
[null,null,null,null,null,null,8,null,null,null,null,null,null,null,null,"",null,"","",null,null,null,0]
[null,null,null,null,null,null,9,null,null,null,null,null,null,null,null,"",null,"","",null,null,null,0]
[null,null,null,null,null,null,10,null,null,null,null,null,null,null,null,"",null,"","",null,null,null,0]
[null,null,null,{"$f":"$D$328","v":"Year 2:"},{"$f":"$E$328","v":0},{"$f":"$J$328","v":0},1,null,null,null,null,null,null,null,null,"",null,"","",null,null,null,0]
[null,null,null,null,null,null,2,null,null,null,null,null,null,null,null,"",null,"","",null,null,null,0]
[null,null,null,null,null,null,3,null,null,null,null,null,null,null,null,"",null,"","",null,null,null,0]
[null,null,null,null,null,null,4,null,null,null,null,null,null,null,null,"",null,"","",null,null,null,0]
[null,null,null,null,null,null,5,null,null,null,null,null,null,null,null,"",null,"","",null,null,null,0]
[null,null,null,null,null,null,6,null,null,null,null,null,null,null,null,"",null,"","",null,null,null,0]
[null,null,null,null,null,null,7,null,null,null,null,null,null,null,null,"",null,{"$f":"IFERROR(Q124/(M124/12),\"\")","v":""},"",null,null,null,0]
[null,null,null,null,null,null,8,null,null,null,null,null,null,null,null,"",null,"","",null,null,null,0]
[null,null,null,null,null,null,9,null,null,null,null,null,null,null,null,"",null,"","",null,null,null,0]
[null,null,null,null,null,null,10,null,null,null,null,null,null,null,null,"",null,"","",null,null,null,0]
[null,null,null,{"$f":"$D$329","v":"Year 3:"},{"$f":"$E$329","v":0},{"$f":"$J$329","v":0},1,null,null,null,null,null,null,null,null,"",null,"","",null,null,null,0]
[null,null,null,null,null,null,2,null,null,null,null,null,null,null,null,"",null,"","",null,null,null,0]
[null,null,null,null,null,null,3,null,null,null,null,null,null,null,null,"",null,"","",null,null,null,0]
[null,null,null,null,null,null,4,null,null,null,null,null,null,null,null,"",null,"","",null,null,null,0]
[null,null,null,null,null,null,5,null,null,null,null,null,null,null,null,"",null,"","",null,null,null,0]
[null,null,null,null,null,null,6,null,null,null,null,null,null,null,null,"",null,"","",null,null,null,0]
[null,null,null,null,null,null,7,null,null,null,null,null,null,null,null,"",null,"","",null,null,null,0]
[null,null,null,null,null,null,8,null,null,null,null,null,null,null,null,"",null,"","",null,null,null,0]
[null,null,null,null,null,null,9,null,null,null,null,null,null,null,null,"",null,"","",null,null,null,0]
[null,null,null,null,null,null,10,null,null,null,null,null,null,null,null,"",null,"","",null,null,null,0]
[null,{"$f":"CONCATENATE(\"SUM \"&B108)","v":"SUM Person 4"},null,null,null,null,null,null,null,null,null,null,null,null,null,null,{"$f":"SUM(Q108:Q137)","v":0},{"$f":"SUM(R108:R137)","v":0},{"$f":"SUM(S108:S137)","v":0},null,null,null,{"$f":"SUM(W108:W137)","v":0}]
[null,"Person 5",null,{"$f":"$D$327","v":"Year 1:"},{"$f":"$E$327","v":1900},{"$f":"$J$327","v":0},1,null,null,null,null,null,null,null,null,{"$f":"IFERROR(((H139+I139)/M139),\"\")","v":""},null,{"$f":"IFERROR(Q139/(M139/12),\"\")","v":""},{"$f":"IFERROR(P139*Q139,\"\")","v":""},null,null,null,0]
[null,null,null,null,null,null,2,null,null,null,null,null,null,null,null,"",null,"","",null,null,null,0]
[null,null,null,null,null,null,3,null,null,null,null,null,null,null,null,"",null,"","",null,null,null,0]
[null,null,null,null,null,null,4,null,null,null,null,null,null,null,null,"",null,"","",null,null,null,0]
[null,null,null,null,null,null,5,null,null,null,null,null,null,null,null,"",null,"","",null,null,null,0]
[null,null,null,null,null,null,6,null,null,null,null,null,null,null,null,"",null,"","",null,null,null,0]
[null,null,null,null,null,null,7,null,null,null,null,null,null,null,null,"",null,"","",null,null,null,0]
[null,null,null,null,null,null,8,null,null,null,null,null,null,null,null,"",null,"","",null,null,null,0]
[null,null,null,null,null,null,9,null,null,null,null,null,null,null,null,"",null,"","",null,null,null,0]
[null,null,null,null,null,null,10,null,null,null,null,null,null,null,null,"",null,"","",null,null,null,{"$f":"IFERROR(S148/D$9,)","v":0}]
[null,null,null,{"$f":"$D$328","v":"Year 2:"},{"$f":"$E$328","v":0},{"$f":"$J$328","v":0},1,null,null,null,null,null,null,null,null,"",null,"","",null,null,null,0]
[null,null,null,null,null,null,2,null,null,null,null,null,null,null,null,"",null,"","",null,null,null,0]
[null,null,null,null,null,null,3,null,null,null,null,null,null,null,null,"",null,"","",null,null,null,0]
[null,null,null,null,null,null,4,null,null,null,null,null,null,null,null,"",null,"","",null,null,null,0]
[null,null,null,null,null,null,5,null,null,null,null,null,null,null,null,"",null,"","",null,null,null,0]
[null,null,null,null,null,null,6,null,null,null,null,null,null,null,null,"",null,"","",null,null,null,0]
[null,null,null,null,null,null,7,null,null,null,null,null,null,null,null,"",null,{"$f":"IFERROR(Q155/(M155/12),\"\")","v":""},"",null,null,null,0]
[null,null,null,null,null,null,8,null,null,null,null,null,null,null,null,"",null,"","",null,null,null,0]
[null,null,null,null,null,null,9,null,null,null,null,null,null,null,null,"",null,"","",null,null,null,0]
[null,null,null,null,null,null,10,null,null,null,null,null,null,null,null,"",null,"","",null,null,null,0]
[null,null,null,{"$f":"$D$329","v":"Year 3:"},{"$f":"$E$329","v":0},{"$f":"$J$329","v":0},1,null,null,null,null,null,null,null,null,"",null,"","",null,null,null,0]
[null,null,null,null,null,null,2,null,null,null,null,null,null,null,null,"",null,"","",null,null,null,0]
[null,null,null,null,null,null,3,null,null,null,null,null,null,null,null,"",null,"","",null,null,null,0]
[null,null,null,null,null,null,4,null,null,null,null,null,null,null,null,"",null,"","",null,null,null,0]
[null,null,null,null,null,null,5,null,null,null,null,null,null,null,null,"",null,"","",null,null,null,0]
[null,null,null,null,null,null,6,null,null,null,null,null,null,null,null,"",null,"","",null,null,null,0]
[null,null,null,null,null,null,7,null,null,null,null,null,null,null,null,"",null,"","",null,null,null,0]
[null,null,null,null,null,null,8,null,null,null,null,null,null,null,null,"",null,"","",null,null,null,0]
[null,null,null,null,null,null,9,null,null,null,null,null,null,null,null,"",null,"","",null,null,null,0]
[null,null,null,null,null,null,10,null,null,null,null,null,null,null,null,"",null,"","",null,null,null,0]
[null,{"$f":"CONCATENATE(\"SUM \"&B139)","v":"SUM Person 5"},null,null,null,null,null,null,null,null,null,null,null,null,null,null,{"$f":"SUM(Q139:Q168)","v":0},{"$f":"SUM(R139:R168)","v":0},{"$f":"SUM(S139:S168)","v":0},null,null,null,{"$f":"SUM(W139:W168)","v":0}]
[null,"Person 6",null,{"$f":"$D$327","v":"Year 1:"},{"$f":"$E$327","v":1900},{"$f":"$J$327","v":0},1,null,null,null,null,null,null,null,null,{"$f":"IFERROR(((H170+I170)/M170),\"\")","v":""},null,{"$f":"IFERROR(Q170/(M170/12),\"\")","v":""},{"$f":"IFERROR(P170*Q170,\"\")","v":""},null,null,null,0]
[null,null,null,null,null,null,2,null,null,null,null,null,null,null,null,"",null,"","",null,null,null,0]
[null,null,null,null,null,null,3,null,null,null,null,null,null,null,null,"",null,"","",null,null,null,0]
[null,null,null,null,null,null,4,null,null,null,null,null,null,null,null,"",null,"","",null,null,null,0]
[null,null,null,null,null,null,5,null,null,null,null,null,null,null,null,"",null,"","",null,null,null,0]
[null,null,null,null,null,null,6,null,null,null,null,null,null,null,null,"",null,"","",null,null,null,0]
[null,null,null,null,null,null,7,null,null,null,null,null,null,null,null,"",null,"","",null,null,null,0]
[null,null,null,null,null,null,8,null,null,null,null,null,null,null,null,"",null,"","",null,null,null,0]
[null,null,null,null,null,null,9,null,null,null,null,null,null,null,null,"",null,"","",null,null,null,0]
[null,null,null,null,null,null,10,null,null,null,null,null,null,null,null,"",null,"","",null,null,null,0]
[null,null,null,{"$f":"$D$328","v":"Year 2:"},{"$f":"$E$328","v":0},{"$f":"$J$328","v":0},1,null,null,null,null,null,null,null,null,"",null,"","",null,null,null,0]
[null,null,null,null,null,null,2,null,null,null,null,null,null,null,null,"",null,"","",null,null,null,0]
[null,null,null,null,null,null,3,null,null,null,null,null,null,null,null,"",null,"","",null,null,null,0]
[null,null,null,null,null,null,4,null,null,null,null,null,null,null,null,"",null,"","",null,null,null,0]
[null,null,null,null,null,null,5,null,null,null,null,null,null,null,null,"",null,"","",null,null,null,0]
[null,null,null,null,null,null,6,null,null,null,null,null,null,null,null,"",null,"","",null,null,null,0]
[null,null,null,null,null,null,7,null,null,null,null,null,null,null,null,"",null,{"$f":"IFERROR(Q186/(M186/12),\"\")","v":""},"",null,null,null,0]
[null,null,null,null,null,null,8,null,null,null,null,null,null,null,null,"",null,"","",null,null,null,0]
[null,null,null,null,null,null,9,null,null,null,null,null,null,null,null,"",null,"","",null,null,null,0]
[null,null,null,null,null,null,10,null,null,null,null,null,null,null,null,"",null,"","",null,null,null,0]
[null,null,null,{"$f":"$D$329","v":"Year 3:"},{"$f":"$E$329","v":0},{"$f":"$J$329","v":0},1,null,null,null,null,null,null,null,null,"",null,"","",null,null,null,0]
[null,null,null,null,null,null,2,null,null,null,null,null,null,null,null,"",null,"","",null,null,null,0]
[null,null,null,null,null,null,3,null,null,null,null,null,null,null,null,"",null,"","",null,null,null,0]
[null,null,null,null,null,null,4,null,null,null,null,null,null,null,null,"",null,"","",null,null,null,0]
[null,null,null,null,null,null,5,null,null,null,null,null,null,null,null,"",null,"","",null,null,null,0]
[null,null,null,null,null,null,6,null,null,null,null,null,null,null,null,"",null,"","",null,null,null,0]
[null,null,null,null,null,null,7,null,null,null,null,null,null,null,null,"",null,"","",null,null,null,0]
[null,null,null,null,null,null,8,null,null,null,null,null,null,null,null,"",null,"","",null,null,null,0]
[null,null,null,null,null,null,9,null,null,null,null,null,null,null,null,"",null,"","",null,null,null,0]
[null,null,null,null,null,null,10,null,null,null,null,null,null,null,null,"",null,"","",null,null,null,0]
[null,{"$f":"CONCATENATE(\"SUM \"&B170)","v":"SUM Person 6"},null,null,null,null,null,null,null,null,null,null,null,null,null,null,{"$f":"SUM(Q170:Q199)","v":0},{"$f":"SUM(R170:R199)","v":0},{"$f":"SUM(S170:S199)","v":0},null,null,null,{"$f":"SUM(W170:W199)","v":0}]
[null,"Person 7",null,{"$f":"$D$327","v":"Year 1:"},{"$f":"$E$327","v":1900},{"$f":"$J$327","v":0},1,null,null,null,null,null,null,null,null,{"$f":"IFERROR(((H201+I201)/M201),\"\")","v":""},null,{"$f":"IFERROR(Q201/(M201/12),\"\")","v":""},{"$f":"IFERROR(P201*Q201,\"\")","v":""},null,null,null,0]
[null,null,null,null,null,null,2,null,null,null,null,null,null,null,null,"",null,"","",null,null,null,0]
[null,null,null,null,null,null,3,null,null,null,null,null,null,null,null,"",null,"","",null,null,null,0]
[null,null,null,null,null,null,4,null,null,null,null,null,null,null,null,"",null,"","",null,null,null,0]
[null,null,null,null,null,null,5,null,null,null,null,null,null,null,null,"",null,"","",null,null,null,0]
[null,null,null,null,null,null,6,null,null,null,null,null,null,null,null,"",null,"","",null,null,null,0]
[null,null,null,null,null,null,7,null,null,null,null,null,null,null,null,"",null,"","",null,null,null,0]
[null,null,null,null,null,null,8,null,null,null,null,null,null,null,null,"",null,"","",null,null,null,0]
[null,null,null,null,null,null,9,null,null,null,null,null,null,null,null,"",null,"","",null,null,null,0]
[null,null,null,null,null,null,10,null,null,null,null,null,null,null,null,"",null,"","",null,null,null,0]
[null,null,null,{"$f":"$D$328","v":"Year 2:"},{"$f":"$E$328","v":0},{"$f":"$J$328","v":0},1,null,null,null,null,null,null,null,null,"",null,"","",null,null,null,0]
[null,null,null,null,null,null,2,null,null,null,null,null,null,null,null,"",null,"","",null,null,null,0]
[null,null,null,null,null,null,3,null,null,null,null,null,null,null,null,"",null,"","",null,null,null,0]
[null,null,null,null,null,null,4,null,null,null,null,null,null,null,null,"",null,"","",null,null,null,{"$f":"IFERROR(S214/D$9,)","v":0}]
[null,null,null,null,null,null,5,null,null,null,null,null,null,null,null,"",null,"","",null,null,null,0]
[null,null,null,null,null,null,6,null,null,null,null,null,null,null,null,"",null,"","",null,null,null,0]
[null,null,null,null,null,null,7,null,null,null,null,null,null,null,null,"",null,{"$f":"IFERROR(Q217/(M217/12),\"\")","v":""},"",null,null,null,0]
[null,null,null,null,null,null,8,null,null,null,null,null,null,null,null,"",null,"","",null,null,null,0]
[null,null,null,null,null,null,9,null,null,null,null,null,null,null,null,"",null,"","",null,null,null,0]
[null,null,null,null,null,null,10,null,null,null,null,null,null,null,null,"",null,"","",null,null,null,0]
[null,null,null,{"$f":"$D$329","v":"Year 3:"},{"$f":"$E$329","v":0},{"$f":"$J$329","v":0},1,null,null,null,null,null,null,null,null,"",null,"","",null,null,null,0]
[null,null,null,null,null,null,2,null,null,null,null,null,null,null,null,"",null,"","",null,null,null,0]
[null,null,null,null,null,null,3,null,null,null,null,null,null,null,null,"",null,"","",null,null,null,0]
[null,null,null,null,null,null,4,null,null,null,null,null,null,null,null,"",null,"","",null,null,null,0]
[null,null,null,null,null,null,5,null,null,null,null,null,null,null,null,"",null,"","",null,null,null,0]
[null,null,null,null,null,null,6,null,null,null,null,null,null,null,null,"",null,"","",null,null,null,0]
[null,null,null,null,null,null,7,null,null,null,null,null,null,null,null,"",null,"","",null,null,null,0]
[null,null,null,null,null,null,8,null,null,null,null,null,null,null,null,"",null,"","",null,null,null,0]
[null,null,null,null,null,null,9,null,null,null,null,null,null,null,null,"",null,"","",null,null,null,0]
[null,null,null,null,null,null,10,null,null,null,null,null,null,null,null,"",null,"","",null,null,null,0]
[null,{"$f":"CONCATENATE(\"SUM \"&B201)","v":"SUM Person 7"},null,null,null,null,null,null,null,null,null,null,null,null,null,null,{"$f":"SUM(Q201:Q230)","v":0},{"$f":"SUM(R201:R230)","v":0},{"$f":"SUM(S201:S230)","v":0},null,null,null,{"$f":"SUM(W201:W230)","v":0}]
[null,"Person 8",null,{"$f":"$D$327","v":"Year 1:"},{"$f":"$E$327","v":1900},{"$f":"$J$327","v":0},1,null,null,null,null,null,null,null,null,{"$f":"IFERROR(((H232+I232)/M232),\"\")","v":""},null,{"$f":"IFERROR(Q232/(M232/12),\"\")","v":""},{"$f":"IFERROR(P232*Q232,\"\")","v":""},null,null,null,0]
[null,null,null,null,null,null,2,null,null,null,null,null,null,null,null,"",null,"","",null,null,null,0]
[null,null,null,null,null,null,3,null,null,null,null,null,null,null,null,"",null,"","",null,null,null,0]
[null,null,null,null,null,null,4,null,null,null,null,null,null,null,null,"",null,"","",null,null,null,0]
[null,null,null,null,null,null,5,null,null,null,null,null,null,null,null,"",null,"","",null,null,null,0]
[null,null,null,null,null,null,6,null,null,null,null,null,null,null,null,"",null,"","",null,null,null,0]
[null,null,null,null,null,null,7,null,null,null,null,null,null,null,null,"",null,"","",null,null,null,0]
[null,null,null,null,null,null,8,null,null,null,null,null,null,null,null,"",null,"","",null,null,null,0]
[null,null,null,null,null,null,9,null,null,null,null,null,null,null,null,"",null,"","",null,null,null,0]
[null,null,null,null,null,null,10,null,null,null,null,null,null,null,null,"",null,"","",null,null,null,0]
[null,null,null,{"$f":"$D$328","v":"Year 2:"},{"$f":"$E$328","v":0},{"$f":"$J$328","v":0},1,null,null,null,null,null,null,null,null,"",null,"","",null,null,null,0]
[null,null,null,null,null,null,2,null,null,null,null,null,null,null,null,"",null,"","",null,null,null,0]
[null,null,null,null,null,null,3,null,null,null,null,null,null,null,null,"",null,"","",null,null,null,0]
[null,null,null,null,null,null,4,null,null,null,null,null,null,null,null,"",null,"","",null,null,null,0]
[null,null,null,null,null,null,5,null,null,null,null,null,null,null,null,"",null,"","",null,null,null,0]
[null,null,null,null,null,null,6,null,null,null,null,null,null,null,null,"",null,"","",null,null,null,0]
[null,null,null,null,null,null,7,null,null,null,null,null,null,null,null,"",null,{"$f":"IFERROR(Q248/(M248/12),\"\")","v":""},"",null,null,null,0]
[null,null,null,null,null,null,8,null,null,null,null,null,null,null,null,"",null,"","",null,null,null,0]
[null,null,null,null,null,null,9,null,null,null,null,null,null,null,null,"",null,"","",null,null,null,0]
[null,null,null,null,null,null,10,null,null,null,null,null,null,null,null,"",null,"","",null,null,null,0]
[null,null,null,{"$f":"$D$329","v":"Year 3:"},{"$f":"$E$329","v":0},{"$f":"$J$329","v":0},1,null,null,null,null,null,null,null,null,"",null,"","",null,null,null,0]
[null,null,null,null,null,null,2,null,null,null,null,null,null,null,null,"",null,"","",null,null,null,0]
[null,null,null,null,null,null,3,null,null,null,null,null,null,null,null,"",null,"","",null,null,null,0]
[null,null,null,null,null,null,4,null,null,null,null,null,null,null,null,"",null,"","",null,null,null,0]
[null,null,null,null,null,null,5,null,null,null,null,null,null,null,null,"",null,"","",null,null,null,0]
[null,null,null,null,null,null,6,null,null,null,null,null,null,null,null,"",null,"","",null,null,null,0]
[null,null,null,null,null,null,7,null,null,null,null,null,null,null,null,"",null,"","",null,null,null,0]
[null,null,null,null,null,null,8,null,null,null,null,null,null,null,null,"",null,"","",null,null,null,0]
[null,null,null,null,null,null,9,null,null,null,null,null,null,null,null,"",null,"","",null,null,null,0]
[null,null,null,null,null,null,10,null,null,null,null,null,null,null,null,"",null,"","",null,null,null,0]
[null,{"$f":"CONCATENATE(\"SUM \"&B232)","v":"SUM Person 8"},null,null,null,null,null,null,null,null,null,null,null,null,null,null,{"$f":"SUM(Q232:Q261)","v":0},{"$f":"SUM(R232:R261)","v":0},{"$f":"SUM(S232:S261)","v":0},null,null,null,{"$f":"SUM(W232:W261)","v":0}]
[null,"Person 9",null,{"$f":"$D$327","v":"Year 1:"},{"$f":"$E$327","v":1900},{"$f":"$J$327","v":0},1,null,null,null,null,null,null,null,null,{"$f":"IFERROR(((H263+I263)/M263),\"\")","v":""},null,{"$f":"IFERROR(Q263/(M263/12),\"\")","v":""},{"$f":"IFERROR(P263*Q263,\"\")","v":""},null,null,null,0]
[null,null,null,null,null,null,2,null,null,null,null,null,null,null,null,"",null,"","",null,null,null,0]
[null,null,null,null,null,null,3,null,null,null,null,null,null,null,null,"",null,"","",null,null,null,0]
[null,null,null,null,null,null,4,null,null,null,null,null,null,null,null,"",null,"","",null,null,null,0]
[null,null,null,null,null,null,5,null,null,null,null,null,null,null,null,"",null,"","",null,null,null,0]
[null,null,null,null,null,null,6,null,null,null,null,null,null,null,null,"",null,"","",null,null,null,0]
[null,null,null,null,null,null,7,null,null,null,null,null,null,null,null,"",null,"","",null,null,null,0]
[null,null,null,null,null,null,8,null,null,null,null,null,null,null,null,"",null,"","",null,null,null,0]
[null,null,null,null,null,null,9,null,null,null,null,null,null,null,null,"",null,"","",null,null,null,0]
[null,null,null,null,null,null,10,null,null,null,null,null,null,null,null,"",null,"","",null,null,null,0]
[null,null,null,{"$f":"$D$328","v":"Year 2:"},{"$f":"$E$328","v":0},{"$f":"$J$328","v":0},1,null,null,null,null,null,null,null,null,"",null,"","",null,null,null,0]
[null,null,null,null,null,null,2,null,null,null,null,null,null,null,null,"",null,"","",null,null,null,0]
[null,null,null,null,null,null,3,null,null,null,null,null,null,null,null,"",null,"","",null,null,null,0]
[null,null,null,null,null,null,4,null,null,null,null,null,null,null,null,"",null,"","",null,null,null,0]
[null,null,null,null,null,null,5,null,null,null,null,null,null,null,null,"",null,"","",null,null,null,0]
[null,null,null,null,null,null,6,null,null,null,null,null,null,null,null,"",null,"","",null,null,null,0]
[null,null,null,null,null,null,7,null,null,null,null,null,null,null,null,"",null,{"$f":"IFERROR(Q279/(M279/12),\"\")","v":""},"",null,null,null,0]
[null,null,null,null,null,null,8,null,null,null,null,null,null,null,null,"",null,"","",null,null,null,{"$f":"IFERROR(S280/D$9,)","v":0}]
[null,null,null,null,null,null,9,null,null,null,null,null,null,null,null,"",null,"","",null,null,null,0]
[null,null,null,null,null,null,10,null,null,null,null,null,null,null,null,"",null,"","",null,null,null,0]
[null,null,null,{"$f":"$D$329","v":"Year 3:"},{"$f":"$E$329","v":0},{"$f":"$J$329","v":0},1,null,null,null,null,null,null,null,null,"",null,"","",null,null,null,0]
[null,null,null,null,null,null,2,null,null,null,null,null,null,null,null,"",null,"","",null,null,null,0]
[null,null,null,null,null,null,3,null,null,null,null,null,null,null,null,"",null,"","",null,null,null,0]
[null,null,null,null,null,null,4,null,null,null,null,null,null,null,null,"",null,"","",null,null,null,0]
[null,null,null,null,null,null,5,null,null,null,null,null,null,null,null,"",null,"","",null,null,null,0]
[null,null,null,null,null,null,6,null,null,null,null,null,null,null,null,"",null,"","",null,null,null,0]
[null,null,null,null,null,null,7,null,null,null,null,null,null,null,null,"",null,"","",null,null,null,0]
[null,null,null,null,null,null,8,null,null,null,null,null,null,null,null,"",null,"","",null,null,null,0]
[null,null,null,null,null,null,9,null,null,null,null,null,null,null,null,"",null,"","",null,null,null,0]
[null,null,null,null,null,null,10,null,null,null,null,null,null,null,null,"",null,"","",null,null,null,0]
[null,{"$f":"CONCATENATE(\"SUM \"&B263)","v":"SUM Person 9"},null,null,null,null,null,null,null,null,null,null,null,null,null,null,{"$f":"SUM(Q263:Q292)","v":0},{"$f":"SUM(R263:R292)","v":0},{"$f":"SUM(S263:S292)","v":0},null,null,null,{"$f":"SUM(W263:W292)","v":0}]
[null,"Person 10",null,{"$f":"$D$327","v":"Year 1:"},{"$f":"$E$327","v":1900},{"$f":"$J$327","v":0},1,null,null,null,null,null,null,null,null,{"$f":"IFERROR(((H294+I294)/M294),\"\")","v":""},null,{"$f":"IFERROR(Q294/(M294/12),\"\")","v":""},{"$f":"IFERROR(P294*Q294,\"\")","v":""},null,null,null,0]
[null,null,null,null,null,null,2,null,null,null,null,null,null,null,null,"",null,"","",null,null,null,0]
[null,null,null,null,null,null,3,null,null,null,null,null,null,null,null,"",null,"","",null,null,null,0]
[null,null,null,null,null,null,4,null,null,null,null,null,null,null,null,"",null,"","",null,null,null,0]
[null,null,null,null,null,null,5,null,null,null,null,null,null,null,null,"",null,"","",null,null,null,0]
[null,null,null,null,null,null,6,null,null,null,null,null,null,null,null,"",null,"","",null,null,null,0]
[null,null,null,null,null,null,7,null,null,null,null,null,null,null,null,"",null,"","",null,null,null,0]
[null,null,null,null,null,null,8,null,null,null,null,null,null,null,null,"",null,"","",null,null,null,0]
[null,null,null,null,null,null,9,null,null,null,null,null,null,null,null,"",null,"","",null,null,null,0]
[null,null,null,null,null,null,10,null,null,null,null,null,null,null,null,"",null,"","",null,null,null,0]
[null,null,null,{"$f":"$D$328","v":"Year 2:"},{"$f":"$E$328","v":0},{"$f":"$J$328","v":0},1,null,null,null,null,null,null,null,null,"",null,"","",null,null,null,0]
[null,null,null,null,null,null,2,null,null,null,null,null,null,null,null,"",null,"","",null,null,null,0]
[null,null,null,null,null,null,3,null,null,null,null,null,null,null,null,"",null,"","",null,null,null,0]
[null,null,null,null,null,null,4,null,null,null,null,null,null,null,null,"",null,"","",null,null,null,0]
[null,null,null,null,null,null,5,null,null,null,null,null,null,null,null,"",null,"","",null,null,null,0]
[null,null,null,null,null,null,6,null,null,null,null,null,null,null,null,"",null,"","",null,null,null,0]
[null,null,null,null,null,null,7,null,null,null,null,null,null,null,null,"",null,{"$f":"IFERROR(Q310/(M310/12),\"\")","v":""},"",null,null,null,0]
[null,null,null,null,null,null,8,null,null,null,null,null,null,null,null,"",null,"","",null,null,null,0]
[null,null,null,null,null,null,9,null,null,null,null,null,null,null,null,"",null,"","",null,null,null,0]
[null,null,null,null,null,null,10,null,null,null,null,null,null,null,null,"",null,"","",null,null,null,0]
[null,null,null,{"$f":"$D$329","v":"Year 3:"},{"$f":"$E$329","v":0},{"$f":"$J$329","v":0},1,null,null,null,null,null,null,null,null,"",null,"","",null,null,null,0]
[null,null,null,null,null,null,2,null,null,null,null,null,null,null,null,"",null,"","",null,null,null,0]
[null,null,null,null,null,null,3,null,null,null,null,null,null,null,null,"",null,"","",null,null,null,0]
[null,null,null,null,null,null,4,null,null,null,null,null,null,null,null,"",null,"","",null,null,null,0]
[null,null,null,null,null,null,5,null,null,null,null,null,null,null,null,"",null,"","",null,null,null,0]
[null,null,null,null,null,null,6,null,null,null,null,null,null,null,null,"",null,"","",null,null,null,0]
[null,null,null,null,null,null,7,null,null,null,null,null,null,null,null,"",null,"","",null,null,null,0]
[null,null,null,null,null,null,8,null,null,null,null,null,null,null,null,"",null,"","",null,null,null,0]
[null,null,null,null,null,null,9,null,null,null,null,null,null,null,null,"",null,"","",null,null,null,0]
[null,null,null,null,null,null,10,null,null,null,null,null,null,null,null,"",null,"","",null,null,null,0]
[null,{"$f":"CONCATENATE(\"SUM \"&B294)","v":"SUM Person 10"},null,null,null,null,null,null,null,null,null,null,null,null,null,null,{"$f":"SUM(Q294:Q323)","v":0},{"$f":"SUM(R294:R323)","v":0},{"$f":"SUM(S294:S323)","v":0},null,null,null,{"$f":"SUM(W294:W323)","v":0}]
[null,"TOTAL SUM",null,null,null,null,null,null,null,null,null,null,null,null,null,null,{"$f":"Q324+Q293+Q262+Q231+Q200+Q169+Q138+Q107+Q76+Q45","v":0},0,0,0,0,0,0]
[]
[null,null,null,"Year 1:",{"$f":"YEAR('Ekonomisk projektbeskrivning'!E26)","v":1900},{"$f":"IF(MONTH(H327)-MONTH(G327)=0,0,MONTH(H327)-MONTH(G327)+1)","v":0},{"$f":"'Ekonomisk projektbeskrivning'!E26","v":"00:00:00"},{"$f":"IF(YEAR('Ekonomisk projektbeskrivning'!F26)='Personnel costs RP1'!E327,'Ekonomisk projektbeskrivning'!F26,CONCATENATE(E327&\"-12-31\"))","v":"00:00:00"},{"$f":"IF(F327<>0,IF(F327<12,IF(MONTH(G327)>(12-F327),E327,E327-1),E327),\"\")","v":""}]
[null,null,null,"Year 2:",{"$f":"IF(YEAR('Ekonomisk projektbeskrivning'!F26)>=('Personnel costs RP1'!E327+1),('Personnel costs RP1'!E327+1),0)","v":0},{"$f":"IF(E328=0,0,IF(MONTH(G328)=1,IF(MONTH(H328)=1,1,(MONTH(H328)-MONTH(G328)+1))))","v":0},{"$f":"IF(E327=YEAR('Ekonomisk projektbeskrivning'!F26),0,CONCATENATE(E328&\"-01-01\"))","v":"00:00:00"},{"$f":"IF(E327+1=YEAR('Ekonomisk projektbeskrivning'!F26),'Ekonomisk projektbeskrivning'!F26,IF(E327+1>YEAR('Ekonomisk projektbeskrivning'!F26),0,CONCATENATE(E328&\"-12-31\")))","v":"00:00:00"},{"$f":"IF(F328<>0,IF(F328<12,IF(MONTH(G328)>(12-F328),E328,E328-1),E328),\"\")","v":""}]
[null,null,null,"Year 3:",{"$f":"IF(YEAR('Ekonomisk projektbeskrivning'!F26)>=('Personnel costs RP1'!E327+2),('Personnel costs RP1'!E328+1),0)","v":0},{"$f":"IF(E329=0,0,IF(MONTH(G329)=1,IF(MONTH(H329)=1,1,(MONTH(H329)-MONTH(G329)+1))))","v":0},{"$f":"IF(E327+1>=YEAR('Ekonomisk projektbeskrivning'!F26),0,CONCATENATE(E327+2&\"-01-01\"))","v":0},{"$f":"IF(E327+2=YEAR('Ekonomisk projektbeskrivning'!F26),'Ekonomisk projektbeskrivning'!F26,IF(E327+2>YEAR('Ekonomisk projektbeskrivning'!F26),0,CONCATENATE(E329&\"-12-31\")))","v":0},{"$f":"IF(F329<>0,IF(F329<12,IF(MONTH(G329)>(12-F329),E329,E329-1),E329),\"\")","v":""}]

{"sheet":"Project Transactions RP1","index":11,"n_rows":30,"n_cols":16,"rows_kept":30,"cut":false,"hidden":false,"merged":[[12,2,12,5]]}
["sql SELECT dim_1, dim_2, voucher_no, period, trans_date, VERIFIKATIONER.account, VERIFIKATIONER.description AS VERTEXT, amount, KONTO.description AS KONTONAMN"]
["sql FROM agltransact AS VERIFIKATIONER"]
["sql  FULL JOIN aglaccounts as KONTO"]
["sql ON VERIFIKATIONER.account = KONTO.account"]
[{"$f":"C5","v":"sql WHERE dim_1 LIKE '%'"},null,{"$f":"CONCATENATE(\"sql WHERE dim_1 LIKE '\"&E15&\"%'\")","v":"sql WHERE dim_1 LIKE '%'"}]
[{"$f":"C6","v":"sql AND dim_2 LIKE '%'"},null,{"$f":"CONCATENATE(\"sql AND dim_2 LIKE '\"&E16&\"%'\")","v":"sql AND dim_2 LIKE '%'"}]
[{"$f":"C7","v":"sql AND period >=''"},null,{"$f":"CONCATENATE(\"sql AND period >='\"&E17&\"'\")","v":"sql AND period >=''"}]
[{"$f":"C8","v":"sql AND period <=''"},null,{"$f":"CONCATENATE(\"sql AND period <='\"&E18&\"'\")","v":"sql AND period <=''"}]
["sql AND KONTO.client='BO'"]
["query"]
["sort account"]
["columns","code account","text dim_1","text dim_2","text voucher_no","text Period","trans_date","text account","KONTONAMN","VERTEXT","amount"]
[null,null,"VERIFIKATIONSLISTA - RP1"]
[null,null,null,null,null,null,null,null,null,null,"Rapporten söker ut kostnader på kontogrupper"]
[null,null,"Orgenhet:",null,null,"Rapporten söker automatiskt ut med * utan att detta anges.",null,null,null,null,"43*, 48*, 49*"]
[null,null,"Akt/Proj:",null,null,"Rapporten söker automatiskt ut med * utan att detta anges.",null,null,null,null,"5*"]
[null,null,"Från period:",null,null,"OBS: året börjar med period 00",null,null,null,null,"6*"]
[null,null,"Till period:",null,null,"OBS: året slutar med period 15",null,null,null,null,"95*-97*"]
[null,null,"Reporting period:",null,1]
[]
[null,null,"Orgenhet","Akt/proj","Vernr","Period","Ver.datum","Konto","Konto(T)","Verifikationstext","Belopp","Korrigering belopp (-)","Beskrivning","RR (Om reseräkning)",null,"Kostnadsslag i Financial statement (välj i listan)"]
["detail","43*",null,null,null,null,"00:00:00",null,0,0,0,null,null,{"$f":"IF(MID($J22,42,6)=\"RESEID\",MID($J22,49,11),\"\")","v":""}]
["detail","48*",null,null,null,null,"00:00:00",null,0,0,0]
["detail","49*",null,null,null,null,"00:00:00",null,0,0,0]
["detail","5*",null,null,null,null,"00:00:00",null,0,0,0,null,null,""]
["detail","6*",null,null,null,null,"00:00:00",null,0,0,0,null,null,""]
["detail","95*",null,null,null,null,"00:00:00",null,0,0,0,null,null,""]
["detail","96*",null,null,null,null,"00:00:00",null,0,0,0,null,null,""]
["detail","97*",null,null,null,null,"00:00:00",null,0,0,0,null,null,""]
[null,null,null,null,null,null,"00:00:00",null,0,0,0,null,null,""]

{"sheet":"Direct costs RP1","index":12,"n_rows":55,"n_cols":12,"rows_kept":55,"cut":false,"hidden":false,"merged":[[1,3,1,9]]}
["DIRECT COSTS - RP1"]
[null,null,"Project:    ",{"$f":"'Ekonomisk projektbeskrivning'!D5","v":0}]
[null,null,"GA:            ",{"$f":"'Ekonomisk projektbeskrivning'!D22","v":0}]
[null,null,"Exchange rate:",{"$f":"'Ekonomisk projektbeskrivning'!B26","v":0},null,null,null,null,"Reporting period: 1"]
[]
["A.1 Employees (or equivalent)","Beskrivning","RR-nr","Bokfört \nbelopp \n(SEK)","Korrigering \nbokfört \nbelopp \n(SEK)","Belopp att \nredovisa \n(SEK)","Belopp att \nredovisa \n(EUR)","Vernr","WP","Kommentar"]
["A.1 Employees (or equivalent)","Calculated Eligible Personnel Costs",null,"N/A",null,69767.441860465115,6976.7441860465115,null,1]
["A.1 Employees (or equivalent)","Calculated Eligible Personnel Costs",null,"N/A",null,29069.767441860466,2906.9767441860467,null,2]
["A.1 Employees (or equivalent)","Calculated Eligible Personnel Costs",null,"N/A",null,5813.9534883720926,581.39534883720921,null,3]
[]
[null,null,null,null,null,null,null,null,null,null,null,"Inserted row_RP1"]
[null,null,null,null,null,104651.16279069768,10465.116279069767]
[]
["A.2 Natural persons working under direct contract","Beskrivning","RR-nr","Bokfört \nbelopp \n(SEK)","Korrigering \nbokfört \nbelopp \n(SEK)","Belopp att \nredovisa \n(SEK)","Belopp att \nredovisa \n(EUR)","Vernr","WP","Kommentar"]
[]
[]
[]
[]
["A.3 Seconded persons","Beskrivning","RR-nr","Bokfört \nbelopp \n(SEK)","Korrigering \nbokfört \nbelopp \n(SEK)","Belopp att \nredovisa \n(SEK)","Belopp att \nredovisa \n(EUR)","Vernr","WP","Kommentar"]
[]
[]
[]
[]
["A.6 Personnel for providing access to research infrastructure","Beskrivning","RR-nr","Bokfört \nbelopp \n(SEK)","Korrigering \nbokfört \nbelopp \n(SEK)","Belopp att \nredovisa \n(SEK)","Belopp att \nredovisa \n(EUR)","Vernr","WP","Kommentar"]
[]
[]
[]
[]
["B.1 Subcontracting","Beskrivning","RR-nr","Bokfört \nbelopp \n(SEK)","Korrigering \nbokfört \nbelopp \n(SEK)","Belopp att \nredovisa \n(SEK)","Belopp att \nredovisa \n(EUR)","Vernr","WP","Kommentar"]
[]
[]
[]
[]
["D.1 Travel","Beskrivning","RR-nr","Bokfört \nbelopp \n(SEK)","Korrigering \nbokfört \nbelopp \n(SEK)","Belopp att \nredovisa \n(SEK)","Belopp att \nredovisa \n(EUR)","Vernr","WP","Kommentar"]
["D.1 Travel",null,185683231,402,null,{"$f":"SUM(D35:E35)","v":402},40.200000000000003,4180018]
["D.1 Travel",null,210559161,480,null,{"$f":"SUM(D36:E36)","v":480},48,4190016]
["D.1 Travel",null,185683231,360,null,{"$f":"SUM(D37:E37)","v":360},36,4180018]
["D.1 Travel",null,210559161,180,null,{"$f":"SUM(D38:E38)","v":180},18,4190016]
["D.1 Travel",null,202995979,1313.8,null,{"$f":"SUM(D39:E39)","v":1313.8},131.38,4180025]
[]
[null,null,null,null,null,null,null,null,null,null,null,"Inserted row_RP1"]
[null,null,null,2735.8,0,2735.8,273.58]
[]
["D.2 Equipment","Beskrivning","RR-nr","Bokfört \nbelopp \n(SEK)","Korrigering \nbokfört \nbelopp \n(SEK)","Belopp att \nredovisa \n(SEK)","Belopp att \nredovisa \n(EUR)","Vernr","WP","Kommentar"]
[]
[]
[]
[]
["D.3 Other goods and services","Beskrivning","RR-nr","Bokfört \nbelopp \n(SEK)","Korrigering \nbokfört \nbelopp \n(SEK)","Belopp att \nredovisa \n(SEK)","Belopp att \nredovisa \n(EUR)","Vernr","WP","Kommentar"]
["D.3 Other goods and services",null,null,565.48,null,{"$f":"SUM(D50:E50)","v":565.48},56.548000000000002,300003614]
[]
[null,null,null,null,null,null,null,null,null,null,null,"Inserted row_RP1"]
[null,null,null,565.48,0,565.48,56.548000000000002]
[]
["D.5 Costs for internally invoiced goods and services","Beskrivning","RR-nr","Bokfört \nbelopp \n(SEK)","Korrigering \nbokfört \nbelopp \n(SEK)","Belopp att \nredovisa \n(SEK)","Belopp att \nredovisa \n(EUR)","Vernr","WP","Kommentar"]

{"sheet":"Financial Statement RP1","index":13,"n_rows":21,"n_cols":3,"rows_kept":21,"cut":false,"hidden":false,"merged":[[2,1,2,2],[20,0,20,1],[13,0,13,1],[14,0,14,1],[15,0,15,1],[16,0,16,1],[17,0,17,1],[12,0,12,1],[7,0,7,1],[8,0,8,1],[9,0,9,1],[10,0,10,1],[11,0,11,1]]}
["FINANCIAL STATEMENT - RP1"]
[]
["Project:",{"$f":"'Ekonomisk projektbeskrivning'!D5","v":0}]
["GA:",{"$f":"'Ekonomisk projektbeskrivning'!D22","v":0}]
["Reporting period:",1]
[]
[]
["Cost Category",null,"Total EUR"]
["a) Direct personnel costs declared as actual costs",null,0]
["b) Direct personnel costs declared as unit costs (average costs)"]
["d) Direct costs of subcontracting",null,0]
["e) Direct costs of providing financial support to third parties"]
["f) Other direct costs",null,0]
["h) Indirect costs (= 0.25 * (a + b + f - o))",null,{"$f":"0.25*(SUM(CostCategory_A_RP1 + CostCategory_D_RP1 + CostCategory_F_RP1 - CostsInKindNotUsedInPremises_RP1))","v":0}]
["j) Total costs (= a + b + d + e + f + h) ",null,{"$f":"SUM(C9:C14)","v":0}]
["k) Receipts"]
["m) Maximum EU-contribution (100%)",null,{"$f":"((C15-C16)*100%)","v":0}]
["n) Requested EU-contribution"]
[]
[]
["o) Use of 'costs of in-kind contributions not used on premises'?"]

{"sheet":"Adjustments RP1","index":14,"n_rows":86,"n_cols":10,"rows_kept":86,"cut":false,"hidden":false,"merged":[[82,0,82,1],[85,0,85,1],[72,0,72,1],[73,0,73,1],[74,0,74,1],[75,0,75,1],[76,0,76,1],[77,0,77,1],[1,2,1,7],[78,0,78,1],[79,0,79,1],[80,0,80,1],[81,0,81,1]]}
["ADJUSTMENTS OF DIRECT COSTS"]
[null,"Project:    ",{"$f":"'Ekonomisk projektbeskrivning'!D5","v":0}]
[null,"GA:            ",{"$f":"'Ekonomisk projektbeskrivning'!D22","v":0}]
[null,"Exchange rate:",{"$f":"'Ekonomisk projektbeskrivning'!B26","v":0},null,null,null,"Reporting period: 1"]
[]
["A.1 Employees (or equivalent)","Beskrivning","RR (Om reseräkning)","Belopp","EUR","Vernr","WP","Kommentar"]
[null,null,null,null,{"$f":"(IFERROR(D7/$C$4,0))","v":0}]
[null,null,null,null,{"$f":"(IFERROR(D8/$C$4,0))","v":0}]
[null,null,null,null,{"$f":"(IFERROR(D9/$C$4,0))","v":0}]
[null,null,null,null,{"$f":"(IFERROR(D10/$C$4,0))","v":0},null,null,null,null,"Inserted row"]
[null,null,null,{"$f":"SUM(D7:D10)","v":0},{"$f":"SUM(E7:E10)","v":0}]
[]
["A.2 Natural persons working under direct contract","Beskrivning","RR (Om reseräkning)","Belopp","EUR","Vernr","WP","Kommentar"]
[null,null,null,null,{"$f":"(IFERROR(D14/$C$4,0))","v":0}]
[null,null,null,null,{"$f":"(IFERROR(D15/$C$4,0))","v":0}]
[null,null,null,null,{"$f":"(IFERROR(D16/$C$4,0))","v":0}]
[null,null,null,null,{"$f":"(IFERROR(D17/$C$4,0))","v":0},null,null,null,null,"Inserted row"]
[null,null,null,{"$f":"SUM(D14:D17)","v":0},{"$f":"SUM(E14:E17)","v":0}]
[]
["A.3 Seconded persons","Beskrivning","RR (Om reseräkning)","Belopp","EUR","Vernr","WP","Kommentar"]
[null,null,null,null,{"$f":"(IFERROR(D21/$C$4,0))","v":0}]
[null,null,null,null,{"$f":"(IFERROR(D22/$C$4,0))","v":0}]
[null,null,null,null,{"$f":"(IFERROR(D23/$C$4,0))","v":0}]
[null,null,null,null,{"$f":"(IFERROR(D24/$C$4,0))","v":0}]
[null,null,null,{"$f":"SUM(D21:D24)","v":0},{"$f":"SUM(E21:E24)","v":0}]
[]
["A.6 Personnel for providing access to research infrastructure","Beskrivning","RR (Om reseräkning)","Belopp","EUR","Vernr","WP","Kommentar"]
[null,null,null,null,{"$f":"(IFERROR(D28/$C$4,0))","v":0}]
[null,null,null,null,{"$f":"(IFERROR(D29/$C$4,0))","v":0}]
[null,null,null,null,{"$f":"(IFERROR(D30/$C$4,0))","v":0}]
[null,null,null,null,{"$f":"(IFERROR(D31/$C$4,0))","v":0},null,null,null,null,"Inserted row"]
[null,null,null,{"$f":"SUM(D28:D31)","v":0},{"$f":"SUM(E28:E31)","v":0}]
[]
["B.1 Subcontracting","Beskrivning","RR (Om reseräkning)","Belopp","EUR","Vernr","WP","Kommentar"]
[null,null,null,null,{"$f":"(IFERROR(D35/$C$4,0))","v":0}]
[null,null,null,null,{"$f":"(IFERROR(D36/$C$4,0))","v":0}]
[null,null,null,null,{"$f":"(IFERROR(D37/$C$4,0))","v":0}]
[null,null,null,null,{"$f":"(IFERROR(D38/$C$4,0))","v":0},null,null,null,null,"Inserted row"]
[null,null,null,{"$f":"SUM(D35:D38)","v":0},{"$f":"SUM(E35:E38)","v":0}]
[]
["D.1 Travel","Beskrivning","RR (Om reseräkning)","Belopp","EUR","Vernr","WP","Kommentar"]
[null,null,null,null,{"$f":"(IFERROR(D42/$C$4,0))","v":0}]
[null,null,null,null,{"$f":"(IFERROR(D43/$C$4,0))","v":0}]
[null,null,null,null,{"$f":"(IFERROR(D44/$C$4,0))","v":0}]
[null,null,null,null,{"$f":"(IFERROR(D45/$C$4,0))","v":0},null,null,null,null,"Inserted row"]
[null,null,null,{"$f":"SUM(D42:D45)","v":0},{"$f":"SUM(E42:E45)","v":0}]
[]
["D.2 Equipment","Beskrivning","RR (Om reseräkning)","Belopp","EUR","Vernr","WP","Kommentar"]
[null,null,null,null,{"$f":"(IFERROR(D49/$C$4,0))","v":0}]
[null,null,null,null,{"$f":"(IFERROR(D50/$C$4,0))","v":0}]
[null,null,null,null,{"$f":"(IFERROR(D51/$C$4,0))","v":0}]
[null,null,null,null,{"$f":"(IFERROR(D52/$C$4,0))","v":0},null,null,null,null,"Inserted row"]
[null,null,null,{"$f":"SUM(D49:D52)","v":0},{"$f":"SUM(E49:E52)","v":0}]
[]
["D.3 Other goods and services","Beskrivning","RR (Om reseräkning)","Belopp","EUR","Vernr","WP","Kommentar"]
[null,null,null,null,{"$f":"(IFERROR(D56/$C$4,0))","v":0}]
[null,null,null,null,{"$f":"(IFERROR(D57/$C$4,0))","v":0}]
[null,null,null,null,{"$f":"(IFERROR(D58/$C$4,0))","v":0}]
[null,null,null,null,{"$f":"(IFERROR(D59/$C$4,0))","v":0},null,null,null,null,"Inserted row"]
[null,null,null,{"$f":"SUM(D56:D59)","v":0},{"$f":"SUM(E56:E59)","v":0}]
[]
["D.5 Costs for internally invoiced goods and services","Beskrivning","RR (Om reseräkning)","Belopp","EUR","Vernr","WP","Kommentar"]
[null,null,null,null,{"$f":"(IFERROR(D63/$C$4,0))","v":0}]
[null,null,null,null,{"$f":"(IFERROR(D64/$C$4,0))","v":0}]
[null,null,null,null,{"$f":"(IFERROR(D65/$C$4,0))","v":0}]
[null,null,null,null,{"$f":"(IFERROR(D66/$C$4,0))","v":0},null,null,null,null,"Inserted row"]
[null,null,null,{"$f":"SUM(D63:D66)","v":0},{"$f":"SUM(E63:E66)","v":0}]
[]
[]
[]
["FINANCIAL STATEMENT (ADJUSTMENTS) - RP1"]
[]
["Cost Category",null,"Total EUR"]
["a) Direct personnel costs declared as actual costs",null,{"$f":"E11+E18+E25+E32","v":0}]
["b) Direct personnel costs declared as unit costs (average costs)"]
["d) Direct costs od subcontracting",null,{"$f":"E39","v":0}]
["e) Direct costs of providing financial support to third parties"]
["f) Other direct costs",null,{"$f":"E46+E53+E60+E67","v":0}]
["h) Indirect costs (= 0.25 * (a + b + f - o))",null,{"$f":"(C74+C75+C78-C86)*0.25","v":0}]
["j) Total costs (= a + b + d + e + f + h) ",null,{"$f":"SUM(C74:C79)","v":0}]
["k) Receipts"]
["m) Maximum EU-contribution (100%)",null,{"$f":"((C80-C81)*100%)","v":0}]
["n) Requested EU-contribution"]
[]
[]
["o) Use of 'costs of in-kind contributions not used on premises'?"]

{"sheet":"Personnel costs RP2","index":15,"n_rows":329,"n_cols":31,"rows_kept":329,"cut":false,"hidden":false,"merged":[[13,3,13,4],[324,3,324,4]]}
[null,"PERSONNEL COSTS - RP2"]
[]
[null,"Project: "]
[]
[null,"Beneficiary:",null,"Hoegskolan i Boras / University of Borås"]
[]
[null,"Reporting period 1:",null,{"$f":"IF('Ekonomisk projektbeskrivning'!E27<>\"\",'Ekonomisk projektbeskrivning'!E27,\"\")","v":""},"--",{"$f":"IF('Ekonomisk projektbeskrivning'!F27<>\"\",'Ekonomisk projektbeskrivning'!F27,\"\")","v":""}]
[]
[null,"Exchange rate SEK-EUR: ",null,{"$f":"'Ekonomisk projektbeskrivning'!B27","v":0}]
[]
[null,"Option for calculating Hourly rate:",null,"Option 1: 1 720 Fixed hours"]
[]
[]
[null,"Name",null,"Calender year",null,"Fiscal year","WP","Total salary cost in payroll (SEK)","Salary costs for Additional remunerations that is not related to the project (SEK)",null,null,null,"Annual  productive hours",null,"Annual productive hours Pro-Rata if applied","Hourly rate (SEK)","Worked hours in the project","PMs","Calculated eligible personnel cost for the project (SEK)",null,null,null,"Personnel cost to claim in form C (EUR)",null,null,null,null,"Sum PM / WP","Sum PM / WP","Sum Eligible Personnel costs (SEK)","Sum Eligible Personnel costs (EUR)"]
[" ","Person 1",null,{"$f":"$D$327","v":"Year 1:"},{"$f":"$E$327","v":1900},{"$f":"$J$327","v":0},1,null,null,null,null,null,null,null,null,{"$f":"IFERROR(((H15+I15)/M15),\"\")","v":""},null,{"$f":"IFERROR(Q15/(M15/12),\"\")","v":""},{"$f":"IFERROR(P15*Q15,\"\")","v":""},null,null,null,{"$f":"IFERROR(S15/D$9,)","v":0},null,null,null,null,1,{"$f":"SUMIF($G$15:$G$1048576,1,$R$15:$R$1048576)","v":0},{"$f":"SUMIF($G$15:$G$1048576,1,$S$15:$S$1048576)","v":0},{"$f":"SUMIF($G$15:$G$1048576,1,$W$15:$W$1048576)","v":0}]
[null,null,null,null,null,null,2,null,null,null,null,null,null,null,null,{"$f":"IFERROR(((H16+I16)/M16),\"\")","v":""},null,{"$f":"IFERROR(Q16/(M16/12),\"\")","v":""},{"$f":"IFERROR(P16*Q16,\"\")","v":""},null,null,null,{"$f":"IFERROR(S16/D$9,)","v":0},null,null,null,null,2,{"$f":"SUMIF(G15:G1048576,2,R15:R1048576)","v":0},{"$f":"SUMIF($G$15:$G$1048576,2,$S$15:$S$1048576)","v":0},{"$f":"SUMIF($G$15:$G$1048576,2,$W$15:$W$1048576)","v":0}]
[null,null,null,null,null,null,3,null,null,null,null,null,null,null,null,"",null,"","",null,null,null,0,null,null,null,null,3,{"$f":"SUMIF(G15:G1048576,3,R15:R1048576)","v":0},{"$f":"SUMIF($G$15:$G$1048576,3,$S$15:$S$1048576)","v":0},{"$f":"SUMIF($G$15:$G$1048576,3,$W$15:$W$1048576)","v":0}]
[null,null,null,null,null,null,4,null,null,null,null,null,null,null,null,"",null,"","",null,null,null,0,null,null,null,null,4,{"$f":"SUMIF(G15:G1048576,4,R15:R1048576)","v":0},{"$f":"SUMIF($G$15:$G$1048576,4,$S$15:$S$1048576)","v":0},{"$f":"SUMIF($G$15:$G$1048576,4,$W$15:$W$1048576)","v":0}]
[null,null,null,null,null,null,5,null,null,null,null,null,null,null,null,"",null,"","",null,null,null,0,null,null,null,null,5,{"$f":"SUMIF(G15:G1048576,5,R15:R1048576)","v":0},{"$f":"SUMIF($G$15:$G$1048576,5,$S$15:$S$1048576)","v":0},{"$f":"SUMIF($G$15:$G$1048576,5,$W$15:$W$1048576)","v":0}]
[null,null,null,null,null,null,6,null,null,null,null,null,null,null,null,"",null,"","",null,null,null,0,null,null,null,null,6,{"$f":"SUMIF(G15:G1048576,6,R15:R1048576)","v":0},{"$f":"SUMIF($G$15:$G$1048576,6,$S$15:$S$1048576)","v":0},{"$f":"SUMIF($G$15:$G$1048576,6,$W$15:$W$1048576)","v":0}]
[null,null,null,null,null,null,7,null,null,null,null,null,null,null,null,"",null,"","",null,null,null,0,null,null,null,null,7,{"$f":"SUMIF(G15:G1048576,7,R15:R1048576)","v":0},{"$f":"SUMIF($G$15:$G$1048576,7,$S$15:$S$1048576)","v":0},{"$f":"SUMIF($G$15:$G$1048576,7,$W$15:$W$1048576)","v":0}]
[null,null,null,null,null,null,8,null,null,null,null,null,null,null,null,"",null,"","",null,null,null,0,null,null,null,null,8,{"$f":"SUMIF(G15:G1048576,8,R15:R1048576)","v":0},{"$f":"SUMIF($G$15:$G$1048576,8,$S$15:$S$1048576)","v":0},{"$f":"SUMIF($G$15:$G$1048576,8,$W$15:$W$1048576)","v":0}]
[null,null,null,null,null,null,9,null,null,null,null,null,null,null,null,"",null,"","",null,null,null,0,null,null,null,null,9,{"$f":"SUMIF(G15:G1048576,9,R15:R1048576)","v":0},{"$f":"SUMIF($G$15:$G$1048576,9,$S$15:$S$1048576)","v":0},{"$f":"SUMIF($G$15:$G$1048576,9,$W$15:$W$1048576)","v":0}]
[null,null,null,null,null,null,10,null,null,null,null,null,null,null,null,"",null,"","",null,null,null,0,null,null,null,null,10,{"$f":"SUMIF(G15:G1048576,10,R15:R1048576)","v":0},{"$f":"SUMIF($G$15:$G$1048576,10,$S$15:$S$1048576)","v":0},{"$f":"SUMIF($G$15:$G$1048576,10,$W$15:$W$1048576)","v":0}]
[null,null,null,{"$f":"$D$328","v":"Year 2:"},{"$f":"$E$328","v":0},{"$f":"$J$328","v":0},1,null,null,null,null,null,null,null,null,"",null,"","",null,null,null,0,null,null,null,null,"SUM",{"$f":"SUM(AC15:AC24)","v":0},{"$f":"SUM(AD15:AD24)","v":0},{"$f":"SUM(AE15:AE24)","v":0}]
[null,null,null,null,null,null,2,null,null,null,null,null,null,null,null,"",null,"","",null,null,null,0,null,null,null,null,null,{"$f":"IF(AC25<>R325,\"CHECK\",\"OK\")","v":"OK"},{"$f":"IF(AD25<>S325,\"CHECK\",\"OK\")","v":"OK"},{"$f":"IF(AE25<>W325,\"CHECK\",\"OK\")","v":"OK"}]
[null,null,null,null,null,null,3,null,null,null,null,null,null,null,null,"",null,"","",null,null,null,0]
[null,null,null,null,null,null,4,null,null,null,null,null,null,null,null,"",null,"","",null,null,null,0]
[null,null,null,null,null,null,5,null,null,null,null,null,null,null,null,"",null,"","",null,null,null,0]
[null,null,null,null,null,null,6,null,null,null,null,null,null,null,null,"",null,"","",null,null,null,0]
[null,null,null,null,null,null,7,null,null,null,null,null,null,null,null,"",null,"","",null,null,null,0]
[null,null,null,null,null,null,8,null,null,null,null,null,null,null,null,"",null,"","",null,null,null,0]
[null,null,null,null,null,null,9,null,null,null,null,null,null,null,null,"",null,"","",null,null,null,0]
[null,null,null,null,null,null,10,null,null,null,null,null,null,null,null,"",null,"","",null,null,null,0]
[null,null,null,{"$f":"$D$329","v":"Year 3:"},{"$f":"$E$329","v":0},{"$f":"$J$329","v":0},1,null,null,null,null,null,null,null,null,"",null,"","",null,null,null,0]
[null,null,null,null,null,null,2,null,null,null,null,null,null,null,null,"",null,"","",null,null,null,0]
[null,null,null,null,null,null,3,null,null,null,null,null,null,null,null,"",null,"","",null,null,null,0]
[null,null,null,null,null,null,4,null,null,null,null,null,null,null,null,"",null,"","",null,null,null,0]
[null,null,null,null,null,null,5,null,null,null,null,null,null,null,null,"",null,"","",null,null,null,0]
[null,null,null,null,null,null,6,null,null,null,null,null,null,null,null,"",null,"","",null,null,null,0]
[null,null,null,null,null,null,7,null,null,null,null,null,null,null,null,"",null,"","",null,null,null,0]
[null,null,null,null,null,null,8,null,null,null,null,null,null,null,null,"",null,"","",null,null,null,0]
[null,null,null,null,null,null,9,null,null,null,null,null,null,null,null,"",null,"","",null,null,null,0]
[null,null,null,null,null,null,10,null,null,null,null,null,null,null,null,"",null,"","",null,null,null,0]
[null,{"$f":"CONCATENATE(\"SUM \"&B15)","v":"SUM Person 1"},null,null,null,null,null,null,null,null,null,null,null,null,null,null,{"$f":"SUM(Q15:Q44)","v":0},{"$f":"SUM(R15:R44)","v":0},{"$f":"SUM(S15:S44)","v":0},null,null,null,{"$f":"SUM(W15:W44)","v":0}]
[null,"Person 2",null,{"$f":"$D$327","v":"Year 1:"},{"$f":"$E$327","v":1900},{"$f":"$J$327","v":0},1,null,null,null,null,null,null,null,null,{"$f":"IFERROR(((H46+I46)/M46),\"\")","v":""},null,"",{"$f":"IFERROR(P46*Q46,\"\")","v":""},null,null,null,0]
[null,null,null,null,null,null,2,null,null,null,null,null,null,null,null,"",null,"","",null,null,null,0]
[null,null,null,null,null,null,3,null,null,null,null,null,null,null,null,"",null,"","",null,null,null,0]
[null,null,null,null,null,null,4,null,null,null,null,null,null,null,null,"",null,"","",null,null,null,0]
[null,null,null,null,null,null,5,null,null,null,null,null,null,null,null,"",null,"","",null,null,null,0]
[null,null,null,null,null,null,6,null,null,null,null,null,null,null,null,"",null,"","",null,null,null,0]
[null,null,null,null,null,null,7,null,null,null,null,null,null,null,null,"",null,"","",null,null,null,0]
[null,null,null,null,null,null,8,null,null,null,null,null,null,null,null,"",null,"","",null,null,null,0]
[null,null,null,null,null,null,9,null,null,null,null,null,null,null,null,"",null,"","",null,null,null,0]
[null,null,null,null,null,null,10,null,null,null,null,null,null,null,null,"",null,"","",null,null,null,0]
[null,null,null,{"$f":"$D$328","v":"Year 2:"},{"$f":"$E$328","v":0},{"$f":"$J$328","v":0},1,null,null,null,null,null,null,null,null,"",null,"","",null,null,null,0]
[null,null,null,null,null,null,2,null,null,null,null,null,null,null,null,"",null,"","",null,null,null,0]
[null,null,null,null,null,null,3,null,null,null,null,null,null,null,null,"",null,"","",null,null,null,0]
[null,null,null,null,null,null,4,null,null,null,null,null,null,null,null,"",null,"","",null,null,null,0]
[null,null,null,null,null,null,5,null,null,null,null,null,null,null,null,"",null,"","",null,null,null,0]
[null,null,null,null,null,null,6,null,null,null,null,null,null,null,null,"",null,"","",null,null,null,0]
[null,null,null,null,null,null,7,null,null,null,null,null,null,null,null,"",null,{"$f":"IFERROR(Q62/(M62/12),\"\")","v":""},"",null,null,null,0]
[null,null,null,null,null,null,8,null,null,null,null,null,null,null,null,"",null,"","",null,null,null,0]
[null,null,null,null,null,null,9,null,null,null,null,null,null,null,null,"",null,"","",null,null,null,0]
[null,null,null,null,null,null,10,null,null,null,null,null,null,null,null,"",null,"","",null,null,null,0]
[null,null,null,{"$f":"$D$329","v":"Year 3:"},{"$f":"$E$329","v":0},{"$f":"$J$329","v":0},1,null,null,null,null,null,null,null,null,"",null,"","",null,null,null,0]
[null,null,null,null,null,null,2,null,null,null,null,null,null,null,null,"",null,"","",null,null,null,0]
[null,null,null,null,null,null,3,null,null,null,null,null,null,null,null,"",null,"","",null,null,null,0]
[null,null,null,null,null,null,4,null,null,null,null,null,null,null,null,"",null,"","",null,null,null,0]
[null,null,null,null,null,null,5,null,null,null,null,null,null,null,null,"",null,"","",null,null,null,0]
[null,null,null,null,null,null,6,null,null,null,null,null,null,null,null,"",null,"","",null,null,null,0]
[null,null,null,null,null,null,7,null,null,null,null,null,null,null,null,"",null,"","",null,null,null,0]
[null,null,null,null,null,null,8,null,null,null,null,null,null,null,null,"",null,"","",null,null,null,0]
[null,null,null,null,null,null,9,null,null,null,null,null,null,null,null,"",null,"","",null,null,null,0]
[null,null,null,null,null,null,10,null,null,null,null,null,null,null,null,"",null,"","",null,null,null,0]
[null,{"$f":"CONCATENATE(\"SUM \"&B46)","v":"SUM Person 2"},null,null,null,null,null,null,null,null,null,null,null,null,null,null,{"$f":"SUM(Q46:Q75)","v":0},{"$f":"SUM(R46:R75)","v":0},{"$f":"SUM(S46:S75)","v":0},null,null,null,{"$f":"SUM(W46:W75)","v":0}]
[null,"Person 3",null,{"$f":"$D$327","v":"Year 1:"},{"$f":"$E$327","v":1900},{"$f":"$J$327","v":0},1,null,null,null,null,null,null,null,null,{"$f":"IFERROR(((H77+I77)/M77),\"\")","v":""},null,"",{"$f":"IFERROR(P77*Q77,\"\")","v":""},null,null,null,0]
[null,null,null,null,null,null,2,null,null,null,null,null,null,null,null,"",null,"","",null,null,null,0]
[null,null,null,null,null,null,3,null,null,null,null,null,null,null,null,"",null,"","",null,null,null,0]
[null,null,null,null,null,null,4,null,null,null,null,null,null,null,null,"",null,{"$f":"IFERROR(Q80/(M80/12),\"\")","v":""},"",null,null,null,0]
[null,null,null,null,null,null,5,null,null,null,null,null,null,null,null,"",null,"","",null,null,null,0]
[null,null,null,null,null,null,6,null,null,null,null,null,null,null,null,"",null,"","",null,null,null,{"$f":"IFERROR(S82/D$9,)","v":0}]
[null,null,null,null,null,null,7,null,null,null,null,null,null,null,null,"",null,"","",null,null,null,0]
[null,null,null,null,null,null,8,null,null,null,null,null,null,null,null,"",null,"","",null,null,null,0]
[null,null,null,null,null,null,9,null,null,null,null,null,null,null,null,"",null,"","",null,null,null,0]
[null,null,null,null,null,null,10,null,null,null,null,null,null,null,null,"",null,"","",null,null,null,0]
[null,null,null,{"$f":"$D$328","v":"Year 2:"},{"$f":"$E$328","v":0},{"$f":"$J$328","v":0},1,null,null,null,null,null,null,null,null,"",null,"","",null,null,null,0]
[null,null,null,null,null,null,2,null,null,null,null,null,null,null,null,"",null,"","",null,null,null,0]
[null,null,null,null,null,null,3,null,null,null,null,null,null,null,null,"",null,"","",null,null,null,0]
[null,null,null,null,null,null,4,null,null,null,null,null,null,null,null,"",null,"","",null,null,null,0]
[null,null,null,null,null,null,5,null,null,null,null,null,null,null,null,"",null,"","",null,null,null,0]
[null,null,null,null,null,null,6,null,null,null,null,null,null,null,null,"",null,"","",null,null,null,0]
[null,null,null,null,null,null,7,null,null,null,null,null,null,null,null,"",null,{"$f":"IFERROR(Q93/(M93/12),\"\")","v":""},"",null,null,null,0]
[null,null,null,null,null,null,8,null,null,null,null,null,null,null,null,"",null,"","",null,null,null,0]
[null,null,null,null,null,null,9,null,null,null,null,null,null,null,null,"",null,"","",null,null,null,0]
[null,null,null,null,null,null,10,null,null,null,null,null,null,null,null,"",null,"","",null,null,null,0]
[null,null,null,{"$f":"$D$329","v":"Year 3:"},{"$f":"$E$329","v":0},{"$f":"$J$329","v":0},1,null,null,null,null,null,null,null,null,"",null,"","",null,null,null,0]
[null,null,null,null,null,null,2,null,null,null,null,null,null,null,null,"",null,"","",null,null,null,0]
[null,null,null,null,null,null,3,null,null,null,null,null,null,null,null,"",null,"","",null,null,null,0]
[null,null,null,null,null,null,4,null,null,null,null,null,null,null,null,"",null,"","",null,null,null,0]
[null,null,null,null,null,null,5,null,null,null,null,null,null,null,null,"",null,"","",null,null,null,0]
[null,null,null,null,null,null,6,null,null,null,null,null,null,null,null,"",null,"","",null,null,null,0]
[null,null,null,null,null,null,7,null,null,null,null,null,null,null,null,"",null,"","",null,null,null,0]
[null,null,null,null,null,null,8,null,null,null,null,null,null,null,null,"",null,"","",null,null,null,0]
[null,null,null,null,null,null,9,null,null,null,null,null,null,null,null,"",null,"","",null,null,null,0]
[null,null,null,null,null,null,10,null,null,null,null,null,null,null,null,"",null,"","",null,null,null,0]
[null,{"$f":"CONCATENATE(\"SUM \"&B77)","v":"SUM Person 3"},null,null,null,null,null,null,null,null,null,null,null,null,null,null,{"$f":"SUM(Q77:Q106)","v":0},{"$f":"SUM(R77:R106)","v":0},{"$f":"SUM(S77:S106)","v":0},null,null,null,{"$f":"SUM(W77:W106)","v":0}]
[null,"Person 4",null,{"$f":"$D$327","v":"Year 1:"},{"$f":"$E$327","v":1900},{"$f":"$J$327","v":0},1,null,null,null,null,null,null,null,null,{"$f":"IFERROR(((H108+I108)/M108),\"\")","v":""},null,{"$f":"IFERROR(Q108/(M108/12),\"\")","v":""},{"$f":"IFERROR(P108*Q108,\"\")","v":""},null,null,null,0]
[null,null,null,null,null,null,2,null,null,null,null,null,null,null,null,"",null,"","",null,null,null,0]
[null,null,null,null,null,null,3,null,null,null,null,null,null,null,null,"",null,"","",null,null,null,0]
[null,null,null,null,null,null,4,null,null,null,null,null,null,null,null,"",null,"","",null,null,null,0]
[null,null,null,null,null,null,5,null,null,null,null,null,null,null,null,"",null,"","",null,null,null,0]
[null,null,null,null,null,null,6,null,null,null,null,null,null,null,null,"",null,"","",null,null,null,0]
[null,null,null,null,null,null,7,null,null,null,null,null,null,null,null,"",null,"","",null,null,null,0]
[null,null,null,null,null,null,8,null,null,null,null,null,null,null,null,"",null,"","",null,null,null,0]
[null,null,null,null,null,null,9,null,null,null,null,null,null,null,null,"",null,"","",null,null,null,0]
[null,null,null,null,null,null,10,null,null,null,null,null,null,null,null,"",null,"","",null,null,null,0]
[null,null,null,{"$f":"$D$328","v":"Year 2:"},{"$f":"$E$328","v":0},{"$f":"$J$328","v":0},1,null,null,null,null,null,null,null,null,"",null,"","",null,null,null,0]
[null,null,null,null,null,null,2,null,null,null,null,null,null,null,null,"",null,"","",null,null,null,0]
[null,null,null,null,null,null,3,null,null,null,null,null,null,null,null,"",null,"","",null,null,null,0]
[null,null,null,null,null,null,4,null,null,null,null,null,null,null,null,"",null,"","",null,null,null,0]
[null,null,null,null,null,null,5,null,null,null,null,null,null,null,null,"",null,"","",null,null,null,0]
[null,null,null,null,null,null,6,null,null,null,null,null,null,null,null,"",null,"","",null,null,null,0]
[null,null,null,null,null,null,7,null,null,null,null,null,null,null,null,"",null,{"$f":"IFERROR(Q124/(M124/12),\"\")","v":""},"",null,null,null,0]
[null,null,null,null,null,null,8,null,null,null,null,null,null,null,null,"",null,"","",null,null,null,0]
[null,null,null,null,null,null,9,null,null,null,null,null,null,null,null,"",null,"","",null,null,null,0]
[null,null,null,null,null,null,10,null,null,null,null,null,null,null,null,"",null,"","",null,null,null,0]
[null,null,null,{"$f":"$D$329","v":"Year 3:"},{"$f":"$E$329","v":0},{"$f":"$J$329","v":0},1,null,null,null,null,null,null,null,null,"",null,"","",null,null,null,0]
[null,null,null,null,null,null,2,null,null,null,null,null,null,null,null,"",null,"","",null,null,null,0]
[null,null,null,null,null,null,3,null,null,null,null,null,null,null,null,"",null,"","",null,null,null,0]
[null,null,null,null,null,null,4,null,null,null,null,null,null,null,null,"",null,"","",null,null,null,0]
[null,null,null,null,null,null,5,null,null,null,null,null,null,null,null,"",null,"","",null,null,null,0]
[null,null,null,null,null,null,6,null,null,null,null,null,null,null,null,"",null,"","",null,null,null,0]
[null,null,null,null,null,null,7,null,null,null,null,null,null,null,null,"",null,"","",null,null,null,0]
[null,null,null,null,null,null,8,null,null,null,null,null,null,null,null,"",null,"","",null,null,null,0]
[null,null,null,null,null,null,9,null,null,null,null,null,null,null,null,"",null,"","",null,null,null,0]
[null,null,null,null,null,null,10,null,null,null,null,null,null,null,null,"",null,"","",null,null,null,0]
[null,{"$f":"CONCATENATE(\"SUM \"&B108)","v":"SUM Person 4"},null,null,null,null,null,null,null,null,null,null,null,null,null,null,{"$f":"SUM(Q108:Q137)","v":0},{"$f":"SUM(R108:R137)","v":0},{"$f":"SUM(S108:S137)","v":0},null,null,null,{"$f":"SUM(W108:W137)","v":0}]
[null,"Person 5",null,{"$f":"$D$327","v":"Year 1:"},{"$f":"$E$327","v":1900},{"$f":"$J$327","v":0},1,null,null,null,null,null,null,null,null,{"$f":"IFERROR(((H139+I139)/M139),\"\")","v":""},null,{"$f":"IFERROR(Q139/(M139/12),\"\")","v":""},{"$f":"IFERROR(P139*Q139,\"\")","v":""},null,null,null,0]
[null,null,null,null,null,null,2,null,null,null,null,null,null,null,null,"",null,"","",null,null,null,0]
[null,null,null,null,null,null,3,null,null,null,null,null,null,null,null,"",null,"","",null,null,null,0]
[null,null,null,null,null,null,4,null,null,null,null,null,null,null,null,"",null,"","",null,null,null,0]
[null,null,null,null,null,null,5,null,null,null,null,null,null,null,null,"",null,"","",null,null,null,0]
[null,null,null,null,null,null,6,null,null,null,null,null,null,null,null,"",null,"","",null,null,null,0]
[null,null,null,null,null,null,7,null,null,null,null,null,null,null,null,"",null,"","",null,null,null,0]
[null,null,null,null,null,null,8,null,null,null,null,null,null,null,null,"",null,"","",null,null,null,0]
[null,null,null,null,null,null,9,null,null,null,null,null,null,null,null,"",null,"","",null,null,null,0]
[null,null,null,null,null,null,10,null,null,null,null,null,null,null,null,"",null,"","",null,null,null,{"$f":"IFERROR(S148/D$9,)","v":0}]
[null,null,null,{"$f":"$D$328","v":"Year 2:"},{"$f":"$E$328","v":0},{"$f":"$J$328","v":0},1,null,null,null,null,null,null,null,null,"",null,"","",null,null,null,0]
[null,null,null,null,null,null,2,null,null,null,null,null,null,null,null,"",null,"","",null,null,null,0]
[null,null,null,null,null,null,3,null,null,null,null,null,null,null,null,"",null,"","",null,null,null,0]
[null,null,null,null,null,null,4,null,null,null,null,null,null,null,null,"",null,"","",null,null,null,0]
[null,null,null,null,null,null,5,null,null,null,null,null,null,null,null,"",null,"","",null,null,null,0]
[null,null,null,null,null,null,6,null,null,null,null,null,null,null,null,"",null,"","",null,null,null,0]
[null,null,null,null,null,null,7,null,null,null,null,null,null,null,null,"",null,{"$f":"IFERROR(Q155/(M155/12),\"\")","v":""},"",null,null,null,0]
[null,null,null,null,null,null,8,null,null,null,null,null,null,null,null,"",null,"","",null,null,null,0]
[null,null,null,null,null,null,9,null,null,null,null,null,null,null,null,"",null,"","",null,null,null,0]
[null,null,null,null,null,null,10,null,null,null,null,null,null,null,null,"",null,"","",null,null,null,0]
[null,null,null,{"$f":"$D$329","v":"Year 3:"},{"$f":"$E$329","v":0},{"$f":"$J$329","v":0},1,null,null,null,null,null,null,null,null,"",null,"","",null,null,null,0]
[null,null,null,null,null,null,2,null,null,null,null,null,null,null,null,"",null,"","",null,null,null,0]
[null,null,null,null,null,null,3,null,null,null,null,null,null,null,null,"",null,"","",null,null,null,0]
[null,null,null,null,null,null,4,null,null,null,null,null,null,null,null,"",null,"","",null,null,null,0]
[null,null,null,null,null,null,5,null,null,null,null,null,null,null,null,"",null,"","",null,null,null,0]
[null,null,null,null,null,null,6,null,null,null,null,null,null,null,null,"",null,"","",null,null,null,0]
[null,null,null,null,null,null,7,null,null,null,null,null,null,null,null,"",null,"","",null,null,null,0]
[null,null,null,null,null,null,8,null,null,null,null,null,null,null,null,"",null,"","",null,null,null,0]
[null,null,null,null,null,null,9,null,null,null,null,null,null,null,null,"",null,"","",null,null,null,0]
[null,null,null,null,null,null,10,null,null,null,null,null,null,null,null,"",null,"","",null,null,null,0]
[null,{"$f":"CONCATENATE(\"SUM \"&B139)","v":"SUM Person 5"},null,null,null,null,null,null,null,null,null,null,null,null,null,null,{"$f":"SUM(Q139:Q168)","v":0},{"$f":"SUM(R139:R168)","v":0},{"$f":"SUM(S139:S168)","v":0},null,null,null,{"$f":"SUM(W139:W168)","v":0}]
[null,"Person 6",null,{"$f":"$D$327","v":"Year 1:"},{"$f":"$E$327","v":1900},{"$f":"$J$327","v":0},1,null,null,null,null,null,null,null,null,{"$f":"IFERROR(((H170+I170)/M170),\"\")","v":""},null,{"$f":"IFERROR(Q170/(M170/12),\"\")","v":""},{"$f":"IFERROR(P170*Q170,\"\")","v":""},null,null,null,0]
[null,null,null,null,null,null,2,null,null,null,null,null,null,null,null,"",null,"","",null,null,null,0]
[null,null,null,null,null,null,3,null,null,null,null,null,null,null,null,"",null,"","",null,null,null,0]
[null,null,null,null,null,null,4,null,null,null,null,null,null,null,null,"",null,"","",null,null,null,0]
[null,null,null,null,null,null,5,null,null,null,null,null,null,null,null,"",null,"","",null,null,null,0]
[null,null,null,null,null,null,6,null,null,null,null,null,null,null,null,"",null,"","",null,null,null,0]
[null,null,null,null,null,null,7,null,null,null,null,null,null,null,null,"",null,"","",null,null,null,0]
[null,null,null,null,null,null,8,null,null,null,null,null,null,null,null,"",null,"","",null,null,null,0]
[null,null,null,null,null,null,9,null,null,null,null,null,null,null,null,"",null,"","",null,null,null,0]
[null,null,null,null,null,null,10,null,null,null,null,null,null,null,null,"",null,"","",null,null,null,0]
[null,null,null,{"$f":"$D$328","v":"Year 2:"},{"$f":"$E$328","v":0},{"$f":"$J$328","v":0},1,null,null,null,null,null,null,null,null,"",null,"","",null,null,null,0]
[null,null,null,null,null,null,2,null,null,null,null,null,null,null,null,"",null,"","",null,null,null,0]
[null,null,null,null,null,null,3,null,null,null,null,null,null,null,null,"",null,"","",null,null,null,0]
[null,null,null,null,null,null,4,null,null,null,null,null,null,null,null,"",null,"","",null,null,null,0]
[null,null,null,null,null,null,5,null,null,null,null,null,null,null,null,"",null,"","",null,null,null,0]
[null,null,null,null,null,null,6,null,null,null,null,null,null,null,null,"",null,"","",null,null,null,0]
[null,null,null,null,null,null,7,null,null,null,null,null,null,null,null,"",null,{"$f":"IFERROR(Q186/(M186/12),\"\")","v":""},"",null,null,null,0]
[null,null,null,null,null,null,8,null,null,null,null,null,null,null,null,"",null,"","",null,null,null,0]
[null,null,null,null,null,null,9,null,null,null,null,null,null,null,null,"",null,"","",null,null,null,0]
[null,null,null,null,null,null,10,null,null,null,null,null,null,null,null,"",null,"","",null,null,null,0]
[null,null,null,{"$f":"$D$329","v":"Year 3:"},{"$f":"$E$329","v":0},{"$f":"$J$329","v":0},1,null,null,null,null,null,null,null,null,"",null,"","",null,null,null,0]
[null,null,null,null,null,null,2,null,null,null,null,null,null,null,null,"",null,"","",null,null,null,0]
[null,null,null,null,null,null,3,null,null,null,null,null,null,null,null,"",null,"","",null,null,null,0]
[null,null,null,null,null,null,4,null,null,null,null,null,null,null,null,"",null,"","",null,null,null,0]
[null,null,null,null,null,null,5,null,null,null,null,null,null,null,null,"",null,"","",null,null,null,0]
[null,null,null,null,null,null,6,null,null,null,null,null,null,null,null,"",null,"","",null,null,null,0]
[null,null,null,null,null,null,7,null,null,null,null,null,null,null,null,"",null,"","",null,null,null,0]
[null,null,null,null,null,null,8,null,null,null,null,null,null,null,null,"",null,"","",null,null,null,0]
[null,null,null,null,null,null,9,null,null,null,null,null,null,null,null,"",null,"","",null,null,null,0]
[null,null,null,null,null,null,10,null,null,null,null,null,null,null,null,"",null,"","",null,null,null,0]
[null,{"$f":"CONCATENATE(\"SUM \"&B170)","v":"SUM Person 6"},null,null,null,null,null,null,null,null,null,null,null,null,null,null,{"$f":"SUM(Q170:Q199)","v":0},{"$f":"SUM(R170:R199)","v":0},{"$f":"SUM(S170:S199)","v":0},null,null,null,{"$f":"SUM(W170:W199)","v":0}]
[null,"Person 7",null,{"$f":"$D$327","v":"Year 1:"},{"$f":"$E$327","v":1900},{"$f":"$J$327","v":0},1,null,null,null,null,null,null,null,null,{"$f":"IFERROR(((H201+I201)/M201),\"\")","v":""},null,{"$f":"IFERROR(Q201/(M201/12),\"\")","v":""},{"$f":"IFERROR(P201*Q201,\"\")","v":""},null,null,null,0]
[null,null,null,null,null,null,2,null,null,null,null,null,null,null,null,"",null,"","",null,null,null,0]
[null,null,null,null,null,null,3,null,null,null,null,null,null,null,null,"",null,"","",null,null,null,0]
[null,null,null,null,null,null,4,null,null,null,null,null,null,null,null,"",null,"","",null,null,null,0]
[null,null,null,null,null,null,5,null,null,null,null,null,null,null,null,"",null,"","",null,null,null,0]
[null,null,null,null,null,null,6,null,null,null,null,null,null,null,null,"",null,"","",null,null,null,0]
[null,null,null,null,null,null,7,null,null,null,null,null,null,null,null,"",null,"","",null,null,null,0]
[null,null,null,null,null,null,8,null,null,null,null,null,null,null,null,"",null,"","",null,null,null,0]
[null,null,null,null,null,null,9,null,null,null,null,null,null,null,null,"",null,"","",null,null,null,0]
[null,null,null,null,null,null,10,null,null,null,null,null,null,null,null,"",null,"","",null,null,null,0]
[null,null,null,{"$f":"$D$328","v":"Year 2:"},{"$f":"$E$328","v":0},{"$f":"$J$328","v":0},1,null,null,null,null,null,null,null,null,"",null,"","",null,null,null,0]
[null,null,null,null,null,null,2,null,null,null,null,null,null,null,null,"",null,"","",null,null,null,0]
[null,null,null,null,null,null,3,null,null,null,null,null,null,null,null,"",null,"","",null,null,null,0]
[null,null,null,null,null,null,4,null,null,null,null,null,null,null,null,"",null,"","",null,null,null,{"$f":"IFERROR(S214/D$9,)","v":0}]
[null,null,null,null,null,null,5,null,null,null,null,null,null,null,null,"",null,"","",null,null,null,0]
[null,null,null,null,null,null,6,null,null,null,null,null,null,null,null,"",null,"","",null,null,null,0]
[null,null,null,null,null,null,7,null,null,null,null,null,null,null,null,"",null,{"$f":"IFERROR(Q217/(M217/12),\"\")","v":""},"",null,null,null,0]
[null,null,null,null,null,null,8,null,null,null,null,null,null,null,null,"",null,"","",null,null,null,0]
[null,null,null,null,null,null,9,null,null,null,null,null,null,null,null,"",null,"","",null,null,null,0]
[null,null,null,null,null,null,10,null,null,null,null,null,null,null,null,"",null,"","",null,null,null,0]
[null,null,null,{"$f":"$D$329","v":"Year 3:"},{"$f":"$E$329","v":0},{"$f":"$J$329","v":0},1,null,null,null,null,null,null,null,null,"",null,"","",null,null,null,0]
[null,null,null,null,null,null,2,null,null,null,null,null,null,null,null,"",null,"","",null,null,null,0]
[null,null,null,null,null,null,3,null,null,null,null,null,null,null,null,"",null,"","",null,null,null,0]
[null,null,null,null,null,null,4,null,null,null,null,null,null,null,null,"",null,"","",null,null,null,0]
[null,null,null,null,null,null,5,null,null,null,null,null,null,null,null,"",null,"","",null,null,null,0]
[null,null,null,null,null,null,6,null,null,null,null,null,null,null,null,"",null,"","",null,null,null,0]
[null,null,null,null,null,null,7,null,null,null,null,null,null,null,null,"",null,"","",null,null,null,0]
[null,null,null,null,null,null,8,null,null,null,null,null,null,null,null,"",null,"","",null,null,null,0]
[null,null,null,null,null,null,9,null,null,null,null,null,null,null,null,"",null,"","",null,null,null,0]
[null,null,null,null,null,null,10,null,null,null,null,null,null,null,null,"",null,"","",null,null,null,0]
[null,{"$f":"CONCATENATE(\"SUM \"&B201)","v":"SUM Person 7"},null,null,null,null,null,null,null,null,null,null,null,null,null,null,{"$f":"SUM(Q201:Q230)","v":0},{"$f":"SUM(R201:R230)","v":0},{"$f":"SUM(S201:S230)","v":0},null,null,null,{"$f":"SUM(W201:W230)","v":0}]
[null,"Person 8",null,{"$f":"$D$327","v":"Year 1:"},{"$f":"$E$327","v":1900},{"$f":"$J$327","v":0},1,null,null,null,null,null,null,null,null,{"$f":"IFERROR(((H232+I232)/M232),\"\")","v":""},null,{"$f":"IFERROR(Q232/(M232/12),\"\")","v":""},{"$f":"IFERROR(P232*Q232,\"\")","v":""},null,null,null,0]
[null,null,null,null,null,null,2,null,null,null,null,null,null,null,null,"",null,"","",null,null,null,0]
[null,null,null,null,null,null,3,null,null,null,null,null,null,null,null,"",null,"","",null,null,null,0]
[null,null,null,null,null,null,4,null,null,null,null,null,null,null,null,"",null,"","",null,null,null,0]
[null,null,null,null,null,null,5,null,null,null,null,null,null,null,null,"",null,"","",null,null,null,0]
[null,null,null,null,null,null,6,null,null,null,null,null,null,null,null,"",null,"","",null,null,null,0]
[null,null,null,null,null,null,7,null,null,null,null,null,null,null,null,"",null,"","",null,null,null,0]
[null,null,null,null,null,null,8,null,null,null,null,null,null,null,null,"",null,"","",null,null,null,0]
[null,null,null,null,null,null,9,null,null,null,null,null,null,null,null,"",null,"","",null,null,null,0]
[null,null,null,null,null,null,10,null,null,null,null,null,null,null,null,"",null,"","",null,null,null,0]
[null,null,null,{"$f":"$D$328","v":"Year 2:"},{"$f":"$E$328","v":0},{"$f":"$J$328","v":0},1,null,null,null,null,null,null,null,null,"",null,"","",null,null,null,0]
[null,null,null,null,null,null,2,null,null,null,null,null,null,null,null,"",null,"","",null,null,null,0]
[null,null,null,null,null,null,3,null,null,null,null,null,null,null,null,"",null,"","",null,null,null,0]
[null,null,null,null,null,null,4,null,null,null,null,null,null,null,null,"",null,"","",null,null,null,0]
[null,null,null,null,null,null,5,null,null,null,null,null,null,null,null,"",null,"","",null,null,null,0]
[null,null,null,null,null,null,6,null,null,null,null,null,null,null,null,"",null,"","",null,null,null,0]
[null,null,null,null,null,null,7,null,null,null,null,null,null,null,null,"",null,{"$f":"IFERROR(Q248/(M248/12),\"\")","v":""},"",null,null,null,0]
[null,null,null,null,null,null,8,null,null,null,null,null,null,null,null,"",null,"","",null,null,null,0]
[null,null,null,null,null,null,9,null,null,null,null,null,null,null,null,"",null,"","",null,null,null,0]
[null,null,null,null,null,null,10,null,null,null,null,null,null,null,null,"",null,"","",null,null,null,0]
[null,null,null,{"$f":"$D$329","v":"Year 3:"},{"$f":"$E$329","v":0},{"$f":"$J$329","v":0},1,null,null,null,null,null,null,null,null,"",null,"","",null,null,null,0]
[null,null,null,null,null,null,2,null,null,null,null,null,null,null,null,"",null,"","",null,null,null,0]
[null,null,null,null,null,null,3,null,null,null,null,null,null,null,null,"",null,"","",null,null,null,0]
[null,null,null,null,null,null,4,null,null,null,null,null,null,null,null,"",null,"","",null,null,null,0]
[null,null,null,null,null,null,5,null,null,null,null,null,null,null,null,"",null,"","",null,null,null,0]
[null,null,null,null,null,null,6,null,null,null,null,null,null,null,null,"",null,"","",null,null,null,0]
[null,null,null,null,null,null,7,null,null,null,null,null,null,null,null,"",null,"","",null,null,null,0]
[null,null,null,null,null,null,8,null,null,null,null,null,null,null,null,"",null,"","",null,null,null,0]
[null,null,null,null,null,null,9,null,null,null,null,null,null,null,null,"",null,"","",null,null,null,0]
[null,null,null,null,null,null,10,null,null,null,null,null,null,null,null,"",null,"","",null,null,null,0]
[null,{"$f":"CONCATENATE(\"SUM \"&B232)","v":"SUM Person 8"},null,null,null,null,null,null,null,null,null,null,null,null,null,null,{"$f":"SUM(Q232:Q261)","v":0},{"$f":"SUM(R232:R261)","v":0},{"$f":"SUM(S232:S261)","v":0},null,null,null,{"$f":"SUM(W232:W261)","v":0}]
[null,"Person 9",null,{"$f":"$D$327","v":"Year 1:"},{"$f":"$E$327","v":1900},{"$f":"$J$327","v":0},1,null,null,null,null,null,null,null,null,{"$f":"IFERROR(((H263+I263)/M263),\"\")","v":""},null,{"$f":"IFERROR(Q263/(M263/12),\"\")","v":""},{"$f":"IFERROR(P263*Q263,\"\")","v":""},null,null,null,0]
[null,null,null,null,null,null,2,null,null,null,null,null,null,null,null,"",null,"","",null,null,null,0]
[null,null,null,null,null,null,3,null,null,null,null,null,null,null,null,"",null,"","",null,null,null,0]
[null,null,null,null,null,null,4,null,null,null,null,null,null,null,null,"",null,"","",null,null,null,0]
[null,null,null,null,null,null,5,null,null,null,null,null,null,null,null,"",null,"","",null,null,null,0]
[null,null,null,null,null,null,6,null,null,null,null,null,null,null,null,"",null,"","",null,null,null,0]
[null,null,null,null,null,null,7,null,null,null,null,null,null,null,null,"",null,"","",null,null,null,0]
[null,null,null,null,null,null,8,null,null,null,null,null,null,null,null,"",null,"","",null,null,null,0]
[null,null,null,null,null,null,9,null,null,null,null,null,null,null,null,"",null,"","",null,null,null,0]
[null,null,null,null,null,null,10,null,null,null,null,null,null,null,null,"",null,"","",null,null,null,0]
[null,null,null,{"$f":"$D$328","v":"Year 2:"},{"$f":"$E$328","v":0},{"$f":"$J$328","v":0},1,null,null,null,null,null,null,null,null,"",null,"","",null,null,null,0]
[null,null,null,null,null,null,2,null,null,null,null,null,null,null,null,"",null,"","",null,null,null,0]
[null,null,null,null,null,null,3,null,null,null,null,null,null,null,null,"",null,"","",null,null,null,0]
[null,null,null,null,null,null,4,null,null,null,null,null,null,null,null,"",null,"","",null,null,null,0]
[null,null,null,null,null,null,5,null,null,null,null,null,null,null,null,"",null,"","",null,null,null,0]
[null,null,null,null,null,null,6,null,null,null,null,null,null,null,null,"",null,"","",null,null,null,0]
[null,null,null,null,null,null,7,null,null,null,null,null,null,null,null,"",null,{"$f":"IFERROR(Q279/(M279/12),\"\")","v":""},"",null,null,null,0]
[null,null,null,null,null,null,8,null,null,null,null,null,null,null,null,"",null,"","",null,null,null,{"$f":"IFERROR(S280/D$9,)","v":0}]
[null,null,null,null,null,null,9,null,null,null,null,null,null,null,null,"",null,"","",null,null,null,0]
[null,null,null,null,null,null,10,null,null,null,null,null,null,null,null,"",null,"","",null,null,null,0]
[null,null,null,{"$f":"$D$329","v":"Year 3:"},{"$f":"$E$329","v":0},{"$f":"$J$329","v":0},1,null,null,null,null,null,null,null,null,"",null,"","",null,null,null,0]
[null,null,null,null,null,null,2,null,null,null,null,null,null,null,null,"",null,"","",null,null,null,0]
[null,null,null,null,null,null,3,null,null,null,null,null,null,null,null,"",null,"","",null,null,null,0]
[null,null,null,null,null,null,4,null,null,null,null,null,null,null,null,"",null,"","",null,null,null,0]
[null,null,null,null,null,null,5,null,null,null,null,null,null,null,null,"",null,"","",null,null,null,0]
[null,null,null,null,null,null,6,null,null,null,null,null,null,null,null,"",null,"","",null,null,null,0]
[null,null,null,null,null,null,7,null,null,null,null,null,null,null,null,"",null,"","",null,null,null,0]
[null,null,null,null,null,null,8,null,null,null,null,null,null,null,null,"",null,"","",null,null,null,0]
[null,null,null,null,null,null,9,null,null,null,null,null,null,null,null,"",null,"","",null,null,null,0]
[null,null,null,null,null,null,10,null,null,null,null,null,null,null,null,"",null,"","",null,null,null,0]
[null,{"$f":"CONCATENATE(\"SUM \"&B263)","v":"SUM Person 9"},null,null,null,null,null,null,null,null,null,null,null,null,null,null,{"$f":"SUM(Q263:Q292)","v":0},{"$f":"SUM(R263:R292)","v":0},{"$f":"SUM(S263:S292)","v":0},null,null,null,{"$f":"SUM(W263:W292)","v":0}]
[null,"Person 10",null,{"$f":"$D$327","v":"Year 1:"},{"$f":"$E$327","v":1900},{"$f":"$J$327","v":0},1,null,null,null,null,null,null,null,null,{"$f":"IFERROR(((H294+I294)/M294),\"\")","v":""},null,{"$f":"IFERROR(Q294/(M294/12),\"\")","v":""},{"$f":"IFERROR(P294*Q294,\"\")","v":""},null,null,null,0]
[null,null,null,null,null,null,2,null,null,null,null,null,null,null,null,"",null,"","",null,null,null,0]
[null,null,null,null,null,null,3,null,null,null,null,null,null,null,null,"",null,"","",null,null,null,0]
[null,null,null,null,null,null,4,null,null,null,null,null,null,null,null,"",null,"","",null,null,null,0]
[null,null,null,null,null,null,5,null,null,null,null,null,null,null,null,"",null,"","",null,null,null,0]
[null,null,null,null,null,null,6,null,null,null,null,null,null,null,null,"",null,"","",null,null,null,0]
[null,null,null,null,null,null,7,null,null,null,null,null,null,null,null,"",null,"","",null,null,null,0]
[null,null,null,null,null,null,8,null,null,null,null,null,null,null,null,"",null,"","",null,null,null,0]
[null,null,null,null,null,null,9,null,null,null,null,null,null,null,null,"",null,"","",null,null,null,0]
[null,null,null,null,null,null,10,null,null,null,null,null,null,null,null,"",null,"","",null,null,null,0]
[null,null,null,{"$f":"$D$328","v":"Year 2:"},{"$f":"$E$328","v":0},{"$f":"$J$328","v":0},1,null,null,null,null,null,null,null,null,"",null,"","",null,null,null,0]
[null,null,null,null,null,null,2,null,null,null,null,null,null,null,null,"",null,"","",null,null,null,0]
[null,null,null,null,null,null,3,null,null,null,null,null,null,null,null,"",null,"","",null,null,null,0]
[null,null,null,null,null,null,4,null,null,null,null,null,null,null,null,"",null,"","",null,null,null,0]
[null,null,null,null,null,null,5,null,null,null,null,null,null,null,null,"",null,"","",null,null,null,0]
[null,null,null,null,null,null,6,null,null,null,null,null,null,null,null,"",null,"","",null,null,null,0]
[null,null,null,null,null,null,7,null,null,null,null,null,null,null,null,"",null,{"$f":"IFERROR(Q310/(M310/12),\"\")","v":""},"",null,null,null,0]
[null,null,null,null,null,null,8,null,null,null,null,null,null,null,null,"",null,"","",null,null,null,0]
[null,null,null,null,null,null,9,null,null,null,null,null,null,null,null,"",null,"","",null,null,null,0]
[null,null,null,null,null,null,10,null,null,null,null,null,null,null,null,"",null,"","",null,null,null,0]
[null,null,null,{"$f":"$D$329","v":"Year 3:"},{"$f":"$E$329","v":0},{"$f":"$J$329","v":0},1,null,null,null,null,null,null,null,null,"",null,"","",null,null,null,0]
[null,null,null,null,null,null,2,null,null,null,null,null,null,null,null,"",null,"","",null,null,null,0]
[null,null,null,null,null,null,3,null,null,null,null,null,null,null,null,"",null,"","",null,null,null,0]
[null,null,null,null,null,null,4,null,null,null,null,null,null,null,null,"",null,"","",null,null,null,0]
[null,null,null,null,null,null,5,null,null,null,null,null,null,null,null,"",null,"","",null,null,null,0]
[null,null,null,null,null,null,6,null,null,null,null,null,null,null,null,"",null,"","",null,null,null,0]
[null,null,null,null,null,null,7,null,null,null,null,null,null,null,null,"",null,"","",null,null,null,0]
[null,null,null,null,null,null,8,null,null,null,null,null,null,null,null,"",null,"","",null,null,null,0]
[null,null,null,null,null,null,9,null,null,null,null,null,null,null,null,"",null,"","",null,null,null,0]
[null,null,null,null,null,null,10,null,null,null,null,null,null,null,null,"",null,"","",null,null,null,0]
[null,{"$f":"CONCATENATE(\"SUM \"&B294)","v":"SUM Person 10"},null,null,null,null,null,null,null,null,null,null,null,null,null,null,{"$f":"SUM(Q294:Q323)","v":0},{"$f":"SUM(R294:R323)","v":0},{"$f":"SUM(S294:S323)","v":0},null,null,null,{"$f":"SUM(W294:W323)","v":0}]
[null,"TOTAL SUM",null,null,null,null,null,null,null,null,null,null,null,null,null,null,{"$f":"Q324+Q293+Q262+Q231+Q200+Q169+Q138+Q107+Q76+Q45","v":0},0,0,0,0,0,0]
[]
[null,null,null,"Year 1:",{"$f":"YEAR('Ekonomisk projektbeskrivning'!E27)","v":1900},{"$f":"IF(MONTH(H327)-MONTH(G327)=0,0,MONTH(H327)-MONTH(G327)+1)","v":0},{"$f":"'Ekonomisk projektbeskrivning'!E27","v":"00:00:00"},{"$f":"IF(YEAR('Ekonomisk projektbeskrivning'!F27)='Personnel costs RP2'!E327,'Ekonomisk projektbeskrivning'!F27,CONCATENATE(E327&\"-12-31\"))","v":"00:00:00"},{"$f":"IF(F327<>0,IF(F327<12,IF(MONTH(G327)>(12-F327),E327,E327-1),E327),\"\")","v":""}]
[null,null,null,"Year 2:",{"$f":"IF(YEAR('Ekonomisk projektbeskrivning'!F27)>=('Personnel costs RP2'!E327+1),('Personnel costs RP2'!E327+1),0)","v":0},{"$f":"IF(E328=0,0,IF(MONTH(G328)=1,IF(MONTH(H328)=1,1,(MONTH(H328)-MONTH(G328)+1))))","v":0},{"$f":"IF(E327=YEAR('Ekonomisk projektbeskrivning'!F27),0,CONCATENATE(E328&\"-01-01\"))","v":"00:00:00"},{"$f":"IF(E327+1=YEAR('Ekonomisk projektbeskrivning'!F27),'Ekonomisk projektbeskrivning'!F27,IF(E327+1>YEAR('Ekonomisk projektbeskrivning'!F27),0,CONCATENATE(E328&\"-12-31\")))","v":"00:00:00"},{"$f":"IF(F328<>0,IF(F328<12,IF(MONTH(G328)>(12-F328),E328,E328-1),E328),\"\")","v":""}]
[null,null,null,"Year 3:",{"$f":"IF(YEAR('Ekonomisk projektbeskrivning'!F27)>=('Personnel costs RP2'!E327+2),('Personnel costs RP2'!E328+1),0)","v":0},{"$f":"IF(E329=0,0,IF(MONTH(G329)=1,IF(MONTH(H329)=1,1,(MONTH(H329)-MONTH(G329)+1))))","v":0},{"$f":"IF(E327+1>=YEAR('Ekonomisk projektbeskrivning'!F27),0,CONCATENATE(E327+2&\"-01-01\"))","v":"00:00:00"},{"$f":"IF(E327+2=YEAR('Ekonomisk projektbeskrivning'!F27),'Ekonomisk projektbeskrivning'!F27,IF(E327+2>YEAR('Ekonomisk projektbeskrivning'!F27),0,CONCATENATE(E329&\"-12-31\")))","v":"00:00:00"},{"$f":"IF(F329<>0,IF(F329<12,IF(MONTH(G329)>(12-F329),E329,E329-1),E329),\"\")","v":""}]

{"sheet":"Project Transactions RP2","index":16,"n_rows":29,"n_cols":16,"rows_kept":29,"cut":false,"hidden":false,"merged":[]}
["sql SELECT dim_1, dim_2, voucher_no, period, trans_date, VERIFIKATIONER.account, VERIFIKATIONER.description AS VERTEXT, amount, KONTO.description AS KONTONAMN"]
["sql FROM agltransact AS VERIFIKATIONER"]
["sql FULL JOIN aglaccounts as KONTO"]
["sql ON VERIFIKATIONER.account = KONTO.account"]
[{"$f":"C5","v":"sql WHERE dim_1 LIKE '0%'"},null,{"$f":"CONCATENATE(\"sql WHERE dim_1 LIKE '\"&E15&\"%'\")","v":"sql WHERE dim_1 LIKE '0%'"}]
[{"$f":"C6","v":"sql AND dim_2 LIKE '0%'"},null,{"$f":"CONCATENATE(\"sql AND dim_2 LIKE '\"&E16&\"%'\")","v":"sql AND dim_2 LIKE '0%'"}]
[{"$f":"C7","v":"sql AND period >=''"},null,{"$f":"CONCATENATE(\"sql AND period >='\"&E17&\"'\")","v":"sql AND period >=''"}]
[{"$f":"C8","v":"sql AND period <=''"},null,{"$f":"CONCATENATE(\"sql AND period <='\"&E18&\"'\")","v":"sql AND period <=''"}]
["sql AND KONTO.client='BO'"]
["query"]
["sort account"]
["columns","code account","text dim_1","text dim_2","text voucher_no","text Period","trans_date","text account","KONTONAMN","VERTEXT","amount"]
[null,null,"VERIFIKATIONSLISTA - RP2"]
[null,null,null,null,null,null,null,null,null,null,"Rapporten söker ut kostnader på kontogrupper"]
[null,null,"Orgenhet:",null,{"$f":"'Project Transactions RP1'!E15","v":0},"Rapporten söker automatiskt ut med * utan att detta anges.",null,null,null,null,"43*, 48*, 49*"]
[null,null,"Akt/Proj:",null,{"$f":"'Project Transactions RP1'!E16","v":0},"Rapporten söker automatiskt ut med * utan att detta anges.",null,null,null,null,"5*"]
[null,null,"Från period:",null,null,"OBS: året börjar med period 00",null,null,null,null,"6*"]
[null,null,"Till period:",null,null,"OBS: året slutar med period 15",null,null,null,null,"95*-97*"]
[null,null,"Reporting period:",null,2]
[]
[null,null,"Orgenhet","Akt/proj","Vernr","Period","Ver.datum","Konto","Konto(T)","Verifikationstext","Belopp","Korrigering belopp (-)","Beskrivning","RR (Om reseräkning)",null,"Kostnadsslag i Financial statement (välj i listan)"]
["detail","43*",null,null,null,null,"00:00:00",null,0,0,0]
["detail","48*",null,null,null,null,"00:00:00",null,0,0,0]
["detail","49*",null,null,null,null,"00:00:00",null,0,0,0]
["detail","5*",null,null,null,null,"00:00:00",null,0,0,0]
["detail","6*"]
["detail","95*",null,null,null,null,"00:00:00",null,0,0,0]
["detail","96*"]
["detail","97*"]

{"sheet":"Direct costs RP2","index":17,"n_rows":46,"n_cols":10,"rows_kept":46,"cut":false,"hidden":false,"merged":[[1,3,1,9]]}
["DIRECT COSTS - RP2"]
[null,null,"Project:    ",{"$f":"'Ekonomisk projektbeskrivning'!D5","v":0}]
[null,null,"GA:            ",{"$f":"'Ekonomisk projektbeskrivning'!D22","v":0}]
[null,null,"Exchange rate:",{"$f":"'Ekonomisk projektbeskrivning'!B27","v":0},null,null,null,null,"Reporting period: 2"]
[]
["A.1 Employees (or equivalent)","Beskrivning","RR-nr","Bokfört \nbelopp \n(SEK)","Korrigering \nbokfört \nbelopp \n(SEK)","Belopp att \nredovisa \n(SEK)","Belopp att \nredovisa \n(EUR)","Vernr","WP","Kommentar"]
[]
[]
[]
[]
["A.2 Natural persons working under direct contract","Beskrivning","RR-nr","Bokfört \nbelopp \n(SEK)","Korrigering \nbokfört \nbelopp \n(SEK)","Belopp att \nredovisa \n(SEK)","Belopp att \nredovisa \n(EUR)","Vernr","WP","Kommentar"]
[]
[]
[]
[]
["A.3 Seconded persons","Beskrivning","RR-nr","Bokfört \nbelopp \n(SEK)","Korrigering \nbokfört \nbelopp \n(SEK)","Belopp att \nredovisa \n(SEK)","Belopp att \nredovisa \n(EUR)","Vernr","WP","Kommentar"]
[]
[]
[]
[]
["A.6 Personnel for providing access to research infrastructure","Beskrivning","RR-nr","Bokfört \nbelopp \n(SEK)","Korrigering \nbokfört \nbelopp \n(SEK)","Belopp att \nredovisa \n(SEK)","Belopp att \nredovisa \n(EUR)","Vernr","WP","Kommentar"]
[]
[]
[]
[]
["B.1 Subcontracting","Beskrivning","RR-nr","Bokfört \nbelopp \n(SEK)","Korrigering \nbokfört \nbelopp \n(SEK)","Belopp att \nredovisa \n(SEK)","Belopp att \nredovisa \n(EUR)","Vernr","WP","Kommentar"]
[]
[]
[]
[]
["D.1 Travel","Beskrivning","RR-nr","Bokfört \nbelopp \n(SEK)","Korrigering \nbokfört \nbelopp \n(SEK)","Belopp att \nredovisa \n(SEK)","Belopp att \nredovisa \n(EUR)","Vernr","WP","Kommentar"]
[]
[]
[]
[]
["D.2 Equipment","Beskrivning","RR-nr","Bokfört \nbelopp \n(SEK)","Korrigering \nbokfört \nbelopp \n(SEK)","Belopp att \nredovisa \n(SEK)","Belopp att \nredovisa \n(EUR)","Vernr","WP","Kommentar"]
[]
[]
[]
[]
["D.3 Other goods and services","Beskrivning","RR-nr","Bokfört \nbelopp \n(SEK)","Korrigering \nbokfört \nbelopp \n(SEK)","Belopp att \nredovisa \n(SEK)","Belopp att \nredovisa \n(EUR)","Vernr","WP","Kommentar"]
[]
[]
[]
[]
["D.5 Costs for internally invoiced goods and services","Beskrivning","RR-nr","Bokfört \nbelopp \n(SEK)","Korrigering \nbokfört \nbelopp \n(SEK)","Belopp att \nredovisa \n(SEK)","Belopp att \nredovisa \n(EUR)","Vernr","WP","Kommentar"]

{"sheet":"Financial Statement RP2","index":18,"n_rows":21,"n_cols":3,"rows_kept":21,"cut":false,"hidden":false,"merged":[[11,0,11,1],[2,1,2,2],[7,0,7,1],[8,0,8,1],[9,0,9,1],[10,0,10,1],[20,0,20,1],[12,0,12,1],[13,0,13,1],[14,0,14,1],[15,0,15,1],[16,0,16,1],[17,0,17,1]]}
["FINANCIAL STATEMENT - RP2"]
[]
["Project:",{"$f":"'Ekonomisk projektbeskrivning'!D5","v":0}]
["GA:",{"$f":"'Ekonomisk projektbeskrivning'!D22","v":0}]
["Reporting period:",2]
[]
[]
["Cost Category",null,"Total EUR"]
["a) Direct personnel costs declared as actual costs",null,0]
["b) Direct personnel costs declared as unit costs (average costs)"]
["d) Direct costs of subcontracting",null,0]
["e) Direct costs of providing financial support to third parties"]
["f) Other direct costs",null,0]
["h) Indirect costs (= 0.25 * (a + b + f - o))",null,{"$f":"0.25*(SUM(CostCategory_A_RP2 + CostCategory_D_RP2 + CostCategory_F_RP2 - CostsInKindNotUsedInPremises_RP2))","v":0}]
["j) Total costs (= a + b + d + e + f + h) ",null,{"$f":"SUM(C9:C14)","v":0}]
["k) Receipts"]
["m) Maximum EU-contribution (100%)",null,{"$f":"((C15-C16)*100%)","v":0}]
["n) Requested EU-contribution"]
[]
[]
["o) Use of 'costs of in-kind contributions not used on premises'?"]

{"sheet":"Adjustments RP2","index":19,"n_rows":86,"n_cols":10,"rows_kept":86,"cut":false,"hidden":false,"merged":[[76,0,76,1],[1,2,1,7],[72,0,72,1],[73,0,73,1],[74,0,74,1],[75,0,75,1],[85,0,85,1],[77,0,77,1],[78,0,78,1],[79,0,79,1],[80,0,80,1],[81,0,81,1],[82,0,82,1]]}
["ADJUSTMENTS OF DIRECT COSTS"]
[null,"Project:    ",{"$f":"'Ekonomisk projektbeskrivning'!D5","v":0}]
[null,"GA:            ",{"$f":"'Ekonomisk projektbeskrivning'!D22","v":0}]
[null,"Exchange rate:",{"$f":"'Ekonomisk projektbeskrivning'!B27","v":0},null,null,null,"Reporting period: 2"]
[]
["A.1 Employees (or equivalent)","Beskrivning","RR (Om reseräkning)","Belopp","EUR","Vernr","WP","Kommentar"]
[null,null,null,null,{"$f":"IFERROR(D7/$C$4,\"\")","v":""}]
[null,null,null,null,{"$f":"IFERROR(D8/$C$4,\"\")","v":""}]
[null,null,null,null,{"$f":"IFERROR(D9/$C$4,\"\")","v":""}]
[null,null,null,null,{"$f":"IFERROR(D10/$C$4,\"\")","v":""},null,null,null,null,"Inserted row"]
[null,null,null,{"$f":"SUM(D7:D10)","v":0},{"$f":"SUM(E7:E10)","v":0}]
[]
["A.2 Natural persons working under direct contract","Beskrivning","RR (Om reseräkning)","Belopp","EUR","Vernr","WP","Kommentar"]
[null,null,null,null,{"$f":"IFERROR(D14/$C$4,\"\")","v":""}]
[null,null,null,null,{"$f":"IFERROR(D15/$C$4,\"\")","v":""}]
[null,null,null,null,{"$f":"IFERROR(D16/$C$4,\"\")","v":""}]
[null,null,null,null,{"$f":"IFERROR(D17/$C$4,\"\")","v":""},null,null,null,null,"Inserted row"]
[null,null,null,{"$f":"SUM(D14:D17)","v":0},{"$f":"SUM(E14:E17)","v":0}]
[]
["A.3 Seconded persons","Beskrivning","RR (Om reseräkning)","Belopp","EUR","Vernr","WP","Kommentar"]
[null,null,null,null,{"$f":"IFERROR(D21/$C$4,\"\")","v":""}]
[null,null,null,null,{"$f":"IFERROR(D22/$C$4,\"\")","v":""}]
[null,null,null,null,{"$f":"IFERROR(D23/$C$4,\"\")","v":""}]
[null,null,null,null,{"$f":"IFERROR(D24/$C$4,\"\")","v":""}]
[null,null,null,{"$f":"SUM(D21:D24)","v":0},{"$f":"SUM(E21:E24)","v":0}]
[]
["A.6 Personnel for providing access to research infrastructure","Beskrivning","RR (Om reseräkning)","Belopp","EUR","Vernr","WP","Kommentar"]
[null,null,null,null,{"$f":"IFERROR(D28/$C$4,\"\")","v":""}]
[null,null,null,null,{"$f":"IFERROR(D29/$C$4,\"\")","v":""}]
[null,null,null,null,{"$f":"IFERROR(D30/$C$4,\"\")","v":""}]
[null,null,null,null,{"$f":"IFERROR(D31/$C$4,\"\")","v":""},null,null,null,null,"Inserted row"]
[null,null,null,{"$f":"SUM(D28:D31)","v":0},{"$f":"SUM(E28:E31)","v":0}]
[]
["B.1 Subcontracting","Beskrivning","RR (Om reseräkning)","Belopp","EUR","Vernr","WP","Kommentar"]
[null,null,null,null,{"$f":"IFERROR(D35/$C$4,\"\")","v":""}]
[null,null,null,null,{"$f":"IFERROR(D36/$C$4,\"\")","v":""}]
[null,null,null,null,{"$f":"IFERROR(D37/$C$4,\"\")","v":""}]
[null,null,null,null,{"$f":"IFERROR(D38/$C$4,\"\")","v":""},null,null,null,null,"Inserted row"]
[null,null,null,{"$f":"SUM(D35:D38)","v":0},{"$f":"SUM(E35:E38)","v":0}]
[]
["D.1 Travel","Beskrivning","RR (Om reseräkning)","Belopp","EUR","Vernr","WP","Kommentar"]
[null,null,null,null,{"$f":"IFERROR(D42/$C$4,\"\")","v":""}]
[null,null,null,null,{"$f":"IFERROR(D43/$C$4,\"\")","v":""}]
[null,null,null,null,{"$f":"IFERROR(D44/$C$4,\"\")","v":""}]
[null,null,null,null,{"$f":"IFERROR(D45/$C$4,\"\")","v":""},null,null,null,null,"Inserted row"]
[null,null,null,{"$f":"SUM(D42:D45)","v":0},{"$f":"SUM(E42:E45)","v":0}]
[]
["D.2 Equipment","Beskrivning","RR (Om reseräkning)","Belopp","EUR","Vernr","WP","Kommentar"]
[null,null,null,null,{"$f":"IFERROR(D49/$C$4,\"\")","v":""}]
[null,null,null,null,{"$f":"IFERROR(D50/$C$4,\"\")","v":""}]
[null,null,null,null,{"$f":"IFERROR(D51/$C$4,\"\")","v":""}]
[null,null,null,null,{"$f":"IFERROR(D52/$C$4,\"\")","v":""},null,null,null,null,"Inserted row"]
[null,null,null,{"$f":"SUM(D49:D52)","v":0},{"$f":"SUM(E49:E52)","v":0}]
[]
["D.3 Other goods and services","Beskrivning","RR (Om reseräkning)","Belopp","EUR","Vernr","WP","Kommentar"]
[null,null,null,null,{"$f":"IFERROR(D56/$C$4,\"\")","v":""}]
[null,null,null,null,{"$f":"IFERROR(D57/$C$4,\"\")","v":""}]
[null,null,null,null,{"$f":"IFERROR(D58/$C$4,\"\")","v":""}]
[null,null,null,null,{"$f":"IFERROR(D59/$C$4,\"\")","v":""},null,null,null,null,"Inserted row"]
[null,null,null,{"$f":"SUM(D56:D59)","v":0},{"$f":"SUM(E56:E59)","v":0}]
[]
["D.5 Costs for internally invoiced goods and services","Beskrivning","RR (Om reseräkning)","Belopp","EUR","Vernr","WP","Kommentar"]
[null,null,null,null,{"$f":"IFERROR(D63/$C$4,\"\")","v":""}]
[null,null,null,null,{"$f":"IFERROR(D64/$C$4,\"\")","v":""}]
[null,null,null,null,{"$f":"IFERROR(D65/$C$4,\"\")","v":""}]
[null,null,null,null,{"$f":"IFERROR(D66/$C$4,\"\")","v":""},null,null,null,null,"Inserted row"]
[null,null,null,{"$f":"SUM(D63:D66)","v":0},{"$f":"SUM(E63:E66)","v":0}]
[]
[]
[]
["FINANCIAL STATEMENT (ADJUSTMENTS) - RP2"]
[]
["Cost Category",null,"Total EUR"]
["a) Direct personnel costs declared as actual costs",null,{"$f":"E11+E18+E25+E32","v":0}]
["b) Direct personnel costs declared as unit costs (average costs)"]
["d) Direct costs od subcontracting",null,{"$f":"E39","v":0}]
["e) Direct costs of providing financial support to third parties"]
["f) Other direct costs",null,{"$f":"E46+E53+E60+E67","v":0}]
["h) Indirect costs (= 0.25 * (a + b + f - o))",null,{"$f":"(C74+C75+C78-C86)*0.25","v":0}]
["j) Total costs (= a + b + d + e + f + h) ",null,{"$f":"SUM(C74:C79)","v":0}]
["k) Receipts"]
["m) Maximum EU-contribution (100%)",null,{"$f":"((C80-C81)*100%)","v":0}]
["n) Requested EU-contribution"]
[]
[]
["o) Use of 'costs of in-kind contributions not used on premises'?"]

{"sheet":"Personnel costs RP3","index":20,"n_rows":329,"n_cols":31,"rows_kept":329,"cut":false,"hidden":false,"merged":[[13,3,13,4],[324,3,324,4]]}
[null,"PERSONNEL COSTS - RP3"]
[]
[null,"Project: "]
[]
[null,"Beneficiary:",null,"Hoegskolan i Boras / University of Borås"]
[]
[null,"Reporting period 1:",null,{"$f":"IF('Ekonomisk projektbeskrivning'!E28<>\"\",'Ekonomisk projektbeskrivning'!E28,\"\")","v":""},"--",{"$f":"IF('Ekonomisk projektbeskrivning'!F28<>\"\",'Ekonomisk projektbeskrivning'!F28,\"\")","v":""}]
[]
[null,"Exchange rate SEK-EUR: ",null,{"$f":"'Ekonomisk projektbeskrivning'!B28","v":0}]
[]
[null,"Option for calculating Hourly rate:",null,"Option 1: 1 720 Fixed hours"]
[]
[]
[null,"Name",null,"Calender year",null,"Fiscal year","WP","Total salary cost in payroll (SEK)","Salary costs for Additional remunerations that is not related to the project (SEK)",null,null,null,"Annual  productive hours",null,"Annual productive hours Pro-Rata if applied","Hourly rate (SEK)","Worked hours in the project","PMs","Calculated eligible personnel cost for the project (SEK)",null,null,null,"Personnel cost to claim in form C (EUR)",null,null,null,null,"Sum PM / WP","Sum PM / WP","Sum Eligible Personnel costs (SEK)","Sum Eligible Personnel costs (EUR)"]
[" ","Person 1",null,{"$f":"$D$327","v":"Year 1:"},{"$f":"$E$327","v":1900},{"$f":"$J$327","v":0},1,null,null,null,null,null,null,null,null,{"$f":"IFERROR(((H15+I15)/M15),\"\")","v":""},null,{"$f":"IFERROR(Q15/(M15/12),\"\")","v":""},{"$f":"IFERROR(P15*Q15,\"\")","v":""},null,null,null,{"$f":"IFERROR(S15/D$9,)","v":0},null,null,null,null,1,{"$f":"SUMIF($G$15:$G$1048576,1,$R$15:$R$1048576)","v":0},{"$f":"SUMIF($G$15:$G$1048576,1,$S$15:$S$1048576)","v":0},{"$f":"SUMIF($G$15:$G$1048576,1,$W$15:$W$1048576)","v":0}]
[null,null,null,null,null,null,2,null,null,null,null,null,null,null,null,{"$f":"IFERROR(((H16+I16)/M16),\"\")","v":""},null,{"$f":"IFERROR(Q16/(M16/12),\"\")","v":""},{"$f":"IFERROR(P16*Q16,\"\")","v":""},null,null,null,{"$f":"IFERROR(S16/D$9,)","v":0},null,null,null,null,2,{"$f":"SUMIF(G15:G1048576,2,R15:R1048576)","v":0},{"$f":"SUMIF($G$15:$G$1048576,2,$S$15:$S$1048576)","v":0},{"$f":"SUMIF($G$15:$G$1048576,2,$W$15:$W$1048576)","v":0}]
[null,null,null,null,null,null,3,null,null,null,null,null,null,null,null,"",null,"","",null,null,null,0,null,null,null,null,3,{"$f":"SUMIF(G15:G1048576,3,R15:R1048576)","v":0},{"$f":"SUMIF($G$15:$G$1048576,3,$S$15:$S$1048576)","v":0},{"$f":"SUMIF($G$15:$G$1048576,3,$W$15:$W$1048576)","v":0}]
[null,null,null,null,null,null,4,null,null,null,null,null,null,null,null,"",null,"","",null,null,null,0,null,null,null,null,4,{"$f":"SUMIF(G15:G1048576,4,R15:R1048576)","v":0},{"$f":"SUMIF($G$15:$G$1048576,4,$S$15:$S$1048576)","v":0},{"$f":"SUMIF($G$15:$G$1048576,4,$W$15:$W$1048576)","v":0}]
[null,null,null,null,null,null,5,null,null,null,null,null,null,null,null,"",null,"","",null,null,null,0,null,null,null,null,5,{"$f":"SUMIF(G15:G1048576,5,R15:R1048576)","v":0},{"$f":"SUMIF($G$15:$G$1048576,5,$S$15:$S$1048576)","v":0},{"$f":"SUMIF($G$15:$G$1048576,5,$W$15:$W$1048576)","v":0}]
[null,null,null,null,null,null,6,null,null,null,null,null,null,null,null,"",null,"","",null,null,null,0,null,null,null,null,6,{"$f":"SUMIF(G15:G1048576,6,R15:R1048576)","v":0},{"$f":"SUMIF($G$15:$G$1048576,6,$S$15:$S$1048576)","v":0},{"$f":"SUMIF($G$15:$G$1048576,6,$W$15:$W$1048576)","v":0}]
[null,null,null,null,null,null,7,null,null,null,null,null,null,null,null,"",null,"","",null,null,null,0,null,null,null,null,7,{"$f":"SUMIF(G15:G1048576,7,R15:R1048576)","v":0},{"$f":"SUMIF($G$15:$G$1048576,7,$S$15:$S$1048576)","v":0},{"$f":"SUMIF($G$15:$G$1048576,7,$W$15:$W$1048576)","v":0}]
[null,null,null,null,null,null,8,null,null,null,null,null,null,null,null,"",null,"","",null,null,null,0,null,null,null,null,8,{"$f":"SUMIF(G15:G1048576,8,R15:R1048576)","v":0},{"$f":"SUMIF($G$15:$G$1048576,8,$S$15:$S$1048576)","v":0},{"$f":"SUMIF($G$15:$G$1048576,8,$W$15:$W$1048576)","v":0}]
[null,null,null,null,null,null,9,null,null,null,null,null,null,null,null,"",null,"","",null,null,null,0,null,null,null,null,9,{"$f":"SUMIF(G15:G1048576,9,R15:R1048576)","v":0},{"$f":"SUMIF($G$15:$G$1048576,9,$S$15:$S$1048576)","v":0},{"$f":"SUMIF($G$15:$G$1048576,9,$W$15:$W$1048576)","v":0}]
[null,null,null,null,null,null,10,null,null,null,null,null,null,null,null,"",null,"","",null,null,null,0,null,null,null,null,10,{"$f":"SUMIF(G15:G1048576,10,R15:R1048576)","v":0},{"$f":"SUMIF($G$15:$G$1048576,10,$S$15:$S$1048576)","v":0},{"$f":"SUMIF($G$15:$G$1048576,10,$W$15:$W$1048576)","v":0}]
[null,null,null,{"$f":"$D$328","v":"Year 2:"},{"$f":"$E$328","v":0},{"$f":"$J$328","v":0},1,null,null,null,null,null,null,null,null,"",null,"","",null,null,null,0,null,null,null,null,"SUM",{"$f":"SUM(AC15:AC24)","v":0},{"$f":"SUM(AD15:AD24)","v":0},{"$f":"SUM(AE15:AE24)","v":0}]
[null,null,null,null,null,null,2,null,null,null,null,null,null,null,null,"",null,"","",null,null,null,0,null,null,null,null,null,{"$f":"IF(AC25<>R325,\"CHECK\",\"OK\")","v":"OK"},{"$f":"IF(AD25<>S325,\"CHECK\",\"OK\")","v":"OK"},{"$f":"IF(AE25<>W325,\"CHECK\",\"OK\")","v":"OK"}]
[null,null,null,null,null,null,3,null,null,null,null,null,null,null,null,"",null,"","",null,null,null,0]
[null,null,null,null,null,null,4,null,null,null,null,null,null,null,null,"",null,"","",null,null,null,0]
[null,null,null,null,null,null,5,null,null,null,null,null,null,null,null,"",null,"","",null,null,null,0]
[null,null,null,null,null,null,6,null,null,null,null,null,null,null,null,"",null,"","",null,null,null,0]
[null,null,null,null,null,null,7,null,null,null,null,null,null,null,null,"",null,"","",null,null,null,0]
[null,null,null,null,null,null,8,null,null,null,null,null,null,null,null,"",null,"","",null,null,null,0]
[null,null,null,null,null,null,9,null,null,null,null,null,null,null,null,"",null,"","",null,null,null,0]
[null,null,null,null,null,null,10,null,null,null,null,null,null,null,null,"",null,"","",null,null,null,0]
[null,null,null,{"$f":"$D$329","v":"Year 3:"},{"$f":"$E$329","v":0},{"$f":"$J$329","v":0},1,null,null,null,null,null,null,null,null,"",null,"","",null,null,null,0]
[null,null,null,null,null,null,2,null,null,null,null,null,null,null,null,"",null,"","",null,null,null,0]
[null,null,null,null,null,null,3,null,null,null,null,null,null,null,null,"",null,"","",null,null,null,0]
[null,null,null,null,null,null,4,null,null,null,null,null,null,null,null,"",null,"","",null,null,null,0]
[null,null,null,null,null,null,5,null,null,null,null,null,null,null,null,"",null,"","",null,null,null,0]
[null,null,null,null,null,null,6,null,null,null,null,null,null,null,null,"",null,"","",null,null,null,0]
[null,null,null,null,null,null,7,null,null,null,null,null,null,null,null,"",null,"","",null,null,null,0]
[null,null,null,null,null,null,8,null,null,null,null,null,null,null,null,"",null,"","",null,null,null,0]
[null,null,null,null,null,null,9,null,null,null,null,null,null,null,null,"",null,"","",null,null,null,0]
[null,null,null,null,null,null,10,null,null,null,null,null,null,null,null,"",null,"","",null,null,null,0]
[null,{"$f":"CONCATENATE(\"SUM \"&B15)","v":"SUM Person 1"},null,null,null,null,null,null,null,null,null,null,null,null,null,null,{"$f":"SUM(Q15:Q44)","v":0},{"$f":"SUM(R15:R44)","v":0},{"$f":"SUM(S15:S44)","v":0},null,null,null,{"$f":"SUM(W15:W44)","v":0}]
[null,"Person 2",null,{"$f":"$D$327","v":"Year 1:"},{"$f":"$E$327","v":1900},{"$f":"$J$327","v":0},1,null,null,null,null,null,null,null,null,{"$f":"IFERROR(((H46+I46)/M46),\"\")","v":""},null,"",{"$f":"IFERROR(P46*Q46,\"\")","v":""},null,null,null,0]
[null,null,null,null,null,null,2,null,null,null,null,null,null,null,null,"",null,"","",null,null,null,0]
[null,null,null,null,null,null,3,null,null,null,null,null,null,null,null,"",null,"","",null,null,null,0]
[null,null,null,null,null,null,4,null,null,null,null,null,null,null,null,"",null,"","",null,null,null,0]
[null,null,null,null,null,null,5,null,null,null,null,null,null,null,null,"",null,"","",null,null,null,0]
[null,null,null,null,null,null,6,null,null,null,null,null,null,null,null,"",null,"","",null,null,null,0]
[null,null,null,null,null,null,7,null,null,null,null,null,null,null,null,"",null,"","",null,null,null,0]
[null,null,null,null,null,null,8,null,null,null,null,null,null,null,null,"",null,"","",null,null,null,0]
[null,null,null,null,null,null,9,null,null,null,null,null,null,null,null,"",null,"","",null,null,null,0]
[null,null,null,null,null,null,10,null,null,null,null,null,null,null,null,"",null,"","",null,null,null,0]
[null,null,null,{"$f":"$D$328","v":"Year 2:"},{"$f":"$E$328","v":0},{"$f":"$J$328","v":0},1,null,null,null,null,null,null,null,null,"",null,"","",null,null,null,0]
[null,null,null,null,null,null,2,null,null,null,null,null,null,null,null,"",null,"","",null,null,null,0]
[null,null,null,null,null,null,3,null,null,null,null,null,null,null,null,"",null,"","",null,null,null,0]
[null,null,null,null,null,null,4,null,null,null,null,null,null,null,null,"",null,"","",null,null,null,0]
[null,null,null,null,null,null,5,null,null,null,null,null,null,null,null,"",null,"","",null,null,null,0]
[null,null,null,null,null,null,6,null,null,null,null,null,null,null,null,"",null,"","",null,null,null,0]
[null,null,null,null,null,null,7,null,null,null,null,null,null,null,null,"",null,{"$f":"IFERROR(Q62/(M62/12),\"\")","v":""},"",null,null,null,0]
[null,null,null,null,null,null,8,null,null,null,null,null,null,null,null,"",null,"","",null,null,null,0]
[null,null,null,null,null,null,9,null,null,null,null,null,null,null,null,"",null,"","",null,null,null,0]
[null,null,null,null,null,null,10,null,null,null,null,null,null,null,null,"",null,"","",null,null,null,0]
[null,null,null,{"$f":"$D$329","v":"Year 3:"},{"$f":"$E$329","v":0},{"$f":"$J$329","v":0},1,null,null,null,null,null,null,null,null,"",null,"","",null,null,null,0]
[null,null,null,null,null,null,2,null,null,null,null,null,null,null,null,"",null,"","",null,null,null,0]
[null,null,null,null,null,null,3,null,null,null,null,null,null,null,null,"",null,"","",null,null,null,0]
[null,null,null,null,null,null,4,null,null,null,null,null,null,null,null,"",null,"","",null,null,null,0]
[null,null,null,null,null,null,5,null,null,null,null,null,null,null,null,"",null,"","",null,null,null,0]
[null,null,null,null,null,null,6,null,null,null,null,null,null,null,null,"",null,"","",null,null,null,0]
[null,null,null,null,null,null,7,null,null,null,null,null,null,null,null,"",null,"","",null,null,null,0]
[null,null,null,null,null,null,8,null,null,null,null,null,null,null,null,"",null,"","",null,null,null,0]
[null,null,null,null,null,null,9,null,null,null,null,null,null,null,null,"",null,"","",null,null,null,0]
[null,null,null,null,null,null,10,null,null,null,null,null,null,null,null,"",null,"","",null,null,null,0]
[null,{"$f":"CONCATENATE(\"SUM \"&B46)","v":"SUM Person 2"},null,null,null,null,null,null,null,null,null,null,null,null,null,null,{"$f":"SUM(Q46:Q75)","v":0},{"$f":"SUM(R46:R75)","v":0},{"$f":"SUM(S46:S75)","v":0},null,null,null,{"$f":"SUM(W46:W75)","v":0}]
[null,"Person 3",null,{"$f":"$D$327","v":"Year 1:"},{"$f":"$E$327","v":1900},{"$f":"$J$327","v":0},1,null,null,null,null,null,null,null,null,{"$f":"IFERROR(((H77+I77)/M77),\"\")","v":""},null,"",{"$f":"IFERROR(P77*Q77,\"\")","v":""},null,null,null,0]
[null,null,null,null,null,null,2,null,null,null,null,null,null,null,null,"",null,"","",null,null,null,0]
[null,null,null,null,null,null,3,null,null,null,null,null,null,null,null,"",null,"","",null,null,null,0]
[null,null,null,null,null,null,4,null,null,null,null,null,null,null,null,"",null,{"$f":"IFERROR(Q80/(M80/12),\"\")","v":""},"",null,null,null,0]
[null,null,null,null,null,null,5,null,null,null,null,null,null,null,null,"",null,"","",null,null,null,0]
[null,null,null,null,null,null,6,null,null,null,null,null,null,null,null,"",null,"","",null,null,null,{"$f":"IFERROR(S82/D$9,)","v":0}]
[null,null,null,null,null,null,7,null,null,null,null,null,null,null,null,"",null,"","",null,null,null,0]
[null,null,null,null,null,null,8,null,null,null,null,null,null,null,null,"",null,"","",null,null,null,0]
[null,null,null,null,null,null,9,null,null,null,null,null,null,null,null,"",null,"","",null,null,null,0]
[null,null,null,null,null,null,10,null,null,null,null,null,null,null,null,"",null,"","",null,null,null,0]
[null,null,null,{"$f":"$D$328","v":"Year 2:"},{"$f":"$E$328","v":0},{"$f":"$J$328","v":0},1,null,null,null,null,null,null,null,null,"",null,"","",null,null,null,0]
[null,null,null,null,null,null,2,null,null,null,null,null,null,null,null,"",null,"","",null,null,null,0]
[null,null,null,null,null,null,3,null,null,null,null,null,null,null,null,"",null,"","",null,null,null,0]
[null,null,null,null,null,null,4,null,null,null,null,null,null,null,null,"",null,"","",null,null,null,0]
[null,null,null,null,null,null,5,null,null,null,null,null,null,null,null,"",null,"","",null,null,null,0]
[null,null,null,null,null,null,6,null,null,null,null,null,null,null,null,"",null,"","",null,null,null,0]
[null,null,null,null,null,null,7,null,null,null,null,null,null,null,null,"",null,{"$f":"IFERROR(Q93/(M93/12),\"\")","v":""},"",null,null,null,0]
[null,null,null,null,null,null,8,null,null,null,null,null,null,null,null,"",null,"","",null,null,null,0]
[null,null,null,null,null,null,9,null,null,null,null,null,null,null,null,"",null,"","",null,null,null,0]
[null,null,null,null,null,null,10,null,null,null,null,null,null,null,null,"",null,"","",null,null,null,0]
[null,null,null,{"$f":"$D$329","v":"Year 3:"},{"$f":"$E$329","v":0},{"$f":"$J$329","v":0},1,null,null,null,null,null,null,null,null,"",null,"","",null,null,null,0]
[null,null,null,null,null,null,2,null,null,null,null,null,null,null,null,"",null,"","",null,null,null,0]
[null,null,null,null,null,null,3,null,null,null,null,null,null,null,null,"",null,"","",null,null,null,0]
[null,null,null,null,null,null,4,null,null,null,null,null,null,null,null,"",null,"","",null,null,null,0]
[null,null,null,null,null,null,5,null,null,null,null,null,null,null,null,"",null,"","",null,null,null,0]
[null,null,null,null,null,null,6,null,null,null,null,null,null,null,null,"",null,"","",null,null,null,0]
[null,null,null,null,null,null,7,null,null,null,null,null,null,null,null,"",null,"","",null,null,null,0]
[null,null,null,null,null,null,8,null,null,null,null,null,null,null,null,"",null,"","",null,null,null,0]
[null,null,null,null,null,null,9,null,null,null,null,null,null,null,null,"",null,"","",null,null,null,0]
[null,null,null,null,null,null,10,null,null,null,null,null,null,null,null,"",null,"","",null,null,null,0]
[null,{"$f":"CONCATENATE(\"SUM \"&B77)","v":"SUM Person 3"},null,null,null,null,null,null,null,null,null,null,null,null,null,null,{"$f":"SUM(Q77:Q106)","v":0},{"$f":"SUM(R77:R106)","v":0},{"$f":"SUM(S77:S106)","v":0},null,null,null,{"$f":"SUM(W77:W106)","v":0}]
[null,"Person 4",null,{"$f":"$D$327","v":"Year 1:"},{"$f":"$E$327","v":1900},{"$f":"$J$327","v":0},1,null,null,null,null,null,null,null,null,{"$f":"IFERROR(((H108+I108)/M108),\"\")","v":""},null,{"$f":"IFERROR(Q108/(M108/12),\"\")","v":""},{"$f":"IFERROR(P108*Q108,\"\")","v":""},null,null,null,0]
[null,null,null,null,null,null,2,null,null,null,null,null,null,null,null,"",null,"","",null,null,null,0]
[null,null,null,null,null,null,3,null,null,null,null,null,null,null,null,"",null,"","",null,null,null,0]
[null,null,null,null,null,null,4,null,null,null,null,null,null,null,null,"",null,"","",null,null,null,0]
[null,null,null,null,null,null,5,null,null,null,null,null,null,null,null,"",null,"","",null,null,null,0]
[null,null,null,null,null,null,6,null,null,null,null,null,null,null,null,"",null,"","",null,null,null,0]
[null,null,null,null,null,null,7,null,null,null,null,null,null,null,null,"",null,"","",null,null,null,0]
[null,null,null,null,null,null,8,null,null,null,null,null,null,null,null,"",null,"","",null,null,null,0]
[null,null,null,null,null,null,9,null,null,null,null,null,null,null,null,"",null,"","",null,null,null,0]
[null,null,null,null,null,null,10,null,null,null,null,null,null,null,null,"",null,"","",null,null,null,0]
[null,null,null,{"$f":"$D$328","v":"Year 2:"},{"$f":"$E$328","v":0},{"$f":"$J$328","v":0},1,null,null,null,null,null,null,null,null,"",null,"","",null,null,null,0]
[null,null,null,null,null,null,2,null,null,null,null,null,null,null,null,"",null,"","",null,null,null,0]
[null,null,null,null,null,null,3,null,null,null,null,null,null,null,null,"",null,"","",null,null,null,0]
[null,null,null,null,null,null,4,null,null,null,null,null,null,null,null,"",null,"","",null,null,null,0]
[null,null,null,null,null,null,5,null,null,null,null,null,null,null,null,"",null,"","",null,null,null,0]
[null,null,null,null,null,null,6,null,null,null,null,null,null,null,null,"",null,"","",null,null,null,0]
[null,null,null,null,null,null,7,null,null,null,null,null,null,null,null,"",null,{"$f":"IFERROR(Q124/(M124/12),\"\")","v":""},"",null,null,null,0]
[null,null,null,null,null,null,8,null,null,null,null,null,null,null,null,"",null,"","",null,null,null,0]
[null,null,null,null,null,null,9,null,null,null,null,null,null,null,null,"",null,"","",null,null,null,0]
[null,null,null,null,null,null,10,null,null,null,null,null,null,null,null,"",null,"","",null,null,null,0]
[null,null,null,{"$f":"$D$329","v":"Year 3:"},{"$f":"$E$329","v":0},{"$f":"$J$329","v":0},1,null,null,null,null,null,null,null,null,"",null,"","",null,null,null,0]
[null,null,null,null,null,null,2,null,null,null,null,null,null,null,null,"",null,"","",null,null,null,0]
[null,null,null,null,null,null,3,null,null,null,null,null,null,null,null,"",null,"","",null,null,null,0]
[null,null,null,null,null,null,4,null,null,null,null,null,null,null,null,"",null,"","",null,null,null,0]
[null,null,null,null,null,null,5,null,null,null,null,null,null,null,null,"",null,"","",null,null,null,0]
[null,null,null,null,null,null,6,null,null,null,null,null,null,null,null,"",null,"","",null,null,null,0]
[null,null,null,null,null,null,7,null,null,null,null,null,null,null,null,"",null,"","",null,null,null,0]
[null,null,null,null,null,null,8,null,null,null,null,null,null,null,null,"",null,"","",null,null,null,0]
[null,null,null,null,null,null,9,null,null,null,null,null,null,null,null,"",null,"","",null,null,null,0]
[null,null,null,null,null,null,10,null,null,null,null,null,null,null,null,"",null,"","",null,null,null,0]
[null,{"$f":"CONCATENATE(\"SUM \"&B108)","v":"SUM Person 4"},null,null,null,null,null,null,null,null,null,null,null,null,null,null,{"$f":"SUM(Q108:Q137)","v":0},{"$f":"SUM(R108:R137)","v":0},{"$f":"SUM(S108:S137)","v":0},null,null,null,{"$f":"SUM(W108:W137)","v":0}]
[null,"Person 5",null,{"$f":"$D$327","v":"Year 1:"},{"$f":"$E$327","v":1900},{"$f":"$J$327","v":0},1,null,null,null,null,null,null,null,null,{"$f":"IFERROR(((H139+I139)/M139),\"\")","v":""},null,{"$f":"IFERROR(Q139/(M139/12),\"\")","v":""},{"$f":"IFERROR(P139*Q139,\"\")","v":""},null,null,null,0]
[null,null,null,null,null,null,2,null,null,null,null,null,null,null,null,"",null,"","",null,null,null,0]
[null,null,null,null,null,null,3,null,null,null,null,null,null,null,null,"",null,"","",null,null,null,0]
[null,null,null,null,null,null,4,null,null,null,null,null,null,null,null,"",null,"","",null,null,null,0]
[null,null,null,null,null,null,5,null,null,null,null,null,null,null,null,"",null,"","",null,null,null,0]
[null,null,null,null,null,null,6,null,null,null,null,null,null,null,null,"",null,"","",null,null,null,0]
[null,null,null,null,null,null,7,null,null,null,null,null,null,null,null,"",null,"","",null,null,null,0]
[null,null,null,null,null,null,8,null,null,null,null,null,null,null,null,"",null,"","",null,null,null,0]
[null,null,null,null,null,null,9,null,null,null,null,null,null,null,null,"",null,"","",null,null,null,0]
[null,null,null,null,null,null,10,null,null,null,null,null,null,null,null,"",null,"","",null,null,null,{"$f":"IFERROR(S148/D$9,)","v":0}]
[null,null,null,{"$f":"$D$328","v":"Year 2:"},{"$f":"$E$328","v":0},{"$f":"$J$328","v":0},1,null,null,null,null,null,null,null,null,"",null,"","",null,null,null,0]
[null,null,null,null,null,null,2,null,null,null,null,null,null,null,null,"",null,"","",null,null,null,0]
[null,null,null,null,null,null,3,null,null,null,null,null,null,null,null,"",null,"","",null,null,null,0]
[null,null,null,null,null,null,4,null,null,null,null,null,null,null,null,"",null,"","",null,null,null,0]
[null,null,null,null,null,null,5,null,null,null,null,null,null,null,null,"",null,"","",null,null,null,0]
[null,null,null,null,null,null,6,null,null,null,null,null,null,null,null,"",null,"","",null,null,null,0]
[null,null,null,null,null,null,7,null,null,null,null,null,null,null,null,"",null,{"$f":"IFERROR(Q155/(M155/12),\"\")","v":""},"",null,null,null,0]
[null,null,null,null,null,null,8,null,null,null,null,null,null,null,null,"",null,"","",null,null,null,0]
[null,null,null,null,null,null,9,null,null,null,null,null,null,null,null,"",null,"","",null,null,null,0]
[null,null,null,null,null,null,10,null,null,null,null,null,null,null,null,"",null,"","",null,null,null,0]
[null,null,null,{"$f":"$D$329","v":"Year 3:"},{"$f":"$E$329","v":0},{"$f":"$J$329","v":0},1,null,null,null,null,null,null,null,null,"",null,"","",null,null,null,0]
[null,null,null,null,null,null,2,null,null,null,null,null,null,null,null,"",null,"","",null,null,null,0]
[null,null,null,null,null,null,3,null,null,null,null,null,null,null,null,"",null,"","",null,null,null,0]
[null,null,null,null,null,null,4,null,null,null,null,null,null,null,null,"",null,"","",null,null,null,0]
[null,null,null,null,null,null,5,null,null,null,null,null,null,null,null,"",null,"","",null,null,null,0]
[null,null,null,null,null,null,6,null,null,null,null,null,null,null,null,"",null,"","",null,null,null,0]
[null,null,null,null,null,null,7,null,null,null,null,null,null,null,null,"",null,"","",null,null,null,0]
[null,null,null,null,null,null,8,null,null,null,null,null,null,null,null,"",null,"","",null,null,null,0]
[null,null,null,null,null,null,9,null,null,null,null,null,null,null,null,"",null,"","",null,null,null,0]
[null,null,null,null,null,null,10,null,null,null,null,null,null,null,null,"",null,"","",null,null,null,0]
[null,{"$f":"CONCATENATE(\"SUM \"&B139)","v":"SUM Person 5"},null,null,null,null,null,null,null,null,null,null,null,null,null,null,{"$f":"SUM(Q139:Q168)","v":0},{"$f":"SUM(R139:R168)","v":0},{"$f":"SUM(S139:S168)","v":0},null,null,null,{"$f":"SUM(W139:W168)","v":0}]
[null,"Person 6",null,{"$f":"$D$327","v":"Year 1:"},{"$f":"$E$327","v":1900},{"$f":"$J$327","v":0},1,null,null,null,null,null,null,null,null,{"$f":"IFERROR(((H170+I170)/M170),\"\")","v":""},null,{"$f":"IFERROR(Q170/(M170/12),\"\")","v":""},{"$f":"IFERROR(P170*Q170,\"\")","v":""},null,null,null,0]
[null,null,null,null,null,null,2,null,null,null,null,null,null,null,null,"",null,"","",null,null,null,0]
[null,null,null,null,null,null,3,null,null,null,null,null,null,null,null,"",null,"","",null,null,null,0]
[null,null,null,null,null,null,4,null,null,null,null,null,null,null,null,"",null,"","",null,null,null,0]
[null,null,null,null,null,null,5,null,null,null,null,null,null,null,null,"",null,"","",null,null,null,0]
[null,null,null,null,null,null,6,null,null,null,null,null,null,null,null,"",null,"","",null,null,null,0]
[null,null,null,null,null,null,7,null,null,null,null,null,null,null,null,"",null,"","",null,null,null,0]
[null,null,null,null,null,null,8,null,null,null,null,null,null,null,null,"",null,"","",null,null,null,0]
[null,null,null,null,null,null,9,null,null,null,null,null,null,null,null,"",null,"","",null,null,null,0]
[null,null,null,null,null,null,10,null,null,null,null,null,null,null,null,"",null,"","",null,null,null,0]
[null,null,null,{"$f":"$D$328","v":"Year 2:"},{"$f":"$E$328","v":0},{"$f":"$J$328","v":0},1,null,null,null,null,null,null,null,null,"",null,"","",null,null,null,0]
[null,null,null,null,null,null,2,null,null,null,null,null,null,null,null,"",null,"","",null,null,null,0]
[null,null,null,null,null,null,3,null,null,null,null,null,null,null,null,"",null,"","",null,null,null,0]
[null,null,null,null,null,null,4,null,null,null,null,null,null,null,null,"",null,"","",null,null,null,0]
[null,null,null,null,null,null,5,null,null,null,null,null,null,null,null,"",null,"","",null,null,null,0]
[null,null,null,null,null,null,6,null,null,null,null,null,null,null,null,"",null,"","",null,null,null,0]
[null,null,null,null,null,null,7,null,null,null,null,null,null,null,null,"",null,{"$f":"IFERROR(Q186/(M186/12),\"\")","v":""},"",null,null,null,0]
[null,null,null,null,null,null,8,null,null,null,null,null,null,null,null,"",null,"","",null,null,null,0]
[null,null,null,null,null,null,9,null,null,null,null,null,null,null,null,"",null,"","",null,null,null,0]
[null,null,null,null,null,null,10,null,null,null,null,null,null,null,null,"",null,"","",null,null,null,0]
[null,null,null,{"$f":"$D$329","v":"Year 3:"},{"$f":"$E$329","v":0},{"$f":"$J$329","v":0},1,null,null,null,null,null,null,null,null,"",null,"","",null,null,null,0]
[null,null,null,null,null,null,2,null,null,null,null,null,null,null,null,"",null,"","",null,null,null,0]
[null,null,null,null,null,null,3,null,null,null,null,null,null,null,null,"",null,"","",null,null,null,0]
[null,null,null,null,null,null,4,null,null,null,null,null,null,null,null,"",null,"","",null,null,null,0]
[null,null,null,null,null,null,5,null,null,null,null,null,null,null,null,"",null,"","",null,null,null,0]
[null,null,null,null,null,null,6,null,null,null,null,null,null,null,null,"",null,"","",null,null,null,0]
[null,null,null,null,null,null,7,null,null,null,null,null,null,null,null,"",null,"","",null,null,null,0]
[null,null,null,null,null,null,8,null,null,null,null,null,null,null,null,"",null,"","",null,null,null,0]
[null,null,null,null,null,null,9,null,null,null,null,null,null,null,null,"",null,"","",null,null,null,0]
[null,null,null,null,null,null,10,null,null,null,null,null,null,null,null,"",null,"","",null,null,null,0]
[null,{"$f":"CONCATENATE(\"SUM \"&B170)","v":"SUM Person 6"},null,null,null,null,null,null,null,null,null,null,null,null,null,null,{"$f":"SUM(Q170:Q199)","v":0},{"$f":"SUM(R170:R199)","v":0},{"$f":"SUM(S170:S199)","v":0},null,null,null,{"$f":"SUM(W170:W199)","v":0}]
[null,"Person 7",null,{"$f":"$D$327","v":"Year 1:"},{"$f":"$E$327","v":1900},{"$f":"$J$327","v":0},1,null,null,null,null,null,null,null,null,{"$f":"IFERROR(((H201+I201)/M201),\"\")","v":""},null,{"$f":"IFERROR(Q201/(M201/12),\"\")","v":""},{"$f":"IFERROR(P201*Q201,\"\")","v":""},null,null,null,0]
[null,null,null,null,null,null,2,null,null,null,null,null,null,null,null,"",null,"","",null,null,null,0]
[null,null,null,null,null,null,3,null,null,null,null,null,null,null,null,"",null,"","",null,null,null,0]
[null,null,null,null,null,null,4,null,null,null,null,null,null,null,null,"",null,"","",null,null,null,0]
[null,null,null,null,null,null,5,null,null,null,null,null,null,null,null,"",null,"","",null,null,null,0]
[null,null,null,null,null,null,6,null,null,null,null,null,null,null,null,"",null,"","",null,null,null,0]
[null,null,null,null,null,null,7,null,null,null,null,null,null,null,null,"",null,"","",null,null,null,0]
[null,null,null,null,null,null,8,null,null,null,null,null,null,null,null,"",null,"","",null,null,null,0]
[null,null,null,null,null,null,9,null,null,null,null,null,null,null,null,"",null,"","",null,null,null,0]
[null,null,null,null,null,null,10,null,null,null,null,null,null,null,null,"",null,"","",null,null,null,0]
[null,null,null,{"$f":"$D$328","v":"Year 2:"},{"$f":"$E$328","v":0},{"$f":"$J$328","v":0},1,null,null,null,null,null,null,null,null,"",null,"","",null,null,null,0]
[null,null,null,null,null,null,2,null,null,null,null,null,null,null,null,"",null,"","",null,null,null,0]
[null,null,null,null,null,null,3,null,null,null,null,null,null,null,null,"",null,"","",null,null,null,0]
[null,null,null,null,null,null,4,null,null,null,null,null,null,null,null,"",null,"","",null,null,null,{"$f":"IFERROR(S214/D$9,)","v":0}]
[null,null,null,null,null,null,5,null,null,null,null,null,null,null,null,"",null,"","",null,null,null,0]
[null,null,null,null,null,null,6,null,null,null,null,null,null,null,null,"",null,"","",null,null,null,0]
[null,null,null,null,null,null,7,null,null,null,null,null,null,null,null,"",null,{"$f":"IFERROR(Q217/(M217/12),\"\")","v":""},"",null,null,null,0]
[null,null,null,null,null,null,8,null,null,null,null,null,null,null,null,"",null,"","",null,null,null,0]
[null,null,null,null,null,null,9,null,null,null,null,null,null,null,null,"",null,"","",null,null,null,0]
[null,null,null,null,null,null,10,null,null,null,null,null,null,null,null,"",null,"","",null,null,null,0]
[null,null,null,{"$f":"$D$329","v":"Year 3:"},{"$f":"$E$329","v":0},{"$f":"$J$329","v":0},1,null,null,null,null,null,null,null,null,"",null,"","",null,null,null,0]
[null,null,null,null,null,null,2,null,null,null,null,null,null,null,null,"",null,"","",null,null,null,0]
[null,null,null,null,null,null,3,null,null,null,null,null,null,null,null,"",null,"","",null,null,null,0]
[null,null,null,null,null,null,4,null,null,null,null,null,null,null,null,"",null,"","",null,null,null,0]
[null,null,null,null,null,null,5,null,null,null,null,null,null,null,null,"",null,"","",null,null,null,0]
[null,null,null,null,null,null,6,null,null,null,null,null,null,null,null,"",null,"","",null,null,null,0]
[null,null,null,null,null,null,7,null,null,null,null,null,null,null,null,"",null,"","",null,null,null,0]
[null,null,null,null,null,null,8,null,null,null,null,null,null,null,null,"",null,"","",null,null,null,0]
[null,null,null,null,null,null,9,null,null,null,null,null,null,null,null,"",null,"","",null,null,null,0]
[null,null,null,null,null,null,10,null,null,null,null,null,null,null,null,"",null,"","",null,null,null,0]
[null,{"$f":"CONCATENATE(\"SUM \"&B201)","v":"SUM Person 7"},null,null,null,null,null,null,null,null,null,null,null,null,null,null,{"$f":"SUM(Q201:Q230)","v":0},{"$f":"SUM(R201:R230)","v":0},{"$f":"SUM(S201:S230)","v":0},null,null,null,{"$f":"SUM(W201:W230)","v":0}]
[null,"Person 8",null,{"$f":"$D$327","v":"Year 1:"},{"$f":"$E$327","v":1900},{"$f":"$J$327","v":0},1,null,null,null,null,null,null,null,null,{"$f":"IFERROR(((H232+I232)/M232),\"\")","v":""},null,{"$f":"IFERROR(Q232/(M232/12),\"\")","v":""},{"$f":"IFERROR(P232*Q232,\"\")","v":""},null,null,null,0]
[null,null,null,null,null,null,2,null,null,null,null,null,null,null,null,"",null,"","",null,null,null,0]
[null,null,null,null,null,null,3,null,null,null,null,null,null,null,null,"",null,"","",null,null,null,0]
[null,null,null,null,null,null,4,null,null,null,null,null,null,null,null,"",null,"","",null,null,null,0]
[null,null,null,null,null,null,5,null,null,null,null,null,null,null,null,"",null,"","",null,null,null,0]
[null,null,null,null,null,null,6,null,null,null,null,null,null,null,null,"",null,"","",null,null,null,0]
[null,null,null,null,null,null,7,null,null,null,null,null,null,null,null,"",null,"","",null,null,null,0]
[null,null,null,null,null,null,8,null,null,null,null,null,null,null,null,"",null,"","",null,null,null,0]
[null,null,null,null,null,null,9,null,null,null,null,null,null,null,null,"",null,"","",null,null,null,0]
[null,null,null,null,null,null,10,null,null,null,null,null,null,null,null,"",null,"","",null,null,null,0]
[null,null,null,{"$f":"$D$328","v":"Year 2:"},{"$f":"$E$328","v":0},{"$f":"$J$328","v":0},1,null,null,null,null,null,null,null,null,"",null,"","",null,null,null,0]
[null,null,null,null,null,null,2,null,null,null,null,null,null,null,null,"",null,"","",null,null,null,0]
[null,null,null,null,null,null,3,null,null,null,null,null,null,null,null,"",null,"","",null,null,null,0]
[null,null,null,null,null,null,4,null,null,null,null,null,null,null,null,"",null,"","",null,null,null,0]
[null,null,null,null,null,null,5,null,null,null,null,null,null,null,null,"",null,"","",null,null,null,0]
[null,null,null,null,null,null,6,null,null,null,null,null,null,null,null,"",null,"","",null,null,null,0]
[null,null,null,null,null,null,7,null,null,null,null,null,null,null,null,"",null,{"$f":"IFERROR(Q248/(M248/12),\"\")","v":""},"",null,null,null,0]
[null,null,null,null,null,null,8,null,null,null,null,null,null,null,null,"",null,"","",null,null,null,0]
[null,null,null,null,null,null,9,null,null,null,null,null,null,null,null,"",null,"","",null,null,null,0]
[null,null,null,null,null,null,10,null,null,null,null,null,null,null,null,"",null,"","",null,null,null,0]
[null,null,null,{"$f":"$D$329","v":"Year 3:"},{"$f":"$E$329","v":0},{"$f":"$J$329","v":0},1,null,null,null,null,null,null,null,null,"",null,"","",null,null,null,0]
[null,null,null,null,null,null,2,null,null,null,null,null,null,null,null,"",null,"","",null,null,null,0]
[null,null,null,null,null,null,3,null,null,null,null,null,null,null,null,"",null,"","",null,null,null,0]
[null,null,null,null,null,null,4,null,null,null,null,null,null,null,null,"",null,"","",null,null,null,0]
[null,null,null,null,null,null,5,null,null,null,null,null,null,null,null,"",null,"","",null,null,null,0]
[null,null,null,null,null,null,6,null,null,null,null,null,null,null,null,"",null,"","",null,null,null,0]
[null,null,null,null,null,null,7,null,null,null,null,null,null,null,null,"",null,"","",null,null,null,0]
[null,null,null,null,null,null,8,null,null,null,null,null,null,null,null,"",null,"","",null,null,null,0]
[null,null,null,null,null,null,9,null,null,null,null,null,null,null,null,"",null,"","",null,null,null,0]
[null,null,null,null,null,null,10,null,null,null,null,null,null,null,null,"",null,"","",null,null,null,0]
[null,{"$f":"CONCATENATE(\"SUM \"&B232)","v":"SUM Person 8"},null,null,null,null,null,null,null,null,null,null,null,null,null,null,{"$f":"SUM(Q232:Q261)","v":0},{"$f":"SUM(R232:R261)","v":0},{"$f":"SUM(S232:S261)","v":0},null,null,null,{"$f":"SUM(W232:W261)","v":0}]
[null,"Person 9",null,{"$f":"$D$327","v":"Year 1:"},{"$f":"$E$327","v":1900},{"$f":"$J$327","v":0},1,null,null,null,null,null,null,null,null,{"$f":"IFERROR(((H263+I263)/M263),\"\")","v":""},null,{"$f":"IFERROR(Q263/(M263/12),\"\")","v":""},{"$f":"IFERROR(P263*Q263,\"\")","v":""},null,null,null,0]
[null,null,null,null,null,null,2,null,null,null,null,null,null,null,null,"",null,"","",null,null,null,0]
[null,null,null,null,null,null,3,null,null,null,null,null,null,null,null,"",null,"","",null,null,null,0]
[null,null,null,null,null,null,4,null,null,null,null,null,null,null,null,"",null,"","",null,null,null,0]
[null,null,null,null,null,null,5,null,null,null,null,null,null,null,null,"",null,"","",null,null,null,0]
[null,null,null,null,null,null,6,null,null,null,null,null,null,null,null,"",null,"","",null,null,null,0]
[null,null,null,null,null,null,7,null,null,null,null,null,null,null,null,"",null,"","",null,null,null,0]
[null,null,null,null,null,null,8,null,null,null,null,null,null,null,null,"",null,"","",null,null,null,0]
[null,null,null,null,null,null,9,null,null,null,null,null,null,null,null,"",null,"","",null,null,null,0]
[null,null,null,null,null,null,10,null,null,null,null,null,null,null,null,"",null,"","",null,null,null,0]
[null,null,null,{"$f":"$D$328","v":"Year 2:"},{"$f":"$E$328","v":0},{"$f":"$J$328","v":0},1,null,null,null,null,null,null,null,null,"",null,"","",null,null,null,0]
[null,null,null,null,null,null,2,null,null,null,null,null,null,null,null,"",null,"","",null,null,null,0]
[null,null,null,null,null,null,3,null,null,null,null,null,null,null,null,"",null,"","",null,null,null,0]
[null,null,null,null,null,null,4,null,null,null,null,null,null,null,null,"",null,"","",null,null,null,0]
[null,null,null,null,null,null,5,null,null,null,null,null,null,null,null,"",null,"","",null,null,null,0]
[null,null,null,null,null,null,6,null,null,null,null,null,null,null,null,"",null,"","",null,null,null,0]
[null,null,null,null,null,null,7,null,null,null,null,null,null,null,null,"",null,{"$f":"IFERROR(Q279/(M279/12),\"\")","v":""},"",null,null,null,0]
[null,null,null,null,null,null,8,null,null,null,null,null,null,null,null,"",null,"","",null,null,null,{"$f":"IFERROR(S280/D$9,)","v":0}]
[null,null,null,null,null,null,9,null,null,null,null,null,null,null,null,"",null,"","",null,null,null,0]
[null,null,null,null,null,null,10,null,null,null,null,null,null,null,null,"",null,"","",null,null,null,0]
[null,null,null,{"$f":"$D$329","v":"Year 3:"},{"$f":"$E$329","v":0},{"$f":"$J$329","v":0},1,null,null,null,null,null,null,null,null,"",null,"","",null,null,null,0]
[null,null,null,null,null,null,2,null,null,null,null,null,null,null,null,"",null,"","",null,null,null,0]
[null,null,null,null,null,null,3,null,null,null,null,null,null,null,null,"",null,"","",null,null,null,0]
[null,null,null,null,null,null,4,null,null,null,null,null,null,null,null,"",null,"","",null,null,null,0]
[null,null,null,null,null,null,5,null,null,null,null,null,null,null,null,"",null,"","",null,null,null,0]
[null,null,null,null,null,null,6,null,null,null,null,null,null,null,null,"",null,"","",null,null,null,0]
[null,null,null,null,null,null,7,null,null,null,null,null,null,null,null,"",null,"","",null,null,null,0]
[null,null,null,null,null,null,8,null,null,null,null,null,null,null,null,"",null,"","",null,null,null,0]
[null,null,null,null,null,null,9,null,null,null,null,null,null,null,null,"",null,"","",null,null,null,0]
[null,null,null,null,null,null,10,null,null,null,null,null,null,null,null,"",null,"","",null,null,null,0]
[null,{"$f":"CONCATENATE(\"SUM \"&B263)","v":"SUM Person 9"},null,null,null,null,null,null,null,null,null,null,null,null,null,null,{"$f":"SUM(Q263:Q292)","v":0},{"$f":"SUM(R263:R292)","v":0},{"$f":"SUM(S263:S292)","v":0},null,null,null,{"$f":"SUM(W263:W292)","v":0}]
[null,"Person 10",null,{"$f":"$D$327","v":"Year 1:"},{"$f":"$E$327","v":1900},{"$f":"$J$327","v":0},1,null,null,null,null,null,null,null,null,{"$f":"IFERROR(((H294+I294)/M294),\"\")","v":""},null,{"$f":"IFERROR(Q294/(M294/12),\"\")","v":""},{"$f":"IFERROR(P294*Q294,\"\")","v":""},null,null,null,0]
[null,null,null,null,null,null,2,null,null,null,null,null,null,null,null,"",null,"","",null,null,null,0]
[null,null,null,null,null,null,3,null,null,null,null,null,null,null,null,"",null,"","",null,null,null,0]
[null,null,null,null,null,null,4,null,null,null,null,null,null,null,null,"",null,"","",null,null,null,0]
[null,null,null,null,null,null,5,null,null,null,null,null,null,null,null,"",null,"","",null,null,null,0]
[null,null,null,null,null,null,6,null,null,null,null,null,null,null,null,"",null,"","",null,null,null,0]
[null,null,null,null,null,null,7,null,null,null,null,null,null,null,null,"",null,"","",null,null,null,0]
[null,null,null,null,null,null,8,null,null,null,null,null,null,null,null,"",null,"","",null,null,null,0]
[null,null,null,null,null,null,9,null,null,null,null,null,null,null,null,"",null,"","",null,null,null,0]
[null,null,null,null,null,null,10,null,null,null,null,null,null,null,null,"",null,"","",null,null,null,0]
[null,null,null,{"$f":"$D$328","v":"Year 2:"},{"$f":"$E$328","v":0},{"$f":"$J$328","v":0},1,null,null,null,null,null,null,null,null,"",null,"","",null,null,null,0]
[null,null,null,null,null,null,2,null,null,null,null,null,null,null,null,"",null,"","",null,null,null,0]
[null,null,null,null,null,null,3,null,null,null,null,null,null,null,null,"",null,"","",null,null,null,0]
[null,null,null,null,null,null,4,null,null,null,null,null,null,null,null,"",null,"","",null,null,null,0]
[null,null,null,null,null,null,5,null,null,null,null,null,null,null,null,"",null,"","",null,null,null,0]
[null,null,null,null,null,null,6,null,null,null,null,null,null,null,null,"",null,"","",null,null,null,0]
[null,null,null,null,null,null,7,null,null,null,null,null,null,null,null,"",null,{"$f":"IFERROR(Q310/(M310/12),\"\")","v":""},"",null,null,null,0]
[null,null,null,null,null,null,8,null,null,null,null,null,null,null,null,"",null,"","",null,null,null,0]
[null,null,null,null,null,null,9,null,null,null,null,null,null,null,null,"",null,"","",null,null,null,0]
[null,null,null,null,null,null,10,null,null,null,null,null,null,null,null,"",null,"","",null,null,null,0]
[null,null,null,{"$f":"$D$329","v":"Year 3:"},{"$f":"$E$329","v":0},{"$f":"$J$329","v":0},1,null,null,null,null,null,null,null,null,"",null,"","",null,null,null,0]
[null,null,null,null,null,null,2,null,null,null,null,null,null,null,null,"",null,"","",null,null,null,0]
[null,null,null,null,null,null,3,null,null,null,null,null,null,null,null,"",null,"","",null,null,null,0]
[null,null,null,null,null,null,4,null,null,null,null,null,null,null,null,"",null,"","",null,null,null,0]
[null,null,null,null,null,null,5,null,null,null,null,null,null,null,null,"",null,"","",null,null,null,0]
[null,null,null,null,null,null,6,null,null,null,null,null,null,null,null,"",null,"","",null,null,null,0]
[null,null,null,null,null,null,7,null,null,null,null,null,null,null,null,"",null,"","",null,null,null,0]
[null,null,null,null,null,null,8,null,null,null,null,null,null,null,null,"",null,"","",null,null,null,0]
[null,null,null,null,null,null,9,null,null,null,null,null,null,null,null,"",null,"","",null,null,null,0]
[null,null,null,null,null,null,10,null,null,null,null,null,null,null,null,"",null,"","",null,null,null,0]
[null,{"$f":"CONCATENATE(\"SUM \"&B294)","v":"SUM Person 10"},null,null,null,null,null,null,null,null,null,null,null,null,null,null,{"$f":"SUM(Q294:Q323)","v":0},{"$f":"SUM(R294:R323)","v":0},{"$f":"SUM(S294:S323)","v":0},null,null,null,{"$f":"SUM(W294:W323)","v":0}]
[null,"TOTAL SUM",null,null,null,null,null,null,null,null,null,null,null,null,null,null,{"$f":"Q324+Q293+Q262+Q231+Q200+Q169+Q138+Q107+Q76+Q45","v":0},0,0,0,0,0,0]
[]
[null,null,null,"Year 1:",{"$f":"YEAR('Ekonomisk projektbeskrivning'!E28)","v":1900},{"$f":"IF(MONTH(H327)-MONTH(G327)=0,0,MONTH(H327)-MONTH(G327)+1)","v":0},{"$f":"'Ekonomisk projektbeskrivning'!E28","v":"00:00:00"},{"$f":"IF(YEAR('Ekonomisk projektbeskrivning'!F28)='Personnel costs RP3'!E327,'Ekonomisk projektbeskrivning'!F28,CONCATENATE(E327&\"-12-31\"))","v":"00:00:00"},{"$f":"IF(F327<>0,IF(F327<12,IF(MONTH(G327)>(12-F327),E327,E327-1),E327),\"\")","v":""}]
[null,null,null,"Year 2:",{"$f":"IF(YEAR('Ekonomisk projektbeskrivning'!F28)>=('Personnel costs RP3'!E327+1),('Personnel costs RP3'!E327+1),0)","v":0},{"$f":"IF(E328=0,0,IF(MONTH(G328)=1,IF(MONTH(H328)=1,1,(MONTH(H328)-MONTH(G328)+1))))","v":0},{"$f":"IF(E327=YEAR('Ekonomisk projektbeskrivning'!F28),0,CONCATENATE(E328&\"-01-01\"))","v":"00:00:00"},{"$f":"IF(E327+1=YEAR('Ekonomisk projektbeskrivning'!F28),'Ekonomisk projektbeskrivning'!F28,IF(E327+1>YEAR('Ekonomisk projektbeskrivning'!F28),0,CONCATENATE(E328&\"-12-31\")))","v":"00:00:00"},{"$f":"IF(F328<>0,IF(F328<12,IF(MONTH(G328)>(12-F328),E328,E328-1),E328),\"\")","v":""}]
[null,null,null,"Year 3:",{"$f":"IF(YEAR('Ekonomisk projektbeskrivning'!F28)>=('Personnel costs RP3'!E327+2),('Personnel costs RP3'!E328+1),0)","v":0},{"$f":"IF(E329=0,0,IF(MONTH(G329)=1,IF(MONTH(H329)=1,1,(MONTH(H329)-MONTH(G329)+1))))","v":0},{"$f":"IF(E327+1>=YEAR('Ekonomisk projektbeskrivning'!F28),0,CONCATENATE(E327+2&\"-01-01\"))","v":0},{"$f":"IF(E327+2=YEAR('Ekonomisk projektbeskrivning'!F28),'Ekonomisk projektbeskrivning'!F28,IF(E327+2>YEAR('Ekonomisk projektbeskrivning'!F28),0,CONCATENATE(E329&\"-12-31\")))","v":0},{"$f":"IF(F329<>0,IF(F329<12,IF(MONTH(G329)>(12-F329),E329,E329-1),E329),\"\")","v":""}]

{"sheet":"Project Transactions RP3","index":21,"n_rows":34,"n_cols":16,"rows_kept":34,"cut":false,"hidden":false,"merged":[]}
["sql SELECT dim_1, dim_2, voucher_no, period, trans_date, VERIFIKATIONER.account, VERIFIKATIONER.description AS VERTEXT, amount, KONTO.description AS KONTONAMN"]
["sql FROM agltransact AS VERIFIKATIONER"]
["sql FULL JOIN aglaccounts as KONTO"]
["sql ON VERIFIKATIONER.account = KONTO.account"]
[{"$f":"C5","v":"sql WHERE dim_1 LIKE '0%'"},null,{"$f":"CONCATENATE(\"sql WHERE dim_1 LIKE '\"&E15&\"%'\")","v":"sql WHERE dim_1 LIKE '0%'"}]
[{"$f":"C6","v":"sql AND dim_2 LIKE '0%'"},null,{"$f":"CONCATENATE(\"sql AND dim_2 LIKE '\"&E16&\"%'\")","v":"sql AND dim_2 LIKE '0%'"}]
[{"$f":"C7","v":"sql AND period >=''"},null,{"$f":"CONCATENATE(\"sql AND period >='\"&E17&\"'\")","v":"sql AND period >=''"}]
[{"$f":"C8","v":"sql AND period <=''"},null,{"$f":"CONCATENATE(\"sql AND period <='\"&E18&\"'\")","v":"sql AND period <=''"}]
["sql AND KONTO.client='BO'"]
["query"]
["sort account"]
["columns","code account","text dim_1","text dim_2","text voucher_no","text Period","trans_date","text account","KONTONAMN","VERTEXT","amount"]
[null,null,"VERIFIKATIONSLISTA - RP3"]
[null,null,null,null,null,null,null,null,null,null,"Rapporten söker ut kostnader på kontogrupper"]
[null,null,"Orgenhet:",null,{"$f":"'Project Transactions RP1'!E15","v":0},"Rapporten söker automatiskt ut med * utan att detta anges.",null,null,null,null,"43*, 48*, 49*"]
[null,null,"Akt/Proj:",null,{"$f":"'Project Transactions RP1'!E16","v":0},"Rapporten söker automatiskt ut med * utan att detta anges.",null,null,null,null,"5*"]
[null,null,"Från period:",null,null,"OBS: året börjar med period 00",null,null,null,null,"6*"]
[null,null,"Till period:",null,null,"OBS: året slutar med period 15",null,null,null,null,"95*-97*"]
[null,null,"Reporting period:",null,3]
[]
[null,null,"Orgenhet","Akt/proj","Vernr","Period","Ver.datum","Konto","Konto(T)","Verifikationstext","Belopp","Korrigering belopp (-)","Beskrivning","RR (Om reseräkning)",null,"Kostnadsslag i Financial statement (välj i listan)"]
["detail","43*",null,null,null,null,"00:00:00",null,0,0,0]
["detail","48*",null,null,null,null,"00:00:00",null,0,0,0]
["detail","49*",null,null,null,null,"00:00:00",null,0,0,0]
["detail","5*",null,null,null,null,"00:00:00",null,0,0,0]
["detail","6*"]
["detail","95*",null,null,null,null,"00:00:00",null,0,0,0]
["detail","96*"]
["detail","97*"]
[null,null,null,null,null,null,"00:00:00",null,0,0,0,null,null,{"$f":"IF(MID($J30,42,6)=\"RESEID\",MID($J30,49,11),\"\")","v":""}]
[null,null,null,null,null,null,"00:00:00",null,0,0,0,null,null,""]
[null,null,null,null,null,null,"00:00:00",null,0,0,0,null,null,""]
[null,null,null,null,null,null,"00:00:00",null,0,0,0,null,null,""]
[null,null,null,null,null,null,"00:00:00",null,0,0,0,null,null,""]

{"sheet":"Direct costs RP3","index":22,"n_rows":46,"n_cols":10,"rows_kept":46,"cut":false,"hidden":false,"merged":[[1,3,1,9]]}
["DIRECT COSTS - RP3"]
[null,null,"Project:    ",{"$f":"'Ekonomisk projektbeskrivning'!D5","v":0}]
[null,null,"GA:            ",{"$f":"'Ekonomisk projektbeskrivning'!D22","v":0}]
[null,null,"Exchange rate:",{"$f":"'Ekonomisk projektbeskrivning'!B28","v":0},null,null,null,null,"Reporting period: 3"]
[]
["A.1 Employees (or equivalent)","Beskrivning","RR-nr","Bokfört \nbelopp \n(SEK)","Korrigering \nbokfört \nbelopp \n(SEK)","Belopp att \nredovisa \n(SEK)","Belopp att \nredovisa \n(EUR)","Vernr","WP","Kommentar"]
[]
[]
[]
[]
["A.2 Natural persons working under direct contract","Beskrivning","RR-nr","Bokfört \nbelopp \n(SEK)","Korrigering \nbokfört \nbelopp \n(SEK)","Belopp att \nredovisa \n(SEK)","Belopp att \nredovisa \n(EUR)","Vernr","WP","Kommentar"]
[]
[]
[]
[]
["A.3 Seconded persons","Beskrivning","RR-nr","Bokfört \nbelopp \n(SEK)","Korrigering \nbokfört \nbelopp \n(SEK)","Belopp att \nredovisa \n(SEK)","Belopp att \nredovisa \n(EUR)","Vernr","WP","Kommentar"]
[]
[]
[]
[]
["A.6 Personnel for providing access to research infrastructure","Beskrivning","RR-nr","Bokfört \nbelopp \n(SEK)","Korrigering \nbokfört \nbelopp \n(SEK)","Belopp att \nredovisa \n(SEK)","Belopp att \nredovisa \n(EUR)","Vernr","WP","Kommentar"]
[]
[]
[]
[]
["B.1 Subcontracting","Beskrivning","RR-nr","Bokfört \nbelopp \n(SEK)","Korrigering \nbokfört \nbelopp \n(SEK)","Belopp att \nredovisa \n(SEK)","Belopp att \nredovisa \n(EUR)","Vernr","WP","Kommentar"]
[]
[]
[]
[]
["D.1 Travel","Beskrivning","RR-nr","Bokfört \nbelopp \n(SEK)","Korrigering \nbokfört \nbelopp \n(SEK)","Belopp att \nredovisa \n(SEK)","Belopp att \nredovisa \n(EUR)","Vernr","WP","Kommentar"]
[]
[]
[]
[]
["D.2 Equipment","Beskrivning","RR-nr","Bokfört \nbelopp \n(SEK)","Korrigering \nbokfört \nbelopp \n(SEK)","Belopp att \nredovisa \n(SEK)","Belopp att \nredovisa \n(EUR)","Vernr","WP","Kommentar"]
[]
[]
[]
[]
["D.3 Other goods and services","Beskrivning","RR-nr","Bokfört \nbelopp \n(SEK)","Korrigering \nbokfört \nbelopp \n(SEK)","Belopp att \nredovisa \n(SEK)","Belopp att \nredovisa \n(EUR)","Vernr","WP","Kommentar"]
[]
[]
[]
[]
["D.5 Costs for internally invoiced goods and services","Beskrivning","RR-nr","Bokfört \nbelopp \n(SEK)","Korrigering \nbokfört \nbelopp \n(SEK)","Belopp att \nredovisa \n(SEK)","Belopp att \nredovisa \n(EUR)","Vernr","WP","Kommentar"]

{"sheet":"Financial Statement RP3","index":23,"n_rows":21,"n_cols":3,"rows_kept":21,"cut":false,"hidden":false,"merged":[[11,0,11,1],[2,1,2,2],[7,0,7,1],[8,0,8,1],[9,0,9,1],[10,0,10,1],[20,0,20,1],[12,0,12,1],[13,0,13,1],[14,0,14,1],[15,0,15,1],[16,0,16,1],[17,0,17,1]]}
["FINANCIAL STATEMENT - RP3"]
[]
["Project:",{"$f":"'Ekonomisk projektbeskrivning'!D5","v":0}]
["GA:",{"$f":"'Ekonomisk projektbeskrivning'!D22","v":0}]
["Reporting period:",3]
[]
[]
["Cost Category",null,"Total EUR"]
["a) Direct personnel costs declared as actual costs",null,0]
["b) Direct personnel costs declared as unit costs (average costs)"]
["d) Direct costs of subcontracting",null,0]
["e) Direct costs of providing financial support to third parties"]
["f) Other direct costs",null,0]
["h) Indirect costs (= 0.25 * (a + b + f - o))",null,{"$f":"0.25*(SUM(CostCategory_A_RP3 + CostCategory_D_RP3 + CostCategory_F_RP3 - CostsInKindNotUsedInPremises_RP3))","v":0}]
["j) Total costs (= a + b + d + e + f + h) ",null,{"$f":"SUM(C9:C14)","v":0}]
["k) Receipts"]
["m) Maximum EU-contribution (100%)",null,{"$f":"((C15-C16)*100%)","v":0}]
["n) Requested EU-contribution"]
[]
[]
["o) Use of 'costs of in-kind contributions not used on premises'?"]

{"sheet":"Adjustments RP3","index":24,"n_rows":86,"n_cols":10,"rows_kept":86,"cut":false,"hidden":false,"merged":[[76,0,76,1],[1,2,1,7],[72,0,72,1],[73,0,73,1],[74,0,74,1],[75,0,75,1],[85,0,85,1],[77,0,77,1],[78,0,78,1],[79,0,79,1],[80,0,80,1],[81,0,81,1],[82,0,82,1]]}
["ADJUSTMENTS OF DIRECT COSTS"]
[null,"Project:    ",{"$f":"'Ekonomisk projektbeskrivning'!D5","v":0}]
[null,"GA:            ",{"$f":"'Ekonomisk projektbeskrivning'!D22","v":0}]
[null,"Exchange rate:",{"$f":"'Ekonomisk projektbeskrivning'!B28","v":0},null,null,null,"Reporting period: 3"]
[]
["A.1 Employees (or equivalent)","Beskrivning","RR (Om reseräkning)","Belopp","EUR","Vernr","WP","Kommentar"]
[null,null,null,null,{"$f":"IFERROR(D7/$C$4,\"\")","v":""}]
[null,null,null,null,{"$f":"IFERROR(D8/$C$4,\"\")","v":""}]
[null,null,null,null,{"$f":"IFERROR(D9/$C$4,\"\")","v":""}]
[null,null,null,null,{"$f":"IFERROR(D10/$C$4,\"\")","v":""},null,null,null,null,"Inserted row"]
[null,null,null,{"$f":"SUM(D7:D10)","v":0},{"$f":"SUM(E7:E10)","v":0}]
[]
["A.2 Natural persons working under direct contract","Beskrivning","RR (Om reseräkning)","Belopp","EUR","Vernr","WP","Kommentar"]
[null,null,null,null,{"$f":"IFERROR(D14/$C$4,\"\")","v":""}]
[null,null,null,null,{"$f":"IFERROR(D15/$C$4,\"\")","v":""}]
[null,null,null,null,{"$f":"IFERROR(D16/$C$4,\"\")","v":""}]
[null,null,null,null,{"$f":"IFERROR(D17/$C$4,\"\")","v":""},null,null,null,null,"Inserted row"]
[null,null,null,{"$f":"SUM(D14:D17)","v":0},{"$f":"SUM(E14:E17)","v":0}]
[]
["A.3 Seconded persons","Beskrivning","RR (Om reseräkning)","Belopp","EUR","Vernr","WP","Kommentar"]
[null,null,null,null,{"$f":"IFERROR(D21/$C$4,\"\")","v":""}]
[null,null,null,null,{"$f":"IFERROR(D22/$C$4,\"\")","v":""}]
[null,null,null,null,{"$f":"IFERROR(D23/$C$4,\"\")","v":""}]
[null,null,null,null,{"$f":"IFERROR(D24/$C$4,\"\")","v":""}]
[null,null,null,{"$f":"SUM(D21:D24)","v":0},{"$f":"SUM(E21:E24)","v":0}]
[]
["A.6 Personnel for providing access to research infrastructure","Beskrivning","RR (Om reseräkning)","Belopp","EUR","Vernr","WP","Kommentar"]
[null,null,null,null,{"$f":"IFERROR(D28/$C$4,\"\")","v":""}]
[null,null,null,null,{"$f":"IFERROR(D29/$C$4,\"\")","v":""}]
[null,null,null,null,{"$f":"IFERROR(D30/$C$4,\"\")","v":""}]
[null,null,null,null,{"$f":"IFERROR(D31/$C$4,\"\")","v":""},null,null,null,null,"Inserted row"]
[null,null,null,{"$f":"SUM(D28:D31)","v":0},{"$f":"SUM(E28:E31)","v":0}]
[]
["B.1 Subcontracting","Beskrivning","RR (Om reseräkning)","Belopp","EUR","Vernr","WP","Kommentar"]
[null,null,null,null,{"$f":"IFERROR(D35/$C$4,\"\")","v":""}]
[null,null,null,null,{"$f":"IFERROR(D36/$C$4,\"\")","v":""}]
[null,null,null,null,{"$f":"IFERROR(D37/$C$4,\"\")","v":""}]
[null,null,null,null,{"$f":"IFERROR(D38/$C$4,\"\")","v":""},null,null,null,null,"Inserted row"]
[null,null,null,{"$f":"SUM(D35:D38)","v":0},{"$f":"SUM(E35:E38)","v":0}]
[]
["D.1 Travel","Beskrivning","RR (Om reseräkning)","Belopp","EUR","Vernr","WP","Kommentar"]
[null,null,null,null,{"$f":"IFERROR(D42/$C$4,\"\")","v":""}]
[null,null,null,null,{"$f":"IFERROR(D43/$C$4,\"\")","v":""}]
[null,null,null,null,{"$f":"IFERROR(D44/$C$4,\"\")","v":""}]
[null,null,null,null,{"$f":"IFERROR(D45/$C$4,\"\")","v":""},null,null,null,null,"Inserted row"]
[null,null,null,{"$f":"SUM(D42:D45)","v":0},{"$f":"SUM(E42:E45)","v":0}]
[]
["D.2 Equipment","Beskrivning","RR (Om reseräkning)","Belopp","EUR","Vernr","WP","Kommentar"]
[null,null,null,null,{"$f":"IFERROR(D49/$C$4,\"\")","v":""}]
[null,null,null,null,{"$f":"IFERROR(D50/$C$4,\"\")","v":""}]
[null,null,null,null,{"$f":"IFERROR(D51/$C$4,\"\")","v":""}]
[null,null,null,null,{"$f":"IFERROR(D52/$C$4,\"\")","v":""},null,null,null,null,"Inserted row"]
[null,null,null,{"$f":"SUM(D49:D52)","v":0},{"$f":"SUM(E49:E52)","v":0}]
[]
["D.3 Other goods and services","Beskrivning","RR (Om reseräkning)","Belopp","EUR","Vernr","WP","Kommentar"]
[null,null,null,null,{"$f":"IFERROR(D56/$C$4,\"\")","v":""}]
[null,null,null,null,{"$f":"IFERROR(D57/$C$4,\"\")","v":""}]
[null,null,null,null,{"$f":"IFERROR(D58/$C$4,\"\")","v":""}]
[null,null,null,null,{"$f":"IFERROR(D59/$C$4,\"\")","v":""},null,null,null,null,"Inserted row"]
[null,null,null,{"$f":"SUM(D56:D59)","v":0},{"$f":"SUM(E56:E59)","v":0}]
[]
["D.5 Costs for internally invoiced goods and services","Beskrivning","RR (Om reseräkning)","Belopp","EUR","Vernr","WP","Kommentar"]
[null,null,null,null,{"$f":"IFERROR(D63/$C$4,\"\")","v":""}]
[null,null,null,null,{"$f":"IFERROR(D64/$C$4,\"\")","v":""}]
[null,null,null,null,{"$f":"IFERROR(D65/$C$4,\"\")","v":""}]
[null,null,null,null,{"$f":"IFERROR(D66/$C$4,\"\")","v":""},null,null,null,null,"Inserted row"]
[null,null,null,{"$f":"SUM(D63:D66)","v":0},{"$f":"SUM(E63:E66)","v":0}]
[]
[]
[]
["FINANCIAL STATEMENT (ADJUSTMENTS) - RP3"]
[]
["Cost Category",null,"Total EUR"]
["a) Direct personnel costs declared as actual costs",null,{"$f":"E11+E18+E25+E32","v":0}]
["b) Direct personnel costs declared as unit costs (average costs)"]
["d) Direct costs od subcontracting",null,{"$f":"E39","v":0}]
["e) Direct costs of providing financial support to third parties"]
["f) Other direct costs",null,{"$f":"E46+E53+E60+E67","v":0}]
["h) Indirect costs (= 0.25 * (a + b + f - o))",null,{"$f":"(C74+C75+C78-C86)*0.25","v":0}]
["j) Total costs (= a + b + d + e + f + h) ",null,{"$f":"SUM(C74:C79)","v":0}]
["k) Receipts"]
["m) Maximum EU-contribution (100%)",null,{"$f":"((C80-C81)*100%)","v":0}]
["n) Requested EU-contribution"]
[]
[]
["o) Use of 'costs of in-kind contributions not used on premises'?"]

{"sheet":"Personnel costs RP4","index":25,"n_rows":329,"n_cols":31,"rows_kept":329,"cut":false,"hidden":false,"merged":[[13,3,13,4],[324,3,324,4]]}
[null,"PERSONNEL COSTS - RP4"]
[]
[null,"Project: "]
[]
[null,"Beneficiary:",null,"Hoegskolan i Boras / University of Borås"]
[]
[null,"Reporting period 4:",null,{"$f":"IF('Ekonomisk projektbeskrivning'!E29<>\"\",'Ekonomisk projektbeskrivning'!E29,\"\")","v":""},"--",{"$f":"IF('Ekonomisk projektbeskrivning'!F29<>\"\",'Ekonomisk projektbeskrivning'!F29,\"\")","v":""}]
[]
[null,"Exchange rate SEK-EUR: ",null,{"$f":"'Ekonomisk projektbeskrivning'!B29","v":0}]
[]
[null,"Option for calculating Hourly rate:",null,"Option 1: 1 720 Fixed hours"]
[]
[]
[null,"Name",null,"Calender year",null,"Fiscal year","WP","Total salary cost in payroll (SEK)","Salary costs for Additional remunerations that is not related to the project (SEK)",null,null,null,"Annual  productive hours",null,"Annual productive hours Pro-Rata if applied","Hourly rate (SEK)","Worked hours in the project","PMs","Calculated eligible personnel cost for the project (SEK)",null,null,null,"Personnel cost to claim in form C (EUR)",null,null,null,null,"Sum PM / WP","Sum PM / WP","Sum Eligible Personnel costs (SEK)","Sum Eligible Personnel costs (EUR)"]
[" ","Person 1",null,{"$f":"$D$327","v":"Year 1:"},{"$f":"$E$327","v":1900},{"$f":"$J$327","v":0},1,null,null,null,null,null,null,null,null,{"$f":"IFERROR(((H15+I15)/M15),\"\")","v":""},null,{"$f":"IFERROR(Q15/(M15/12),\"\")","v":""},{"$f":"IFERROR(P15*Q15,\"\")","v":""},null,null,null,{"$f":"IFERROR(S15/D$9,)","v":0},null,null,null,null,1,{"$f":"SUMIF($G$15:$G$1048576,1,$R$15:$R$1048576)","v":0},{"$f":"SUMIF($G$15:$G$1048576,1,$S$15:$S$1048576)","v":0},{"$f":"SUMIF($G$15:$G$1048576,1,$W$15:$W$1048576)","v":0}]
[null,null,null,null,null,null,2,null,null,null,null,null,null,null,null,{"$f":"IFERROR(((H16+I16)/M16),\"\")","v":""},null,{"$f":"IFERROR(Q16/(M16/12),\"\")","v":""},{"$f":"IFERROR(P16*Q16,\"\")","v":""},null,null,null,{"$f":"IFERROR(S16/D$9,)","v":0},null,null,null,null,2,{"$f":"SUMIF(G15:G1048576,2,R15:R1048576)","v":0},{"$f":"SUMIF($G$15:$G$1048576,2,$S$15:$S$1048576)","v":0},{"$f":"SUMIF($G$15:$G$1048576,2,$W$15:$W$1048576)","v":0}]
[null,null,null,null,null,null,3,null,null,null,null,null,null,null,null,"",null,"","",null,null,null,0,null,null,null,null,3,{"$f":"SUMIF(G15:G1048576,3,R15:R1048576)","v":0},{"$f":"SUMIF($G$15:$G$1048576,3,$S$15:$S$1048576)","v":0},{"$f":"SUMIF($G$15:$G$1048576,3,$W$15:$W$1048576)","v":0}]
[null,null,null,null,null,null,4,null,null,null,null,null,null,null,null,"",null,"","",null,null,null,0,null,null,null,null,4,{"$f":"SUMIF(G15:G1048576,4,R15:R1048576)","v":0},{"$f":"SUMIF($G$15:$G$1048576,4,$S$15:$S$1048576)","v":0},{"$f":"SUMIF($G$15:$G$1048576,4,$W$15:$W$1048576)","v":0}]
[null,null,null,null,null,null,5,null,null,null,null,null,null,null,null,"",null,"","",null,null,null,0,null,null,null,null,5,{"$f":"SUMIF(G15:G1048576,5,R15:R1048576)","v":0},{"$f":"SUMIF($G$15:$G$1048576,5,$S$15:$S$1048576)","v":0},{"$f":"SUMIF($G$15:$G$1048576,5,$W$15:$W$1048576)","v":0}]
[null,null,null,null,null,null,6,null,null,null,null,null,null,null,null,"",null,"","",null,null,null,0,null,null,null,null,6,{"$f":"SUMIF(G15:G1048576,6,R15:R1048576)","v":0},{"$f":"SUMIF($G$15:$G$1048576,6,$S$15:$S$1048576)","v":0},{"$f":"SUMIF($G$15:$G$1048576,6,$W$15:$W$1048576)","v":0}]
[null,null,null,null,null,null,7,null,null,null,null,null,null,null,null,"",null,"","",null,null,null,0,null,null,null,null,7,{"$f":"SUMIF(G15:G1048576,7,R15:R1048576)","v":0},{"$f":"SUMIF($G$15:$G$1048576,7,$S$15:$S$1048576)","v":0},{"$f":"SUMIF($G$15:$G$1048576,7,$W$15:$W$1048576)","v":0}]
[null,null,null,null,null,null,8,null,null,null,null,null,null,null,null,"",null,"","",null,null,null,0,null,null,null,null,8,{"$f":"SUMIF(G15:G1048576,8,R15:R1048576)","v":0},{"$f":"SUMIF($G$15:$G$1048576,8,$S$15:$S$1048576)","v":0},{"$f":"SUMIF($G$15:$G$1048576,8,$W$15:$W$1048576)","v":0}]
[null,null,null,null,null,null,9,null,null,null,null,null,null,null,null,"",null,"","",null,null,null,0,null,null,null,null,9,{"$f":"SUMIF(G15:G1048576,9,R15:R1048576)","v":0},{"$f":"SUMIF($G$15:$G$1048576,9,$S$15:$S$1048576)","v":0},{"$f":"SUMIF($G$15:$G$1048576,9,$W$15:$W$1048576)","v":0}]
[null,null,null,null,null,null,10,null,null,null,null,null,null,null,null,"",null,"","",null,null,null,0,null,null,null,null,10,{"$f":"SUMIF(G15:G1048576,10,R15:R1048576)","v":0},{"$f":"SUMIF($G$15:$G$1048576,10,$S$15:$S$1048576)","v":0},{"$f":"SUMIF($G$15:$G$1048576,10,$W$15:$W$1048576)","v":0}]
[null,null,null,{"$f":"$D$328","v":"Year 2:"},{"$f":"$E$328","v":0},{"$f":"$J$328","v":0},1,null,null,null,null,null,null,null,null,"",null,"","",null,null,null,0,null,null,null,null,"SUM",{"$f":"SUM(AC15:AC24)","v":0},{"$f":"SUM(AD15:AD24)","v":0},{"$f":"SUM(AE15:AE24)","v":0}]
[null,null,null,null,null,null,2,null,null,null,null,null,null,null,null,"",null,"","",null,null,null,0,null,null,null,null,null,{"$f":"IF(AC25<>R325,\"CHECK\",\"OK\")","v":"OK"},{"$f":"IF(AD25<>S325,\"CHECK\",\"OK\")","v":"OK"},{"$f":"IF(AE25<>W325,\"CHECK\",\"OK\")","v":"OK"}]
[null,null,null,null,null,null,3,null,null,null,null,null,null,null,null,"",null,"","",null,null,null,0]
[null,null,null,null,null,null,4,null,null,null,null,null,null,null,null,"",null,"","",null,null,null,0]
[null,null,null,null,null,null,5,null,null,null,null,null,null,null,null,"",null,"","",null,null,null,0]
[null,null,null,null,null,null,6,null,null,null,null,null,null,null,null,"",null,"","",null,null,null,0]
[null,null,null,null,null,null,7,null,null,null,null,null,null,null,null,"",null,"","",null,null,null,0]
[null,null,null,null,null,null,8,null,null,null,null,null,null,null,null,"",null,"","",null,null,null,0]
[null,null,null,null,null,null,9,null,null,null,null,null,null,null,null,"",null,"","",null,null,null,0]
[null,null,null,null,null,null,10,null,null,null,null,null,null,null,null,"",null,"","",null,null,null,0]
[null,null,null,{"$f":"$D$329","v":"Year 3:"},{"$f":"$E$329","v":0},{"$f":"$J$329","v":0},1,null,null,null,null,null,null,null,null,"",null,"","",null,null,null,0]
[null,null,null,null,null,null,2,null,null,null,null,null,null,null,null,"",null,"","",null,null,null,0]
[null,null,null,null,null,null,3,null,null,null,null,null,null,null,null,"",null,"","",null,null,null,0]
[null,null,null,null,null,null,4,null,null,null,null,null,null,null,null,"",null,"","",null,null,null,0]
[null,null,null,null,null,null,5,null,null,null,null,null,null,null,null,"",null,"","",null,null,null,0]
[null,null,null,null,null,null,6,null,null,null,null,null,null,null,null,"",null,"","",null,null,null,0]
[null,null,null,null,null,null,7,null,null,null,null,null,null,null,null,"",null,"","",null,null,null,0]
[null,null,null,null,null,null,8,null,null,null,null,null,null,null,null,"",null,"","",null,null,null,0]
[null,null,null,null,null,null,9,null,null,null,null,null,null,null,null,"",null,"","",null,null,null,0]
[null,null,null,null,null,null,10,null,null,null,null,null,null,null,null,"",null,"","",null,null,null,0]
[null,{"$f":"CONCATENATE(\"SUM \"&B15)","v":"SUM Person 1"},null,null,null,null,null,null,null,null,null,null,null,null,null,null,{"$f":"SUM(Q15:Q44)","v":0},{"$f":"SUM(R15:R44)","v":0},{"$f":"SUM(S15:S44)","v":0},null,null,null,{"$f":"SUM(W15:W44)","v":0}]
[null,"Person 2",null,{"$f":"$D$327","v":"Year 1:"},{"$f":"$E$327","v":1900},{"$f":"$J$327","v":0},1,null,null,null,null,null,null,null,null,{"$f":"IFERROR(((H46+I46)/M46),\"\")","v":""},null,"",{"$f":"IFERROR(P46*Q46,\"\")","v":""},null,null,null,0]
[null,null,null,null,null,null,2,null,null,null,null,null,null,null,null,"",null,"","",null,null,null,0]
[null,null,null,null,null,null,3,null,null,null,null,null,null,null,null,"",null,"","",null,null,null,0]
[null,null,null,null,null,null,4,null,null,null,null,null,null,null,null,"",null,"","",null,null,null,0]
[null,null,null,null,null,null,5,null,null,null,null,null,null,null,null,"",null,"","",null,null,null,0]
[null,null,null,null,null,null,6,null,null,null,null,null,null,null,null,"",null,"","",null,null,null,0]
[null,null,null,null,null,null,7,null,null,null,null,null,null,null,null,"",null,"","",null,null,null,0]
[null,null,null,null,null,null,8,null,null,null,null,null,null,null,null,"",null,"","",null,null,null,0]
[null,null,null,null,null,null,9,null,null,null,null,null,null,null,null,"",null,"","",null,null,null,0]
[null,null,null,null,null,null,10,null,null,null,null,null,null,null,null,"",null,"","",null,null,null,0]
[null,null,null,{"$f":"$D$328","v":"Year 2:"},{"$f":"$E$328","v":0},{"$f":"$J$328","v":0},1,null,null,null,null,null,null,null,null,"",null,"","",null,null,null,0]
[null,null,null,null,null,null,2,null,null,null,null,null,null,null,null,"",null,"","",null,null,null,0]
[null,null,null,null,null,null,3,null,null,null,null,null,null,null,null,"",null,"","",null,null,null,0]
[null,null,null,null,null,null,4,null,null,null,null,null,null,null,null,"",null,"","",null,null,null,0]
[null,null,null,null,null,null,5,null,null,null,null,null,null,null,null,"",null,"","",null,null,null,0]
[null,null,null,null,null,null,6,null,null,null,null,null,null,null,null,"",null,"","",null,null,null,0]
[null,null,null,null,null,null,7,null,null,null,null,null,null,null,null,"",null,{"$f":"IFERROR(Q62/(M62/12),\"\")","v":""},"",null,null,null,0]
[null,null,null,null,null,null,8,null,null,null,null,null,null,null,null,"",null,"","",null,null,null,0]
[null,null,null,null,null,null,9,null,null,null,null,null,null,null,null,"",null,"","",null,null,null,0]
[null,null,null,null,null,null,10,null,null,null,null,null,null,null,null,"",null,"","",null,null,null,0]
[null,null,null,{"$f":"$D$329","v":"Year 3:"},{"$f":"$E$329","v":0},{"$f":"$J$329","v":0},1,null,null,null,null,null,null,null,null,"",null,"","",null,null,null,0]
[null,null,null,null,null,null,2,null,null,null,null,null,null,null,null,"",null,"","",null,null,null,0]
[null,null,null,null,null,null,3,null,null,null,null,null,null,null,null,"",null,"","",null,null,null,0]
[null,null,null,null,null,null,4,null,null,null,null,null,null,null,null,"",null,"","",null,null,null,0]
[null,null,null,null,null,null,5,null,null,null,null,null,null,null,null,"",null,"","",null,null,null,0]
[null,null,null,null,null,null,6,null,null,null,null,null,null,null,null,"",null,"","",null,null,null,0]
[null,null,null,null,null,null,7,null,null,null,null,null,null,null,null,"",null,"","",null,null,null,0]
[null,null,null,null,null,null,8,null,null,null,null,null,null,null,null,"",null,"","",null,null,null,0]
[null,null,null,null,null,null,9,null,null,null,null,null,null,null,null,"",null,"","",null,null,null,0]
[null,null,null,null,null,null,10,null,null,null,null,null,null,null,null,"",null,"","",null,null,null,0]
[null,{"$f":"CONCATENATE(\"SUM \"&B46)","v":"SUM Person 2"},null,null,null,null,null,null,null,null,null,null,null,null,null,null,{"$f":"SUM(Q46:Q75)","v":0},{"$f":"SUM(R46:R75)","v":0},{"$f":"SUM(S46:S75)","v":0},null,null,null,{"$f":"SUM(W46:W75)","v":0}]
[null,"Person 3",null,{"$f":"$D$327","v":"Year 1:"},{"$f":"$E$327","v":1900},{"$f":"$J$327","v":0},1,null,null,null,null,null,null,null,null,{"$f":"IFERROR(((H77+I77)/M77),\"\")","v":""},null,"",{"$f":"IFERROR(P77*Q77,\"\")","v":""},null,null,null,0]
[null,null,null,null,null,null,2,null,null,null,null,null,null,null,null,"",null,"","",null,null,null,0]
[null,null,null,null,null,null,3,null,null,null,null,null,null,null,null,"",null,"","",null,null,null,0]
[null,null,null,null,null,null,4,null,null,null,null,null,null,null,null,"",null,{"$f":"IFERROR(Q80/(M80/12),\"\")","v":""},"",null,null,null,0]
[null,null,null,null,null,null,5,null,null,null,null,null,null,null,null,"",null,"","",null,null,null,0]
[null,null,null,null,null,null,6,null,null,null,null,null,null,null,null,"",null,"","",null,null,null,{"$f":"IFERROR(S82/D$9,)","v":0}]
[null,null,null,null,null,null,7,null,null,null,null,null,null,null,null,"",null,"","",null,null,null,0]
[null,null,null,null,null,null,8,null,null,null,null,null,null,null,null,"",null,"","",null,null,null,0]
[null,null,null,null,null,null,9,null,null,null,null,null,null,null,null,"",null,"","",null,null,null,0]
[null,null,null,null,null,null,10,null,null,null,null,null,null,null,null,"",null,"","",null,null,null,0]
[null,null,null,{"$f":"$D$328","v":"Year 2:"},{"$f":"$E$328","v":0},{"$f":"$J$328","v":0},1,null,null,null,null,null,null,null,null,"",null,"","",null,null,null,0]
[null,null,null,null,null,null,2,null,null,null,null,null,null,null,null,"",null,"","",null,null,null,0]
[null,null,null,null,null,null,3,null,null,null,null,null,null,null,null,"",null,"","",null,null,null,0]
[null,null,null,null,null,null,4,null,null,null,null,null,null,null,null,"",null,"","",null,null,null,0]
[null,null,null,null,null,null,5,null,null,null,null,null,null,null,null,"",null,"","",null,null,null,0]
[null,null,null,null,null,null,6,null,null,null,null,null,null,null,null,"",null,"","",null,null,null,0]
[null,null,null,null,null,null,7,null,null,null,null,null,null,null,null,"",null,{"$f":"IFERROR(Q93/(M93/12),\"\")","v":""},"",null,null,null,0]
[null,null,null,null,null,null,8,null,null,null,null,null,null,null,null,"",null,"","",null,null,null,0]
[null,null,null,null,null,null,9,null,null,null,null,null,null,null,null,"",null,"","",null,null,null,0]
[null,null,null,null,null,null,10,null,null,null,null,null,null,null,null,"",null,"","",null,null,null,0]
[null,null,null,{"$f":"$D$329","v":"Year 3:"},{"$f":"$E$329","v":0},{"$f":"$J$329","v":0},1,null,null,null,null,null,null,null,null,"",null,"","",null,null,null,0]
[null,null,null,null,null,null,2,null,null,null,null,null,null,null,null,"",null,"","",null,null,null,0]
[null,null,null,null,null,null,3,null,null,null,null,null,null,null,null,"",null,"","",null,null,null,0]
[null,null,null,null,null,null,4,null,null,null,null,null,null,null,null,"",null,"","",null,null,null,0]
[null,null,null,null,null,null,5,null,null,null,null,null,null,null,null,"",null,"","",null,null,null,0]
[null,null,null,null,null,null,6,null,null,null,null,null,null,null,null,"",null,"","",null,null,null,0]
[null,null,null,null,null,null,7,null,null,null,null,null,null,null,null,"",null,"","",null,null,null,0]
[null,null,null,null,null,null,8,null,null,null,null,null,null,null,null,"",null,"","",null,null,null,0]
[null,null,null,null,null,null,9,null,null,null,null,null,null,null,null,"",null,"","",null,null,null,0]
[null,null,null,null,null,null,10,null,null,null,null,null,null,null,null,"",null,"","",null,null,null,0]
[null,{"$f":"CONCATENATE(\"SUM \"&B77)","v":"SUM Person 3"},null,null,null,null,null,null,null,null,null,null,null,null,null,null,{"$f":"SUM(Q77:Q106)","v":0},{"$f":"SUM(R77:R106)","v":0},{"$f":"SUM(S77:S106)","v":0},null,null,null,{"$f":"SUM(W77:W106)","v":0}]
[null,"Person 4",null,{"$f":"$D$327","v":"Year 1:"},{"$f":"$E$327","v":1900},{"$f":"$J$327","v":0},1,null,null,null,null,null,null,null,null,{"$f":"IFERROR(((H108+I108)/M108),\"\")","v":""},null,{"$f":"IFERROR(Q108/(M108/12),\"\")","v":""},{"$f":"IFERROR(P108*Q108,\"\")","v":""},null,null,null,0]
[null,null,null,null,null,null,2,null,null,null,null,null,null,null,null,"",null,"","",null,null,null,0]
[null,null,null,null,null,null,3,null,null,null,null,null,null,null,null,"",null,"","",null,null,null,0]
[null,null,null,null,null,null,4,null,null,null,null,null,null,null,null,"",null,"","",null,null,null,0]
[null,null,null,null,null,null,5,null,null,null,null,null,null,null,null,"",null,"","",null,null,null,0]
[null,null,null,null,null,null,6,null,null,null,null,null,null,null,null,"",null,"","",null,null,null,0]
[null,null,null,null,null,null,7,null,null,null,null,null,null,null,null,"",null,"","",null,null,null,0]
[null,null,null,null,null,null,8,null,null,null,null,null,null,null,null,"",null,"","",null,null,null,0]
[null,null,null,null,null,null,9,null,null,null,null,null,null,null,null,"",null,"","",null,null,null,0]
[null,null,null,null,null,null,10,null,null,null,null,null,null,null,null,"",null,"","",null,null,null,0]
[null,null,null,{"$f":"$D$328","v":"Year 2:"},{"$f":"$E$328","v":0},{"$f":"$J$328","v":0},1,null,null,null,null,null,null,null,null,"",null,"","",null,null,null,0]
[null,null,null,null,null,null,2,null,null,null,null,null,null,null,null,"",null,"","",null,null,null,0]
[null,null,null,null,null,null,3,null,null,null,null,null,null,null,null,"",null,"","",null,null,null,0]
[null,null,null,null,null,null,4,null,null,null,null,null,null,null,null,"",null,"","",null,null,null,0]
[null,null,null,null,null,null,5,null,null,null,null,null,null,null,null,"",null,"","",null,null,null,0]
[null,null,null,null,null,null,6,null,null,null,null,null,null,null,null,"",null,"","",null,null,null,0]
[null,null,null,null,null,null,7,null,null,null,null,null,null,null,null,"",null,{"$f":"IFERROR(Q124/(M124/12),\"\")","v":""},"",null,null,null,0]
[null,null,null,null,null,null,8,null,null,null,null,null,null,null,null,"",null,"","",null,null,null,0]
[null,null,null,null,null,null,9,null,null,null,null,null,null,null,null,"",null,"","",null,null,null,0]
[null,null,null,null,null,null,10,null,null,null,null,null,null,null,null,"",null,"","",null,null,null,0]
[null,null,null,{"$f":"$D$329","v":"Year 3:"},{"$f":"$E$329","v":0},{"$f":"$J$329","v":0},1,null,null,null,null,null,null,null,null,"",null,"","",null,null,null,0]
[null,null,null,null,null,null,2,null,null,null,null,null,null,null,null,"",null,"","",null,null,null,0]
[null,null,null,null,null,null,3,null,null,null,null,null,null,null,null,"",null,"","",null,null,null,0]
[null,null,null,null,null,null,4,null,null,null,null,null,null,null,null,"",null,"","",null,null,null,0]
[null,null,null,null,null,null,5,null,null,null,null,null,null,null,null,"",null,"","",null,null,null,0]
[null,null,null,null,null,null,6,null,null,null,null,null,null,null,null,"",null,"","",null,null,null,0]
[null,null,null,null,null,null,7,null,null,null,null,null,null,null,null,"",null,"","",null,null,null,0]
[null,null,null,null,null,null,8,null,null,null,null,null,null,null,null,"",null,"","",null,null,null,0]
[null,null,null,null,null,null,9,null,null,null,null,null,null,null,null,"",null,"","",null,null,null,0]
[null,null,null,null,null,null,10,null,null,null,null,null,null,null,null,"",null,"","",null,null,null,0]
[null,{"$f":"CONCATENATE(\"SUM \"&B108)","v":"SUM Person 4"},null,null,null,null,null,null,null,null,null,null,null,null,null,null,{"$f":"SUM(Q108:Q137)","v":0},{"$f":"SUM(R108:R137)","v":0},{"$f":"SUM(S108:S137)","v":0},null,null,null,{"$f":"SUM(W108:W137)","v":0}]
[null,"Person 5",null,{"$f":"$D$327","v":"Year 1:"},{"$f":"$E$327","v":1900},{"$f":"$J$327","v":0},1,null,null,null,null,null,null,null,null,{"$f":"IFERROR(((H139+I139)/M139),\"\")","v":""},null,{"$f":"IFERROR(Q139/(M139/12),\"\")","v":""},{"$f":"IFERROR(P139*Q139,\"\")","v":""},null,null,null,0]
[null,null,null,null,null,null,2,null,null,null,null,null,null,null,null,"",null,"","",null,null,null,0]
[null,null,null,null,null,null,3,null,null,null,null,null,null,null,null,"",null,"","",null,null,null,0]
[null,null,null,null,null,null,4,null,null,null,null,null,null,null,null,"",null,"","",null,null,null,0]
[null,null,null,null,null,null,5,null,null,null,null,null,null,null,null,"",null,"","",null,null,null,0]
[null,null,null,null,null,null,6,null,null,null,null,null,null,null,null,"",null,"","",null,null,null,0]
[null,null,null,null,null,null,7,null,null,null,null,null,null,null,null,"",null,"","",null,null,null,0]
[null,null,null,null,null,null,8,null,null,null,null,null,null,null,null,"",null,"","",null,null,null,0]
[null,null,null,null,null,null,9,null,null,null,null,null,null,null,null,"",null,"","",null,null,null,0]
[null,null,null,null,null,null,10,null,null,null,null,null,null,null,null,"",null,"","",null,null,null,{"$f":"IFERROR(S148/D$9,)","v":0}]
[null,null,null,{"$f":"$D$328","v":"Year 2:"},{"$f":"$E$328","v":0},{"$f":"$J$328","v":0},1,null,null,null,null,null,null,null,null,"",null,"","",null,null,null,0]
[null,null,null,null,null,null,2,null,null,null,null,null,null,null,null,"",null,"","",null,null,null,0]
[null,null,null,null,null,null,3,null,null,null,null,null,null,null,null,"",null,"","",null,null,null,0]
[null,null,null,null,null,null,4,null,null,null,null,null,null,null,null,"",null,"","",null,null,null,0]
[null,null,null,null,null,null,5,null,null,null,null,null,null,null,null,"",null,"","",null,null,null,0]
[null,null,null,null,null,null,6,null,null,null,null,null,null,null,null,"",null,"","",null,null,null,0]
[null,null,null,null,null,null,7,null,null,null,null,null,null,null,null,"",null,{"$f":"IFERROR(Q155/(M155/12),\"\")","v":""},"",null,null,null,0]
[null,null,null,null,null,null,8,null,null,null,null,null,null,null,null,"",null,"","",null,null,null,0]
[null,null,null,null,null,null,9,null,null,null,null,null,null,null,null,"",null,"","",null,null,null,0]
[null,null,null,null,null,null,10,null,null,null,null,null,null,null,null,"",null,"","",null,null,null,0]
[null,null,null,{"$f":"$D$329","v":"Year 3:"},{"$f":"$E$329","v":0},{"$f":"$J$329","v":0},1,null,null,null,null,null,null,null,null,"",null,"","",null,null,null,0]
[null,null,null,null,null,null,2,null,null,null,null,null,null,null,null,"",null,"","",null,null,null,0]
[null,null,null,null,null,null,3,null,null,null,null,null,null,null,null,"",null,"","",null,null,null,0]
[null,null,null,null,null,null,4,null,null,null,null,null,null,null,null,"",null,"","",null,null,null,0]
[null,null,null,null,null,null,5,null,null,null,null,null,null,null,null,"",null,"","",null,null,null,0]
[null,null,null,null,null,null,6,null,null,null,null,null,null,null,null,"",null,"","",null,null,null,0]
[null,null,null,null,null,null,7,null,null,null,null,null,null,null,null,"",null,"","",null,null,null,0]
[null,null,null,null,null,null,8,null,null,null,null,null,null,null,null,"",null,"","",null,null,null,0]
[null,null,null,null,null,null,9,null,null,null,null,null,null,null,null,"",null,"","",null,null,null,0]
[null,null,null,null,null,null,10,null,null,null,null,null,null,null,null,"",null,"","",null,null,null,0]
[null,{"$f":"CONCATENATE(\"SUM \"&B139)","v":"SUM Person 5"},null,null,null,null,null,null,null,null,null,null,null,null,null,null,{"$f":"SUM(Q139:Q168)","v":0},{"$f":"SUM(R139:R168)","v":0},{"$f":"SUM(S139:S168)","v":0},null,null,null,{"$f":"SUM(W139:W168)","v":0}]
[null,"Person 6",null,{"$f":"$D$327","v":"Year 1:"},{"$f":"$E$327","v":1900},{"$f":"$J$327","v":0},1,null,null,null,null,null,null,null,null,{"$f":"IFERROR(((H170+I170)/M170),\"\")","v":""},null,{"$f":"IFERROR(Q170/(M170/12),\"\")","v":""},{"$f":"IFERROR(P170*Q170,\"\")","v":""},null,null,null,0]
[null,null,null,null,null,null,2,null,null,null,null,null,null,null,null,"",null,"","",null,null,null,0]
[null,null,null,null,null,null,3,null,null,null,null,null,null,null,null,"",null,"","",null,null,null,0]
[null,null,null,null,null,null,4,null,null,null,null,null,null,null,null,"",null,"","",null,null,null,0]
[null,null,null,null,null,null,5,null,null,null,null,null,null,null,null,"",null,"","",null,null,null,0]
[null,null,null,null,null,null,6,null,null,null,null,null,null,null,null,"",null,"","",null,null,null,0]
[null,null,null,null,null,null,7,null,null,null,null,null,null,null,null,"",null,"","",null,null,null,0]
[null,null,null,null,null,null,8,null,null,null,null,null,null,null,null,"",null,"","",null,null,null,0]
[null,null,null,null,null,null,9,null,null,null,null,null,null,null,null,"",null,"","",null,null,null,0]
[null,null,null,null,null,null,10,null,null,null,null,null,null,null,null,"",null,"","",null,null,null,0]
[null,null,null,{"$f":"$D$328","v":"Year 2:"},{"$f":"$E$328","v":0},{"$f":"$J$328","v":0},1,null,null,null,null,null,null,null,null,"",null,"","",null,null,null,0]
[null,null,null,null,null,null,2,null,null,null,null,null,null,null,null,"",null,"","",null,null,null,0]
[null,null,null,null,null,null,3,null,null,null,null,null,null,null,null,"",null,"","",null,null,null,0]
[null,null,null,null,null,null,4,null,null,null,null,null,null,null,null,"",null,"","",null,null,null,0]
[null,null,null,null,null,null,5,null,null,null,null,null,null,null,null,"",null,"","",null,null,null,0]
[null,null,null,null,null,null,6,null,null,null,null,null,null,null,null,"",null,"","",null,null,null,0]
[null,null,null,null,null,null,7,null,null,null,null,null,null,null,null,"",null,{"$f":"IFERROR(Q186/(M186/12),\"\")","v":""},"",null,null,null,0]
[null,null,null,null,null,null,8,null,null,null,null,null,null,null,null,"",null,"","",null,null,null,0]
[null,null,null,null,null,null,9,null,null,null,null,null,null,null,null,"",null,"","",null,null,null,0]
[null,null,null,null,null,null,10,null,null,null,null,null,null,null,null,"",null,"","",null,null,null,0]
[null,null,null,{"$f":"$D$329","v":"Year 3:"},{"$f":"$E$329","v":0},{"$f":"$J$329","v":0},1,null,null,null,null,null,null,null,null,"",null,"","",null,null,null,0]
[null,null,null,null,null,null,2,null,null,null,null,null,null,null,null,"",null,"","",null,null,null,0]
[null,null,null,null,null,null,3,null,null,null,null,null,null,null,null,"",null,"","",null,null,null,0]
[null,null,null,null,null,null,4,null,null,null,null,null,null,null,null,"",null,"","",null,null,null,0]
[null,null,null,null,null,null,5,null,null,null,null,null,null,null,null,"",null,"","",null,null,null,0]
[null,null,null,null,null,null,6,null,null,null,null,null,null,null,null,"",null,"","",null,null,null,0]
[null,null,null,null,null,null,7,null,null,null,null,null,null,null,null,"",null,"","",null,null,null,0]
[null,null,null,null,null,null,8,null,null,null,null,null,null,null,null,"",null,"","",null,null,null,0]
[null,null,null,null,null,null,9,null,null,null,null,null,null,null,null,"",null,"","",null,null,null,0]
[null,null,null,null,null,null,10,null,null,null,null,null,null,null,null,"",null,"","",null,null,null,0]
[null,{"$f":"CONCATENATE(\"SUM \"&B170)","v":"SUM Person 6"},null,null,null,null,null,null,null,null,null,null,null,null,null,null,{"$f":"SUM(Q170:Q199)","v":0},{"$f":"SUM(R170:R199)","v":0},{"$f":"SUM(S170:S199)","v":0},null,null,null,{"$f":"SUM(W170:W199)","v":0}]
[null,"Person 7",null,{"$f":"$D$327","v":"Year 1:"},{"$f":"$E$327","v":1900},{"$f":"$J$327","v":0},1,null,null,null,null,null,null,null,null,{"$f":"IFERROR(((H201+I201)/M201),\"\")","v":""},null,{"$f":"IFERROR(Q201/(M201/12),\"\")","v":""},{"$f":"IFERROR(P201*Q201,\"\")","v":""},null,null,null,0]
[null,null,null,null,null,null,2,null,null,null,null,null,null,null,null,"",null,"","",null,null,null,0]
[null,null,null,null,null,null,3,null,null,null,null,null,null,null,null,"",null,"","",null,null,null,0]
[null,null,null,null,null,null,4,null,null,null,null,null,null,null,null,"",null,"","",null,null,null,0]
[null,null,null,null,null,null,5,null,null,null,null,null,null,null,null,"",null,"","",null,null,null,0]
[null,null,null,null,null,null,6,null,null,null,null,null,null,null,null,"",null,"","",null,null,null,0]
[null,null,null,null,null,null,7,null,null,null,null,null,null,null,null,"",null,"","",null,null,null,0]
[null,null,null,null,null,null,8,null,null,null,null,null,null,null,null,"",null,"","",null,null,null,0]
[null,null,null,null,null,null,9,null,null,null,null,null,null,null,null,"",null,"","",null,null,null,0]
[null,null,null,null,null,null,10,null,null,null,null,null,null,null,null,"",null,"","",null,null,null,0]
[null,null,null,{"$f":"$D$328","v":"Year 2:"},{"$f":"$E$328","v":0},{"$f":"$J$328","v":0},1,null,null,null,null,null,null,null,null,"",null,"","",null,null,null,0]
[null,null,null,null,null,null,2,null,null,null,null,null,null,null,null,"",null,"","",null,null,null,0]
[null,null,null,null,null,null,3,null,null,null,null,null,null,null,null,"",null,"","",null,null,null,0]
[null,null,null,null,null,null,4,null,null,null,null,null,null,null,null,"",null,"","",null,null,null,{"$f":"IFERROR(S214/D$9,)","v":0}]
[null,null,null,null,null,null,5,null,null,null,null,null,null,null,null,"",null,"","",null,null,null,0]
[null,null,null,null,null,null,6,null,null,null,null,null,null,null,null,"",null,"","",null,null,null,0]
[null,null,null,null,null,null,7,null,null,null,null,null,null,null,null,"",null,{"$f":"IFERROR(Q217/(M217/12),\"\")","v":""},"",null,null,null,0]
[null,null,null,null,null,null,8,null,null,null,null,null,null,null,null,"",null,"","",null,null,null,0]
[null,null,null,null,null,null,9,null,null,null,null,null,null,null,null,"",null,"","",null,null,null,0]
[null,null,null,null,null,null,10,null,null,null,null,null,null,null,null,"",null,"","",null,null,null,0]
[null,null,null,{"$f":"$D$329","v":"Year 3:"},{"$f":"$E$329","v":0},{"$f":"$J$329","v":0},1,null,null,null,null,null,null,null,null,"",null,"","",null,null,null,0]
[null,null,null,null,null,null,2,null,null,null,null,null,null,null,null,"",null,"","",null,null,null,0]
[null,null,null,null,null,null,3,null,null,null,null,null,null,null,null,"",null,"","",null,null,null,0]
[null,null,null,null,null,null,4,null,null,null,null,null,null,null,null,"",null,"","",null,null,null,0]
[null,null,null,null,null,null,5,null,null,null,null,null,null,null,null,"",null,"","",null,null,null,0]
[null,null,null,null,null,null,6,null,null,null,null,null,null,null,null,"",null,"","",null,null,null,0]
[null,null,null,null,null,null,7,null,null,null,null,null,null,null,null,"",null,"","",null,null,null,0]
[null,null,null,null,null,null,8,null,null,null,null,null,null,null,null,"",null,"","",null,null,null,0]
[null,null,null,null,null,null,9,null,null,null,null,null,null,null,null,"",null,"","",null,null,null,0]
[null,null,null,null,null,null,10,null,null,null,null,null,null,null,null,"",null,"","",null,null,null,0]
[null,{"$f":"CONCATENATE(\"SUM \"&B201)","v":"SUM Person 7"},null,null,null,null,null,null,null,null,null,null,null,null,null,null,{"$f":"SUM(Q201:Q230)","v":0},{"$f":"SUM(R201:R230)","v":0},{"$f":"SUM(S201:S230)","v":0},null,null,null,{"$f":"SUM(W201:W230)","v":0}]
[null,"Person 8",null,{"$f":"$D$327","v":"Year 1:"},{"$f":"$E$327","v":1900},{"$f":"$J$327","v":0},1,null,null,null,null,null,null,null,null,{"$f":"IFERROR(((H232+I232)/M232),\"\")","v":""},null,{"$f":"IFERROR(Q232/(M232/12),\"\")","v":""},{"$f":"IFERROR(P232*Q232,\"\")","v":""},null,null,null,0]
[null,null,null,null,null,null,2,null,null,null,null,null,null,null,null,"",null,"","",null,null,null,0]
[null,null,null,null,null,null,3,null,null,null,null,null,null,null,null,"",null,"","",null,null,null,0]
[null,null,null,null,null,null,4,null,null,null,null,null,null,null,null,"",null,"","",null,null,null,0]
[null,null,null,null,null,null,5,null,null,null,null,null,null,null,null,"",null,"","",null,null,null,0]
[null,null,null,null,null,null,6,null,null,null,null,null,null,null,null,"",null,"","",null,null,null,0]
[null,null,null,null,null,null,7,null,null,null,null,null,null,null,null,"",null,"","",null,null,null,0]
[null,null,null,null,null,null,8,null,null,null,null,null,null,null,null,"",null,"","",null,null,null,0]
[null,null,null,null,null,null,9,null,null,null,null,null,null,null,null,"",null,"","",null,null,null,0]
[null,null,null,null,null,null,10,null,null,null,null,null,null,null,null,"",null,"","",null,null,null,0]
[null,null,null,{"$f":"$D$328","v":"Year 2:"},{"$f":"$E$328","v":0},{"$f":"$J$328","v":0},1,null,null,null,null,null,null,null,null,"",null,"","",null,null,null,0]
[null,null,null,null,null,null,2,null,null,null,null,null,null,null,null,"",null,"","",null,null,null,0]
[null,null,null,null,null,null,3,null,null,null,null,null,null,null,null,"",null,"","",null,null,null,0]
[null,null,null,null,null,null,4,null,null,null,null,null,null,null,null,"",null,"","",null,null,null,0]
[null,null,null,null,null,null,5,null,null,null,null,null,null,null,null,"",null,"","",null,null,null,0]
[null,null,null,null,null,null,6,null,null,null,null,null,null,null,null,"",null,"","",null,null,null,0]
[null,null,null,null,null,null,7,null,null,null,null,null,null,null,null,"",null,{"$f":"IFERROR(Q248/(M248/12),\"\")","v":""},"",null,null,null,0]
[null,null,null,null,null,null,8,null,null,null,null,null,null,null,null,"",null,"","",null,null,null,0]
[null,null,null,null,null,null,9,null,null,null,null,null,null,null,null,"",null,"","",null,null,null,0]
[null,null,null,null,null,null,10,null,null,null,null,null,null,null,null,"",null,"","",null,null,null,0]
[null,null,null,{"$f":"$D$329","v":"Year 3:"},{"$f":"$E$329","v":0},{"$f":"$J$329","v":0},1,null,null,null,null,null,null,null,null,"",null,"","",null,null,null,0]
[null,null,null,null,null,null,2,null,null,null,null,null,null,null,null,"",null,"","",null,null,null,0]
[null,null,null,null,null,null,3,null,null,null,null,null,null,null,null,"",null,"","",null,null,null,0]
[null,null,null,null,null,null,4,null,null,null,null,null,null,null,null,"",null,"","",null,null,null,0]
[null,null,null,null,null,null,5,null,null,null,null,null,null,null,null,"",null,"","",null,null,null,0]
[null,null,null,null,null,null,6,null,null,null,null,null,null,null,null,"",null,"","",null,null,null,0]
[null,null,null,null,null,null,7,null,null,null,null,null,null,null,null,"",null,"","",null,null,null,0]
[null,null,null,null,null,null,8,null,null,null,null,null,null,null,null,"",null,"","",null,null,null,0]
[null,null,null,null,null,null,9,null,null,null,null,null,null,null,null,"",null,"","",null,null,null,0]
[null,null,null,null,null,null,10,null,null,null,null,null,null,null,null,"",null,"","",null,null,null,0]
[null,{"$f":"CONCATENATE(\"SUM \"&B232)","v":"SUM Person 8"},null,null,null,null,null,null,null,null,null,null,null,null,null,null,{"$f":"SUM(Q232:Q261)","v":0},{"$f":"SUM(R232:R261)","v":0},{"$f":"SUM(S232:S261)","v":0},null,null,null,{"$f":"SUM(W232:W261)","v":0}]
[null,"Person 9",null,{"$f":"$D$327","v":"Year 1:"},{"$f":"$E$327","v":1900},{"$f":"$J$327","v":0},1,null,null,null,null,null,null,null,null,{"$f":"IFERROR(((H263+I263)/M263),\"\")","v":""},null,{"$f":"IFERROR(Q263/(M263/12),\"\")","v":""},{"$f":"IFERROR(P263*Q263,\"\")","v":""},null,null,null,0]
[null,null,null,null,null,null,2,null,null,null,null,null,null,null,null,"",null,"","",null,null,null,0]
[null,null,null,null,null,null,3,null,null,null,null,null,null,null,null,"",null,"","",null,null,null,0]
[null,null,null,null,null,null,4,null,null,null,null,null,null,null,null,"",null,"","",null,null,null,0]
[null,null,null,null,null,null,5,null,null,null,null,null,null,null,null,"",null,"","",null,null,null,0]
[null,null,null,null,null,null,6,null,null,null,null,null,null,null,null,"",null,"","",null,null,null,0]
[null,null,null,null,null,null,7,null,null,null,null,null,null,null,null,"",null,"","",null,null,null,0]
[null,null,null,null,null,null,8,null,null,null,null,null,null,null,null,"",null,"","",null,null,null,0]
[null,null,null,null,null,null,9,null,null,null,null,null,null,null,null,"",null,"","",null,null,null,0]
[null,null,null,null,null,null,10,null,null,null,null,null,null,null,null,"",null,"","",null,null,null,0]
[null,null,null,{"$f":"$D$328","v":"Year 2:"},{"$f":"$E$328","v":0},{"$f":"$J$328","v":0},1,null,null,null,null,null,null,null,null,"",null,"","",null,null,null,0]
[null,null,null,null,null,null,2,null,null,null,null,null,null,null,null,"",null,"","",null,null,null,0]
[null,null,null,null,null,null,3,null,null,null,null,null,null,null,null,"",null,"","",null,null,null,0]
[null,null,null,null,null,null,4,null,null,null,null,null,null,null,null,"",null,"","",null,null,null,0]
[null,null,null,null,null,null,5,null,null,null,null,null,null,null,null,"",null,"","",null,null,null,0]
[null,null,null,null,null,null,6,null,null,null,null,null,null,null,null,"",null,"","",null,null,null,0]
[null,null,null,null,null,null,7,null,null,null,null,null,null,null,null,"",null,{"$f":"IFERROR(Q279/(M279/12),\"\")","v":""},"",null,null,null,0]
[null,null,null,null,null,null,8,null,null,null,null,null,null,null,null,"",null,"","",null,null,null,{"$f":"IFERROR(S280/D$9,)","v":0}]
[null,null,null,null,null,null,9,null,null,null,null,null,null,null,null,"",null,"","",null,null,null,0]
[null,null,null,null,null,null,10,null,null,null,null,null,null,null,null,"",null,"","",null,null,null,0]
[null,null,null,{"$f":"$D$329","v":"Year 3:"},{"$f":"$E$329","v":0},{"$f":"$J$329","v":0},1,null,null,null,null,null,null,null,null,"",null,"","",null,null,null,0]
[null,null,null,null,null,null,2,null,null,null,null,null,null,null,null,"",null,"","",null,null,null,0]
[null,null,null,null,null,null,3,null,null,null,null,null,null,null,null,"",null,"","",null,null,null,0]
[null,null,null,null,null,null,4,null,null,null,null,null,null,null,null,"",null,"","",null,null,null,0]
[null,null,null,null,null,null,5,null,null,null,null,null,null,null,null,"",null,"","",null,null,null,0]
[null,null,null,null,null,null,6,null,null,null,null,null,null,null,null,"",null,"","",null,null,null,0]
[null,null,null,null,null,null,7,null,null,null,null,null,null,null,null,"",null,"","",null,null,null,0]
[null,null,null,null,null,null,8,null,null,null,null,null,null,null,null,"",null,"","",null,null,null,0]
[null,null,null,null,null,null,9,null,null,null,null,null,null,null,null,"",null,"","",null,null,null,0]
[null,null,null,null,null,null,10,null,null,null,null,null,null,null,null,"",null,"","",null,null,null,0]
[null,{"$f":"CONCATENATE(\"SUM \"&B263)","v":"SUM Person 9"},null,null,null,null,null,null,null,null,null,null,null,null,null,null,{"$f":"SUM(Q263:Q292)","v":0},{"$f":"SUM(R263:R292)","v":0},{"$f":"SUM(S263:S292)","v":0},null,null,null,{"$f":"SUM(W263:W292)","v":0}]
[null,"Person 10",null,{"$f":"$D$327","v":"Year 1:"},{"$f":"$E$327","v":1900},{"$f":"$J$327","v":0},1,null,null,null,null,null,null,null,null,{"$f":"IFERROR(((H294+I294)/M294),\"\")","v":""},null,{"$f":"IFERROR(Q294/(M294/12),\"\")","v":""},{"$f":"IFERROR(P294*Q294,\"\")","v":""},null,null,null,0]
[null,null,null,null,null,null,2,null,null,null,null,null,null,null,null,"",null,"","",null,null,null,0]
[null,null,null,null,null,null,3,null,null,null,null,null,null,null,null,"",null,"","",null,null,null,0]
[null,null,null,null,null,null,4,null,null,null,null,null,null,null,null,"",null,"","",null,null,null,0]
[null,null,null,null,null,null,5,null,null,null,null,null,null,null,null,"",null,"","",null,null,null,0]
[null,null,null,null,null,null,6,null,null,null,null,null,null,null,null,"",null,"","",null,null,null,0]
[null,null,null,null,null,null,7,null,null,null,null,null,null,null,null,"",null,"","",null,null,null,0]
[null,null,null,null,null,null,8,null,null,null,null,null,null,null,null,"",null,"","",null,null,null,0]
[null,null,null,null,null,null,9,null,null,null,null,null,null,null,null,"",null,"","",null,null,null,0]
[null,null,null,null,null,null,10,null,null,null,null,null,null,null,null,"",null,"","",null,null,null,0]
[null,null,null,{"$f":"$D$328","v":"Year 2:"},{"$f":"$E$328","v":0},{"$f":"$J$328","v":0},1,null,null,null,null,null,null,null,null,"",null,"","",null,null,null,0]
[null,null,null,null,null,null,2,null,null,null,null,null,null,null,null,"",null,"","",null,null,null,0]
[null,null,null,null,null,null,3,null,null,null,null,null,null,null,null,"",null,"","",null,null,null,0]
[null,null,null,null,null,null,4,null,null,null,null,null,null,null,null,"",null,"","",null,null,null,0]
[null,null,null,null,null,null,5,null,null,null,null,null,null,null,null,"",null,"","",null,null,null,0]
[null,null,null,null,null,null,6,null,null,null,null,null,null,null,null,"",null,"","",null,null,null,0]
[null,null,null,null,null,null,7,null,null,null,null,null,null,null,null,"",null,{"$f":"IFERROR(Q310/(M310/12),\"\")","v":""},"",null,null,null,0]
[null,null,null,null,null,null,8,null,null,null,null,null,null,null,null,"",null,"","",null,null,null,0]
[null,null,null,null,null,null,9,null,null,null,null,null,null,null,null,"",null,"","",null,null,null,0]
[null,null,null,null,null,null,10,null,null,null,null,null,null,null,null,"",null,"","",null,null,null,0]
[null,null,null,{"$f":"$D$329","v":"Year 3:"},{"$f":"$E$329","v":0},{"$f":"$J$329","v":0},1,null,null,null,null,null,null,null,null,"",null,"","",null,null,null,0]
[null,null,null,null,null,null,2,null,null,null,null,null,null,null,null,"",null,"","",null,null,null,0]
[null,null,null,null,null,null,3,null,null,null,null,null,null,null,null,"",null,"","",null,null,null,0]
[null,null,null,null,null,null,4,null,null,null,null,null,null,null,null,"",null,"","",null,null,null,0]
[null,null,null,null,null,null,5,null,null,null,null,null,null,null,null,"",null,"","",null,null,null,0]
[null,null,null,null,null,null,6,null,null,null,null,null,null,null,null,"",null,"","",null,null,null,0]
[null,null,null,null,null,null,7,null,null,null,null,null,null,null,null,"",null,"","",null,null,null,0]
[null,null,null,null,null,null,8,null,null,null,null,null,null,null,null,"",null,"","",null,null,null,0]
[null,null,null,null,null,null,9,null,null,null,null,null,null,null,null,"",null,"","",null,null,null,0]
[null,null,null,null,null,null,10,null,null,null,null,null,null,null,null,"",null,"","",null,null,null,0]
[null,{"$f":"CONCATENATE(\"SUM \"&B294)","v":"SUM Person 10"},null,null,null,null,null,null,null,null,null,null,null,null,null,null,{"$f":"SUM(Q294:Q323)","v":0},{"$f":"SUM(R294:R323)","v":0},{"$f":"SUM(S294:S323)","v":0},null,null,null,{"$f":"SUM(W294:W323)","v":0}]
[null,"TOTAL SUM",null,null,null,null,null,null,null,null,null,null,null,null,null,null,{"$f":"Q324+Q293+Q262+Q231+Q200+Q169+Q138+Q107+Q76+Q45","v":0},0,0,0,0,0,0]
[]
[null,null,null,"Year 1:",{"$f":"YEAR('Ekonomisk projektbeskrivning'!E29)","v":1900},{"$f":"IF(MONTH(H327)-MONTH(G327)=0,0,MONTH(H327)-MONTH(G327)+1)","v":0},{"$f":"'Ekonomisk projektbeskrivning'!E29","v":"00:00:00"},{"$f":"IF(YEAR('Ekonomisk projektbeskrivning'!F29)='Personnel costs RP4'!E327,'Ekonomisk projektbeskrivning'!F29,CONCATENATE(E327&\"-12-31\"))","v":"00:00:00"},{"$f":"IF(F327<>0,IF(F327<12,IF(MONTH(G327)>(12-F327),E327,E327-1),E327),\"\")","v":""}]
[null,null,null,"Year 2:",{"$f":"IF(YEAR('Ekonomisk projektbeskrivning'!F29)>=('Personnel costs RP4'!E327+1),('Personnel costs RP4'!E327+1),0)","v":0},{"$f":"IF(E328=0,0,IF(MONTH(G328)=1,IF(MONTH(H328)=1,1,(MONTH(H328)-MONTH(G328)+1))))","v":0},{"$f":"IF(E327=YEAR('Ekonomisk projektbeskrivning'!F29),0,CONCATENATE(E328&\"-01-01\"))","v":"00:00:00"},{"$f":"IF(E327+1=YEAR('Ekonomisk projektbeskrivning'!F29),'Ekonomisk projektbeskrivning'!F29,IF(E327+1>YEAR('Ekonomisk projektbeskrivning'!F29),0,CONCATENATE(E328&\"-12-31\")))","v":"00:00:00"},{"$f":"IF(F328<>0,IF(F328<12,IF(MONTH(G328)>(12-F328),E328,E328-1),E328),\"\")","v":""}]
[null,null,null,"Year 3:",{"$f":"IF(YEAR('Ekonomisk projektbeskrivning'!F29)>=('Personnel costs RP4'!E327+2),('Personnel costs RP4'!E328+1),0)","v":0},{"$f":"IF(E329=0,0,IF(MONTH(G329)=1,IF(MONTH(H329)=1,1,(MONTH(H329)-MONTH(G329)+1))))","v":0},{"$f":"IF(E327+1>=YEAR('Ekonomisk projektbeskrivning'!F29),0,CONCATENATE(E327+2&\"-01-01\"))","v":0},{"$f":"IF(E327+2=YEAR('Ekonomisk projektbeskrivning'!F29),'Ekonomisk projektbeskrivning'!F29,IF(E327+2>YEAR('Ekonomisk projektbeskrivning'!F29),0,CONCATENATE(E329&\"-12-31\")))","v":0},{"$f":"IF(F329<>0,IF(F329<12,IF(MONTH(G329)>(12-F329),E329,E329-1),E329),\"\")","v":""}]

{"sheet":"Project Transactions RP4","index":26,"n_rows":34,"n_cols":16,"rows_kept":34,"cut":false,"hidden":false,"merged":[]}
["sql SELECT dim_1, dim_2, voucher_no, period, trans_date, VERIFIKATIONER.account, VERIFIKATIONER.description AS VERTEXT, amount, KONTO.description AS KONTONAMN"]
["sql FROM agltransact AS VERIFIKATIONER"]
["sql FULL JOIN aglaccounts as KONTO"]
["sql ON VERIFIKATIONER.account = KONTO.account"]
[{"$f":"C5","v":"sql WHERE dim_1 LIKE '0%'"},null,{"$f":"CONCATENATE(\"sql WHERE dim_1 LIKE '\"&E15&\"%'\")","v":"sql WHERE dim_1 LIKE '0%'"}]
[{"$f":"C6","v":"sql AND dim_2 LIKE '0%'"},null,{"$f":"CONCATENATE(\"sql AND dim_2 LIKE '\"&E16&\"%'\")","v":"sql AND dim_2 LIKE '0%'"}]
[{"$f":"C7","v":"sql AND period >=''"},null,{"$f":"CONCATENATE(\"sql AND period >='\"&E17&\"'\")","v":"sql AND period >=''"}]
[{"$f":"C8","v":"sql AND period <=''"},null,{"$f":"CONCATENATE(\"sql AND period <='\"&E18&\"'\")","v":"sql AND period <=''"}]
["sql AND KONTO.client='BO'"]
["query"]
["sort account"]
["columns","code account","text dim_1","text dim_2","text voucher_no","text Period","trans_date","text account","KONTONAMN","VERTEXT","amount"]
[null,null,"VERIFIKATIONSLISTA - RP4"]
[null,null,null,null,null,null,null,null,null,null,"Rapporten söker ut kostnader på kontogrupper"]
[null,null,"Orgenhet:",null,{"$f":"'Project Transactions RP1'!E15","v":0},"Rapporten söker automatiskt ut med * utan att detta anges.",null,null,null,null,"43*, 48*, 49*"]
[null,null,"Akt/Proj:",null,{"$f":"'Project Transactions RP1'!E16","v":0},"Rapporten söker automatiskt ut med * utan att detta anges.",null,null,null,null,"5*"]
[null,null,"Från period:",null,null,"OBS: året börjar med period 00",null,null,null,null,"6*"]
[null,null,"Till period:",null,null,"OBS: året slutar med period 15",null,null,null,null,"95*-97*"]
[null,null,"Reporting period:",null,4]
[]
[null,null,"Orgenhet","Akt/proj","Vernr","Period","Ver.datum","Konto","Konto(T)","Verifikationstext","Belopp","Korrigering belopp (-)","Beskrivning","RR (Om reseräkning)",null,"Kostnadsslag i Financial statement (välj i listan)"]
["detail","43*",null,null,null,null,"00:00:00",null,0,0,0]
["detail","48*",null,null,null,null,"00:00:00",null,0,0,0]
["detail","49*",null,null,null,null,"00:00:00",null,0,0,0]
["detail","5*",null,null,null,null,"00:00:00",null,0,0,0]
["detail","6*"]
["detail","95*",null,null,null,null,"00:00:00",null,0,0,0]
["detail","96*"]
["detail","97*"]
[null,null,null,null,null,null,"00:00:00",null,0,0,0,null,null,{"$f":"IF(MID($J30,42,6)=\"RESEID\",MID($J30,49,11),\"\")","v":""}]
[null,null,null,null,null,null,"00:00:00",null,0,0,0,null,null,""]
[null,null,null,null,null,null,"00:00:00",null,0,0,0,null,null,""]
[null,null,null,null,null,null,"00:00:00",null,0,0,0,null,null,""]
[null,null,null,null,null,null,"00:00:00",null,0,0,0,null,null,""]

{"sheet":"Direct costs RP4","index":27,"n_rows":46,"n_cols":10,"rows_kept":46,"cut":false,"hidden":false,"merged":[[1,3,1,9]]}
["DIRECT COSTS - RP4"]
[null,null,"Project:    ",{"$f":"'Ekonomisk projektbeskrivning'!D5","v":0}]
[null,null,"GA:            ",{"$f":"'Ekonomisk projektbeskrivning'!D22","v":0}]
[null,null,"Exchange rate:",{"$f":"'Ekonomisk projektbeskrivning'!B29","v":0},null,null,null,null,"Reporting period: 4"]
[]
["A.1 Employees (or equivalent)","Beskrivning","RR-nr","Bokfört \nbelopp \n(SEK)","Korrigering \nbokfört \nbelopp \n(SEK)","Belopp att \nredovisa \n(SEK)","Belopp att \nredovisa \n(EUR)","Vernr","WP","Kommentar"]
[]
[]
[]
[]
["A.2 Natural persons working under direct contract","Beskrivning","RR-nr","Bokfört \nbelopp \n(SEK)","Korrigering \nbokfört \nbelopp \n(SEK)","Belopp att \nredovisa \n(SEK)","Belopp att \nredovisa \n(EUR)","Vernr","WP","Kommentar"]
[]
[]
[]
[]
["A.3 Seconded persons","Beskrivning","RR-nr","Bokfört \nbelopp \n(SEK)","Korrigering \nbokfört \nbelopp \n(SEK)","Belopp att \nredovisa \n(SEK)","Belopp att \nredovisa \n(EUR)","Vernr","WP","Kommentar"]
[]
[]
[]
[]
["A.6 Personnel for providing access to research infrastructure","Beskrivning","RR-nr","Bokfört \nbelopp \n(SEK)","Korrigering \nbokfört \nbelopp \n(SEK)","Belopp att \nredovisa \n(SEK)","Belopp att \nredovisa \n(EUR)","Vernr","WP","Kommentar"]
[]
[]
[]
[]
["B.1 Subcontracting","Beskrivning","RR-nr","Bokfört \nbelopp \n(SEK)","Korrigering \nbokfört \nbelopp \n(SEK)","Belopp att \nredovisa \n(SEK)","Belopp att \nredovisa \n(EUR)","Vernr","WP","Kommentar"]
[]
[]
[]
[]
["D.1 Travel","Beskrivning","RR-nr","Bokfört \nbelopp \n(SEK)","Korrigering \nbokfört \nbelopp \n(SEK)","Belopp att \nredovisa \n(SEK)","Belopp att \nredovisa \n(EUR)","Vernr","WP","Kommentar"]
[]
[]
[]
[]
["D.2 Equipment","Beskrivning","RR-nr","Bokfört \nbelopp \n(SEK)","Korrigering \nbokfört \nbelopp \n(SEK)","Belopp att \nredovisa \n(SEK)","Belopp att \nredovisa \n(EUR)","Vernr","WP","Kommentar"]
[]
[]
[]
[]
["D.3 Other goods and services","Beskrivning","RR-nr","Bokfört \nbelopp \n(SEK)","Korrigering \nbokfört \nbelopp \n(SEK)","Belopp att \nredovisa \n(SEK)","Belopp att \nredovisa \n(EUR)","Vernr","WP","Kommentar"]
[]
[]
[]
[]
["D.5 Costs for internally invoiced goods and services","Beskrivning","RR-nr","Bokfört \nbelopp \n(SEK)","Korrigering \nbokfört \nbelopp \n(SEK)","Belopp att \nredovisa \n(SEK)","Belopp att \nredovisa \n(EUR)","Vernr","WP","Kommentar"]

{"sheet":"Financial Statement RP4","index":28,"n_rows":21,"n_cols":3,"rows_kept":21,"cut":false,"hidden":false,"merged":[[11,0,11,1],[2,1,2,2],[7,0,7,1],[8,0,8,1],[9,0,9,1],[10,0,10,1],[20,0,20,1],[12,0,12,1],[13,0,13,1],[14,0,14,1],[15,0,15,1],[16,0,16,1],[17,0,17,1]]}
["FINANCIAL STATEMENT - RP4"]
[]
["Project:",{"$f":"'Ekonomisk projektbeskrivning'!D5","v":0}]
["GA:",{"$f":"'Ekonomisk projektbeskrivning'!D22","v":0}]
["Reporting period:",4]
[]
[]
["Cost Category",null,"Total EUR"]
["a) Direct personnel costs declared as actual costs",null,0]
["b) Direct personnel costs declared as unit costs (average costs)"]
["d) Direct costs of subcontracting",null,0]
["e) Direct costs of providing financial support to third parties"]
["f) Other direct costs",null,0]
["h) Indirect costs (= 0.25 * (a + b + f - o))",null,{"$f":"0.25*(SUM(CostCategory_A_RP4 + CostCategory_D_RP4 + CostCategory_F_RP4 - CostsInKindNotUsedInPremises_RP4))","v":0}]
["j) Total costs (= a + b + d + e + f + h) ",null,{"$f":"SUM(C9:C14)","v":0}]
["k) Receipts"]
["m) Maximum EU-contribution (100%)",null,{"$f":"((C15-C16)*100%)","v":0}]
["n) Requested EU-contribution"]
[]
[]
["o) Use of 'costs of in-kind contributions not used on premises'?"]

{"sheet":"Adjustments RP4","index":29,"n_rows":86,"n_cols":10,"rows_kept":86,"cut":false,"hidden":false,"merged":[[76,0,76,1],[1,2,1,7],[72,0,72,1],[73,0,73,1],[74,0,74,1],[75,0,75,1],[85,0,85,1],[77,0,77,1],[78,0,78,1],[79,0,79,1],[80,0,80,1],[81,0,81,1],[82,0,82,1]]}
["ADJUSTMENTS OF DIRECT COSTS - RP4"]
[null,"Project:    ",{"$f":"'Ekonomisk projektbeskrivning'!D5","v":0}]
[null,"GA:            ",{"$f":"'Ekonomisk projektbeskrivning'!D22","v":0}]
[null,"Exchange rate:",{"$f":"'Ekonomisk projektbeskrivning'!B29","v":0},null,null,null,"Reporting period: 4"]
[]
["A.1 Employees (or equivalent)","Beskrivning","RR (Om reseräkning)","Belopp","EUR","Vernr","WP","Kommentar"]
[null,null,null,null,{"$f":"IFERROR(D7/$C$4,\"\")","v":""}]
[null,null,null,null,{"$f":"IFERROR(D8/$C$4,\"\")","v":""}]
[null,null,null,null,{"$f":"IFERROR(D9/$C$4,\"\")","v":""}]
[null,null,null,null,{"$f":"IFERROR(D10/$C$4,\"\")","v":""},null,null,null,null,"Inserted row"]
[null,null,null,{"$f":"SUM(D7:D10)","v":0},{"$f":"SUM(E7:E10)","v":0}]
[]
["A.2 Natural persons working under direct contract","Beskrivning","RR (Om reseräkning)","Belopp","EUR","Vernr","WP","Kommentar"]
[null,null,null,null,{"$f":"IFERROR(D14/$C$4,\"\")","v":""}]
[null,null,null,null,{"$f":"IFERROR(D15/$C$4,\"\")","v":""}]
[null,null,null,null,{"$f":"IFERROR(D16/$C$4,\"\")","v":""}]
[null,null,null,null,{"$f":"IFERROR(D17/$C$4,\"\")","v":""},null,null,null,null,"Inserted row"]
[null,null,null,{"$f":"SUM(D14:D17)","v":0},{"$f":"SUM(E14:E17)","v":0}]
[]
["A.3 Seconded persons","Beskrivning","RR (Om reseräkning)","Belopp","EUR","Vernr","WP","Kommentar"]
[null,null,null,null,{"$f":"IFERROR(D21/$C$4,\"\")","v":""}]
[null,null,null,null,{"$f":"IFERROR(D22/$C$4,\"\")","v":""}]
[null,null,null,null,{"$f":"IFERROR(D23/$C$4,\"\")","v":""}]
[null,null,null,null,{"$f":"IFERROR(D24/$C$4,\"\")","v":""}]
[null,null,null,{"$f":"SUM(D21:D24)","v":0},{"$f":"SUM(E21:E24)","v":0}]
[]
["A.6 Personnel for providing access to research infrastructure","Beskrivning","RR (Om reseräkning)","Belopp","EUR","Vernr","WP","Kommentar"]
[null,null,null,null,{"$f":"IFERROR(D28/$C$4,\"\")","v":""}]
[null,null,null,null,{"$f":"IFERROR(D29/$C$4,\"\")","v":""}]
[null,null,null,null,{"$f":"IFERROR(D30/$C$4,\"\")","v":""}]
[null,null,null,null,{"$f":"IFERROR(D31/$C$4,\"\")","v":""},null,null,null,null,"Inserted row"]
[null,null,null,{"$f":"SUM(D28:D31)","v":0},{"$f":"SUM(E28:E31)","v":0}]
[]
["B.1 Subcontracting","Beskrivning","RR (Om reseräkning)","Belopp","EUR","Vernr","WP","Kommentar"]
[null,null,null,null,{"$f":"IFERROR(D35/$C$4,\"\")","v":""}]
[null,null,null,null,{"$f":"IFERROR(D36/$C$4,\"\")","v":""}]
[null,null,null,null,{"$f":"IFERROR(D37/$C$4,\"\")","v":""}]
[null,null,null,null,{"$f":"IFERROR(D38/$C$4,\"\")","v":""},null,null,null,null,"Inserted row"]
[null,null,null,{"$f":"SUM(D35:D38)","v":0},{"$f":"SUM(E35:E38)","v":0}]
[]
["D.1 Travel","Beskrivning","RR (Om reseräkning)","Belopp","EUR","Vernr","WP","Kommentar"]
[null,null,null,null,{"$f":"IFERROR(D42/$C$4,\"\")","v":""}]
[null,null,null,null,{"$f":"IFERROR(D43/$C$4,\"\")","v":""}]
[null,null,null,null,{"$f":"IFERROR(D44/$C$4,\"\")","v":""}]
[null,null,null,null,{"$f":"IFERROR(D45/$C$4,\"\")","v":""},null,null,null,null,"Inserted row"]
[null,null,null,{"$f":"SUM(D42:D45)","v":0},{"$f":"SUM(E42:E45)","v":0}]
[]
["D.2 Equipment","Beskrivning","RR (Om reseräkning)","Belopp","EUR","Vernr","WP","Kommentar"]
[null,null,null,null,{"$f":"IFERROR(D49/$C$4,\"\")","v":""}]
[null,null,null,null,{"$f":"IFERROR(D50/$C$4,\"\")","v":""}]
[null,null,null,null,{"$f":"IFERROR(D51/$C$4,\"\")","v":""}]
[null,null,null,null,{"$f":"IFERROR(D52/$C$4,\"\")","v":""},null,null,null,null,"Inserted row"]
[null,null,null,{"$f":"SUM(D49:D52)","v":0},{"$f":"SUM(E49:E52)","v":0}]
[]
["D.3 Other goods and services","Beskrivning","RR (Om reseräkning)","Belopp","EUR","Vernr","WP","Kommentar"]
[null,null,null,null,{"$f":"IFERROR(D56/$C$4,\"\")","v":""}]
[null,null,null,null,{"$f":"IFERROR(D57/$C$4,\"\")","v":""}]
[null,null,null,null,{"$f":"IFERROR(D58/$C$4,\"\")","v":""}]
[null,null,null,null,{"$f":"IFERROR(D59/$C$4,\"\")","v":""},null,null,null,null,"Inserted row"]
[null,null,null,{"$f":"SUM(D56:D59)","v":0},{"$f":"SUM(E56:E59)","v":0}]
[]
["D.5 Costs for internally invoiced goods and services","Beskrivning","RR (Om reseräkning)","Belopp","EUR","Vernr","WP","Kommentar"]
[null,null,null,null,{"$f":"IFERROR(D63/$C$4,\"\")","v":""}]
[null,null,null,null,{"$f":"IFERROR(D64/$C$4,\"\")","v":""}]
[null,null,null,null,{"$f":"IFERROR(D65/$C$4,\"\")","v":""}]
[null,null,null,null,{"$f":"IFERROR(D66/$C$4,\"\")","v":""},null,null,null,null,"Inserted row"]
[null,null,null,{"$f":"SUM(D63:D66)","v":0},{"$f":"SUM(E63:E66)","v":0}]
[]
[]
[]
["FINANCIAL STATEMENT (ADJUSTMENTS) - RP4"]
[]
["Cost Category",null,"Total EUR"]
["a) Direct personnel costs declared as actual costs",null,{"$f":"E11+E18+E25+E32","v":0}]
["b) Direct personnel costs declared as unit costs (average costs)"]
["d) Direct costs od subcontracting",null,{"$f":"E39","v":0}]
["e) Direct costs of providing financial support to third parties"]
["f) Other direct costs",null,{"$f":"E46+E53+E60+E67","v":0}]
["h) Indirect costs (= 0.25 * (a + b + f - o))",null,{"$f":"(C74+C75+C78-C86)*0.25","v":0}]
["j) Total costs (= a + b + d + e + f + h) ",null,{"$f":"SUM(C74:C79)","v":0}]
["k) Receipts"]
["m) Maximum EU-contribution (100%)",null,{"$f":"((C80-C81)*100%)","v":0}]
["n) Requested EU-contribution"]
[]
[]
["o) Use of 'costs of in-kind contributions not used on premises'?"]

{"sheet":"Personnel costs RP5","index":30,"n_rows":329,"n_cols":31,"rows_kept":329,"cut":false,"hidden":false,"merged":[[13,3,13,4],[324,3,324,4]]}
[null,"PERSONNEL COSTS - RP5"]
[]
[null,"Project: "]
[]
[null,"Beneficiary:",null,"Hoegskolan i Boras / University of Borås"]
[]
[null,"Reporting period 5:",null,{"$f":"IF('Ekonomisk projektbeskrivning'!E27<>\"\",'Ekonomisk projektbeskrivning'!E27,\"\")","v":""},"--",{"$f":"IF('Ekonomisk projektbeskrivning'!F30<>\"\",'Ekonomisk projektbeskrivning'!F30,\"\")","v":""}]
[]
[null,"Exchange rate SEK-EUR: ",null,{"$f":"'Ekonomisk projektbeskrivning'!B30","v":0}]
[]
[null,"Option for calculating Hourly rate:",null,"Option 1: 1 720 Fixed hours"]
[]
[]
[null,"Name",null,"Calender year",null,"Fiscal year","WP","Total salary cost in payroll (SEK)","Salary costs for Additional remunerations that is not related to the project (SEK)",null,null,null,"Annual  productive hours",null,"Annual productive hours Pro-Rata if applied","Hourly rate (SEK)","Worked hours in the project","PMs","Calculated eligible personnel cost for the project (SEK)",null,null,null,"Personnel cost to claim in form C (EUR)",null,null,null,null,"Sum PM / WP","Sum PM / WP","Sum Eligible Personnel costs (SEK)","Sum Eligible Personnel costs (EUR)"]
[" ","Person 1",null,{"$f":"$D$327","v":"Year 1:"},{"$f":"$E$327","v":1900},{"$f":"$J$327","v":0},1,null,null,null,null,null,null,null,null,{"$f":"IFERROR(((H15+I15)/M15),\"\")","v":""},null,{"$f":"IFERROR(Q15/(M15/12),\"\")","v":""},{"$f":"IFERROR(P15*Q15,\"\")","v":""},null,null,null,{"$f":"IFERROR(S15/D$9,)","v":0},null,null,null,null,1,{"$f":"SUMIF($G$15:$G$1048576,1,$R$15:$R$1048576)","v":0},{"$f":"SUMIF($G$15:$G$1048576,1,$S$15:$S$1048576)","v":0},{"$f":"SUMIF($G$15:$G$1048576,1,$W$15:$W$1048576)","v":0}]
[null,null,null,null,null,null,2,null,null,null,null,null,null,null,null,{"$f":"IFERROR(((H16+I16)/M16),\"\")","v":""},null,{"$f":"IFERROR(Q16/(M16/12),\"\")","v":""},{"$f":"IFERROR(P16*Q16,\"\")","v":""},null,null,null,{"$f":"IFERROR(S16/D$9,)","v":0},null,null,null,null,2,{"$f":"SUMIF(G15:G1048576,2,R15:R1048576)","v":0},{"$f":"SUMIF($G$15:$G$1048576,2,$S$15:$S$1048576)","v":0},{"$f":"SUMIF($G$15:$G$1048576,2,$W$15:$W$1048576)","v":0}]
[null,null,null,null,null,null,3,null,null,null,null,null,null,null,null,"",null,"","",null,null,null,0,null,null,null,null,3,{"$f":"SUMIF(G15:G1048576,3,R15:R1048576)","v":0},{"$f":"SUMIF($G$15:$G$1048576,3,$S$15:$S$1048576)","v":0},{"$f":"SUMIF($G$15:$G$1048576,3,$W$15:$W$1048576)","v":0}]
[null,null,null,null,null,null,4,null,null,null,null,null,null,null,null,"",null,"","",null,null,null,0,null,null,null,null,4,{"$f":"SUMIF(G15:G1048576,4,R15:R1048576)","v":0},{"$f":"SUMIF($G$15:$G$1048576,4,$S$15:$S$1048576)","v":0},{"$f":"SUMIF($G$15:$G$1048576,4,$W$15:$W$1048576)","v":0}]
[null,null,null,null,null,null,5,null,null,null,null,null,null,null,null,"",null,"","",null,null,null,0,null,null,null,null,5,{"$f":"SUMIF(G15:G1048576,5,R15:R1048576)","v":0},{"$f":"SUMIF($G$15:$G$1048576,5,$S$15:$S$1048576)","v":0},{"$f":"SUMIF($G$15:$G$1048576,5,$W$15:$W$1048576)","v":0}]
[null,null,null,null,null,null,6,null,null,null,null,null,null,null,null,"",null,"","",null,null,null,0,null,null,null,null,6,{"$f":"SUMIF(G15:G1048576,6,R15:R1048576)","v":0},{"$f":"SUMIF($G$15:$G$1048576,6,$S$15:$S$1048576)","v":0},{"$f":"SUMIF($G$15:$G$1048576,6,$W$15:$W$1048576)","v":0}]
[null,null,null,null,null,null,7,null,null,null,null,null,null,null,null,"",null,"","",null,null,null,0,null,null,null,null,7,{"$f":"SUMIF(G15:G1048576,7,R15:R1048576)","v":0},{"$f":"SUMIF($G$15:$G$1048576,7,$S$15:$S$1048576)","v":0},{"$f":"SUMIF($G$15:$G$1048576,7,$W$15:$W$1048576)","v":0}]
[null,null,null,null,null,null,8,null,null,null,null,null,null,null,null,"",null,"","",null,null,null,0,null,null,null,null,8,{"$f":"SUMIF(G15:G1048576,8,R15:R1048576)","v":0},{"$f":"SUMIF($G$15:$G$1048576,8,$S$15:$S$1048576)","v":0},{"$f":"SUMIF($G$15:$G$1048576,8,$W$15:$W$1048576)","v":0}]
[null,null,null,null,null,null,9,null,null,null,null,null,null,null,null,"",null,"","",null,null,null,0,null,null,null,null,9,{"$f":"SUMIF(G15:G1048576,9,R15:R1048576)","v":0},{"$f":"SUMIF($G$15:$G$1048576,9,$S$15:$S$1048576)","v":0},{"$f":"SUMIF($G$15:$G$1048576,9,$W$15:$W$1048576)","v":0}]
[null,null,null,null,null,null,10,null,null,null,null,null,null,null,null,"",null,"","",null,null,null,0,null,null,null,null,10,{"$f":"SUMIF(G15:G1048576,10,R15:R1048576)","v":0},{"$f":"SUMIF($G$15:$G$1048576,10,$S$15:$S$1048576)","v":0},{"$f":"SUMIF($G$15:$G$1048576,10,$W$15:$W$1048576)","v":0}]
[null,null,null,{"$f":"$D$328","v":"Year 2:"},{"$f":"$E$328","v":0},{"$f":"$J$328","v":0},1,null,null,null,null,null,null,null,null,"",null,"","",null,null,null,0,null,null,null,null,"SUM",{"$f":"SUM(AC15:AC24)","v":0},{"$f":"SUM(AD15:AD24)","v":0},{"$f":"SUM(AE15:AE24)","v":0}]
[null,null,null,null,null,null,2,null,null,null,null,null,null,null,null,"",null,"","",null,null,null,0,null,null,null,null,null,{"$f":"IF(AC25<>R325,\"CHECK\",\"OK\")","v":"OK"},{"$f":"IF(AD25<>S325,\"CHECK\",\"OK\")","v":"OK"},{"$f":"IF(AE25<>W325,\"CHECK\",\"OK\")","v":"OK"}]
[null,null,null,null,null,null,3,null,null,null,null,null,null,null,null,"",null,"","",null,null,null,0]
[null,null,null,null,null,null,4,null,null,null,null,null,null,null,null,"",null,"","",null,null,null,0]
[null,null,null,null,null,null,5,null,null,null,null,null,null,null,null,"",null,"","",null,null,null,0]
[null,null,null,null,null,null,6,null,null,null,null,null,null,null,null,"",null,"","",null,null,null,0]
[null,null,null,null,null,null,7,null,null,null,null,null,null,null,null,"",null,"","",null,null,null,0]
[null,null,null,null,null,null,8,null,null,null,null,null,null,null,null,"",null,"","",null,null,null,0]
[null,null,null,null,null,null,9,null,null,null,null,null,null,null,null,"",null,"","",null,null,null,0]
[null,null,null,null,null,null,10,null,null,null,null,null,null,null,null,"",null,"","",null,null,null,0]
[null,null,null,{"$f":"$D$329","v":"Year 3:"},{"$f":"$E$329","v":0},{"$f":"$J$329","v":0},1,null,null,null,null,null,null,null,null,"",null,"","",null,null,null,0]
[null,null,null,null,null,null,2,null,null,null,null,null,null,null,null,"",null,"","",null,null,null,0]
[null,null,null,null,null,null,3,null,null,null,null,null,null,null,null,"",null,"","",null,null,null,0]
[null,null,null,null,null,null,4,null,null,null,null,null,null,null,null,"",null,"","",null,null,null,0]
[null,null,null,null,null,null,5,null,null,null,null,null,null,null,null,"",null,"","",null,null,null,0]
[null,null,null,null,null,null,6,null,null,null,null,null,null,null,null,"",null,"","",null,null,null,0]
[null,null,null,null,null,null,7,null,null,null,null,null,null,null,null,"",null,"","",null,null,null,0]
[null,null,null,null,null,null,8,null,null,null,null,null,null,null,null,"",null,"","",null,null,null,0]
[null,null,null,null,null,null,9,null,null,null,null,null,null,null,null,"",null,"","",null,null,null,0]
[null,null,null,null,null,null,10,null,null,null,null,null,null,null,null,"",null,"","",null,null,null,0]
[null,{"$f":"CONCATENATE(\"SUM \"&B15)","v":"SUM Person 1"},null,null,null,null,null,null,null,null,null,null,null,null,null,null,{"$f":"SUM(Q15:Q44)","v":0},{"$f":"SUM(R15:R44)","v":0},{"$f":"SUM(S15:S44)","v":0},null,null,null,{"$f":"SUM(W15:W44)","v":0}]
[null,"Person 2",null,{"$f":"$D$327","v":"Year 1:"},{"$f":"$E$327","v":1900},{"$f":"$J$327","v":0},1,null,null,null,null,null,null,null,null,{"$f":"IFERROR(((H46+I46)/M46),\"\")","v":""},null,"",{"$f":"IFERROR(P46*Q46,\"\")","v":""},null,null,null,0]
[null,null,null,null,null,null,2,null,null,null,null,null,null,null,null,"",null,"","",null,null,null,0]
[null,null,null,null,null,null,3,null,null,null,null,null,null,null,null,"",null,"","",null,null,null,0]
[null,null,null,null,null,null,4,null,null,null,null,null,null,null,null,"",null,"","",null,null,null,0]
[null,null,null,null,null,null,5,null,null,null,null,null,null,null,null,"",null,"","",null,null,null,0]
[null,null,null,null,null,null,6,null,null,null,null,null,null,null,null,"",null,"","",null,null,null,0]
[null,null,null,null,null,null,7,null,null,null,null,null,null,null,null,"",null,"","",null,null,null,0]
[null,null,null,null,null,null,8,null,null,null,null,null,null,null,null,"",null,"","",null,null,null,0]
[null,null,null,null,null,null,9,null,null,null,null,null,null,null,null,"",null,"","",null,null,null,0]
[null,null,null,null,null,null,10,null,null,null,null,null,null,null,null,"",null,"","",null,null,null,0]
[null,null,null,{"$f":"$D$328","v":"Year 2:"},{"$f":"$E$328","v":0},{"$f":"$J$328","v":0},1,null,null,null,null,null,null,null,null,"",null,"","",null,null,null,0]
[null,null,null,null,null,null,2,null,null,null,null,null,null,null,null,"",null,"","",null,null,null,0]
[null,null,null,null,null,null,3,null,null,null,null,null,null,null,null,"",null,"","",null,null,null,0]
[null,null,null,null,null,null,4,null,null,null,null,null,null,null,null,"",null,"","",null,null,null,0]
[null,null,null,null,null,null,5,null,null,null,null,null,null,null,null,"",null,"","",null,null,null,0]
[null,null,null,null,null,null,6,null,null,null,null,null,null,null,null,"",null,"","",null,null,null,0]
[null,null,null,null,null,null,7,null,null,null,null,null,null,null,null,"",null,{"$f":"IFERROR(Q62/(M62/12),\"\")","v":""},"",null,null,null,0]
[null,null,null,null,null,null,8,null,null,null,null,null,null,null,null,"",null,"","",null,null,null,0]
[null,null,null,null,null,null,9,null,null,null,null,null,null,null,null,"",null,"","",null,null,null,0]
[null,null,null,null,null,null,10,null,null,null,null,null,null,null,null,"",null,"","",null,null,null,0]
[null,null,null,{"$f":"$D$329","v":"Year 3:"},{"$f":"$E$329","v":0},{"$f":"$J$329","v":0},1,null,null,null,null,null,null,null,null,"",null,"","",null,null,null,0]
[null,null,null,null,null,null,2,null,null,null,null,null,null,null,null,"",null,"","",null,null,null,0]
[null,null,null,null,null,null,3,null,null,null,null,null,null,null,null,"",null,"","",null,null,null,0]
[null,null,null,null,null,null,4,null,null,null,null,null,null,null,null,"",null,"","",null,null,null,0]
[null,null,null,null,null,null,5,null,null,null,null,null,null,null,null,"",null,"","",null,null,null,0]
[null,null,null,null,null,null,6,null,null,null,null,null,null,null,null,"",null,"","",null,null,null,0]
[null,null,null,null,null,null,7,null,null,null,null,null,null,null,null,"",null,"","",null,null,null,0]
[null,null,null,null,null,null,8,null,null,null,null,null,null,null,null,"",null,"","",null,null,null,0]
[null,null,null,null,null,null,9,null,null,null,null,null,null,null,null,"",null,"","",null,null,null,0]
[null,null,null,null,null,null,10,null,null,null,null,null,null,null,null,"",null,"","",null,null,null,0]
[null,{"$f":"CONCATENATE(\"SUM \"&B46)","v":"SUM Person 2"},null,null,null,null,null,null,null,null,null,null,null,null,null,null,{"$f":"SUM(Q46:Q75)","v":0},{"$f":"SUM(R46:R75)","v":0},{"$f":"SUM(S46:S75)","v":0},null,null,null,{"$f":"SUM(W46:W75)","v":0}]
[null,"Person 3",null,{"$f":"$D$327","v":"Year 1:"},{"$f":"$E$327","v":1900},{"$f":"$J$327","v":0},1,null,null,null,null,null,null,null,null,{"$f":"IFERROR(((H77+I77)/M77),\"\")","v":""},null,"",{"$f":"IFERROR(P77*Q77,\"\")","v":""},null,null,null,0]
[null,null,null,null,null,null,2,null,null,null,null,null,null,null,null,"",null,"","",null,null,null,0]
[null,null,null,null,null,null,3,null,null,null,null,null,null,null,null,"",null,"","",null,null,null,0]
[null,null,null,null,null,null,4,null,null,null,null,null,null,null,null,"",null,{"$f":"IFERROR(Q80/(M80/12),\"\")","v":""},"",null,null,null,0]
[null,null,null,null,null,null,5,null,null,null,null,null,null,null,null,"",null,"","",null,null,null,0]
[null,null,null,null,null,null,6,null,null,null,null,null,null,null,null,"",null,"","",null,null,null,{"$f":"IFERROR(S82/D$9,)","v":0}]
[null,null,null,null,null,null,7,null,null,null,null,null,null,null,null,"",null,"","",null,null,null,0]
[null,null,null,null,null,null,8,null,null,null,null,null,null,null,null,"",null,"","",null,null,null,0]
[null,null,null,null,null,null,9,null,null,null,null,null,null,null,null,"",null,"","",null,null,null,0]
[null,null,null,null,null,null,10,null,null,null,null,null,null,null,null,"",null,"","",null,null,null,0]
[null,null,null,{"$f":"$D$328","v":"Year 2:"},{"$f":"$E$328","v":0},{"$f":"$J$328","v":0},1,null,null,null,null,null,null,null,null,"",null,"","",null,null,null,0]
[null,null,null,null,null,null,2,null,null,null,null,null,null,null,null,"",null,"","",null,null,null,0]
[null,null,null,null,null,null,3,null,null,null,null,null,null,null,null,"",null,"","",null,null,null,0]
[null,null,null,null,null,null,4,null,null,null,null,null,null,null,null,"",null,"","",null,null,null,0]
[null,null,null,null,null,null,5,null,null,null,null,null,null,null,null,"",null,"","",null,null,null,0]
[null,null,null,null,null,null,6,null,null,null,null,null,null,null,null,"",null,"","",null,null,null,0]
[null,null,null,null,null,null,7,null,null,null,null,null,null,null,null,"",null,{"$f":"IFERROR(Q93/(M93/12),\"\")","v":""},"",null,null,null,0]
[null,null,null,null,null,null,8,null,null,null,null,null,null,null,null,"",null,"","",null,null,null,0]
[null,null,null,null,null,null,9,null,null,null,null,null,null,null,null,"",null,"","",null,null,null,0]
[null,null,null,null,null,null,10,null,null,null,null,null,null,null,null,"",null,"","",null,null,null,0]
[null,null,null,{"$f":"$D$329","v":"Year 3:"},{"$f":"$E$329","v":0},{"$f":"$J$329","v":0},1,null,null,null,null,null,null,null,null,"",null,"","",null,null,null,0]
[null,null,null,null,null,null,2,null,null,null,null,null,null,null,null,"",null,"","",null,null,null,0]
[null,null,null,null,null,null,3,null,null,null,null,null,null,null,null,"",null,"","",null,null,null,0]
[null,null,null,null,null,null,4,null,null,null,null,null,null,null,null,"",null,"","",null,null,null,0]
[null,null,null,null,null,null,5,null,null,null,null,null,null,null,null,"",null,"","",null,null,null,0]
[null,null,null,null,null,null,6,null,null,null,null,null,null,null,null,"",null,"","",null,null,null,0]
[null,null,null,null,null,null,7,null,null,null,null,null,null,null,null,"",null,"","",null,null,null,0]
[null,null,null,null,null,null,8,null,null,null,null,null,null,null,null,"",null,"","",null,null,null,0]
[null,null,null,null,null,null,9,null,null,null,null,null,null,null,null,"",null,"","",null,null,null,0]
[null,null,null,null,null,null,10,null,null,null,null,null,null,null,null,"",null,"","",null,null,null,0]
[null,{"$f":"CONCATENATE(\"SUM \"&B77)","v":"SUM Person 3"},null,null,null,null,null,null,null,null,null,null,null,null,null,null,{"$f":"SUM(Q77:Q106)","v":0},{"$f":"SUM(R77:R106)","v":0},{"$f":"SUM(S77:S106)","v":0},null,null,null,{"$f":"SUM(W77:W106)","v":0}]
[null,"Person 4",null,{"$f":"$D$327","v":"Year 1:"},{"$f":"$E$327","v":1900},{"$f":"$J$327","v":0},1,null,null,null,null,null,null,null,null,{"$f":"IFERROR(((H108+I108)/M108),\"\")","v":""},null,{"$f":"IFERROR(Q108/(M108/12),\"\")","v":""},{"$f":"IFERROR(P108*Q108,\"\")","v":""},null,null,null,0]
[null,null,null,null,null,null,2,null,null,null,null,null,null,null,null,"",null,"","",null,null,null,0]
[null,null,null,null,null,null,3,null,null,null,null,null,null,null,null,"",null,"","",null,null,null,0]
[null,null,null,null,null,null,4,null,null,null,null,null,null,null,null,"",null,"","",null,null,null,0]
[null,null,null,null,null,null,5,null,null,null,null,null,null,null,null,"",null,"","",null,null,null,0]
[null,null,null,null,null,null,6,null,null,null,null,null,null,null,null,"",null,"","",null,null,null,0]
[null,null,null,null,null,null,7,null,null,null,null,null,null,null,null,"",null,"","",null,null,null,0]
[null,null,null,null,null,null,8,null,null,null,null,null,null,null,null,"",null,"","",null,null,null,0]
[null,null,null,null,null,null,9,null,null,null,null,null,null,null,null,"",null,"","",null,null,null,0]
[null,null,null,null,null,null,10,null,null,null,null,null,null,null,null,"",null,"","",null,null,null,0]
[null,null,null,{"$f":"$D$328","v":"Year 2:"},{"$f":"$E$328","v":0},{"$f":"$J$328","v":0},1,null,null,null,null,null,null,null,null,"",null,"","",null,null,null,0]
[null,null,null,null,null,null,2,null,null,null,null,null,null,null,null,"",null,"","",null,null,null,0]
[null,null,null,null,null,null,3,null,null,null,null,null,null,null,null,"",null,"","",null,null,null,0]
[null,null,null,null,null,null,4,null,null,null,null,null,null,null,null,"",null,"","",null,null,null,0]
[null,null,null,null,null,null,5,null,null,null,null,null,null,null,null,"",null,"","",null,null,null,0]
[null,null,null,null,null,null,6,null,null,null,null,null,null,null,null,"",null,"","",null,null,null,0]
[null,null,null,null,null,null,7,null,null,null,null,null,null,null,null,"",null,{"$f":"IFERROR(Q124/(M124/12),\"\")","v":""},"",null,null,null,0]
[null,null,null,null,null,null,8,null,null,null,null,null,null,null,null,"",null,"","",null,null,null,0]
[null,null,null,null,null,null,9,null,null,null,null,null,null,null,null,"",null,"","",null,null,null,0]
[null,null,null,null,null,null,10,null,null,null,null,null,null,null,null,"",null,"","",null,null,null,0]
[null,null,null,{"$f":"$D$329","v":"Year 3:"},{"$f":"$E$329","v":0},{"$f":"$J$329","v":0},1,null,null,null,null,null,null,null,null,"",null,"","",null,null,null,0]
[null,null,null,null,null,null,2,null,null,null,null,null,null,null,null,"",null,"","",null,null,null,0]
[null,null,null,null,null,null,3,null,null,null,null,null,null,null,null,"",null,"","",null,null,null,0]
[null,null,null,null,null,null,4,null,null,null,null,null,null,null,null,"",null,"","",null,null,null,0]
[null,null,null,null,null,null,5,null,null,null,null,null,null,null,null,"",null,"","",null,null,null,0]
[null,null,null,null,null,null,6,null,null,null,null,null,null,null,null,"",null,"","",null,null,null,0]
[null,null,null,null,null,null,7,null,null,null,null,null,null,null,null,"",null,"","",null,null,null,0]
[null,null,null,null,null,null,8,null,null,null,null,null,null,null,null,"",null,"","",null,null,null,0]
[null,null,null,null,null,null,9,null,null,null,null,null,null,null,null,"",null,"","",null,null,null,0]
[null,null,null,null,null,null,10,null,null,null,null,null,null,null,null,"",null,"","",null,null,null,0]
[null,{"$f":"CONCATENATE(\"SUM \"&B108)","v":"SUM Person 4"},null,null,null,null,null,null,null,null,null,null,null,null,null,null,{"$f":"SUM(Q108:Q137)","v":0},{"$f":"SUM(R108:R137)","v":0},{"$f":"SUM(S108:S137)","v":0},null,null,null,{"$f":"SUM(W108:W137)","v":0}]
[null,"Person 5",null,{"$f":"$D$327","v":"Year 1:"},{"$f":"$E$327","v":1900},{"$f":"$J$327","v":0},1,null,null,null,null,null,null,null,null,{"$f":"IFERROR(((H139+I139)/M139),\"\")","v":""},null,{"$f":"IFERROR(Q139/(M139/12),\"\")","v":""},{"$f":"IFERROR(P139*Q139,\"\")","v":""},null,null,null,0]
[null,null,null,null,null,null,2,null,null,null,null,null,null,null,null,"",null,"","",null,null,null,0]
[null,null,null,null,null,null,3,null,null,null,null,null,null,null,null,"",null,"","",null,null,null,0]
[null,null,null,null,null,null,4,null,null,null,null,null,null,null,null,"",null,"","",null,null,null,0]
[null,null,null,null,null,null,5,null,null,null,null,null,null,null,null,"",null,"","",null,null,null,0]
[null,null,null,null,null,null,6,null,null,null,null,null,null,null,null,"",null,"","",null,null,null,0]
[null,null,null,null,null,null,7,null,null,null,null,null,null,null,null,"",null,"","",null,null,null,0]
[null,null,null,null,null,null,8,null,null,null,null,null,null,null,null,"",null,"","",null,null,null,0]
[null,null,null,null,null,null,9,null,null,null,null,null,null,null,null,"",null,"","",null,null,null,0]
[null,null,null,null,null,null,10,null,null,null,null,null,null,null,null,"",null,"","",null,null,null,{"$f":"IFERROR(S148/D$9,)","v":0}]
[null,null,null,{"$f":"$D$328","v":"Year 2:"},{"$f":"$E$328","v":0},{"$f":"$J$328","v":0},1,null,null,null,null,null,null,null,null,"",null,"","",null,null,null,0]
[null,null,null,null,null,null,2,null,null,null,null,null,null,null,null,"",null,"","",null,null,null,0]
[null,null,null,null,null,null,3,null,null,null,null,null,null,null,null,"",null,"","",null,null,null,0]
[null,null,null,null,null,null,4,null,null,null,null,null,null,null,null,"",null,"","",null,null,null,0]
[null,null,null,null,null,null,5,null,null,null,null,null,null,null,null,"",null,"","",null,null,null,0]
[null,null,null,null,null,null,6,null,null,null,null,null,null,null,null,"",null,"","",null,null,null,0]
[null,null,null,null,null,null,7,null,null,null,null,null,null,null,null,"",null,{"$f":"IFERROR(Q155/(M155/12),\"\")","v":""},"",null,null,null,0]
[null,null,null,null,null,null,8,null,null,null,null,null,null,null,null,"",null,"","",null,null,null,0]
[null,null,null,null,null,null,9,null,null,null,null,null,null,null,null,"",null,"","",null,null,null,0]
[null,null,null,null,null,null,10,null,null,null,null,null,null,null,null,"",null,"","",null,null,null,0]
[null,null,null,{"$f":"$D$329","v":"Year 3:"},{"$f":"$E$329","v":0},{"$f":"$J$329","v":0},1,null,null,null,null,null,null,null,null,"",null,"","",null,null,null,0]
[null,null,null,null,null,null,2,null,null,null,null,null,null,null,null,"",null,"","",null,null,null,0]
[null,null,null,null,null,null,3,null,null,null,null,null,null,null,null,"",null,"","",null,null,null,0]
[null,null,null,null,null,null,4,null,null,null,null,null,null,null,null,"",null,"","",null,null,null,0]
[null,null,null,null,null,null,5,null,null,null,null,null,null,null,null,"",null,"","",null,null,null,0]
[null,null,null,null,null,null,6,null,null,null,null,null,null,null,null,"",null,"","",null,null,null,0]
[null,null,null,null,null,null,7,null,null,null,null,null,null,null,null,"",null,"","",null,null,null,0]
[null,null,null,null,null,null,8,null,null,null,null,null,null,null,null,"",null,"","",null,null,null,0]
[null,null,null,null,null,null,9,null,null,null,null,null,null,null,null,"",null,"","",null,null,null,0]
[null,null,null,null,null,null,10,null,null,null,null,null,null,null,null,"",null,"","",null,null,null,0]
[null,{"$f":"CONCATENATE(\"SUM \"&B139)","v":"SUM Person 5"},null,null,null,null,null,null,null,null,null,null,null,null,null,null,{"$f":"SUM(Q139:Q168)","v":0},{"$f":"SUM(R139:R168)","v":0},{"$f":"SUM(S139:S168)","v":0},null,null,null,{"$f":"SUM(W139:W168)","v":0}]
[null,"Person 6",null,{"$f":"$D$327","v":"Year 1:"},{"$f":"$E$327","v":1900},{"$f":"$J$327","v":0},1,null,null,null,null,null,null,null,null,{"$f":"IFERROR(((H170+I170)/M170),\"\")","v":""},null,{"$f":"IFERROR(Q170/(M170/12),\"\")","v":""},{"$f":"IFERROR(P170*Q170,\"\")","v":""},null,null,null,0]
[null,null,null,null,null,null,2,null,null,null,null,null,null,null,null,"",null,"","",null,null,null,0]
[null,null,null,null,null,null,3,null,null,null,null,null,null,null,null,"",null,"","",null,null,null,0]
[null,null,null,null,null,null,4,null,null,null,null,null,null,null,null,"",null,"","",null,null,null,0]
[null,null,null,null,null,null,5,null,null,null,null,null,null,null,null,"",null,"","",null,null,null,0]
[null,null,null,null,null,null,6,null,null,null,null,null,null,null,null,"",null,"","",null,null,null,0]
[null,null,null,null,null,null,7,null,null,null,null,null,null,null,null,"",null,"","",null,null,null,0]
[null,null,null,null,null,null,8,null,null,null,null,null,null,null,null,"",null,"","",null,null,null,0]
[null,null,null,null,null,null,9,null,null,null,null,null,null,null,null,"",null,"","",null,null,null,0]
[null,null,null,null,null,null,10,null,null,null,null,null,null,null,null,"",null,"","",null,null,null,0]
[null,null,null,{"$f":"$D$328","v":"Year 2:"},{"$f":"$E$328","v":0},{"$f":"$J$328","v":0},1,null,null,null,null,null,null,null,null,"",null,"","",null,null,null,0]
[null,null,null,null,null,null,2,null,null,null,null,null,null,null,null,"",null,"","",null,null,null,0]
[null,null,null,null,null,null,3,null,null,null,null,null,null,null,null,"",null,"","",null,null,null,0]
[null,null,null,null,null,null,4,null,null,null,null,null,null,null,null,"",null,"","",null,null,null,0]
[null,null,null,null,null,null,5,null,null,null,null,null,null,null,null,"",null,"","",null,null,null,0]
[null,null,null,null,null,null,6,null,null,null,null,null,null,null,null,"",null,"","",null,null,null,0]
[null,null,null,null,null,null,7,null,null,null,null,null,null,null,null,"",null,{"$f":"IFERROR(Q186/(M186/12),\"\")","v":""},"",null,null,null,0]
[null,null,null,null,null,null,8,null,null,null,null,null,null,null,null,"",null,"","",null,null,null,0]
[null,null,null,null,null,null,9,null,null,null,null,null,null,null,null,"",null,"","",null,null,null,0]
[null,null,null,null,null,null,10,null,null,null,null,null,null,null,null,"",null,"","",null,null,null,0]
[null,null,null,{"$f":"$D$329","v":"Year 3:"},{"$f":"$E$329","v":0},{"$f":"$J$329","v":0},1,null,null,null,null,null,null,null,null,"",null,"","",null,null,null,0]
[null,null,null,null,null,null,2,null,null,null,null,null,null,null,null,"",null,"","",null,null,null,0]
[null,null,null,null,null,null,3,null,null,null,null,null,null,null,null,"",null,"","",null,null,null,0]
[null,null,null,null,null,null,4,null,null,null,null,null,null,null,null,"",null,"","",null,null,null,0]
[null,null,null,null,null,null,5,null,null,null,null,null,null,null,null,"",null,"","",null,null,null,0]
[null,null,null,null,null,null,6,null,null,null,null,null,null,null,null,"",null,"","",null,null,null,0]
[null,null,null,null,null,null,7,null,null,null,null,null,null,null,null,"",null,"","",null,null,null,0]
[null,null,null,null,null,null,8,null,null,null,null,null,null,null,null,"",null,"","",null,null,null,0]
[null,null,null,null,null,null,9,null,null,null,null,null,null,null,null,"",null,"","",null,null,null,0]
[null,null,null,null,null,null,10,null,null,null,null,null,null,null,null,"",null,"","",null,null,null,0]
[null,{"$f":"CONCATENATE(\"SUM \"&B170)","v":"SUM Person 6"},null,null,null,null,null,null,null,null,null,null,null,null,null,null,{"$f":"SUM(Q170:Q199)","v":0},{"$f":"SUM(R170:R199)","v":0},{"$f":"SUM(S170:S199)","v":0},null,null,null,{"$f":"SUM(W170:W199)","v":0}]
[null,"Person 7",null,{"$f":"$D$327","v":"Year 1:"},{"$f":"$E$327","v":1900},{"$f":"$J$327","v":0},1,null,null,null,null,null,null,null,null,{"$f":"IFERROR(((H201+I201)/M201),\"\")","v":""},null,{"$f":"IFERROR(Q201/(M201/12),\"\")","v":""},{"$f":"IFERROR(P201*Q201,\"\")","v":""},null,null,null,0]
[null,null,null,null,null,null,2,null,null,null,null,null,null,null,null,"",null,"","",null,null,null,0]
[null,null,null,null,null,null,3,null,null,null,null,null,null,null,null,"",null,"","",null,null,null,0]
[null,null,null,null,null,null,4,null,null,null,null,null,null,null,null,"",null,"","",null,null,null,0]
[null,null,null,null,null,null,5,null,null,null,null,null,null,null,null,"",null,"","",null,null,null,0]
[null,null,null,null,null,null,6,null,null,null,null,null,null,null,null,"",null,"","",null,null,null,0]
[null,null,null,null,null,null,7,null,null,null,null,null,null,null,null,"",null,"","",null,null,null,0]
[null,null,null,null,null,null,8,null,null,null,null,null,null,null,null,"",null,"","",null,null,null,0]
[null,null,null,null,null,null,9,null,null,null,null,null,null,null,null,"",null,"","",null,null,null,0]
[null,null,null,null,null,null,10,null,null,null,null,null,null,null,null,"",null,"","",null,null,null,0]
[null,null,null,{"$f":"$D$328","v":"Year 2:"},{"$f":"$E$328","v":0},{"$f":"$J$328","v":0},1,null,null,null,null,null,null,null,null,"",null,"","",null,null,null,0]
[null,null,null,null,null,null,2,null,null,null,null,null,null,null,null,"",null,"","",null,null,null,0]
[null,null,null,null,null,null,3,null,null,null,null,null,null,null,null,"",null,"","",null,null,null,0]
[null,null,null,null,null,null,4,null,null,null,null,null,null,null,null,"",null,"","",null,null,null,{"$f":"IFERROR(S214/D$9,)","v":0}]
[null,null,null,null,null,null,5,null,null,null,null,null,null,null,null,"",null,"","",null,null,null,0]
[null,null,null,null,null,null,6,null,null,null,null,null,null,null,null,"",null,"","",null,null,null,0]
[null,null,null,null,null,null,7,null,null,null,null,null,null,null,null,"",null,{"$f":"IFERROR(Q217/(M217/12),\"\")","v":""},"",null,null,null,0]
[null,null,null,null,null,null,8,null,null,null,null,null,null,null,null,"",null,"","",null,null,null,0]
[null,null,null,null,null,null,9,null,null,null,null,null,null,null,null,"",null,"","",null,null,null,0]
[null,null,null,null,null,null,10,null,null,null,null,null,null,null,null,"",null,"","",null,null,null,0]
[null,null,null,{"$f":"$D$329","v":"Year 3:"},{"$f":"$E$329","v":0},{"$f":"$J$329","v":0},1,null,null,null,null,null,null,null,null,"",null,"","",null,null,null,0]
[null,null,null,null,null,null,2,null,null,null,null,null,null,null,null,"",null,"","",null,null,null,0]
[null,null,null,null,null,null,3,null,null,null,null,null,null,null,null,"",null,"","",null,null,null,0]
[null,null,null,null,null,null,4,null,null,null,null,null,null,null,null,"",null,"","",null,null,null,0]
[null,null,null,null,null,null,5,null,null,null,null,null,null,null,null,"",null,"","",null,null,null,0]
[null,null,null,null,null,null,6,null,null,null,null,null,null,null,null,"",null,"","",null,null,null,0]
[null,null,null,null,null,null,7,null,null,null,null,null,null,null,null,"",null,"","",null,null,null,0]
[null,null,null,null,null,null,8,null,null,null,null,null,null,null,null,"",null,"","",null,null,null,0]
[null,null,null,null,null,null,9,null,null,null,null,null,null,null,null,"",null,"","",null,null,null,0]
[null,null,null,null,null,null,10,null,null,null,null,null,null,null,null,"",null,"","",null,null,null,0]
[null,{"$f":"CONCATENATE(\"SUM \"&B201)","v":"SUM Person 7"},null,null,null,null,null,null,null,null,null,null,null,null,null,null,{"$f":"SUM(Q201:Q230)","v":0},{"$f":"SUM(R201:R230)","v":0},{"$f":"SUM(S201:S230)","v":0},null,null,null,{"$f":"SUM(W201:W230)","v":0}]
[null,"Person 8",null,{"$f":"$D$327","v":"Year 1:"},{"$f":"$E$327","v":1900},{"$f":"$J$327","v":0},1,null,null,null,null,null,null,null,null,{"$f":"IFERROR(((H232+I232)/M232),\"\")","v":""},null,{"$f":"IFERROR(Q232/(M232/12),\"\")","v":""},{"$f":"IFERROR(P232*Q232,\"\")","v":""},null,null,null,0]
[null,null,null,null,null,null,2,null,null,null,null,null,null,null,null,"",null,"","",null,null,null,0]
[null,null,null,null,null,null,3,null,null,null,null,null,null,null,null,"",null,"","",null,null,null,0]
[null,null,null,null,null,null,4,null,null,null,null,null,null,null,null,"",null,"","",null,null,null,0]
[null,null,null,null,null,null,5,null,null,null,null,null,null,null,null,"",null,"","",null,null,null,0]
[null,null,null,null,null,null,6,null,null,null,null,null,null,null,null,"",null,"","",null,null,null,0]
[null,null,null,null,null,null,7,null,null,null,null,null,null,null,null,"",null,"","",null,null,null,0]
[null,null,null,null,null,null,8,null,null,null,null,null,null,null,null,"",null,"","",null,null,null,0]
[null,null,null,null,null,null,9,null,null,null,null,null,null,null,null,"",null,"","",null,null,null,0]
[null,null,null,null,null,null,10,null,null,null,null,null,null,null,null,"",null,"","",null,null,null,0]
[null,null,null,{"$f":"$D$328","v":"Year 2:"},{"$f":"$E$328","v":0},{"$f":"$J$328","v":0},1,null,null,null,null,null,null,null,null,"",null,"","",null,null,null,0]
[null,null,null,null,null,null,2,null,null,null,null,null,null,null,null,"",null,"","",null,null,null,0]
[null,null,null,null,null,null,3,null,null,null,null,null,null,null,null,"",null,"","",null,null,null,0]
[null,null,null,null,null,null,4,null,null,null,null,null,null,null,null,"",null,"","",null,null,null,0]
[null,null,null,null,null,null,5,null,null,null,null,null,null,null,null,"",null,"","",null,null,null,0]
[null,null,null,null,null,null,6,null,null,null,null,null,null,null,null,"",null,"","",null,null,null,0]
[null,null,null,null,null,null,7,null,null,null,null,null,null,null,null,"",null,{"$f":"IFERROR(Q248/(M248/12),\"\")","v":""},"",null,null,null,0]
[null,null,null,null,null,null,8,null,null,null,null,null,null,null,null,"",null,"","",null,null,null,0]
[null,null,null,null,null,null,9,null,null,null,null,null,null,null,null,"",null,"","",null,null,null,0]
[null,null,null,null,null,null,10,null,null,null,null,null,null,null,null,"",null,"","",null,null,null,0]
[null,null,null,{"$f":"$D$329","v":"Year 3:"},{"$f":"$E$329","v":0},{"$f":"$J$329","v":0},1,null,null,null,null,null,null,null,null,"",null,"","",null,null,null,0]
[null,null,null,null,null,null,2,null,null,null,null,null,null,null,null,"",null,"","",null,null,null,0]
[null,null,null,null,null,null,3,null,null,null,null,null,null,null,null,"",null,"","",null,null,null,0]
[null,null,null,null,null,null,4,null,null,null,null,null,null,null,null,"",null,"","",null,null,null,0]
[null,null,null,null,null,null,5,null,null,null,null,null,null,null,null,"",null,"","",null,null,null,0]
[null,null,null,null,null,null,6,null,null,null,null,null,null,null,null,"",null,"","",null,null,null,0]
[null,null,null,null,null,null,7,null,null,null,null,null,null,null,null,"",null,"","",null,null,null,0]
[null,null,null,null,null,null,8,null,null,null,null,null,null,null,null,"",null,"","",null,null,null,0]
[null,null,null,null,null,null,9,null,null,null,null,null,null,null,null,"",null,"","",null,null,null,0]
[null,null,null,null,null,null,10,null,null,null,null,null,null,null,null,"",null,"","",null,null,null,0]
[null,{"$f":"CONCATENATE(\"SUM \"&B232)","v":"SUM Person 8"},null,null,null,null,null,null,null,null,null,null,null,null,null,null,{"$f":"SUM(Q232:Q261)","v":0},{"$f":"SUM(R232:R261)","v":0},{"$f":"SUM(S232:S261)","v":0},null,null,null,{"$f":"SUM(W232:W261)","v":0}]
[null,"Person 9",null,{"$f":"$D$327","v":"Year 1:"},{"$f":"$E$327","v":1900},{"$f":"$J$327","v":0},1,null,null,null,null,null,null,null,null,{"$f":"IFERROR(((H263+I263)/M263),\"\")","v":""},null,{"$f":"IFERROR(Q263/(M263/12),\"\")","v":""},{"$f":"IFERROR(P263*Q263,\"\")","v":""},null,null,null,0]
[null,null,null,null,null,null,2,null,null,null,null,null,null,null,null,"",null,"","",null,null,null,0]
[null,null,null,null,null,null,3,null,null,null,null,null,null,null,null,"",null,"","",null,null,null,0]
[null,null,null,null,null,null,4,null,null,null,null,null,null,null,null,"",null,"","",null,null,null,0]
[null,null,null,null,null,null,5,null,null,null,null,null,null,null,null,"",null,"","",null,null,null,0]
[null,null,null,null,null,null,6,null,null,null,null,null,null,null,null,"",null,"","",null,null,null,0]
[null,null,null,null,null,null,7,null,null,null,null,null,null,null,null,"",null,"","",null,null,null,0]
[null,null,null,null,null,null,8,null,null,null,null,null,null,null,null,"",null,"","",null,null,null,0]
[null,null,null,null,null,null,9,null,null,null,null,null,null,null,null,"",null,"","",null,null,null,0]
[null,null,null,null,null,null,10,null,null,null,null,null,null,null,null,"",null,"","",null,null,null,0]
[null,null,null,{"$f":"$D$328","v":"Year 2:"},{"$f":"$E$328","v":0},{"$f":"$J$328","v":0},1,null,null,null,null,null,null,null,null,"",null,"","",null,null,null,0]
[null,null,null,null,null,null,2,null,null,null,null,null,null,null,null,"",null,"","",null,null,null,0]
[null,null,null,null,null,null,3,null,null,null,null,null,null,null,null,"",null,"","",null,null,null,0]
[null,null,null,null,null,null,4,null,null,null,null,null,null,null,null,"",null,"","",null,null,null,0]
[null,null,null,null,null,null,5,null,null,null,null,null,null,null,null,"",null,"","",null,null,null,0]
[null,null,null,null,null,null,6,null,null,null,null,null,null,null,null,"",null,"","",null,null,null,0]
[null,null,null,null,null,null,7,null,null,null,null,null,null,null,null,"",null,{"$f":"IFERROR(Q279/(M279/12),\"\")","v":""},"",null,null,null,0]
[null,null,null,null,null,null,8,null,null,null,null,null,null,null,null,"",null,"","",null,null,null,{"$f":"IFERROR(S280/D$9,)","v":0}]
[null,null,null,null,null,null,9,null,null,null,null,null,null,null,null,"",null,"","",null,null,null,0]
[null,null,null,null,null,null,10,null,null,null,null,null,null,null,null,"",null,"","",null,null,null,0]
[null,null,null,{"$f":"$D$329","v":"Year 3:"},{"$f":"$E$329","v":0},{"$f":"$J$329","v":0},1,null,null,null,null,null,null,null,null,"",null,"","",null,null,null,0]
[null,null,null,null,null,null,2,null,null,null,null,null,null,null,null,"",null,"","",null,null,null,0]
[null,null,null,null,null,null,3,null,null,null,null,null,null,null,null,"",null,"","",null,null,null,0]
[null,null,null,null,null,null,4,null,null,null,null,null,null,null,null,"",null,"","",null,null,null,0]
[null,null,null,null,null,null,5,null,null,null,null,null,null,null,null,"",null,"","",null,null,null,0]
[null,null,null,null,null,null,6,null,null,null,null,null,null,null,null,"",null,"","",null,null,null,0]
[null,null,null,null,null,null,7,null,null,null,null,null,null,null,null,"",null,"","",null,null,null,0]
[null,null,null,null,null,null,8,null,null,null,null,null,null,null,null,"",null,"","",null,null,null,0]
[null,null,null,null,null,null,9,null,null,null,null,null,null,null,null,"",null,"","",null,null,null,0]
[null,null,null,null,null,null,10,null,null,null,null,null,null,null,null,"",null,"","",null,null,null,0]
[null,{"$f":"CONCATENATE(\"SUM \"&B263)","v":"SUM Person 9"},null,null,null,null,null,null,null,null,null,null,null,null,null,null,{"$f":"SUM(Q263:Q292)","v":0},{"$f":"SUM(R263:R292)","v":0},{"$f":"SUM(S263:S292)","v":0},null,null,null,{"$f":"SUM(W263:W292)","v":0}]
[null,"Person 10",null,{"$f":"$D$327","v":"Year 1:"},{"$f":"$E$327","v":1900},{"$f":"$J$327","v":0},1,null,null,null,null,null,null,null,null,{"$f":"IFERROR(((H294+I294)/M294),\"\")","v":""},null,{"$f":"IFERROR(Q294/(M294/12),\"\")","v":""},{"$f":"IFERROR(P294*Q294,\"\")","v":""},null,null,null,0]
[null,null,null,null,null,null,2,null,null,null,null,null,null,null,null,"",null,"","",null,null,null,0]
[null,null,null,null,null,null,3,null,null,null,null,null,null,null,null,"",null,"","",null,null,null,0]
[null,null,null,null,null,null,4,null,null,null,null,null,null,null,null,"",null,"","",null,null,null,0]
[null,null,null,null,null,null,5,null,null,null,null,null,null,null,null,"",null,"","",null,null,null,0]
[null,null,null,null,null,null,6,null,null,null,null,null,null,null,null,"",null,"","",null,null,null,0]
[null,null,null,null,null,null,7,null,null,null,null,null,null,null,null,"",null,"","",null,null,null,0]
[null,null,null,null,null,null,8,null,null,null,null,null,null,null,null,"",null,"","",null,null,null,0]
[null,null,null,null,null,null,9,null,null,null,null,null,null,null,null,"",null,"","",null,null,null,0]
[null,null,null,null,null,null,10,null,null,null,null,null,null,null,null,"",null,"","",null,null,null,0]
[null,null,null,{"$f":"$D$328","v":"Year 2:"},{"$f":"$E$328","v":0},{"$f":"$J$328","v":0},1,null,null,null,null,null,null,null,null,"",null,"","",null,null,null,0]
[null,null,null,null,null,null,2,null,null,null,null,null,null,null,null,"",null,"","",null,null,null,0]
[null,null,null,null,null,null,3,null,null,null,null,null,null,null,null,"",null,"","",null,null,null,0]
[null,null,null,null,null,null,4,null,null,null,null,null,null,null,null,"",null,"","",null,null,null,0]
[null,null,null,null,null,null,5,null,null,null,null,null,null,null,null,"",null,"","",null,null,null,0]
[null,null,null,null,null,null,6,null,null,null,null,null,null,null,null,"",null,"","",null,null,null,0]
[null,null,null,null,null,null,7,null,null,null,null,null,null,null,null,"",null,{"$f":"IFERROR(Q310/(M310/12),\"\")","v":""},"",null,null,null,0]
[null,null,null,null,null,null,8,null,null,null,null,null,null,null,null,"",null,"","",null,null,null,0]
[null,null,null,null,null,null,9,null,null,null,null,null,null,null,null,"",null,"","",null,null,null,0]
[null,null,null,null,null,null,10,null,null,null,null,null,null,null,null,"",null,"","",null,null,null,0]
[null,null,null,{"$f":"$D$329","v":"Year 3:"},{"$f":"$E$329","v":0},{"$f":"$J$329","v":0},1,null,null,null,null,null,null,null,null,"",null,"","",null,null,null,0]
[null,null,null,null,null,null,2,null,null,null,null,null,null,null,null,"",null,"","",null,null,null,0]
[null,null,null,null,null,null,3,null,null,null,null,null,null,null,null,"",null,"","",null,null,null,0]
[null,null,null,null,null,null,4,null,null,null,null,null,null,null,null,"",null,"","",null,null,null,0]
[null,null,null,null,null,null,5,null,null,null,null,null,null,null,null,"",null,"","",null,null,null,0]
[null,null,null,null,null,null,6,null,null,null,null,null,null,null,null,"",null,"","",null,null,null,0]
[null,null,null,null,null,null,7,null,null,null,null,null,null,null,null,"",null,"","",null,null,null,0]
[null,null,null,null,null,null,8,null,null,null,null,null,null,null,null,"",null,"","",null,null,null,0]
[null,null,null,null,null,null,9,null,null,null,null,null,null,null,null,"",null,"","",null,null,null,0]
[null,null,null,null,null,null,10,null,null,null,null,null,null,null,null,"",null,"","",null,null,null,0]
[null,{"$f":"CONCATENATE(\"SUM \"&B294)","v":"SUM Person 10"},null,null,null,null,null,null,null,null,null,null,null,null,null,null,{"$f":"SUM(Q294:Q323)","v":0},{"$f":"SUM(R294:R323)","v":0},{"$f":"SUM(S294:S323)","v":0},null,null,null,{"$f":"SUM(W294:W323)","v":0}]
[null,"TOTAL SUM",null,null,null,null,null,null,null,null,null,null,null,null,null,null,{"$f":"Q324+Q293+Q262+Q231+Q200+Q169+Q138+Q107+Q76+Q45","v":0},0,0,0,0,0,0]
[]
[null,null,null,"Year 1:",{"$f":"YEAR('Ekonomisk projektbeskrivning'!E30)","v":1900},{"$f":"IF(MONTH(H327)-MONTH(G327)=0,0,MONTH(H327)-MONTH(G327)+1)","v":0},{"$f":"'Ekonomisk projektbeskrivning'!E30","v":"00:00:00"},{"$f":"IF(YEAR('Ekonomisk projektbeskrivning'!F30)='Personnel costs RP5'!E327,'Ekonomisk projektbeskrivning'!F30,CONCATENATE(E327&\"-12-31\"))","v":"00:00:00"},{"$f":"IF(F327<>0,IF(F327<12,IF(MONTH(G327)>(12-F327),E327,E327-1),E327),\"\")","v":""}]
[null,null,null,"Year 2:",{"$f":"IF(YEAR('Ekonomisk projektbeskrivning'!F30)>=('Personnel costs RP5'!E327+1),('Personnel costs RP5'!E327+1),0)","v":0},{"$f":"IF(E328=0,0,IF(MONTH(G328)=1,IF(MONTH(H328)=1,1,(MONTH(H328)-MONTH(G328)+1))))","v":0},{"$f":"IF(E327=YEAR('Ekonomisk projektbeskrivning'!F30),0,CONCATENATE(E328&\"-01-01\"))","v":"00:00:00"},{"$f":"IF(E327+1=YEAR('Ekonomisk projektbeskrivning'!F30),'Ekonomisk projektbeskrivning'!F30,IF(E327+1>YEAR('Ekonomisk projektbeskrivning'!F30),0,CONCATENATE(E328&\"-12-31\")))","v":"00:00:00"},{"$f":"IF(F328<>0,IF(F328<12,IF(MONTH(G328)>(12-F328),E328,E328-1),E328),\"\")","v":""}]
[null,null,null,"Year 3:",{"$f":"IF(YEAR('Ekonomisk projektbeskrivning'!F30)>=('Personnel costs RP5'!E327+2),('Personnel costs RP5'!E328+1),0)","v":0},{"$f":"IF(E329=0,0,IF(MONTH(G329)=1,IF(MONTH(H329)=1,1,(MONTH(H329)-MONTH(G329)+1))))","v":0},{"$f":"IF(E327+1>=YEAR('Ekonomisk projektbeskrivning'!F30),0,CONCATENATE(E327+2&\"-01-01\"))","v":0},{"$f":"IF(E327+2=YEAR('Ekonomisk projektbeskrivning'!F30),'Ekonomisk projektbeskrivning'!F30,IF(E327+2>YEAR('Ekonomisk projektbeskrivning'!F30),0,CONCATENATE(E329&\"-12-31\")))","v":0},{"$f":"IF(F329<>0,IF(F329<12,IF(MONTH(G329)>(12-F329),E329,E329-1),E329),\"\")","v":""}]

{"sheet":"Project Transactions RP5","index":31,"n_rows":34,"n_cols":16,"rows_kept":34,"cut":false,"hidden":false,"merged":[]}
["sql SELECT dim_1, dim_2, voucher_no, period, trans_date, VERIFIKATIONER.account, VERIFIKATIONER.description AS VERTEXT, amount, KONTO.description AS KONTONAMN"]
["sql FROM agltransact AS VERIFIKATIONER"]
["sql FULL JOIN aglaccounts as KONTO"]
["sql ON VERIFIKATIONER.account = KONTO.account"]
[{"$f":"C5","v":"sql WHERE dim_1 LIKE '0%'"},null,{"$f":"CONCATENATE(\"sql WHERE dim_1 LIKE '\"&E15&\"%'\")","v":"sql WHERE dim_1 LIKE '0%'"}]
[{"$f":"C6","v":"sql AND dim_2 LIKE '0%'"},null,{"$f":"CONCATENATE(\"sql AND dim_2 LIKE '\"&E16&\"%'\")","v":"sql AND dim_2 LIKE '0%'"}]
[{"$f":"C7","v":"sql AND period >=''"},null,{"$f":"CONCATENATE(\"sql AND period >='\"&E17&\"'\")","v":"sql AND period >=''"}]
[{"$f":"C8","v":"sql AND period <=''"},null,{"$f":"CONCATENATE(\"sql AND period <='\"&E18&\"'\")","v":"sql AND period <=''"}]
["sql AND KONTO.client='BO'"]
["query"]
["sort account"]
["columns","code account","text dim_1","text dim_2","text voucher_no","text Period","trans_date","text account","KONTONAMN","VERTEXT","amount"]
[null,null,"VERIFIKATIONSLISTA - RP5"]
[null,null,null,null,null,null,null,null,null,null,"Rapporten söker ut kostnader på kontogrupper"]
[null,null,"Orgenhet:",null,{"$f":"'Project Transactions RP1'!E15","v":0},"Rapporten söker automatiskt ut med * utan att detta anges.",null,null,null,null,"43*, 48*, 49*"]
[null,null,"Akt/Proj:",null,{"$f":"'Project Transactions RP1'!E16","v":0},"Rapporten söker automatiskt ut med * utan att detta anges.",null,null,null,null,"5*"]
[null,null,"Från period:",null,null,"OBS: året börjar med period 00",null,null,null,null,"6*"]
[null,null,"Till period:",null,null,"OBS: året slutar med period 15",null,null,null,null,"95*-97*"]
[null,null,"Reporting period:",null,5]
[]
[null,null,"Orgenhet","Akt/proj","Vernr","Period","Ver.datum","Konto","Konto(T)","Verifikationstext","Belopp","Korrigering belopp (-)","Beskrivning","RR (Om reseräkning)",null,"Kostnadsslag i Financial statement (välj i listan)"]
["detail","43*",null,null,null,null,"00:00:00",null,0,0,0]
["detail","48*",null,null,null,null,"00:00:00",null,0,0,0]
["detail","49*",null,null,null,null,"00:00:00",null,0,0,0]
["detail","5*",null,null,null,null,"00:00:00",null,0,0,0]
["detail","6*"]
["detail","95*",null,null,null,null,"00:00:00",null,0,0,0]
["detail","96*"]
["detail","97*"]
[null,null,null,null,null,null,"00:00:00",null,0,0,0,null,null,{"$f":"IF(MID($J30,42,6)=\"RESEID\",MID($J30,49,11),\"\")","v":""}]
[null,null,null,null,null,null,"00:00:00",null,0,0,0,null,null,""]
[null,null,null,null,null,null,"00:00:00",null,0,0,0,null,null,""]
[null,null,null,null,null,null,"00:00:00",null,0,0,0,null,null,""]
[null,null,null,null,null,null,"00:00:00",null,0,0,0,null,null,""]

{"sheet":"Direct costs RP5","index":32,"n_rows":46,"n_cols":10,"rows_kept":46,"cut":false,"hidden":false,"merged":[[1,3,1,9]]}
["DIRECT COSTS - RP5"]
[null,null,"Project:    ",{"$f":"'Ekonomisk projektbeskrivning'!D5","v":0}]
[null,null,"GA:            ",{"$f":"'Ekonomisk projektbeskrivning'!D22","v":0}]
[null,null,"Exchange rate:",{"$f":"'Ekonomisk projektbeskrivning'!B30","v":0},null,null,null,null,"Reporting period: 5"]
[]
["A.1 Employees (or equivalent)","Beskrivning","RR-nr","Bokfört \nbelopp \n(SEK)","Korrigering \nbokfört \nbelopp \n(SEK)","Belopp att \nredovisa \n(SEK)","Belopp att \nredovisa \n(EUR)","Vernr","WP","Kommentar"]
[]
[]
[]
[]
["A.2 Natural persons working under direct contract","Beskrivning","RR-nr","Bokfört \nbelopp \n(SEK)","Korrigering \nbokfört \nbelopp \n(SEK)","Belopp att \nredovisa \n(SEK)","Belopp att \nredovisa \n(EUR)","Vernr","WP","Kommentar"]
[]
[]
[]
[]
["A.3 Seconded persons","Beskrivning","RR-nr","Bokfört \nbelopp \n(SEK)","Korrigering \nbokfört \nbelopp \n(SEK)","Belopp att \nredovisa \n(SEK)","Belopp att \nredovisa \n(EUR)","Vernr","WP","Kommentar"]
[]
[]
[]
[]
["A.6 Personnel for providing access to research infrastructure","Beskrivning","RR-nr","Bokfört \nbelopp \n(SEK)","Korrigering \nbokfört \nbelopp \n(SEK)","Belopp att \nredovisa \n(SEK)","Belopp att \nredovisa \n(EUR)","Vernr","WP","Kommentar"]
[]
[]
[]
[]
["B.1 Subcontracting","Beskrivning","RR-nr","Bokfört \nbelopp \n(SEK)","Korrigering \nbokfört \nbelopp \n(SEK)","Belopp att \nredovisa \n(SEK)","Belopp att \nredovisa \n(EUR)","Vernr","WP","Kommentar"]
[]
[]
[]
[]
["D.1 Travel","Beskrivning","RR-nr","Bokfört \nbelopp \n(SEK)","Korrigering \nbokfört \nbelopp \n(SEK)","Belopp att \nredovisa \n(SEK)","Belopp att \nredovisa \n(EUR)","Vernr","WP","Kommentar"]
[]
[]
[]
[]
["D.2 Equipment","Beskrivning","RR-nr","Bokfört \nbelopp \n(SEK)","Korrigering \nbokfört \nbelopp \n(SEK)","Belopp att \nredovisa \n(SEK)","Belopp att \nredovisa \n(EUR)","Vernr","WP","Kommentar"]
[]
[]
[]
[]
["D.3 Other goods and services","Beskrivning","RR-nr","Bokfört \nbelopp \n(SEK)","Korrigering \nbokfört \nbelopp \n(SEK)","Belopp att \nredovisa \n(SEK)","Belopp att \nredovisa \n(EUR)","Vernr","WP","Kommentar"]
[]
[]
[]
[]
["D.5 Costs for internally invoiced goods and services","Beskrivning","RR-nr","Bokfört \nbelopp \n(SEK)","Korrigering \nbokfört \nbelopp \n(SEK)","Belopp att \nredovisa \n(SEK)","Belopp att \nredovisa \n(EUR)","Vernr","WP","Kommentar"]

{"sheet":"Financial Statement RP5","index":33,"n_rows":21,"n_cols":3,"rows_kept":21,"cut":false,"hidden":false,"merged":[[11,0,11,1],[2,1,2,2],[7,0,7,1],[8,0,8,1],[9,0,9,1],[10,0,10,1],[20,0,20,1],[12,0,12,1],[13,0,13,1],[14,0,14,1],[15,0,15,1],[16,0,16,1],[17,0,17,1]]}
["FINANCIAL STATEMENT - RP5"]
[]
["Project:",{"$f":"'Ekonomisk projektbeskrivning'!D5","v":0}]
["GA:",{"$f":"'Ekonomisk projektbeskrivning'!D22","v":0}]
["Reporting period:",5]
[]
[]
["Cost Category",null,"Total EUR"]
["a) Direct personnel costs declared as actual costs",null,0]
["b) Direct personnel costs declared as unit costs (average costs)"]
["d) Direct costs of subcontracting",null,0]
["e) Direct costs of providing financial support to third parties"]
["f) Other direct costs",null,0]
["h) Indirect costs (= 0.25 * (a + b + f - o))",null,{"$f":"0.25*(SUM(CostCategory_A_RP5 + CostCategory_D_RP5 + CostCategory_F_RP5 - CostsInKindNotUsedInPremises_RP5))","v":0}]
["j) Total costs (= a + b + d + e + f + h) ",null,{"$f":"SUM(C9:C14)","v":0}]
["k) Receipts"]
["m) Maximum EU-contribution (100%)",null,{"$f":"((C15-C16)*100%)","v":0}]
["n) Requested EU-contribution"]
[]
[]
["o) Use of 'costs of in-kind contributions not used on premises'?"]

{"sheet":"Adjustments RP5","index":34,"n_rows":86,"n_cols":10,"rows_kept":86,"cut":false,"hidden":false,"merged":[[76,0,76,1],[1,2,1,7],[72,0,72,1],[73,0,73,1],[74,0,74,1],[75,0,75,1],[85,0,85,1],[77,0,77,1],[78,0,78,1],[79,0,79,1],[80,0,80,1],[81,0,81,1],[82,0,82,1]]}
["ADJUSTMENTS OF DIRECT COSTS - RP5"]
[null,"Project:    ",{"$f":"'Ekonomisk projektbeskrivning'!D5","v":0}]
[null,"GA:            ",{"$f":"'Ekonomisk projektbeskrivning'!D22","v":0}]
[null,"Exchange rate:",{"$f":"'Ekonomisk projektbeskrivning'!B30","v":0},null,null,null,"Reporting period: 5"]
[]
["A.1 Employees (or equivalent)","Beskrivning","RR (Om reseräkning)","Belopp","EUR","Vernr","WP","Kommentar"]
[null,null,null,null,{"$f":"IFERROR(D7/$C$4,\"\")","v":""}]
[null,null,null,null,{"$f":"IFERROR(D8/$C$4,\"\")","v":""}]
[null,null,null,null,{"$f":"IFERROR(D9/$C$4,\"\")","v":""}]
[null,null,null,null,{"$f":"IFERROR(D10/$C$4,\"\")","v":""},null,null,null,null,"Inserted row"]
[null,null,null,{"$f":"SUM(D7:D10)","v":0},{"$f":"SUM(E7:E10)","v":0}]
[]
["A.2 Natural persons working under direct contract","Beskrivning","RR (Om reseräkning)","Belopp","EUR","Vernr","WP","Kommentar"]
[null,null,null,null,{"$f":"IFERROR(D14/$C$4,\"\")","v":""}]
[null,null,null,null,{"$f":"IFERROR(D15/$C$4,\"\")","v":""}]
[null,null,null,null,{"$f":"IFERROR(D16/$C$4,\"\")","v":""}]
[null,null,null,null,{"$f":"IFERROR(D17/$C$4,\"\")","v":""},null,null,null,null,"Inserted row"]
[null,null,null,{"$f":"SUM(D14:D17)","v":0},{"$f":"SUM(E14:E17)","v":0}]
[]
["A.3 Seconded persons","Beskrivning","RR (Om reseräkning)","Belopp","EUR","Vernr","WP","Kommentar"]
[null,null,null,null,{"$f":"IFERROR(D21/$C$4,\"\")","v":""}]
[null,null,null,null,{"$f":"IFERROR(D22/$C$4,\"\")","v":""}]
[null,null,null,null,{"$f":"IFERROR(D23/$C$4,\"\")","v":""}]
[null,null,null,null,{"$f":"IFERROR(D24/$C$4,\"\")","v":""}]
[null,null,null,{"$f":"SUM(D21:D24)","v":0},{"$f":"SUM(E21:E24)","v":0}]
[]
["A.6 Personnel for providing access to research infrastructure","Beskrivning","RR (Om reseräkning)","Belopp","EUR","Vernr","WP","Kommentar"]
[null,null,null,null,{"$f":"IFERROR(D28/$C$4,\"\")","v":""}]
[null,null,null,null,{"$f":"IFERROR(D29/$C$4,\"\")","v":""}]
[null,null,null,null,{"$f":"IFERROR(D30/$C$4,\"\")","v":""}]
[null,null,null,null,{"$f":"IFERROR(D31/$C$4,\"\")","v":""},null,null,null,null,"Inserted row"]
[null,null,null,{"$f":"SUM(D28:D31)","v":0},{"$f":"SUM(E28:E31)","v":0}]
[]
["B.1 Subcontracting","Beskrivning","RR (Om reseräkning)","Belopp","EUR","Vernr","WP","Kommentar"]
[null,null,null,null,{"$f":"IFERROR(D35/$C$4,\"\")","v":""}]
[null,null,null,null,{"$f":"IFERROR(D36/$C$4,\"\")","v":""}]
[null,null,null,null,{"$f":"IFERROR(D37/$C$4,\"\")","v":""}]
[null,null,null,null,{"$f":"IFERROR(D38/$C$4,\"\")","v":""},null,null,null,null,"Inserted row"]
[null,null,null,{"$f":"SUM(D35:D38)","v":0},{"$f":"SUM(E35:E38)","v":0}]
[]
["D.1 Travel","Beskrivning","RR (Om reseräkning)","Belopp","EUR","Vernr","WP","Kommentar"]
[null,null,null,null,{"$f":"IFERROR(D42/$C$4,\"\")","v":""}]
[null,null,null,null,{"$f":"IFERROR(D43/$C$4,\"\")","v":""}]
[null,null,null,null,{"$f":"IFERROR(D44/$C$4,\"\")","v":""}]
[null,null,null,null,{"$f":"IFERROR(D45/$C$4,\"\")","v":""},null,null,null,null,"Inserted row"]
[null,null,null,{"$f":"SUM(D42:D45)","v":0},{"$f":"SUM(E42:E45)","v":0}]
[]
["D.2 Equipment","Beskrivning","RR (Om reseräkning)","Belopp","EUR","Vernr","WP","Kommentar"]
[null,null,null,null,{"$f":"IFERROR(D49/$C$4,\"\")","v":""}]
[null,null,null,null,{"$f":"IFERROR(D50/$C$4,\"\")","v":""}]
[null,null,null,null,{"$f":"IFERROR(D51/$C$4,\"\")","v":""}]
[null,null,null,null,{"$f":"IFERROR(D52/$C$4,\"\")","v":""},null,null,null,null,"Inserted row"]
[null,null,null,{"$f":"SUM(D49:D52)","v":0},{"$f":"SUM(E49:E52)","v":0}]
[]
["D.3 Other goods and services","Beskrivning","RR (Om reseräkning)","Belopp","EUR","Vernr","WP","Kommentar"]
[null,null,null,null,{"$f":"IFERROR(D56/$C$4,\"\")","v":""}]
[null,null,null,null,{"$f":"IFERROR(D57/$C$4,\"\")","v":""}]
[null,null,null,null,{"$f":"IFERROR(D58/$C$4,\"\")","v":""}]
[null,null,null,null,{"$f":"IFERROR(D59/$C$4,\"\")","v":""},null,null,null,null,"Inserted row"]
[null,null,null,{"$f":"SUM(D56:D59)","v":0},{"$f":"SUM(E56:E59)","v":0}]
[]
["D.5 Costs for internally invoiced goods and services","Beskrivning","RR (Om reseräkning)","Belopp","EUR","Vernr","WP","Kommentar"]
[null,null,null,null,{"$f":"IFERROR(D63/$C$4,\"\")","v":""}]
[null,null,null,null,{"$f":"IFERROR(D64/$C$4,\"\")","v":""}]
[null,null,null,null,{"$f":"IFERROR(D65/$C$4,\"\")","v":""}]
[null,null,null,null,{"$f":"IFERROR(D66/$C$4,\"\")","v":""},null,null,null,null,"Inserted row"]
[null,null,null,{"$f":"SUM(D63:D66)","v":0},{"$f":"SUM(E63:E66)","v":0}]
[]
[]
[]
["FINANCIAL STATEMENT (ADJUSTMENTS) - RP5"]
[]
["Cost Category",null,"Total EUR"]
["a) Direct personnel costs declared as actual costs",null,{"$f":"E11+E18+E25+E32","v":0}]
["b) Direct personnel costs declared as unit costs (average costs)"]
["d) Direct costs od subcontracting",null,{"$f":"E39","v":0}]
["e) Direct costs of providing financial support to third parties"]
["f) Other direct costs",null,{"$f":"E46+E53+E60+E67","v":0}]
["h) Indirect costs (= 0.25 * (a + b + f - o))",null,{"$f":"(C74+C75+C78-C86)*0.25","v":0}]
["j) Total costs (= a + b + d + e + f + h) ",null,{"$f":"SUM(C74:C79)","v":0}]
["k) Receipts"]
["m) Maximum EU-contribution (100%)",null,{"$f":"((C80-C81)*100%)","v":0}]
["n) Requested EU-contribution"]
[]
[]
["o) Use of 'costs of in-kind contributions not used on premises'?"]

{"sheet":"Blad1","index":35,"n_rows":0,"n_cols":0,"rows_kept":0,"cut":false,"hidden":false,"merged":[]}